Workbook

Sheet Data Input
A1: Aerial Conductor Ampacity and Thermal Rating
A2: This spreadsheet is based on the overhead conductor methodology as set forth in: IEEE Standard for Calculation the Current-Temperature of Bare Overhead Conductors, IEEE 738™-2012
A3: Project Information
D4: Line number or general title: | E4: Test Calculation
D5: Line description: | E5: Test Calculation
D6: Element description: | E6: 1590kcm 45/7 ACSR Lapwing at 125C
D7: Prepared by: | E7: Robert May
D8: Date prepared: | E8: =NOW() -> 2022-11-18T16:55:05.430
A9: Conductor Data
D10: Select conductor:
D11: Number of conductors per phase: | E11: 1
D12: Emissivity (e): | E12: 0.7
D13: Absorptivity (a): | E13: 0.9
A14: Conductor Internal & Generated Data
D15: Name: | E15: Lapwing | H15: Overall conductor diameter (in.): | I15: 1.504
D16: Type: | E16: ACSR | H16: Low Resistance Temp. (˚C): | I16: 25
D17: Size (kcmil): | E17: 1590.0 45/7 | H17: Low Temp Resistance (Ω/ 1000ft.): | I17: 0.01174242424
D18: Governing conductor specification: | E18: ASTM B 232 | H18: High Resistance Temp. (˚C): | I18: 75
H19: High Temp Resistance (Ω/ 1000ft.): | I19: 0.01380681818
A20: Solar and Geographic Data
D21: Latitude (˚N): | E21: 40 | J21: Month: | K21: June
D22: Elevation Above Sea Level (ft.): | E22: 200 | J22: Day: | K22: 10
A23: Solar and Geographic Internal & Generated Data | J23: Hc: Altitude of the sun (˚): | K23: 59.53597029
D24: Suntime (hours): | E24: 14:00:00 | J24: ="Qse: Total heat flux (W/ft2):" -> Qse: Total heat flux (W/ft2): | K24: 71.98671971
D25: Atmosphere: | E25: Industrial | J25: Zc: Azimuth of the sun (˚): | K25: 65.18496746
D26: Kangle (Wind direction factor): | E26: =ABS(IF(1.194-COS($I$33*PI()/180)+0.194*COS($I$33*2*PI()/180)+0.368*SIN(2*$I$33*PI()/180) > 1, (1.194-COS($I$33*PI()/180)+0.194*COS($I$33*2*PI()/180)+0.368*SIN(2*$I$33*PI()/180))- 2, (1.194-COS($I$33*PI()/180)+0.194*COS($I$33*2*PI()/180)+0.368*SIN(2*$I$33*PI()/180)))) -> 1 | J26: θ: Effective angle of incidence of the sun's rays (˚): | K26: 62.60095746
A27: Max. Allowable Cond. Temp. (˚C) | J27: Ratings At A Glance
A28: Spec | B28: Type | C28: Normal | D28: Emerg. | F28: Rating Parameters | K28: Planning Rating (A) | L28: Normal | M28: Emerg. | N28: Load Dump | O28: LD/E Sep
A29: ASTM B 232 | B29: ACSR | C29: 140 | D29: 140 | H29: Max. Cond. Temp. - Normal (˚C): | I29: 125 | K29: Summer Daytime | L29: 1640.540655 | M29: 2030.284166 | N29: 2260.077573 | O29: =IF(ISERROR(N29/M29),0,N29/M29) -> 1.113182879
A30: ASTM B 524 | B30: ACAR | C30: 100 | D30: 100 | H30: Wind speed, normal rating (fps): | I30: 0 | K30: Summer Nighttime | L30: 1773.585558 | M30: 2139.225535 | N30: 2366.488232 | O30: =IF(ISERROR(N30/M30),0,N30/M30) -> 1.106235968
A31: ASTM B 231 | B31: AAC | C31: 85 | D31: 110 | H31: Max. Cond. Temp. - Emergency (˚C): | I31: 125 | K31: Winter Daytime | L31: 1889.0926 | M31: 2285.669128 | N31: 2551.762097 | O31: =IF(ISERROR(N31/M31),0,N31/M31) -> 1.116417974
A32: ASTM B 856 | B32: ACSS | C32: 250 | D32: 250 | H32: Wind speed, emergency rating (fps): | I32: 2.533 | K32: Winter Nighttime | L32: 2005.717564 | M32: 2382.963587 | N32: 2648.788386 | O32: =IF(ISERROR(N32/M32),0,N32/M32) -> 1.111552187
A33: ASTM B 857 | B33: ACSSTW | C33: 250 | D33: 250 | H33: Angle between wind and conductor (˚): | I33: 90 | J33: =MID(CELL("filename"),SEARCH("[",CELL("filename"))+1,SEARCH("]",CELL("filename"))-SEARCH("[",CELL("filename"))-1) -> Ratings Comparison Spreadsheet.xlsx
A34: ACCC | B34: ACCC | C34: 180 | D34: 200
A35: ACCR | B35: ACCR | C35: 210 | D35: 240
A36: ASTM B 8 | B36: Copper | C36: 85 | D36: 120
A37: AAAC | B37: AAAC | C37: 95 | D37: 135

Sheet Load Dump (hidden)
B1: Day | F1: Night
B2: Normal | C2: Emergency | E2: Wind (f/s) | F2: Normal | G2: Emergency | I2: Material | J2: mCp | X2: AAAC
A3: Wind (f/s) | B3: =wind_norm -> 0 | C3: =wind_emer -> 2.533 | F3: =wind_norm -> 0 | G3: =wind_emer -> 2.533 | I3: Aluminum | J3: 433 | X3: AAC
A4: qr: | B4: =0.138*'Data Input'!$I$15*'Data Input'!$E$12*(((($C$20+273.15)/100)^4)-((($C$21+273.15)/100)^4)) -> 10.33395089 | C4: =0.138*'Data Input'!$I$15*'Data Input'!$E$12*(((($C$20+273.15)/100)^4)-((($C$21+273.15)/100)^4)) -> 10.33395089 | E4: qr: | F4: =0.138*'Data Input'!$I$15*'Data Input'!$E$12*(((($G$20+273.15)/100)^4)-((($G$21+273.15)/100)^4)) -> 10.19215636 | G4: =0.138*'Data Input'!$I$15*'Data Input'!$E$12*(((($G$20+273.15)/100)^4)-((($G$21+273.15)/100)^4)) -> 10.19215636 | I4: Copper | J4: 192 | X4: AACSR
A5: qs: | B5: =qs!D9 -> 7.209213914 | C5: =qs!E9 -> 7.209213914 | E5: qs: | F5: 0 | G5: 0 | I5: Steel | J5: 216 | X5: AACTW
A6: qc: | B6: =MAX(B12:B14) -> 9.150242493 | C6: =MAX(C12:C14) -> 21.12351617 | E6: qc: | F6: =MAX(F12:F14) -> 9.01862829 | G6: =MAX(G12:G14) -> 20.8750521 | I6: Alumoweld | J6: 242 | X6: ACAR
A7: Initial Current: | B7: =SQRT((B4+B6-B5)/$B$18) -> 904.2538865 | C7: =SQRT((C4+C6-C5)/$B$18) -> 1270.925886 | E7: Initial Current: | F7: =SQRT((F4+F6-F5)/$B$18) -> 1131.234258 | G7: =SQRT((G4+G6-G5)/$B$18) -> 1438.570375 | X7: ACCC
J8: Aluminum | K8: Steel | L8: Copper | M8: Alumonweld | N8: Total mCp | X8: ACCR
I9: mCp: | J9: 1.4981 | K9: 0.2922 | X9: ACSR
J10: =J9*J3 -> 648.6773 | K10: =K9*J5 -> 63.1152 | L10: =L9*J4 -> 0 | M10: =M9*J6 -> 0 | N10: =SUM(J10:M10) -> 711.7925 | X10: ACSRTW
A11: Wind (f/s) | B11: =wind_norm -> 0 | C11: =wind_emer -> 2.533 | E11: Wind (f/s) | F11: =wind_norm -> 0 | G11: =wind_emer -> 2.533 | X11: ACSS
A12: qc0 | B12: =0.283*($B$15^0.5)*('Data Input'!$I$15^0.75)*(($C$20-$C$21)^1.25) -> 9.150242493 | C12: =0.283*($B$15^0.5)*('Data Input'!$I$15^0.75)*(($C$20-$C$21)^1.25) -> 9.150242493 | E12: qc0 | F12: =0.283*($F$15^0.5)*('Data Input'!$I$15^0.75)*(($G$20-$G$21)^1.25) -> 9.01862829 | G12: =0.283*($F$15^0.5)*('Data Input'!$I$15^0.75)*(($G$20-$G$21)^1.25) -> 9.01862829 | X12: ACSSTW
A13: qc1 | B13: =(1.01+0.371*(('Data Input'!$I$15*$B$15*(B3*3600))/$B$16)^0.52)*$B$17*($C$20-$C$21)*'Data Input'!$E$26 -> 0.3633933274 | C13: =(1.01+0.371*(('Data Input'!$I$15*$B$15*(C3*3600))/$B$16)^0.52)*$B$17*($C$20-$C$21)*'Data Input'!$E$26 -> 21.12351617 | E13: qc1 | F13: =(1.01+0.371*(('Data Input'!$I$15*$F$15*(F3*3600))/$F$16)^0.52)*$F$17*($G$20-$G$21)*'Data Input'!$E$26 -> 0.3589163386 | G13: =(1.01+0.371*(('Data Input'!$I$15*$F$15*(G3*3600))/$F$16)^0.52)*$F$17*($G$20-$G$21)*'Data Input'!$E$26 -> 20.8750521 | X13: HD Copper
A14: qc2 | B14: =0.1695*(('Data Input'!$I$15*$B$15*(B3*3600)/$B$16)^0.6)*$B$17*($C$20-$C$21)*'Data Input'!$E$26 -> 0 | C14: =0.1695*(('Data Input'!$I$15*$B$15*(C3*3600)/$B$16)^0.6)*$B$17*($C$20-$C$21)*'Data Input'!$E$26 -> 20.61701461 | E14: qc2 | F14: =0.1695*(('Data Input'!$I$15*$F$15*(F3*3600)/$F$16)^0.6)*$F$17*($G$20-$G$21)*'Data Input'!$E$26 -> 0 | G14: =0.1695*(('Data Input'!$I$15*$F$15*(G3*3600)/$F$16)^0.6)*$F$17*($G$20-$G$21)*'Data Input'!$E$26 -> 20.37650934
A15: pf: | B15: =(0.080695-(2.901*10^-6)*'Data Input'!$E$22+(3.7*10^-11)*('Data Input'!$E$22^2))/(1+0.00367*(($C$20+$C$21)/2)) -> 0.06108822527 | C15: =(0.080695-(2.901*10^-6)*'Data Input'!$E$22+(3.7*10^-11)*('Data Input'!$E$22^2))/(1+0.00367*(($C$20+$C$21)/2)) -> 0.06108822527 | E15: pf: | F15: =(0.080695-(2.901*10^-6)*'Data Input'!$E$22+(3.7*10^-11)*('Data Input'!$E$22^2))/(1+0.00367*(($G$20+$G$21)/2)) -> 0.06112713562 | G15: =(0.080695-(2.901*10^-6)*'Data Input'!$E$22+(3.7*10^-11)*('Data Input'!$E$22^2))/(1+0.00367*(($G$20+$G$21)/2)) -> 0.06112713562
A16: uf: | B16: =(0.00353*(($C$20+$C$21)/2 + 273.15)^1.5)/(($C$20+$C$21)/2+ 383.4) -> 0.05106721801 | C16: =(0.00353*(($C$20+$C$21)/2 + 273.15)^1.5)/(($C$20+$C$21)/2+ 383.4) -> 0.05106721801 | E16: uf: | F16: =(0.00353*(($G$20+$G$21)/2 + 273.15)^1.5)/(($G$20+$G$21)/2+ 383.4) -> 0.05104335219 | G16: =(0.00353*(($G$20+$G$21)/2 + 273.15)^1.5)/(($G$20+$G$21)/2+ 383.4) -> 0.05104335219
A17: kf: | B17: =0.007388+(2.279*10^-5*($C$20+$C$21)/2)-1.343*10^-9*(($C$20+$C$21)/2)^2 -> 0.00931258705 | C17: =0.007388+(2.279*10^-5*($C$20+$C$21)/2)-1.343*10^-9*(($C$20+$C$21)/2)^2 -> 0.00931258705 | E17: kf: | F17: =0.007388+(2.279*10^-5*($G$20+$G$21)/2)-1.343*10^-9*(($G$20+$G$21)/2)^2 -> 0.009307454747 | G17: =0.007388+(2.279*10^-5*($G$20+$G$21)/2)-1.343*10^-9*(($G$20+$G$21)/2)^2 -> 0.009307454747
A18: R(Tc): | B18: =(('Data Input'!$I$19-'Data Input'!$I$17)/('Data Input'!$I$18-'Data Input'!$I$16)*('Load Dump'!$C$20-'Data Input'!$I$16)+'Data Input'!$I$17)/1000 -> 1.501205014e-05 | C18: =(('Data Input'!$I$19-'Data Input'!$I$17)/('Data Input'!$I$18-'Data Input'!$I$16)*('Load Dump'!$C$20-'Data Input'!$I$16)+'Data Input'!$I$17)/1000 -> 1.501205014e-05 | E18: R(Tc): | F18: =(('Data Input'!$I$19-'Data Input'!$I$17)/('Data Input'!$I$18-'Data Input'!$I$16)*('Load Dump'!$G$20-'Data Input'!$I$16)+'Data Input'!$I$17)/1000 -> 1.499326646e-05 | G18: =(('Data Input'!$I$19-'Data Input'!$I$17)/('Data Input'!$I$18-'Data Input'!$I$16)*('Load Dump'!$G$20-'Data Input'!$I$16)+'Data Input'!$I$17)/1000 -> 1.499326646e-05
B20: Conductor Temperature: | C20: 104.1909392 | F20: Conductor Temperature: | G20: 103.7359949
B21: Ambient Air Temperature: | C21: 65.55555556 | F21: Ambient Air Temperature: | G21: 65.55555556
B22: Maximum Conductor Temperature: | C22: 125 | F22: Maximum Conductor Temperature: | G22: 125
B25: Day | F25: Night
B26: Initial Temperature (Ti): | C26: 104.1909392 | F26: Initial Temperature: | G26: 103.7359949
B27: Initial Current (Ii): | C27: 1270.925896 | F27: Initial Current: | G27: 1438.570376
B28: Final Temperature (Tf): | C28: 137.7497564 | F28: Final Temperature: | G28: 138.4819175
B29: Temperature @ t15 (Tc): | C29: =C26+(C28-C26)*(1-EXP(-15/D29)) -> 125 | D29: 15.49927072 | F29: Temperature @ t15: | G29: =G26+(G28-G26)*(1-EXP(-15/H29)) -> 125 | H29: 15.84429686
B30: Time Constant (tau): | C30: =((N10*(C28-C26))/(B18*(C31^2-C27^2)))/60 -> 15.49916739 | F30: Time Constant: | G30: =((N10*(G28-G26))/(F18*(G31^2-G27^2)))/60 -> 15.84416707
B31: Final Current (If): | C31: 1823.81295 | F31: Final Current: | G31: 1950.550677

Sheet Rating Report
A1: Line Rating: Aerial Conductor Element
A2: General data | O2: Subseasonal Daytime Ratings
C3: Line number or general title: | D3: ='Data Input'!E4 -> Test Calculation | L3: Normal Winter: 10˚C @ 0 ft/sec wind | N3: =D34 -> 1889.0926 | O3: Normal Winter | P3: =N3 -> 1889.0926
C4: Line description: | D4: ='Data Input'!E5 -> Test Calculation | O4: Emergency Winter | P4: =N6 -> 2285.669128
C5: Element description: | D5: ='Data Input'!E6 -> 1590kcm 45/7 ACSR Lapwing at 125C | O5: Load Dump Winter | P5: =N9 -> 2551.762097
C6: Date prepared: | D6: ='Data Input'!E8 -> 2022-11-18T16:55:05.430 | F6: Prepared by: | G6: ='Data Input'!E7 -> Robert May | L6: Emergency Winter: 10˚C @ 2.5 ft/sec wind | N6: =E34 -> 2285.669128 | O6: Normal Summer | P6: =N12 -> 1640.540655
O7: Emergency Summer | P7: =N15 -> 2030.284166
A8: Conductor data | O8: Load Dump Summer | P8: =N18 -> 2260.077573
C9: Size: | D9: =Spec & " " & Description -> 1590.0 45/7 ACSR | G9: Name: | H9: ='Data Input'!E15 -> Lapwing | L9: Load Dump Winter: 10˚C @ 2.5 ft/sec wind | N9: =F34 -> 2551.762097
C10: Conductor specification: | D10: =Size -> ASTM B 232 | G10: Low Resistance Temp. (˚C): | H10: ='Data Input'!I16 -> 25
C11: Number per phase: | D11: ='Data Input'!E11 -> 1 | G11: Low Temp Resistance (Ω/1000ft.): | H11: ='Data Input'!I17 -> 0.01174242424
C12: Overall Diameter (in.): | D12: ='Data Input'!I15 -> 1.504 | G12: High Resisitance Temp. (˚C): | H12: ='Data Input'!I18 -> 75 | L12: Normal Summer : 35˚C @ 0 ft/sec wind | N12: =D39 -> 1640.540655
C13: Emissivity (e): | D13: =emis -> 0.7 | G13: High Temp Resistance (Ω/1000ft.): | H13: ='Data Input'!I19 -> 0.01380681818
C14: Absorptivity (a): | D14: =absor -> 0.9
L15: Emergency Summer: 35˚C @ 2.5 ft/sec wind | N15: =E39 -> 2030.284166
A16: Solar and Geographic Data
C17: Latitude (˚N): | D17: =lat -> 40 | G17: Atmosphere: | H17: =atmosphere -> Industrial
C18: Elevation Above Sea Level (ft.): | D18: =elevation -> 200 | G18: Kangle (Wind direction factor): | H18: =kangle -> 1 | L18: Load Dump Summer: 35˚C @ 2.5 ft/sec wind | N18: =F39 -> 2260.077573
C19: Suntime (hours): | D19: =time -> 14:00:00
A21: Rating Parameters
C22: Max. Cond. Temp. - Normal (˚C): | D22: =max_norm -> 125 | G22: Max. Cond. Temp. - Emergency (˚C): | H22: =max_emer -> 125
C23: Wind speed, normal rating (fps): | D23: =wind_norm -> 0 | G23: Wind speed, emergency rating (fps): | H23: =wind_emer -> 2.533
G24: Z1: Angle between wind and conductor (˚): | H24: =angle -> 90
A25: Ratings calculated per IEEE 738™-2006
A26: Aerial Conductor Thermal Rating
A27: Ambient Temperature (˚C) | D27: Daytime Rating | G27: Nighttime Rating | L27: Ambient Temperature (˚F) | O27: Daytime Rating | R27: Nighttime Rating
A28: Condition | C28: Temp. | D28: Normal (A) | E28: Emergency (A) | F28: Load Dump (A) | G28: Normal (A) | H28: Emergency (A) | I28: Load Dump (A) | L28: Temp (˚C) | N28: Temp. | O28: Normal (A) | P28: Emergency (A) | Q28: Load Dump (A) | R28: Normal (A) | S28: Emergency (A) | T28: Load Dump (A)
C29: -15 | D29: 2109.643763 | E29: 2504.892676 | F29: 2806.503136 | G29: 2214.684831 | H29: 2593.977527 | I29: 2897.240276 | M29: =(N29-32)*(5/9) -> -53.88888889 | N29: -65 | O29: 2419.135725 | P29: 2797.999441 | Q29: 3171.668675 | R29: 2511.264571 | S29: 2878.02588 | T29: 3256.331071
C30: -10 | D30: 2067.230173 | E30: 2463.352165 | F30: 2757.930019 | G30: 2174.3212 | H30: 2553.886446 | I30: 2849.751576 | M30: =(N30-32)*(5/9) -> -51.11111111 | N30: =N29+5 -> -60 | O30: 2397.976946 | P30: 2778.551893 | Q30: 3146.695062 | R30: 2490.888502 | S30: 2859.122718 | T30: 3231.70329
C31: -5 | D31: 2024.040553 | E31: 2420.738252 | F31: 2708.245892 | G31: 2133.300788 | H31: 2512.808345 | I31: 2801.229786 | M31: -48.33333333 | N31: =N30+5 -> -55 | O31: 2376.699333 | P31: 2758.904777 | Q31: 3121.585629 | R31: 2470.411264 | S31: 2840.033039 | T31: 3206.953473
C32: 0 | D32: 1980.006202 | E32: 2376.976094 | F32: 2657.37825 | G32: 2091.567989 | H32: 2470.677527 | I32: 2751.610467 | M32: -45.55555556 | N32: -50 | O32: 2355.296865 | P32: 2739.051523 | Q32: 3096.331232 | R32: 2449.82763 | S32: 2820.750847 | T32: 3182.072941
C33: 5 | D33: 1935.05146 | E33: 2331.983367 | F33: 2605.246761 | G33: 2049.062285 | H33: 2427.422196 | I33: 2700.822783 | M33: -42.77777778 | N33: -45 | O33: 2333.763288 | P33: 2718.985305 | Q33: 3070.922731 | R33: 2429.132187 | S33: 2801.269923 | T33: 3157.052949
A34: Winter Planning | C34: 10 | D34: 1889.0926 | E34: 2285.669128 | F34: 2551.762097 | G34: 2005.717564 | H34: 2382.963587 | I34: 2648.788386 | M34: -40 | N34: -40 | O34: 2312.092105 | P34: 2698.699028 | Q34: 3045.350724 | R34: 2408.31933 | S34: 2781.583818 | T34: 3131.884606
C35: 15 | D35: 1842.036474 | E35: 2237.932419 | F35: 2496.824484 | G35: 1961.461309 | H35: 2337.214925 | I35: 2595.420201 | M35: -37.22222222 | N35: -35 | O35: 2290.276554 | P35: 2678.185309 | Q35: 3019.604534 | R35: 2387.383251 | S35: 2761.685834 | T35: 3106.558729
C36: 20 | D36: 1793.778848 | E36: 2188.660571 | F36: 2440.346367 | G36: 1916.213623 | H36: 2290.08017 | I36: 2540.621187 | M36: -34.44444444 | N36: -30 | O36: 2268.309601 | P36: 2657.436467 | Q36: 2993.677053 | R36: 2366.317929 | S36: 2741.569016 | T36: 3081.066813
C37: 25 | D37: 1744.202321 | E37: 2137.727114 | F37: 2382.142105 | G37: 1869.886048 | H37: 2241.4525 | I37: 2484.307128 | M37: -31.66666667 | N37: -25 | O37: 2246.183914 | P37: 2636.444495 | Q37: 2967.556868 | R37: 2345.117112 | S37: 2721.226134 | T37: 3055.399193
C38: 30 | D38: 1693.173701 | E38: 2084.989171 | F38: 2322.107171 | G38: 1822.380113 | H38: 2191.212435 | I38: 2426.295972 | M38: -28.88888889 | N38: -20 | O38: 2223.891851 | P38: 2615.201047 | Q38: 2941.233825 | R38: 2323.774313 | S38: 2700.649665 | T38: 3029.546393
A39: Summer Planning | C39: 35 | D39: 1640.540655 | E39: 2030.284166 | F39: 2260.077573 | G39: 1773.585558 | H39: 2139.225535 | I39: 2366.488232 | M39: -26.11111111 | N39: -15 | O39: 2201.425435 | P39: 2593.697413 | Q39: 2914.697493 | R39: 2302.282789 | S39: 2679.831779 | T39: 3003.498718
C40: 40 | D40: 1586.127353 | E40: 1973.425637 | F40: 2195.864827 | G40: 1723.3781 | H40: 2085.339502 | I40: 2304.725606 | M40: -23.33333333 | N40: -10 | O40: 2178.776335 | P40: 2571.924494 | Q40: 2887.937136 | R40: 2280.635528 | S40: 2658.764318 | T40: 2977.246223
A41: Spreadsheet developed by the PJM Transmission and Substations Design Subcommittee. Modified by PECO Energy | M41: -20.55555556 | N41: -5 | O41: 2155.935841 | P41: 2549.872779 | Q41: 2860.94168 | R41: 2258.825235 | S41: 2637.438773 | T41: 2950.778688
A42: =MID(CELL("filename"),SEARCH("[",CELL("filename"))+1,SEARCH("]",CELL("filename"))-SEARCH("[",CELL("filename"))-1) -> Ratings Comparison Spreadsheet.xlsx | M42: -17.77777778 | N42: 0 | O42: 2132.894834 | P42: 2527.532315 | Q42: 2833.699724 | R42: 2236.84431 | S42: 2615.846268 | T42: 2924.085598
M43: -15 | N43: 5 | O43: 2109.643763 | P43: 2504.892676 | Q43: 2806.503136 | R43: 2214.684831 | S43: 2593.977527 | T43: 2897.240276
M44: -12.22222222 | N44: 10 | O44: 2086.172609 | P44: 2481.94293 | Q44: 2779.651182 | R44: 2192.338534 | S44: 2571.822856 | T44: 2870.981535
M45: -9.444444444 | N45: 15 | O45: 2062.47085 | P45: 2458.671602 | Q45: 2752.465689 | R45: 2169.796788 | S45: 2549.372107 | T45: 2844.412416
M46: -6.666666667 | N46: 20 | O46: 2038.527426 | P46: 2435.066633 | Q46: 2724.935038 | R46: 2147.050572 | S46: 2526.614652 | T46: 2817.522365
M47: -3.888888889 | N47: 25 | O47: 2014.330691 | P47: 2411.115333 | Q47: 2697.046949 | R47: 2124.090447 | S47: 2503.539344 | T47: 2790.300503
M48: -1.111111111 | N48: 30 | O48: 1989.868372 | P48: 2386.804339 | Q48: 2668.788432 | R48: 2100.906526 | S48: 2480.134481 | T48: 2762.735346
M49: 1.666666667 | N49: 35 | O49: 1965.127511 | P49: 2362.119549 | Q49: 2640.145688 | R49: 2077.488442 | S49: 2456.387767 | T49: 2734.814758
M50: 4.444444444 | N50: 40 | O50: 1940.09441 | P50: 2337.046075 | Q50: 2611.104254 | R50: 2053.825313 | S50: 2432.28626 | T50: 2706.525863
M51: 7.222222222 | N51: 45 | O51: 1914.754567 | P51: 2311.568163 | Q51: 2581.648527 | R51: 2029.905699 | S51: 2407.816327 | T51: 2677.854938
M52: 10 | N52: 50 | O52: 1889.0926 | P52: 2285.669128 | Q52: 2551.762097 | R52: 2005.717564 | S52: 2382.963587 | T52: 2648.788386
M53: 12.77777778 | N53: 55 | O53: 1863.092166 | P53: 2259.331267 | Q53: 2521.427456 | R53: 1981.248221 | S53: 2357.712847 | T53: 2619.310024
M54: 15.55555556 | N54: 60 | O54: 1836.735874 | P54: 2232.535763 | Q54: 2490.625878 | R54: 1956.484287 | S54: 2332.048033 | T54: 2589.40396
M55: 18.33333333 | N55: 65 | O55: 1810.005173 | P55: 2205.262587 | Q55: 2459.366331 | R55: 1931.411614 | S55: 2305.952119 | T55: 2559.052954
M56: 21.11111111 | N56: 70 | O56: 1782.880243 | P56: 2177.490374 | Q56: 2427.562646 | R56: 1906.015229 | S56: 2279.407033 | T56: 2528.238638
M57: 23.88888889 | N57: 75 | O57: 1755.339854 | P57: 2149.19629 | Q57: 2395.22924 | R57: 1880.27926 | S57: 2252.393569 | T57: 2496.968839
M58: 26.66666667 | N58: 80 | O58: 1727.361217 | P58: 2120.355886 | Q58: 2362.341514 | R58: 1854.186848 | S58: 2224.891273 | T58: 2465.160754
M59: 29.44444444 | N59: 85 | O59: 1698.919808 | P59: 2090.942918 | Q59: 2328.873028 | R59: 1827.720057 | S59: 2196.878327 | T59: 2432.82768
M60: 32.22222222 | N60: 90 | O60: 1669.989165 | P60: 2060.92916 | Q60: 2294.795298 | R60: 1800.859768 | S60: 2168.331408 | T60: 2399.94548
M61: 35 | N61: 95 | O61: 1640.540655 | P61: 2030.284166 | Q61: 2260.077573 | R61: 1773.585558 | S61: 2139.225535 | T61: 2366.488232
M62: 37.77777778 | N62: 100 | O62: 1610.543198 | P62: 1998.975023 | Q62: 2224.686565 | R62: 1745.875565 | S62: 2109.533891 | T62: 2332.428034
M63: 40.55555556 | N63: 105 | O63: 1579.962955 | P63: 1966.966038 | Q63: 2188.586154 | R63: 1717.706329 | S63: 2079.227618 | T63: 2297.734789
M64: 43.33333333 | N64: 110 | O64: 1548.762945 | P64: 1934.218395 | Q64: 2151.723916 | R64: 1689.052621 | S64: 2048.27559 | T64: 2262.375953
M65: 46.11111111 | N65: 115 | O65: 1516.902605 | P65: 1900.68974 | Q65: 2114.096277 | R65: 1659.887228 | S65: 2016.644139 | T65: 2226.316246
M66: 48.88888889 | N66: 120 | O66: 1484.337258 | P66: 1866.333702 | Q66: 2075.616903 | R66: 1630.180723 | S66: 1984.296747 | T66: 2189.535559
M67: 51.66666667 | N67: 125 | O67: 1451.017475 | P67: 1831.099315 | Q67: 2036.247254 | R67: 1599.901186 | S67: 1951.193685 | T67: 2151.937348
M68: 54.44444444 | N68: 130 | O68: 1416.888305 | P68: 1794.930342 | Q68: 1995.930352 | R68: 1569.013882 | S68: 1917.291586 | T68: 2113.530607
M69: 57.22222222 | N69: 135 | O69: 1381.888331 | P69: 1757.76445 | Q69: 1954.603039 | R69: 1537.480879 | S69: 1882.542949 | T69: 2074.246895
M70: 60 | N70: 140 | O70: 1345.948507 | P70: 1719.532221 | Q70: 1912.195062 | R70: 1505.260601 | S70: 1846.895545 | T70: 2034.030923
M71: 62.77777778 | N71: 145 | O71: 1308.990707 | P71: 1680.155941 | Q71: 1868.627827 | R71: 1472.307293 | S71: 1810.291711 | T71: 1992.821496
M72: 65.55555556 | N72: 150 | O72: 1270.925896 | P72: 1639.548103 | Q72: 1823.81295 | R72: 1438.570376 | S72: 1772.667503 | T72: 1950.550677

Sheet Day Chart
A1: DAY - Steady State Thermal Rating (Ampacity), Amperes | Q1: DAY - Steady State Thermal Rating (Ampacity), Amperes
C2: Line Designation or Project Name: | D2: =line -> Test Calculation | L2: Date Prepared: | M2: =date -> 2022-11-18T16:55:05.430 | S2: Line Designation or Project Name: | T2: =line -> Test Calculation | AB2: Date Prepared: | AC2: =date -> 2022-11-18T16:55:05.430
C3: Line Description: | D3: =line_descrip -> Test Calculation | L3: Prepared by: | M3: =by -> Robert May | S3: Line Description: | T3: =line_descrip -> Test Calculation | AB3: Prepared by: | AC3: =by -> Robert May
C4: Conductor Size and Type: | D4: =Spec & " " & 'Data Input'!E15 & " " & Description -> 1590.0 45/7 Lapwing ACSR | S4: Conductor Size and Type: | T4: =Spec & " " & 'Data Input'!U15 & " " & Description -> 1590.0 45/7 ACSR
C5: Cond. Max. Op Temp. (˚C): | D5: Normal: | F5: =max_norm -> 125 | G5: Emergency: | I5: =max_emer -> 125 | J5: Ampacity is per conductor or subconductor | S5: Cond. Max. Op Temp. (˚C): | T5: Normal: | V5: =max_norm -> 125 | W5: Emergency: | Y5: =max_emer -> 125 | Z5: Ampacity is per conductor or subconductor | AQ5: Plan Winter | AZ5: Plan Summer
D6: Ambient Air Temperature (˚C) | T6: -65 | U6: -60 | V6: -55 | W6: -50 | X6: -45 | Y6: -40 | Z6: -35 | AA6: -30 | AB6: -25 | AC6: -20 | AD6: -15 | AE6: -10 | AF6: -5 | AG6: 0 | AH6: 5 | AI6: 10 | AJ6: 15 | AK6: 20 | AL6: 25 | AM6: 30 | AN6: 35 | AO6: 40 | AP6: 45 | AQ6: 50 | AR6: 55 | AS6: 60 | AT6: 65 | AU6: 70 | AV6: 75 | AW6: 80 | AX6: 85 | AY6: 90 | AZ6: 95 | BA6: 100 | BB6: 105 | BC6: 110 | BD6: 115 | BE6: 120 | BF6: 125 | BG6: 130 | BH6: 135 | BI6: 140 | BJ6: 145 | BK6: 150
A7: Rating Condition | B7: Wind Speed | C7: Cond. Oper. Temp. | D7: -15 | E7: -10 | F7: -5 | G7: 0 | H7: 5 | I7: Plan. Winter 10 | J7: 15 | K7: 20 | L7: 25 | M7: 30 | N7: Plan. Summer 35 | O7: 40 | Q7: Rating Condition | R7: Wind Speed | S7: Cond. Oper. Temp. | T7: =CONVERT(T6,"F","C") -> -53.88888889 | U7: =CONVERT(U6,"F","C") -> -51.11111111 | V7: -48.33333333 | W7: -45.55555556 | X7: -42.77777778 | Y7: -40 | Z7: -37.22222222 | AA7: -34.44444444 | AB7: -31.66666667 | AC7: -28.88888889 | AD7: -26.11111111 | AE7: -23.33333333 | AF7: -20.55555556 | AG7: -17.77777778 | AH7: -15 | AI7: -12.22222222 | AJ7: -9.444444444 | AK7: -6.666666667 | AL7: -3.888888889 | AM7: -1.111111111 | AN7: 1.666666667 | AO7: 4.444444444 | AP7: 7.222222222 | AQ7: 10 | AR7: 12.77777778 | AS7: 15.55555556 | AT7: 18.33333333 | AU7: 21.11111111 | AV7: 23.88888889 | AW7: 26.66666667 | AX7: 29.44444444 | AY7: 32.22222222 | AZ7: 35 | BA7: 37.77777778 | BB7: 40.55555556 | BC7: 43.33333333 | BD7: 46.11111111 | BE7: 48.88888889 | BF7: 51.66666667 | BG7: 54.44444444 | BH7: 57.22222222 | BI7: 60 | BJ7: 62.77777778 | BK7: 65.55555556
B8: (ft./sec.) | C8: (˚C) | R8: (ft./sec.) | S8: (˚C)
A9: Normal Day | B9: =wind_norm -> 0 | C9: 70 | D9: =IF(ISERROR(SQRT((qc!D9+qr!D9-qs!D9)/(Resistance!D9))*'Data Input'!$E$11),"0",SQRT((qc!D9+qr!D9-qs!D9)/(Resistance!D9))*'Data Input'!$E$11) -> 1563.408632 | E9: =IF(ISERROR(SQRT((qc!E9+qr!E9-qs!E9)/(Resistance!E9))*'Data Input'!$E$11),"0",SQRT((qc!E9+qr!E9-qs!E9)/(Resistance!E9))*'Data Input'!$E$11) -> 1501.753356 | F9: =IF(ISERROR(SQRT((qc!F9+qr!F9-qs!F9)/(Resistance!F9))*'Data Input'!$E$11),"0",SQRT((qc!F9+qr!F9-qs!F9)/(Resistance!F9))*'Data Input'!$E$11) -> 1437.895861 | G9: =IF(ISERROR(SQRT((qc!G9+qr!G9-qs!G9)/(Resistance!G9))*'Data Input'!$E$11),"0",SQRT((qc!G9+qr!G9-qs!G9)/(Resistance!G9))*'Data Input'!$E$11) -> 1371.518934 | H9: =IF(ISERROR(SQRT((qc!H9+qr!H9-qs!H9)/(Resistance!H9))*'Data Input'!$E$11),"0",SQRT((qc!H9+qr!H9-qs!H9)/(Resistance!H9))*'Data Input'!$E$11) -> 1302.231607 | I9: =IF(ISERROR(SQRT((qc!I9+qr!I9-qs!I9)/(Resistance!I9))*'Data Input'!$E$11),"0",SQRT((qc!I9+qr!I9-qs!I9)/(Resistance!I9))*'Data Input'!$E$11) -> 1229.541544 | J9: =IF(ISERROR(SQRT((qc!J9+qr!J9-qs!J9)/(Resistance!J9))*'Data Input'!$E$11),"0",SQRT((qc!J9+qr!J9-qs!J9)/(Resistance!J9))*'Data Input'!$E$11) -> 1152.812352 | K9: =IF(ISERROR(SQRT((qc!K9+qr!K9-qs!K9)/(Resistance!K9))*'Data Input'!$E$11),"0",SQRT((qc!K9+qr!K9-qs!K9)/(Resistance!K9))*'Data Input'!$E$11) -> 1071.194299 | L9: =IF(ISERROR(SQRT((qc!L9+qr!L9-qs!L9)/(Resistance!L9))*'Data Input'!$E$11),"0",SQRT((qc!L9+qr!L9-qs!L9)/(Resistance!L9))*'Data Input'!$E$11) -> 983.5048052 | M9: =IF(ISERROR(SQRT((qc!M9+qr!M9-qs!M9)/(Resistance!M9))*'Data Input'!$E$11),"0",SQRT((qc!M9+qr!M9-qs!M9)/(Resistance!M9))*'Data Input'!$E$11) -> 888.0053496 | N9: =IF(ISERROR(SQRT((qc!N9+qr!N9-qs!N9)/(Resistance!N9))*'Data Input'!$E$11),"0",SQRT((qc!N9+qr!N9-qs!N9)/(Resistance!N9))*'Data Input'!$E$11) -> 781.9377875 | O9: =IF(ISERROR(SQRT((qc!O9+qr!O9-qs!O9)/(Resistance!O9))*'Data Input'!$E$11),"0",SQRT((qc!O9+qr!O9-qs!O9)/(Resistance!O9))*'Data Input'!$E$11) -> 660.3983363 | Q9: Normal Day | R9: =wind_norm -> 0 | S9: 70 | T9: =IF(ISERROR(SQRT((qc!T9+qr!T9-qs!T9)/(Resistance!T9))*'Data Input'!$E$11),"0",SQRT((qc!T9+qr!T9-qs!T9)/(Resistance!T9))*'Data Input'!$E$11) -> 1990.61457 | U9: =IF(ISERROR(SQRT((qc!U9+qr!U9-qs!U9)/(Resistance!U9))*'Data Input'!$E$11),"0",SQRT((qc!U9+qr!U9-qs!U9)/(Resistance!U9))*'Data Input'!$E$11) -> 1962.376093 | V9: =IF(ISERROR(SQRT((qc!V9+qr!V9-qs!V9)/(Resistance!V9))*'Data Input'!$E$11),"0",SQRT((qc!V9+qr!V9-qs!V9)/(Resistance!V9))*'Data Input'!$E$11) -> 1933.863751 | W9: =IF(ISERROR(SQRT((qc!W9+qr!W9-qs!W9)/(Resistance!W9))*'Data Input'!$E$11),"0",SQRT((qc!W9+qr!W9-qs!W9)/(Resistance!W9))*'Data Input'!$E$11) -> 1905.061934 | X9: =IF(ISERROR(SQRT((qc!X9+qr!X9-qs!X9)/(Resistance!X9))*'Data Input'!$E$11),"0",SQRT((qc!X9+qr!X9-qs!X9)/(Resistance!X9))*'Data Input'!$E$11) -> 1875.954022 | Y9: =IF(ISERROR(SQRT((qc!Y9+qr!Y9-qs!Y9)/(Resistance!Y9))*'Data Input'!$E$11),"0",SQRT((qc!Y9+qr!Y9-qs!Y9)/(Resistance!Y9))*'Data Input'!$E$11) -> 1846.522282 | Z9: =IF(ISERROR(SQRT((qc!Z9+qr!Z9-qs!Z9)/(Resistance!Z9))*'Data Input'!$E$11),"0",SQRT((qc!Z9+qr!Z9-qs!Z9)/(Resistance!Z9))*'Data Input'!$E$11) -> 1816.747754 | AA9: =IF(ISERROR(SQRT((qc!AA9+qr!AA9-qs!AA9)/(Resistance!AA9))*'Data Input'!$E$11),"0",SQRT((qc!AA9+qr!AA9-qs!AA9)/(Resistance!AA9))*'Data Input'!$E$11) -> 1786.610125 | AB9: =IF(ISERROR(SQRT((qc!AB9+qr!AB9-qs!AB9)/(Resistance!AB9))*'Data Input'!$E$11),"0",SQRT((qc!AB9+qr!AB9-qs!AB9)/(Resistance!AB9))*'Data Input'!$E$11) -> 1756.087575 | AC9: =IF(ISERROR(SQRT((qc!AC9+qr!AC9-qs!AC9)/(Resistance!AC9))*'Data Input'!$E$11),"0",SQRT((qc!AC9+qr!AC9-qs!AC9)/(Resistance!AC9))*'Data Input'!$E$11) -> 1725.156613 | AD9: =IF(ISERROR(SQRT((qc!AD9+qr!AD9-qs!AD9)/(Resistance!AD9))*'Data Input'!$E$11),"0",SQRT((qc!AD9+qr!AD9-qs!AD9)/(Resistance!AD9))*'Data Input'!$E$11) -> 1693.791874 | AE9: =IF(ISERROR(SQRT((qc!AE9+qr!AE9-qs!AE9)/(Resistance!AE9))*'Data Input'!$E$11),"0",SQRT((qc!AE9+qr!AE9-qs!AE9)/(Resistance!AE9))*'Data Input'!$E$11) -> 1661.965901 | AF9: =IF(ISERROR(SQRT((qc!AF9+qr!AF9-qs!AF9)/(Resistance!AF9))*'Data Input'!$E$11),"0",SQRT((qc!AF9+qr!AF9-qs!AF9)/(Resistance!AF9))*'Data Input'!$E$11) -> 1629.648871 | AG9: =IF(ISERROR(SQRT((qc!AG9+qr!AG9-qs!AG9)/(Resistance!AG9))*'Data Input'!$E$11),"0",SQRT((qc!AG9+qr!AG9-qs!AG9)/(Resistance!AG9))*'Data Input'!$E$11) -> 1596.808291 | AH9: =IF(ISERROR(SQRT((qc!AH9+qr!AH9-qs!AH9)/(Resistance!AH9))*'Data Input'!$E$11),"0",SQRT((qc!AH9+qr!AH9-qs!AH9)/(Resistance!AH9))*'Data Input'!$E$11) -> 1563.408632 | AI9: =IF(ISERROR(SQRT((qc!AI9+qr!AI9-qs!AI9)/(Resistance!AI9))*'Data Input'!$E$11),"0",SQRT((qc!AI9+qr!AI9-qs!AI9)/(Resistance!AI9))*'Data Input'!$E$11) -> 1529.410896 | AJ9: =IF(ISERROR(SQRT((qc!AJ9+qr!AJ9-qs!AJ9)/(Resistance!AJ9))*'Data Input'!$E$11),"0",SQRT((qc!AJ9+qr!AJ9-qs!AJ9)/(Resistance!AJ9))*'Data Input'!$E$11) -> 1494.7721 | AK9: =IF(ISERROR(SQRT((qc!AK9+qr!AK9-qs!AK9)/(Resistance!AK9))*'Data Input'!$E$11),"0",SQRT((qc!AK9+qr!AK9-qs!AK9)/(Resistance!AK9))*'Data Input'!$E$11) -> 1459.444656 | AL9: =IF(ISERROR(SQRT((qc!AL9+qr!AL9-qs!AL9)/(Resistance!AL9))*'Data Input'!$E$11),"0",SQRT((qc!AL9+qr!AL9-qs!AL9)/(Resistance!AL9))*'Data Input'!$E$11) -> 1423.375617 | AM9: =IF(ISERROR(SQRT((qc!AM9+qr!AM9-qs!AM9)/(Resistance!AM9))*'Data Input'!$E$11),"0",SQRT((qc!AM9+qr!AM9-qs!AM9)/(Resistance!AM9))*'Data Input'!$E$11) -> 1386.505756 | AN9: =IF(ISERROR(SQRT((qc!AN9+qr!AN9-qs!AN9)/(Resistance!AN9))*'Data Input'!$E$11),"0",SQRT((qc!AN9+qr!AN9-qs!AN9)/(Resistance!AN9))*'Data Input'!$E$11) -> 1348.768434 | AO9: =IF(ISERROR(SQRT((qc!AO9+qr!AO9-qs!AO9)/(Resistance!AO9))*'Data Input'!$E$11),"0",SQRT((qc!AO9+qr!AO9-qs!AO9)/(Resistance!AO9))*'Data Input'!$E$11) -> 1310.088176 | AP9: =IF(ISERROR(SQRT((qc!AP9+qr!AP9-qs!AP9)/(Resistance!AP9))*'Data Input'!$E$11),"0",SQRT((qc!AP9+qr!AP9-qs!AP9)/(Resistance!AP9))*'Data Input'!$E$11) -> 1270.378885 | AQ9: =IF(ISERROR(SQRT((qc!AQ9+qr!AQ9-qs!AQ9)/(Resistance!AQ9))*'Data Input'!$E$11),"0",SQRT((qc!AQ9+qr!AQ9-qs!AQ9)/(Resistance!AQ9))*'Data Input'!$E$11) -> 1229.541544 | AR9: =IF(ISERROR(SQRT((qc!AR9+qr!AR9-qs!AR9)/(Resistance!AR9))*'Data Input'!$E$11),"0",SQRT((qc!AR9+qr!AR9-qs!AR9)/(Resistance!AR9))*'Data Input'!$E$11) -> 1187.461251 | AS9: =IF(ISERROR(SQRT((qc!AS9+qr!AS9-qs!AS9)/(Resistance!AS9))*'Data Input'!$E$11),"0",SQRT((qc!AS9+qr!AS9-qs!AS9)/(Resistance!AS9))*'Data Input'!$E$11) -> 1144.003288 | AT9: =IF(ISERROR(SQRT((qc!AT9+qr!AT9-qs!AT9)/(Resistance!AT9))*'Data Input'!$E$11),"0",SQRT((qc!AT9+qr!AT9-qs!AT9)/(Resistance!AT9))*'Data Input'!$E$11) -> 1099.007852 | AU9: =IF(ISERROR(SQRT((qc!AU9+qr!AU9-qs!AU9)/(Resistance!AU9))*'Data Input'!$E$11),"0",SQRT((qc!AU9+qr!AU9-qs!AU9)/(Resistance!AU9))*'Data Input'!$E$11) -> 1052.28281 | AV9: =IF(ISERROR(SQRT((qc!AV9+qr!AV9-qs!AV9)/(Resistance!AV9))*'Data Input'!$E$11),"0",SQRT((qc!AV9+qr!AV9-qs!AV9)/(Resistance!AV9))*'Data Input'!$E$11) -> 1003.593524 | AW9: =IF(ISERROR(SQRT((qc!AW9+qr!AW9-qs!AW9)/(Resistance!AW9))*'Data Input'!$E$11),"0",SQRT((qc!AW9+qr!AW9-qs!AW9)/(Resistance!AW9))*'Data Input'!$E$11) -> 952.6481009 | AX9: =IF(ISERROR(SQRT((qc!AX9+qr!AX9-qs!AX9)/(Resistance!AX9))*'Data Input'!$E$11),"0",SQRT((qc!AX9+qr!AX9-qs!AX9)/(Resistance!AX9))*'Data Input'!$E$11) -> 899.0753281 | AY9: =IF(ISERROR(SQRT((qc!AY9+qr!AY9-qs!AY9)/(Resistance!AY9))*'Data Input'!$E$11),"0",SQRT((qc!AY9+qr!AY9-qs!AY9)/(Resistance!AY9))*'Data Input'!$E$11) -> 842.3902574 | AZ9: =IF(ISERROR(SQRT((qc!AZ9+qr!AZ9-qs!AZ9)/(Resistance!AZ9))*'Data Input'!$E$11),"0",SQRT((qc!AZ9+qr!AZ9-qs!AZ9)/(Resistance!AZ9))*'Data Input'!$E$11) -> 781.9377875 | BA9: =IF(ISERROR(SQRT((qc!BA9+qr!BA9-qs!BA9)/(Resistance!BA9))*'Data Input'!$E$11),"0",SQRT((qc!BA9+qr!BA9-qs!BA9)/(Resistance!BA9))*'Data Input'!$E$11) -> 716.7941596 | BB9: =IF(ISERROR(SQRT((qc!BB9+qr!BB9-qs!BB9)/(Resistance!BB9))*'Data Input'!$E$11),"0",SQRT((qc!BB9+qr!BB9-qs!BB9)/(Resistance!BB9))*'Data Input'!$E$11) -> 645.5802043 | BC9: =IF(ISERROR(SQRT((qc!BC9+qr!BC9-qs!BC9)/(Resistance!BC9))*'Data Input'!$E$11),"0",SQRT((qc!BC9+qr!BC9-qs!BC9)/(Resistance!BC9))*'Data Input'!$E$11) -> 566.06502 | BD9: =IF(ISERROR(SQRT((qc!BD9+qr!BD9-qs!BD9)/(Resistance!BD9))*'Data Input'!$E$11),"0",SQRT((qc!BD9+qr!BD9-qs!BD9)/(Resistance!BD9))*'Data Input'!$E$11) -> 474.1730161 | BE9: =IF(ISERROR(SQRT((qc!BE9+qr!BE9-qs!BE9)/(Resistance!BE9))*'Data Input'!$E$11),"0",SQRT((qc!BE9+qr!BE9-qs!BE9)/(Resistance!BE9))*'Data Input'!$E$11) -> 360.7001446 | BF9: =IF(ISERROR(SQRT((qc!BF9+qr!BF9-qs!BF9)/(Resistance!BF9))*'Data Input'!$E$11),"0",SQRT((qc!BF9+qr!BF9-qs!BF9)/(Resistance!BF9))*'Data Input'!$E$11) -> 190.6592733 | BG9: =IF(ISERROR(SQRT((qc!BG9+qr!BG9-qs!BG9)/(Resistance!BG9))*'Data Input'!$E$11),"0",SQRT((qc!BG9+qr!BG9-qs!BG9)/(Resistance!BG9))*'Data Input'!$E$11) -> 0 | BH9: =IF(ISERROR(SQRT((qc!BH9+qr!BH9-qs!BH9)/(Resistance!BH9))*'Data Input'!$E$11),"0",SQRT((qc!BH9+qr!BH9-qs!BH9)/(Resistance!BH9))*'Data Input'!$E$11) -> 0 | BI9: =IF(ISERROR(SQRT((qc!BI9+qr!BI9-qs!BI9)/(Resistance!BI9))*'Data Input'!$E$11),"0",SQRT((qc!BI9+qr!BI9-qs!BI9)/(Resistance!BI9))*'Data Input'!$E$11) -> 0 | BJ9: =IF(ISERROR(SQRT((qc!BJ9+qr!BJ9-qs!BJ9)/(Resistance!BJ9))*'Data Input'!$E$11),"0",SQRT((qc!BJ9+qr!BJ9-qs!BJ9)/(Resistance!BJ9))*'Data Input'!$E$11) -> 0 | BK9: =IF(ISERROR(SQRT((qc!BK9+qr!BK9-qs!BK9)/(Resistance!BK9))*'Data Input'!$E$11),"0",SQRT((qc!BK9+qr!BK9-qs!BK9)/(Resistance!BK9))*'Data Input'!$E$11) -> 0
A10: Emergency Day | B10: =wind_emer -> 2.533 | C10: 70 | D10: =IF(ISERROR(SQRT((qc!D10+qr!D10-qs!D10)/(Resistance!D10))*'Data Input'!$E$11),"0",SQRT((qc!D10+qr!D10-qs!D10)/(Resistance!D10))*'Data Input'!$E$11) -> 1981.31407 | E10: =IF(ISERROR(SQRT((qc!E10+qr!E10-qs!E10)/(Resistance!E10))*'Data Input'!$E$11),"0",SQRT((qc!E10+qr!E10-qs!E10)/(Resistance!E10))*'Data Input'!$E$11) -> 1918.143039 | F10: =IF(ISERROR(SQRT((qc!F10+qr!F10-qs!F10)/(Resistance!F10))*'Data Input'!$E$11),"0",SQRT((qc!F10+qr!F10-qs!F10)/(Resistance!F10))*'Data Input'!$E$11) -> 1852.43598 | G10: =IF(ISERROR(SQRT((qc!G10+qr!G10-qs!G10)/(Resistance!G10))*'Data Input'!$E$11),"0",SQRT((qc!G10+qr!G10-qs!G10)/(Resistance!G10))*'Data Input'!$E$11) -> 1784.717582 | H10: =IF(ISERROR(SQRT((qc!H10+qr!H10-qs!H10)/(Resistance!H10))*'Data Input'!$E$11),"0",SQRT((qc!H10+qr!H10-qs!H10)/(Resistance!H10))*'Data Input'!$E$11) -> 1713.875849 | I10: =IF(ISERROR(SQRT((qc!I10+qr!I10-qs!I10)/(Resistance!I10))*'Data Input'!$E$11),"0",SQRT((qc!I10+qr!I10-qs!I10)/(Resistance!I10))*'Data Input'!$E$11) -> 1639.281651 | J10: =IF(ISERROR(SQRT((qc!J10+qr!J10-qs!J10)/(Resistance!J10))*'Data Input'!$E$11),"0",SQRT((qc!J10+qr!J10-qs!J10)/(Resistance!J10))*'Data Input'!$E$11) -> 1560.364568 | K10: =IF(ISERROR(SQRT((qc!K10+qr!K10-qs!K10)/(Resistance!K10))*'Data Input'!$E$11),"0",SQRT((qc!K10+qr!K10-qs!K10)/(Resistance!K10))*'Data Input'!$E$11) -> 1476.396968 | L10: =IF(ISERROR(SQRT((qc!L10+qr!L10-qs!L10)/(Resistance!L10))*'Data Input'!$E$11),"0",SQRT((qc!L10+qr!L10-qs!L10)/(Resistance!L10))*'Data Input'!$E$11) -> 1386.424247 | M10: =IF(ISERROR(SQRT((qc!M10+qr!M10-qs!M10)/(Resistance!M10))*'Data Input'!$E$11),"0",SQRT((qc!M10+qr!M10-qs!M10)/(Resistance!M10))*'Data Input'!$E$11) -> 1289.149141 | N10: =IF(ISERROR(SQRT((qc!N10+qr!N10-qs!N10)/(Resistance!N10))*'Data Input'!$E$11),"0",SQRT((qc!N10+qr!N10-qs!N10)/(Resistance!N10))*'Data Input'!$E$11) -> 1182.726538 | O10: =IF(ISERROR(SQRT((qc!O10+qr!O10-qs!O10)/(Resistance!O10))*'Data Input'!$E$11),"0",SQRT((qc!O10+qr!O10-qs!O10)/(Resistance!O10))*'Data Input'!$E$11) -> 1064.365872 | Q10: Emergency Day | R10: =wind_emer -> 2.533 | S10: 70 | T10: =IF(ISERROR(SQRT((qc!T10+qr!T10-qs!T10)/(Resistance!T10))*'Data Input'!$E$11),"0",SQRT((qc!T10+qr!T10-qs!T10)/(Resistance!T10))*'Data Input'!$E$11) -> 2409.285338 | U10: =IF(ISERROR(SQRT((qc!U10+qr!U10-qs!U10)/(Resistance!U10))*'Data Input'!$E$11),"0",SQRT((qc!U10+qr!U10-qs!U10)/(Resistance!U10))*'Data Input'!$E$11) -> 2381.604265 | V10: =IF(ISERROR(SQRT((qc!V10+qr!V10-qs!V10)/(Resistance!V10))*'Data Input'!$E$11),"0",SQRT((qc!V10+qr!V10-qs!V10)/(Resistance!V10))*'Data Input'!$E$11) -> 2353.56015 | W10: =IF(ISERROR(SQRT((qc!W10+qr!W10-qs!W10)/(Resistance!W10))*'Data Input'!$E$11),"0",SQRT((qc!W10+qr!W10-qs!W10)/(Resistance!W10))*'Data Input'!$E$11) -> 2325.136139 | X10: =IF(ISERROR(SQRT((qc!X10+qr!X10-qs!X10)/(Resistance!X10))*'Data Input'!$E$11),"0",SQRT((qc!X10+qr!X10-qs!X10)/(Resistance!X10))*'Data Input'!$E$11) -> 2296.314348 | Y10: =IF(ISERROR(SQRT((qc!Y10+qr!Y10-qs!Y10)/(Resistance!Y10))*'Data Input'!$E$11),"0",SQRT((qc!Y10+qr!Y10-qs!Y10)/(Resistance!Y10))*'Data Input'!$E$11) -> 2267.075771 | Z10: =IF(ISERROR(SQRT((qc!Z10+qr!Z10-qs!Z10)/(Resistance!Z10))*'Data Input'!$E$11),"0",SQRT((qc!Z10+qr!Z10-qs!Z10)/(Resistance!Z10))*'Data Input'!$E$11) -> 2237.400168 | AA10: =IF(ISERROR(SQRT((qc!AA10+qr!AA10-qs!AA10)/(Resistance!AA10))*'Data Input'!$E$11),"0",SQRT((qc!AA10+qr!AA10-qs!AA10)/(Resistance!AA10))*'Data Input'!$E$11) -> 2207.265949 | AB10: =IF(ISERROR(SQRT((qc!AB10+qr!AB10-qs!AB10)/(Resistance!AB10))*'Data Input'!$E$11),"0",SQRT((qc!AB10+qr!AB10-qs!AB10)/(Resistance!AB10))*'Data Input'!$E$11) -> 2176.650029 | AC10: =IF(ISERROR(SQRT((qc!AC10+qr!AC10-qs!AC10)/(Resistance!AC10))*'Data Input'!$E$11),"0",SQRT((qc!AC10+qr!AC10-qs!AC10)/(Resistance!AC10))*'Data Input'!$E$11) -> 2145.527682 | AD10: =IF(ISERROR(SQRT((qc!AD10+qr!AD10-qs!AD10)/(Resistance!AD10))*'Data Input'!$E$11),"0",SQRT((qc!AD10+qr!AD10-qs!AD10)/(Resistance!AD10))*'Data Input'!$E$11) -> 2113.872354 | AE10: =IF(ISERROR(SQRT((qc!AE10+qr!AE10-qs!AE10)/(Resistance!AE10))*'Data Input'!$E$11),"0",SQRT((qc!AE10+qr!AE10-qs!AE10)/(Resistance!AE10))*'Data Input'!$E$11) -> 2081.655466 | AF10: =IF(ISERROR(SQRT((qc!AF10+qr!AF10-qs!AF10)/(Resistance!AF10))*'Data Input'!$E$11),"0",SQRT((qc!AF10+qr!AF10-qs!AF10)/(Resistance!AF10))*'Data Input'!$E$11) -> 2048.846177 | AG10: =IF(ISERROR(SQRT((qc!AG10+qr!AG10-qs!AG10)/(Resistance!AG10))*'Data Input'!$E$11),"0",SQRT((qc!AG10+qr!AG10-qs!AG10)/(Resistance!AG10))*'Data Input'!$E$11) -> 2015.411116 | AH10: =IF(ISERROR(SQRT((qc!AH10+qr!AH10-qs!AH10)/(Resistance!AH10))*'Data Input'!$E$11),"0",SQRT((qc!AH10+qr!AH10-qs!AH10)/(Resistance!AH10))*'Data Input'!$E$11) -> 1981.31407 | AI10: =IF(ISERROR(SQRT((qc!AI10+qr!AI10-qs!AI10)/(Resistance!AI10))*'Data Input'!$E$11),"0",SQRT((qc!AI10+qr!AI10-qs!AI10)/(Resistance!AI10))*'Data Input'!$E$11) -> 1946.515616 | AJ10: =IF(ISERROR(SQRT((qc!AJ10+qr!AJ10-qs!AJ10)/(Resistance!AJ10))*'Data Input'!$E$11),"0",SQRT((qc!AJ10+qr!AJ10-qs!AJ10)/(Resistance!AJ10))*'Data Input'!$E$11) -> 1910.972697 | AK10: =IF(ISERROR(SQRT((qc!AK10+qr!AK10-qs!AK10)/(Resistance!AK10))*'Data Input'!$E$11),"0",SQRT((qc!AK10+qr!AK10-qs!AK10)/(Resistance!AK10))*'Data Input'!$E$11) -> 1874.638115 | AL10: =IF(ISERROR(SQRT((qc!AL10+qr!AL10-qs!AL10)/(Resistance!AL10))*'Data Input'!$E$11),"0",SQRT((qc!AL10+qr!AL10-qs!AL10)/(Resistance!AL10))*'Data Input'!$E$11) -> 1837.518474 | AM10: =IF(ISERROR(SQRT((qc!AM10+qr!AM10-qs!AM10)/(Resistance!AM10))*'Data Input'!$E$11),"0",SQRT((qc!AM10+qr!AM10-qs!AM10)/(Resistance!AM10))*'Data Input'!$E$11) -> 1799.998418 | AN10: =IF(ISERROR(SQRT((qc!AN10+qr!AN10-qs!AN10)/(Resistance!AN10))*'Data Input'!$E$11),"0",SQRT((qc!AN10+qr!AN10-qs!AN10)/(Resistance!AN10))*'Data Input'!$E$11) -> 1761.490416 | AO10: =IF(ISERROR(SQRT((qc!AO10+qr!AO10-qs!AO10)/(Resistance!AO10))*'Data Input'!$E$11),"0",SQRT((qc!AO10+qr!AO10-qs!AO10)/(Resistance!AO10))*'Data Input'!$E$11) -> 1721.923244 | AP10: =IF(ISERROR(SQRT((qc!AP10+qr!AP10-qs!AP10)/(Resistance!AP10))*'Data Input'!$E$11),"0",SQRT((qc!AP10+qr!AP10-qs!AP10)/(Resistance!AP10))*'Data Input'!$E$11) -> 1681.217026 | AQ10: =IF(ISERROR(SQRT((qc!AQ10+qr!AQ10-qs!AQ10)/(Resistance!AQ10))*'Data Input'!$E$11),"0",SQRT((qc!AQ10+qr!AQ10-qs!AQ10)/(Resistance!AQ10))*'Data Input'!$E$11) -> 1639.281651 | AR10: =IF(ISERROR(SQRT((qc!AR10+qr!AR10-qs!AR10)/(Resistance!AR10))*'Data Input'!$E$11),"0",SQRT((qc!AR10+qr!AR10-qs!AR10)/(Resistance!AR10))*'Data Input'!$E$11) -> 1596.014795 | AS10: =IF(ISERROR(SQRT((qc!AS10+qr!AS10-qs!AS10)/(Resistance!AS10))*'Data Input'!$E$11),"0",SQRT((qc!AS10+qr!AS10-qs!AS10)/(Resistance!AS10))*'Data Input'!$E$11) -> 1551.299423 | AT10: =IF(ISERROR(SQRT((qc!AT10+qr!AT10-qs!AT10)/(Resistance!AT10))*'Data Input'!$E$11),"0",SQRT((qc!AT10+qr!AT10-qs!AT10)/(Resistance!AT10))*'Data Input'!$E$11) -> 1505.000585 | AU10: =IF(ISERROR(SQRT((qc!AU10+qr!AU10-qs!AU10)/(Resistance!AU10))*'Data Input'!$E$11),"0",SQRT((qc!AU10+qr!AU10-qs!AU10)/(Resistance!AU10))*'Data Input'!$E$11) -> 1456.961257 | AV10: =IF(ISERROR(SQRT((qc!AV10+qr!AV10-qs!AV10)/(Resistance!AV10))*'Data Input'!$E$11),"0",SQRT((qc!AV10+qr!AV10-qs!AV10)/(Resistance!AV10))*'Data Input'!$E$11) -> 1406.996838 | AW10: =IF(ISERROR(SQRT((qc!AW10+qr!AW10-qs!AW10)/(Resistance!AW10))*'Data Input'!$E$11),"0",SQRT((qc!AW10+qr!AW10-qs!AW10)/(Resistance!AW10))*'Data Input'!$E$11) -> 1354.887752 | AX10: =IF(ISERROR(SQRT((qc!AX10+qr!AX10-qs!AX10)/(Resistance!AX10))*'Data Input'!$E$11),"0",SQRT((qc!AX10+qr!AX10-qs!AX10)/(Resistance!AX10))*'Data Input'!$E$11) -> 1300.369252 | AY10: =IF(ISERROR(SQRT((qc!AY10+qr!AY10-qs!AY10)/(Resistance!AY10))*'Data Input'!$E$11),"0",SQRT((qc!AY10+qr!AY10-qs!AY10)/(Resistance!AY10))*'Data Input'!$E$11) -> 1243.117066 | AZ10: =IF(ISERROR(SQRT((qc!AZ10+qr!AZ10-qs!AZ10)/(Resistance!AZ10))*'Data Input'!$E$11),"0",SQRT((qc!AZ10+qr!AZ10-qs!AZ10)/(Resistance!AZ10))*'Data Input'!$E$11) -> 1182.726538 | BA10: =IF(ISERROR(SQRT((qc!BA10+qr!BA10-qs!BA10)/(Resistance!BA10))*'Data Input'!$E$11),"0",SQRT((qc!BA10+qr!BA10-qs!BA10)/(Resistance!BA10))*'Data Input'!$E$11) -> 1118.681296 | BB10: =IF(ISERROR(SQRT((qc!BB10+qr!BB10-qs!BB10)/(Resistance!BB10))*'Data Input'!$E$11),"0",SQRT((qc!BB10+qr!BB10-qs!BB10)/(Resistance!BB10))*'Data Input'!$E$11) -> 1050.304161 | BC10: =IF(ISERROR(SQRT((qc!BC10+qr!BC10-qs!BC10)/(Resistance!BC10))*'Data Input'!$E$11),"0",SQRT((qc!BC10+qr!BC10-qs!BC10)/(Resistance!BC10))*'Data Input'!$E$11) -> 976.6761832 | BD10: =IF(ISERROR(SQRT((qc!BD10+qr!BD10-qs!BD10)/(Resistance!BD10))*'Data Input'!$E$11),"0",SQRT((qc!BD10+qr!BD10-qs!BD10)/(Resistance!BD10))*'Data Input'!$E$11) -> 896.4940942 | BE10: =IF(ISERROR(SQRT((qc!BE10+qr!BE10-qs!BE10)/(Resistance!BE10))*'Data Input'!$E$11),"0",SQRT((qc!BE10+qr!BE10-qs!BE10)/(Resistance!BE10))*'Data Input'!$E$11) -> 807.7968809 | BF10: =IF(ISERROR(SQRT((qc!BF10+qr!BF10-qs!BF10)/(Resistance!BF10))*'Data Input'!$E$11),"0",SQRT((qc!BF10+qr!BF10-qs!BF10)/(Resistance!BF10))*'Data Input'!$E$11) -> 707.375254 | BG10: =IF(ISERROR(SQRT((qc!BG10+qr!BG10-qs!BG10)/(Resistance!BG10))*'Data Input'!$E$11),"0",SQRT((qc!BG10+qr!BG10-qs!BG10)/(Resistance!BG10))*'Data Input'!$E$11) -> 589.2489687 | BH10: =IF(ISERROR(SQRT((qc!BH10+qr!BH10-qs!BH10)/(Resistance!BH10))*'Data Input'!$E$11),"0",SQRT((qc!BH10+qr!BH10-qs!BH10)/(Resistance!BH10))*'Data Input'!$E$11) -> 439.3407619 | BI10: =IF(ISERROR(SQRT((qc!BI10+qr!BI10-qs!BI10)/(Resistance!BI10))*'Data Input'!$E$11),"0",SQRT((qc!BI10+qr!BI10-qs!BI10)/(Resistance!BI10))*'Data Input'!$E$11) -> 194.3661767 | BJ10: =IF(ISERROR(SQRT((qc!BJ10+qr!BJ10-qs!BJ10)/(Resistance!BJ10))*'Data Input'!$E$11),"0",SQRT((qc!BJ10+qr!BJ10-qs!BJ10)/(Resistance!BJ10))*'Data Input'!$E$11) -> 0 | BK10: =IF(ISERROR(SQRT((qc!BK10+qr!BK10-qs!BK10)/(Resistance!BK10))*'Data Input'!$E$11),"0",SQRT((qc!BK10+qr!BK10-qs!BK10)/(Resistance!BK10))*'Data Input'!$E$11) -> 0
A11: Normal Day | B11: =wind_norm -> 0 | C11: 75 | D11: =IF(ISERROR(SQRT((qc!D11+qr!D11-qs!D11)/(Resistance!D11))*'Data Input'!$E$11),"0",SQRT((qc!D11+qr!D11-qs!D11)/(Resistance!D11))*'Data Input'!$E$11) -> 1621.584819 | E11: =IF(ISERROR(SQRT((qc!E11+qr!E11-qs!E11)/(Resistance!E11))*'Data Input'!$E$11),"0",SQRT((qc!E11+qr!E11-qs!E11)/(Resistance!E11))*'Data Input'!$E$11) -> 1562.495006 | F11: =IF(ISERROR(SQRT((qc!F11+qr!F11-qs!F11)/(Resistance!F11))*'Data Input'!$E$11),"0",SQRT((qc!F11+qr!F11-qs!F11)/(Resistance!F11))*'Data Input'!$E$11) -> 1501.463446 | G11: =IF(ISERROR(SQRT((qc!G11+qr!G11-qs!G11)/(Resistance!G11))*'Data Input'!$E$11),"0",SQRT((qc!G11+qr!G11-qs!G11)/(Resistance!G11))*'Data Input'!$E$11) -> 1438.230415 | H11: =IF(ISERROR(SQRT((qc!H11+qr!H11-qs!H11)/(Resistance!H11))*'Data Input'!$E$11),"0",SQRT((qc!H11+qr!H11-qs!H11)/(Resistance!H11))*'Data Input'!$E$11) -> 1372.481867 | I11: =IF(ISERROR(SQRT((qc!I11+qr!I11-qs!I11)/(Resistance!I11))*'Data Input'!$E$11),"0",SQRT((qc!I11+qr!I11-qs!I11)/(Resistance!I11))*'Data Input'!$E$11) -> 1303.831261 | J11: =IF(ISERROR(SQRT((qc!J11+qr!J11-qs!J11)/(Resistance!J11))*'Data Input'!$E$11),"0",SQRT((qc!J11+qr!J11-qs!J11)/(Resistance!J11))*'Data Input'!$E$11) -> 1231.79262 | K11: =IF(ISERROR(SQRT((qc!K11+qr!K11-qs!K11)/(Resistance!K11))*'Data Input'!$E$11),"0",SQRT((qc!K11+qr!K11-qs!K11)/(Resistance!K11))*'Data Input'!$E$11) -> 1155.739002 | L11: =IF(ISERROR(SQRT((qc!L11+qr!L11-qs!L11)/(Resistance!L11))*'Data Input'!$E$11),"0",SQRT((qc!L11+qr!L11-qs!L11)/(Resistance!L11))*'Data Input'!$E$11) -> 1074.835335 | M11: =IF(ISERROR(SQRT((qc!M11+qr!M11-qs!M11)/(Resistance!M11))*'Data Input'!$E$11),"0",SQRT((qc!M11+qr!M11-qs!M11)/(Resistance!M11))*'Data Input'!$E$11) -> 987.9230818 | N11: =IF(ISERROR(SQRT((qc!N11+qr!N11-qs!N11)/(Resistance!N11))*'Data Input'!$E$11),"0",SQRT((qc!N11+qr!N11-qs!N11)/(Resistance!N11))*'Data Input'!$E$11) -> 893.306168 | O11: =IF(ISERROR(SQRT((qc!O11+qr!O11-qs!O11)/(Resistance!O11))*'Data Input'!$E$11),"0",SQRT((qc!O11+qr!O11-qs!O11)/(Resistance!O11))*'Data Input'!$E$11) -> 788.3096445 | Q11: Normal Day | R11: =wind_norm -> 0 | S11: 75 | T11: =IF(ISERROR(SQRT((qc!T11+qr!T11-qs!T11)/(Resistance!T11))*'Data Input'!$E$11),"0",SQRT((qc!T11+qr!T11-qs!T11)/(Resistance!T11))*'Data Input'!$E$11) -> 2034.211224 | U11: =IF(ISERROR(SQRT((qc!U11+qr!U11-qs!U11)/(Resistance!U11))*'Data Input'!$E$11),"0",SQRT((qc!U11+qr!U11-qs!U11)/(Resistance!U11))*'Data Input'!$E$11) -> 2006.804648 | V11: =IF(ISERROR(SQRT((qc!V11+qr!V11-qs!V11)/(Resistance!V11))*'Data Input'!$E$11),"0",SQRT((qc!V11+qr!V11-qs!V11)/(Resistance!V11))*'Data Input'!$E$11) -> 1979.147487 | W11: =IF(ISERROR(SQRT((qc!W11+qr!W11-qs!W11)/(Resistance!W11))*'Data Input'!$E$11),"0",SQRT((qc!W11+qr!W11-qs!W11)/(Resistance!W11))*'Data Input'!$E$11) -> 1951.225785 | X11: =IF(ISERROR(SQRT((qc!X11+qr!X11-qs!X11)/(Resistance!X11))*'Data Input'!$E$11),"0",SQRT((qc!X11+qr!X11-qs!X11)/(Resistance!X11))*'Data Input'!$E$11) -> 1923.02473 | Y11: =IF(ISERROR(SQRT((qc!Y11+qr!Y11-qs!Y11)/(Resistance!Y11))*'Data Input'!$E$11),"0",SQRT((qc!Y11+qr!Y11-qs!Y11)/(Resistance!Y11))*'Data Input'!$E$11) -> 1894.528582 | Z11: =IF(ISERROR(SQRT((qc!Z11+qr!Z11-qs!Z11)/(Resistance!Z11))*'Data Input'!$E$11),"0",SQRT((qc!Z11+qr!Z11-qs!Z11)/(Resistance!Z11))*'Data Input'!$E$11) -> 1865.720573 | AA11: =IF(ISERROR(SQRT((qc!AA11+qr!AA11-qs!AA11)/(Resistance!AA11))*'Data Input'!$E$11),"0",SQRT((qc!AA11+qr!AA11-qs!AA11)/(Resistance!AA11))*'Data Input'!$E$11) -> 1836.582814 | AB11: =IF(ISERROR(SQRT((qc!AB11+qr!AB11-qs!AB11)/(Resistance!AB11))*'Data Input'!$E$11),"0",SQRT((qc!AB11+qr!AB11-qs!AB11)/(Resistance!AB11))*'Data Input'!$E$11) -> 1807.096175 | AC11: =IF(ISERROR(SQRT((qc!AC11+qr!AC11-qs!AC11)/(Resistance!AC11))*'Data Input'!$E$11),"0",SQRT((qc!AC11+qr!AC11-qs!AC11)/(Resistance!AC11))*'Data Input'!$E$11) -> 1777.240155 | AD11: =IF(ISERROR(SQRT((qc!AD11+qr!AD11-qs!AD11)/(Resistance!AD11))*'Data Input'!$E$11),"0",SQRT((qc!AD11+qr!AD11-qs!AD11)/(Resistance!AD11))*'Data Input'!$E$11) -> 1746.992729 | AE11: =IF(ISERROR(SQRT((qc!AE11+qr!AE11-qs!AE11)/(Resistance!AE11))*'Data Input'!$E$11),"0",SQRT((qc!AE11+qr!AE11-qs!AE11)/(Resistance!AE11))*'Data Input'!$E$11) -> 1716.330182 | AF11: =IF(ISERROR(SQRT((qc!AF11+qr!AF11-qs!AF11)/(Resistance!AF11))*'Data Input'!$E$11),"0",SQRT((qc!AF11+qr!AF11-qs!AF11)/(Resistance!AF11))*'Data Input'!$E$11) -> 1685.226902 | AG11: =IF(ISERROR(SQRT((qc!AG11+qr!AG11-qs!AG11)/(Resistance!AG11))*'Data Input'!$E$11),"0",SQRT((qc!AG11+qr!AG11-qs!AG11)/(Resistance!AG11))*'Data Input'!$E$11) -> 1653.655157 | AH11: =IF(ISERROR(SQRT((qc!AH11+qr!AH11-qs!AH11)/(Resistance!AH11))*'Data Input'!$E$11),"0",SQRT((qc!AH11+qr!AH11-qs!AH11)/(Resistance!AH11))*'Data Input'!$E$11) -> 1621.584819 | AI11: =IF(ISERROR(SQRT((qc!AI11+qr!AI11-qs!AI11)/(Resistance!AI11))*'Data Input'!$E$11),"0",SQRT((qc!AI11+qr!AI11-qs!AI11)/(Resistance!AI11))*'Data Input'!$E$11) -> 1588.983058 | AJ11: =IF(ISERROR(SQRT((qc!AJ11+qr!AJ11-qs!AJ11)/(Resistance!AJ11))*'Data Input'!$E$11),"0",SQRT((qc!AJ11+qr!AJ11-qs!AJ11)/(Resistance!AJ11))*'Data Input'!$E$11) -> 1555.813962 | AK11: =IF(ISERROR(SQRT((qc!AK11+qr!AK11-qs!AK11)/(Resistance!AK11))*'Data Input'!$E$11),"0",SQRT((qc!AK11+qr!AK11-qs!AK11)/(Resistance!AK11))*'Data Input'!$E$11) -> 1522.038104 | AL11: =IF(ISERROR(SQRT((qc!AL11+qr!AL11-qs!AL11)/(Resistance!AL11))*'Data Input'!$E$11),"0",SQRT((qc!AL11+qr!AL11-qs!AL11)/(Resistance!AL11))*'Data Input'!$E$11) -> 1487.612014 | AM11: =IF(ISERROR(SQRT((qc!AM11+qr!AM11-qs!AM11)/(Resistance!AM11))*'Data Input'!$E$11),"0",SQRT((qc!AM11+qr!AM11-qs!AM11)/(Resistance!AM11))*'Data Input'!$E$11) -> 1452.487547 | AN11: =IF(ISERROR(SQRT((qc!AN11+qr!AN11-qs!AN11)/(Resistance!AN11))*'Data Input'!$E$11),"0",SQRT((qc!AN11+qr!AN11-qs!AN11)/(Resistance!AN11))*'Data Input'!$E$11) -> 1416.611119 | AO11: =IF(ISERROR(SQRT((qc!AO11+qr!AO11-qs!AO11)/(Resistance!AO11))*'Data Input'!$E$11),"0",SQRT((qc!AO11+qr!AO11-qs!AO11)/(Resistance!AO11))*'Data Input'!$E$11) -> 1379.922762 | AP11: =IF(ISERROR(SQRT((qc!AP11+qr!AP11-qs!AP11)/(Resistance!AP11))*'Data Input'!$E$11),"0",SQRT((qc!AP11+qr!AP11-qs!AP11)/(Resistance!AP11))*'Data Input'!$E$11) -> 1342.354974 | AQ11: =IF(ISERROR(SQRT((qc!AQ11+qr!AQ11-qs!AQ11)/(Resistance!AQ11))*'Data Input'!$E$11),"0",SQRT((qc!AQ11+qr!AQ11-qs!AQ11)/(Resistance!AQ11))*'Data Input'!$E$11) -> 1303.831261 | AR11: =IF(ISERROR(SQRT((qc!AR11+qr!AR11-qs!AR11)/(Resistance!AR11))*'Data Input'!$E$11),"0",SQRT((qc!AR11+qr!AR11-qs!AR11)/(Resistance!AR11))*'Data Input'!$E$11) -> 1264.264312 | AS11: =IF(ISERROR(SQRT((qc!AS11+qr!AS11-qs!AS11)/(Resistance!AS11))*'Data Input'!$E$11),"0",SQRT((qc!AS11+qr!AS11-qs!AS11)/(Resistance!AS11))*'Data Input'!$E$11) -> 1223.553653 | AT11: =IF(ISERROR(SQRT((qc!AT11+qr!AT11-qs!AT11)/(Resistance!AT11))*'Data Input'!$E$11),"0",SQRT((qc!AT11+qr!AT11-qs!AT11)/(Resistance!AT11))*'Data Input'!$E$11) -> 1181.582596 | AU11: =IF(ISERROR(SQRT((qc!AU11+qr!AU11-qs!AU11)/(Resistance!AU11))*'Data Input'!$E$11),"0",SQRT((qc!AU11+qr!AU11-qs!AU11)/(Resistance!AU11))*'Data Input'!$E$11) -> 1138.214216 | AV11: =IF(ISERROR(SQRT((qc!AV11+qr!AV11-qs!AV11)/(Resistance!AV11))*'Data Input'!$E$11),"0",SQRT((qc!AV11+qr!AV11-qs!AV11)/(Resistance!AV11))*'Data Input'!$E$11) -> 1093.285931 | AW11: =IF(ISERROR(SQRT((qc!AW11+qr!AW11-qs!AW11)/(Resistance!AW11))*'Data Input'!$E$11),"0",SQRT((qc!AW11+qr!AW11-qs!AW11)/(Resistance!AW11))*'Data Input'!$E$11) -> 1046.60204 | AX11: =IF(ISERROR(SQRT((qc!AX11+qr!AX11-qs!AX11)/(Resistance!AX11))*'Data Input'!$E$11),"0",SQRT((qc!AX11+qr!AX11-qs!AX11)/(Resistance!AX11))*'Data Input'!$E$11) -> 997.9232196 | AY11: =IF(ISERROR(SQRT((qc!AY11+qr!AY11-qs!AY11)/(Resistance!AY11))*'Data Input'!$E$11),"0",SQRT((qc!AY11+qr!AY11-qs!AY11)/(Resistance!AY11))*'Data Input'!$E$11) -> 946.9512619 | AZ11: =IF(ISERROR(SQRT((qc!AZ11+qr!AZ11-qs!AZ11)/(Resistance!AZ11))*'Data Input'!$E$11),"0",SQRT((qc!AZ11+qr!AZ11-qs!AZ11)/(Resistance!AZ11))*'Data Input'!$E$11) -> 893.306168 | BA11: =IF(ISERROR(SQRT((qc!BA11+qr!BA11-qs!BA11)/(Resistance!BA11))*'Data Input'!$E$11),"0",SQRT((qc!BA11+qr!BA11-qs!BA11)/(Resistance!BA11))*'Data Input'!$E$11) -> 836.4902814 | BB11: =IF(ISERROR(SQRT((qc!BB11+qr!BB11-qs!BB11)/(Resistance!BB11))*'Data Input'!$E$11),"0",SQRT((qc!BB11+qr!BB11-qs!BB11)/(Resistance!BB11))*'Data Input'!$E$11) -> 775.8292131 | BC11: =IF(ISERROR(SQRT((qc!BC11+qr!BC11-qs!BC11)/(Resistance!BC11))*'Data Input'!$E$11),"0",SQRT((qc!BC11+qr!BC11-qs!BC11)/(Resistance!BC11))*'Data Input'!$E$11) -> 710.3680559 | BD11: =IF(ISERROR(SQRT((qc!BD11+qr!BD11-qs!BD11)/(Resistance!BD11))*'Data Input'!$E$11),"0",SQRT((qc!BD11+qr!BD11-qs!BD11)/(Resistance!BD11))*'Data Input'!$E$11) -> 638.6729858 | BE11: =IF(ISERROR(SQRT((qc!BE11+qr!BE11-qs!BE11)/(Resistance!BE11))*'Data Input'!$E$11),"0",SQRT((qc!BE11+qr!BE11-qs!BE11)/(Resistance!BE11))*'Data Input'!$E$11) -> 558.40526 | BF11: =IF(ISERROR(SQRT((qc!BF11+qr!BF11-qs!BF11)/(Resistance!BF11))*'Data Input'!$E$11),"0",SQRT((qc!BF11+qr!BF11-qs!BF11)/(Resistance!BF11))*'Data Input'!$E$11) -> 465.2342746 | BG11: =IF(ISERROR(SQRT((qc!BG11+qr!BG11-qs!BG11)/(Resistance!BG11))*'Data Input'!$E$11),"0",SQRT((qc!BG11+qr!BG11-qs!BG11)/(Resistance!BG11))*'Data Input'!$E$11) -> 349.1196962 | BH11: =IF(ISERROR(SQRT((qc!BH11+qr!BH11-qs!BH11)/(Resistance!BH11))*'Data Input'!$E$11),"0",SQRT((qc!BH11+qr!BH11-qs!BH11)/(Resistance!BH11))*'Data Input'!$E$11) -> 168.1450359 | BI11: =IF(ISERROR(SQRT((qc!BI11+qr!BI11-qs!BI11)/(Resistance!BI11))*'Data Input'!$E$11),"0",SQRT((qc!BI11+qr!BI11-qs!BI11)/(Resistance!BI11))*'Data Input'!$E$11) -> 0 | BJ11: =IF(ISERROR(SQRT((qc!BJ11+qr!BJ11-qs!BJ11)/(Resistance!BJ11))*'Data Input'!$E$11),"0",SQRT((qc!BJ11+qr!BJ11-qs!BJ11)/(Resistance!BJ11))*'Data Input'!$E$11) -> 0 | BK11: =IF(ISERROR(SQRT((qc!BK11+qr!BK11-qs!BK11)/(Resistance!BK11))*'Data Input'!$E$11),"0",SQRT((qc!BK11+qr!BK11-qs!BK11)/(Resistance!BK11))*'Data Input'!$E$11) -> 0
A12: Emergency Day | B12: =wind_emer -> 2.533 | C12: 75 | D12: =IF(ISERROR(SQRT((qc!D12+qr!D12-qs!D12)/(Resistance!D12))*'Data Input'!$E$11),"0",SQRT((qc!D12+qr!D12-qs!D12)/(Resistance!D12))*'Data Input'!$E$11) -> 2036.526968 | E12: =IF(ISERROR(SQRT((qc!E12+qr!E12-qs!E12)/(Resistance!E12))*'Data Input'!$E$11),"0",SQRT((qc!E12+qr!E12-qs!E12)/(Resistance!E12))*'Data Input'!$E$11) -> 1976.08194 | F12: =IF(ISERROR(SQRT((qc!F12+qr!F12-qs!F12)/(Resistance!F12))*'Data Input'!$E$11),"0",SQRT((qc!F12+qr!F12-qs!F12)/(Resistance!F12))*'Data Input'!$E$11) -> 1914.236843 | G12: =IF(ISERROR(SQRT((qc!G12+qr!G12-qs!G12)/(Resistance!G12))*'Data Input'!$E$11),"0",SQRT((qc!G12+qr!G12-qs!G12)/(Resistance!G12))*'Data Input'!$E$11) -> 1849.962196 | H12: =IF(ISERROR(SQRT((qc!H12+qr!H12-qs!H12)/(Resistance!H12))*'Data Input'!$E$11),"0",SQRT((qc!H12+qr!H12-qs!H12)/(Resistance!H12))*'Data Input'!$E$11) -> 1782.769077 | I12: =IF(ISERROR(SQRT((qc!I12+qr!I12-qs!I12)/(Resistance!I12))*'Data Input'!$E$11),"0",SQRT((qc!I12+qr!I12-qs!I12)/(Resistance!I12))*'Data Input'!$E$11) -> 1712.285308 | J12: =IF(ISERROR(SQRT((qc!J12+qr!J12-qs!J12)/(Resistance!J12))*'Data Input'!$E$11),"0",SQRT((qc!J12+qr!J12-qs!J12)/(Resistance!J12))*'Data Input'!$E$11) -> 1638.055878 | K12: =IF(ISERROR(SQRT((qc!K12+qr!K12-qs!K12)/(Resistance!K12))*'Data Input'!$E$11),"0",SQRT((qc!K12+qr!K12-qs!K12)/(Resistance!K12))*'Data Input'!$E$11) -> 1559.51383 | L12: =IF(ISERROR(SQRT((qc!L12+qr!L12-qs!L12)/(Resistance!L12))*'Data Input'!$E$11),"0",SQRT((qc!L12+qr!L12-qs!L12)/(Resistance!L12))*'Data Input'!$E$11) -> 1475.936414 | M12: =IF(ISERROR(SQRT((qc!M12+qr!M12-qs!M12)/(Resistance!M12))*'Data Input'!$E$11),"0",SQRT((qc!M12+qr!M12-qs!M12)/(Resistance!M12))*'Data Input'!$E$11) -> 1386.37618 | N12: =IF(ISERROR(SQRT((qc!N12+qr!N12-qs!N12)/(Resistance!N12))*'Data Input'!$E$11),"0",SQRT((qc!N12+qr!N12-qs!N12)/(Resistance!N12))*'Data Input'!$E$11) -> 1289.54686 | O12: =IF(ISERROR(SQRT((qc!O12+qr!O12-qs!O12)/(Resistance!O12))*'Data Input'!$E$11),"0",SQRT((qc!O12+qr!O12-qs!O12)/(Resistance!O12))*'Data Input'!$E$11) -> 1183.621349 | Q12: Emergency Day | R12: =wind_emer -> 2.533 | S12: 75 | T12: =IF(ISERROR(SQRT((qc!T12+qr!T12-qs!T12)/(Resistance!T12))*'Data Input'!$E$11),"0",SQRT((qc!T12+qr!T12-qs!T12)/(Resistance!T12))*'Data Input'!$E$11) -> 2448.919201 | U12: =IF(ISERROR(SQRT((qc!U12+qr!U12-qs!U12)/(Resistance!U12))*'Data Input'!$E$11),"0",SQRT((qc!U12+qr!U12-qs!U12)/(Resistance!U12))*'Data Input'!$E$11) -> 2422.123075 | V12: =IF(ISERROR(SQRT((qc!V12+qr!V12-qs!V12)/(Resistance!V12))*'Data Input'!$E$11),"0",SQRT((qc!V12+qr!V12-qs!V12)/(Resistance!V12))*'Data Input'!$E$11) -> 2394.990013 | W12: =IF(ISERROR(SQRT((qc!W12+qr!W12-qs!W12)/(Resistance!W12))*'Data Input'!$E$11),"0",SQRT((qc!W12+qr!W12-qs!W12)/(Resistance!W12))*'Data Input'!$E$11) -> 2367.504857 | X12: =IF(ISERROR(SQRT((qc!X12+qr!X12-qs!X12)/(Resistance!X12))*'Data Input'!$E$11),"0",SQRT((qc!X12+qr!X12-qs!X12)/(Resistance!X12))*'Data Input'!$E$11) -> 2339.651568 | Y12: =IF(ISERROR(SQRT((qc!Y12+qr!Y12-qs!Y12)/(Resistance!Y12))*'Data Input'!$E$11),"0",SQRT((qc!Y12+qr!Y12-qs!Y12)/(Resistance!Y12))*'Data Input'!$E$11) -> 2311.413155 | Z12: =IF(ISERROR(SQRT((qc!Z12+qr!Z12-qs!Z12)/(Resistance!Z12))*'Data Input'!$E$11),"0",SQRT((qc!Z12+qr!Z12-qs!Z12)/(Resistance!Z12))*'Data Input'!$E$11) -> 2282.771583 | AA12: =IF(ISERROR(SQRT((qc!AA12+qr!AA12-qs!AA12)/(Resistance!AA12))*'Data Input'!$E$11),"0",SQRT((qc!AA12+qr!AA12-qs!AA12)/(Resistance!AA12))*'Data Input'!$E$11) -> 2253.707677 | AB12: =IF(ISERROR(SQRT((qc!AB12+qr!AB12-qs!AB12)/(Resistance!AB12))*'Data Input'!$E$11),"0",SQRT((qc!AB12+qr!AB12-qs!AB12)/(Resistance!AB12))*'Data Input'!$E$11) -> 2224.201012 | AC12: =IF(ISERROR(SQRT((qc!AC12+qr!AC12-qs!AC12)/(Resistance!AC12))*'Data Input'!$E$11),"0",SQRT((qc!AC12+qr!AC12-qs!AC12)/(Resistance!AC12))*'Data Input'!$E$11) -> 2194.229792 | AD12: =IF(ISERROR(SQRT((qc!AD12+qr!AD12-qs!AD12)/(Resistance!AD12))*'Data Input'!$E$11),"0",SQRT((qc!AD12+qr!AD12-qs!AD12)/(Resistance!AD12))*'Data Input'!$E$11) -> 2163.770704 | AE12: =IF(ISERROR(SQRT((qc!AE12+qr!AE12-qs!AE12)/(Resistance!AE12))*'Data Input'!$E$11),"0",SQRT((qc!AE12+qr!AE12-qs!AE12)/(Resistance!AE12))*'Data Input'!$E$11) -> 2132.798768 | AF12: =IF(ISERROR(SQRT((qc!AF12+qr!AF12-qs!AF12)/(Resistance!AF12))*'Data Input'!$E$11),"0",SQRT((qc!AF12+qr!AF12-qs!AF12)/(Resistance!AF12))*'Data Input'!$E$11) -> 2101.287147 | AG12: =IF(ISERROR(SQRT((qc!AG12+qr!AG12-qs!AG12)/(Resistance!AG12))*'Data Input'!$E$11),"0",SQRT((qc!AG12+qr!AG12-qs!AG12)/(Resistance!AG12))*'Data Input'!$E$11) -> 2069.206946 | AH12: =IF(ISERROR(SQRT((qc!AH12+qr!AH12-qs!AH12)/(Resistance!AH12))*'Data Input'!$E$11),"0",SQRT((qc!AH12+qr!AH12-qs!AH12)/(Resistance!AH12))*'Data Input'!$E$11) -> 2036.526968 | AI12: =IF(ISERROR(SQRT((qc!AI12+qr!AI12-qs!AI12)/(Resistance!AI12))*'Data Input'!$E$11),"0",SQRT((qc!AI12+qr!AI12-qs!AI12)/(Resistance!AI12))*'Data Input'!$E$11) -> 2003.213445 | AJ12: =IF(ISERROR(SQRT((qc!AJ12+qr!AJ12-qs!AJ12)/(Resistance!AJ12))*'Data Input'!$E$11),"0",SQRT((qc!AJ12+qr!AJ12-qs!AJ12)/(Resistance!AJ12))*'Data Input'!$E$11) -> 1969.229709 | AK12: =IF(ISERROR(SQRT((qc!AK12+qr!AK12-qs!AK12)/(Resistance!AK12))*'Data Input'!$E$11),"0",SQRT((qc!AK12+qr!AK12-qs!AK12)/(Resistance!AK12))*'Data Input'!$E$11) -> 1935.068158 | AL12: =IF(ISERROR(SQRT((qc!AL12+qr!AL12-qs!AL12)/(Resistance!AL12))*'Data Input'!$E$11),"0",SQRT((qc!AL12+qr!AL12-qs!AL12)/(Resistance!AL12))*'Data Input'!$E$11) -> 1900.189114 | AM12: =IF(ISERROR(SQRT((qc!AM12+qr!AM12-qs!AM12)/(Resistance!AM12))*'Data Input'!$E$11),"0",SQRT((qc!AM12+qr!AM12-qs!AM12)/(Resistance!AM12))*'Data Input'!$E$11) -> 1864.485904 | AN12: =IF(ISERROR(SQRT((qc!AN12+qr!AN12-qs!AN12)/(Resistance!AN12))*'Data Input'!$E$11),"0",SQRT((qc!AN12+qr!AN12-qs!AN12)/(Resistance!AN12))*'Data Input'!$E$11) -> 1827.905689 | AO12: =IF(ISERROR(SQRT((qc!AO12+qr!AO12-qs!AO12)/(Resistance!AO12))*'Data Input'!$E$11),"0",SQRT((qc!AO12+qr!AO12-qs!AO12)/(Resistance!AO12))*'Data Input'!$E$11) -> 1790.390043 | AP12: =IF(ISERROR(SQRT((qc!AP12+qr!AP12-qs!AP12)/(Resistance!AP12))*'Data Input'!$E$11),"0",SQRT((qc!AP12+qr!AP12-qs!AP12)/(Resistance!AP12))*'Data Input'!$E$11) -> 1751.874067 | AQ12: =IF(ISERROR(SQRT((qc!AQ12+qr!AQ12-qs!AQ12)/(Resistance!AQ12))*'Data Input'!$E$11),"0",SQRT((qc!AQ12+qr!AQ12-qs!AQ12)/(Resistance!AQ12))*'Data Input'!$E$11) -> 1712.285308 | AR12: =IF(ISERROR(SQRT((qc!AR12+qr!AR12-qs!AR12)/(Resistance!AR12))*'Data Input'!$E$11),"0",SQRT((qc!AR12+qr!AR12-qs!AR12)/(Resistance!AR12))*'Data Input'!$E$11) -> 1671.54244 | AS12: =IF(ISERROR(SQRT((qc!AS12+qr!AS12-qs!AS12)/(Resistance!AS12))*'Data Input'!$E$11),"0",SQRT((qc!AS12+qr!AS12-qs!AS12)/(Resistance!AS12))*'Data Input'!$E$11) -> 1629.553629 | AT12: =IF(ISERROR(SQRT((qc!AT12+qr!AT12-qs!AT12)/(Resistance!AT12))*'Data Input'!$E$11),"0",SQRT((qc!AT12+qr!AT12-qs!AT12)/(Resistance!AT12))*'Data Input'!$E$11) -> 1586.214484 | AU12: =IF(ISERROR(SQRT((qc!AU12+qr!AU12-qs!AU12)/(Resistance!AU12))*'Data Input'!$E$11),"0",SQRT((qc!AU12+qr!AU12-qs!AU12)/(Resistance!AU12))*'Data Input'!$E$11) -> 1541.405461 | AV12: =IF(ISERROR(SQRT((qc!AV12+qr!AV12-qs!AV12)/(Resistance!AV12))*'Data Input'!$E$11),"0",SQRT((qc!AV12+qr!AV12-qs!AV12)/(Resistance!AV12))*'Data Input'!$E$11) -> 1494.988537 | AW12: =IF(ISERROR(SQRT((qc!AW12+qr!AW12-qs!AW12)/(Resistance!AW12))*'Data Input'!$E$11),"0",SQRT((qc!AW12+qr!AW12-qs!AW12)/(Resistance!AW12))*'Data Input'!$E$11) -> 1446.802869 | AX12: =IF(ISERROR(SQRT((qc!AX12+qr!AX12-qs!AX12)/(Resistance!AX12))*'Data Input'!$E$11),"0",SQRT((qc!AX12+qr!AX12-qs!AX12)/(Resistance!AX12))*'Data Input'!$E$11) -> 1396.659043 | AY12: =IF(ISERROR(SQRT((qc!AY12+qr!AY12-qs!AY12)/(Resistance!AY12))*'Data Input'!$E$11),"0",SQRT((qc!AY12+qr!AY12-qs!AY12)/(Resistance!AY12))*'Data Input'!$E$11) -> 1344.331309 | AZ12: =IF(ISERROR(SQRT((qc!AZ12+qr!AZ12-qs!AZ12)/(Resistance!AZ12))*'Data Input'!$E$11),"0",SQRT((qc!AZ12+qr!AZ12-qs!AZ12)/(Resistance!AZ12))*'Data Input'!$E$11) -> 1289.54686 | BA12: =IF(ISERROR(SQRT((qc!BA12+qr!BA12-qs!BA12)/(Resistance!BA12))*'Data Input'!$E$11),"0",SQRT((qc!BA12+qr!BA12-qs!BA12)/(Resistance!BA12))*'Data Input'!$E$11) -> 1231.970647 | BB12: =IF(ISERROR(SQRT((qc!BB12+qr!BB12-qs!BB12)/(Resistance!BB12))*'Data Input'!$E$11),"0",SQRT((qc!BB12+qr!BB12-qs!BB12)/(Resistance!BB12))*'Data Input'!$E$11) -> 1171.183223 | BC12: =IF(ISERROR(SQRT((qc!BC12+qr!BC12-qs!BC12)/(Resistance!BC12))*'Data Input'!$E$11),"0",SQRT((qc!BC12+qr!BC12-qs!BC12)/(Resistance!BC12))*'Data Input'!$E$11) -> 1106.647255 | BD12: =IF(ISERROR(SQRT((qc!BD12+qr!BD12-qs!BD12)/(Resistance!BD12))*'Data Input'!$E$11),"0",SQRT((qc!BD12+qr!BD12-qs!BD12)/(Resistance!BD12))*'Data Input'!$E$11) -> 1037.654667 | BE12: =IF(ISERROR(SQRT((qc!BE12+qr!BE12-qs!BE12)/(Resistance!BE12))*'Data Input'!$E$11),"0",SQRT((qc!BE12+qr!BE12-qs!BE12)/(Resistance!BE12))*'Data Input'!$E$11) -> 963.2386636 | BF12: =IF(ISERROR(SQRT((qc!BF12+qr!BF12-qs!BF12)/(Resistance!BF12))*'Data Input'!$E$11),"0",SQRT((qc!BF12+qr!BF12-qs!BF12)/(Resistance!BF12))*'Data Input'!$E$11) -> 882.016987 | BG12: =IF(ISERROR(SQRT((qc!BG12+qr!BG12-qs!BG12)/(Resistance!BG12))*'Data Input'!$E$11),"0",SQRT((qc!BG12+qr!BG12-qs!BG12)/(Resistance!BG12))*'Data Input'!$E$11) -> 791.886409 | BH12: =IF(ISERROR(SQRT((qc!BH12+qr!BH12-qs!BH12)/(Resistance!BH12))*'Data Input'!$E$11),"0",SQRT((qc!BH12+qr!BH12-qs!BH12)/(Resistance!BH12))*'Data Input'!$E$11) -> 689.3475949 | BI12: =IF(ISERROR(SQRT((qc!BI12+qr!BI12-qs!BI12)/(Resistance!BI12))*'Data Input'!$E$11),"0",SQRT((qc!BI12+qr!BI12-qs!BI12)/(Resistance!BI12))*'Data Input'!$E$11) -> 567.6996842 | BJ12: =IF(ISERROR(SQRT((qc!BJ12+qr!BJ12-qs!BJ12)/(Resistance!BJ12))*'Data Input'!$E$11),"0",SQRT((qc!BJ12+qr!BJ12-qs!BJ12)/(Resistance!BJ12))*'Data Input'!$E$11) -> 410.2600814 | BK12: =IF(ISERROR(SQRT((qc!BK12+qr!BK12-qs!BK12)/(Resistance!BK12))*'Data Input'!$E$11),"0",SQRT((qc!BK12+qr!BK12-qs!BK12)/(Resistance!BK12))*'Data Input'!$E$11) -> 115.2040122
A13: Normal Day | B13: =wind_norm -> 0 | C13: 80 | D13: =IF(ISERROR(SQRT((qc!D13+qr!D13-qs!D13)/(Resistance!D13))*'Data Input'!$E$11),"0",SQRT((qc!D13+qr!D13-qs!D13)/(Resistance!D13))*'Data Input'!$E$11) -> 1677.510668 | E13: =IF(ISERROR(SQRT((qc!E13+qr!E13-qs!E13)/(Resistance!E13))*'Data Input'!$E$11),"0",SQRT((qc!E13+qr!E13-qs!E13)/(Resistance!E13))*'Data Input'!$E$11) -> 1620.742734 | F13: =IF(ISERROR(SQRT((qc!F13+qr!F13-qs!F13)/(Resistance!F13))*'Data Input'!$E$11),"0",SQRT((qc!F13+qr!F13-qs!F13)/(Resistance!F13))*'Data Input'!$E$11) -> 1562.24738 | G13: =IF(ISERROR(SQRT((qc!G13+qr!G13-qs!G13)/(Resistance!G13))*'Data Input'!$E$11),"0",SQRT((qc!G13+qr!G13-qs!G13)/(Resistance!G13))*'Data Input'!$E$11) -> 1501.808183 | H13: =IF(ISERROR(SQRT((qc!H13+qr!H13-qs!H13)/(Resistance!H13))*'Data Input'!$E$11),"0",SQRT((qc!H13+qr!H13-qs!H13)/(Resistance!H13))*'Data Input'!$E$11) -> 1439.167631 | I13: =IF(ISERROR(SQRT((qc!I13+qr!I13-qs!I13)/(Resistance!I13))*'Data Input'!$E$11),"0",SQRT((qc!I13+qr!I13-qs!I13)/(Resistance!I13))*'Data Input'!$E$11) -> 1374.014712 | J13: =IF(ISERROR(SQRT((qc!J13+qr!J13-qs!J13)/(Resistance!J13))*'Data Input'!$E$11),"0",SQRT((qc!J13+qr!J13-qs!J13)/(Resistance!J13))*'Data Input'!$E$11) -> 1305.967128 | K13: =IF(ISERROR(SQRT((qc!K13+qr!K13-qs!K13)/(Resistance!K13))*'Data Input'!$E$11),"0",SQRT((qc!K13+qr!K13-qs!K13)/(Resistance!K13))*'Data Input'!$E$11) -> 1234.54501 | L13: =IF(ISERROR(SQRT((qc!L13+qr!L13-qs!L13)/(Resistance!L13))*'Data Input'!$E$11),"0",SQRT((qc!L13+qr!L13-qs!L13)/(Resistance!L13))*'Data Input'!$E$11) -> 1159.13049 | M13: =IF(ISERROR(SQRT((qc!M13+qr!M13-qs!M13)/(Resistance!M13))*'Data Input'!$E$11),"0",SQRT((qc!M13+qr!M13-qs!M13)/(Resistance!M13))*'Data Input'!$E$11) -> 1078.902568 | N13: =IF(ISERROR(SQRT((qc!N13+qr!N13-qs!N13)/(Resistance!N13))*'Data Input'!$E$11),"0",SQRT((qc!N13+qr!N13-qs!N13)/(Resistance!N13))*'Data Input'!$E$11) -> 992.7257439 | O13: =IF(ISERROR(SQRT((qc!O13+qr!O13-qs!O13)/(Resistance!O13))*'Data Input'!$E$11),"0",SQRT((qc!O13+qr!O13-qs!O13)/(Resistance!O13))*'Data Input'!$E$11) -> 898.9444944 | Q13: Normal Day | R13: =wind_norm -> 0 | S13: 80 | T13: =IF(ISERROR(SQRT((qc!T13+qr!T13-qs!T13)/(Resistance!T13))*'Data Input'!$E$11),"0",SQRT((qc!T13+qr!T13-qs!T13)/(Resistance!T13))*'Data Input'!$E$11) -> 2076.636016 | U13: =IF(ISERROR(SQRT((qc!U13+qr!U13-qs!U13)/(Resistance!U13))*'Data Input'!$E$11),"0",SQRT((qc!U13+qr!U13-qs!U13)/(Resistance!U13))*'Data Input'!$E$11) -> 2050.012011 | V13: =IF(ISERROR(SQRT((qc!V13+qr!V13-qs!V13)/(Resistance!V13))*'Data Input'!$E$11),"0",SQRT((qc!V13+qr!V13-qs!V13)/(Resistance!V13))*'Data Input'!$E$11) -> 2023.157964 | W13: =IF(ISERROR(SQRT((qc!W13+qr!W13-qs!W13)/(Resistance!W13))*'Data Input'!$E$11),"0",SQRT((qc!W13+qr!W13-qs!W13)/(Resistance!W13))*'Data Input'!$E$11) -> 1996.061314 | X13: =IF(ISERROR(SQRT((qc!X13+qr!X13-qs!X13)/(Resistance!X13))*'Data Input'!$E$11),"0",SQRT((qc!X13+qr!X13-qs!X13)/(Resistance!X13))*'Data Input'!$E$11) -> 1968.708774 | Y13: =IF(ISERROR(SQRT((qc!Y13+qr!Y13-qs!Y13)/(Resistance!Y13))*'Data Input'!$E$11),"0",SQRT((qc!Y13+qr!Y13-qs!Y13)/(Resistance!Y13))*'Data Input'!$E$11) -> 1941.086267 | Z13: =IF(ISERROR(SQRT((qc!Z13+qr!Z13-qs!Z13)/(Resistance!Z13))*'Data Input'!$E$11),"0",SQRT((qc!Z13+qr!Z13-qs!Z13)/(Resistance!Z13))*'Data Input'!$E$11) -> 1913.178855 | AA13: =IF(ISERROR(SQRT((qc!AA13+qr!AA13-qs!AA13)/(Resistance!AA13))*'Data Input'!$E$11),"0",SQRT((qc!AA13+qr!AA13-qs!AA13)/(Resistance!AA13))*'Data Input'!$E$11) -> 1884.970655 | AB13: =IF(ISERROR(SQRT((qc!AB13+qr!AB13-qs!AB13)/(Resistance!AB13))*'Data Input'!$E$11),"0",SQRT((qc!AB13+qr!AB13-qs!AB13)/(Resistance!AB13))*'Data Input'!$E$11) -> 1856.44475 | AC13: =IF(ISERROR(SQRT((qc!AC13+qr!AC13-qs!AC13)/(Resistance!AC13))*'Data Input'!$E$11),"0",SQRT((qc!AC13+qr!AC13-qs!AC13)/(Resistance!AC13))*'Data Input'!$E$11) -> 1827.583086 | AD13: =IF(ISERROR(SQRT((qc!AD13+qr!AD13-qs!AD13)/(Resistance!AD13))*'Data Input'!$E$11),"0",SQRT((qc!AD13+qr!AD13-qs!AD13)/(Resistance!AD13))*'Data Input'!$E$11) -> 1798.366355 | AE13: =IF(ISERROR(SQRT((qc!AE13+qr!AE13-qs!AE13)/(Resistance!AE13))*'Data Input'!$E$11),"0",SQRT((qc!AE13+qr!AE13-qs!AE13)/(Resistance!AE13))*'Data Input'!$E$11) -> 1768.773861 | AF13: =IF(ISERROR(SQRT((qc!AF13+qr!AF13-qs!AF13)/(Resistance!AF13))*'Data Input'!$E$11),"0",SQRT((qc!AF13+qr!AF13-qs!AF13)/(Resistance!AF13))*'Data Input'!$E$11) -> 1738.783368 | AG13: =IF(ISERROR(SQRT((qc!AG13+qr!AG13-qs!AG13)/(Resistance!AG13))*'Data Input'!$E$11),"0",SQRT((qc!AG13+qr!AG13-qs!AG13)/(Resistance!AG13))*'Data Input'!$E$11) -> 1708.370927 | AH13: =IF(ISERROR(SQRT((qc!AH13+qr!AH13-qs!AH13)/(Resistance!AH13))*'Data Input'!$E$11),"0",SQRT((qc!AH13+qr!AH13-qs!AH13)/(Resistance!AH13))*'Data Input'!$E$11) -> 1677.510668 | AI13: =IF(ISERROR(SQRT((qc!AI13+qr!AI13-qs!AI13)/(Resistance!AI13))*'Data Input'!$E$11),"0",SQRT((qc!AI13+qr!AI13-qs!AI13)/(Resistance!AI13))*'Data Input'!$E$11) -> 1646.174576 | AJ13: =IF(ISERROR(SQRT((qc!AJ13+qr!AJ13-qs!AJ13)/(Resistance!AJ13))*'Data Input'!$E$11),"0",SQRT((qc!AJ13+qr!AJ13-qs!AJ13)/(Resistance!AJ13))*'Data Input'!$E$11) -> 1614.332207 | AK13: =IF(ISERROR(SQRT((qc!AK13+qr!AK13-qs!AK13)/(Resistance!AK13))*'Data Input'!$E$11),"0",SQRT((qc!AK13+qr!AK13-qs!AK13)/(Resistance!AK13))*'Data Input'!$E$11) -> 1581.950378 | AL13: =IF(ISERROR(SQRT((qc!AL13+qr!AL13-qs!AL13)/(Resistance!AL13))*'Data Input'!$E$11),"0",SQRT((qc!AL13+qr!AL13-qs!AL13)/(Resistance!AL13))*'Data Input'!$E$11) -> 1548.992784 | AM13: =IF(ISERROR(SQRT((qc!AM13+qr!AM13-qs!AM13)/(Resistance!AM13))*'Data Input'!$E$11),"0",SQRT((qc!AM13+qr!AM13-qs!AM13)/(Resistance!AM13))*'Data Input'!$E$11) -> 1515.419553 | AN13: =IF(ISERROR(SQRT((qc!AN13+qr!AN13-qs!AN13)/(Resistance!AN13))*'Data Input'!$E$11),"0",SQRT((qc!AN13+qr!AN13-qs!AN13)/(Resistance!AN13))*'Data Input'!$E$11) -> 1481.186709 | AO13: =IF(ISERROR(SQRT((qc!AO13+qr!AO13-qs!AO13)/(Resistance!AO13))*'Data Input'!$E$11),"0",SQRT((qc!AO13+qr!AO13-qs!AO13)/(Resistance!AO13))*'Data Input'!$E$11) -> 1446.245533 | AP13: =IF(ISERROR(SQRT((qc!AP13+qr!AP13-qs!AP13)/(Resistance!AP13))*'Data Input'!$E$11),"0",SQRT((qc!AP13+qr!AP13-qs!AP13)/(Resistance!AP13))*'Data Input'!$E$11) -> 1410.541777 | AQ13: =IF(ISERROR(SQRT((qc!AQ13+qr!AQ13-qs!AQ13)/(Resistance!AQ13))*'Data Input'!$E$11),"0",SQRT((qc!AQ13+qr!AQ13-qs!AQ13)/(Resistance!AQ13))*'Data Input'!$E$11) -> 1374.014712 | AR13: =IF(ISERROR(SQRT((qc!AR13+qr!AR13-qs!AR13)/(Resistance!AR13))*'Data Input'!$E$11),"0",SQRT((qc!AR13+qr!AR13-qs!AR13)/(Resistance!AR13))*'Data Input'!$E$11) -> 1336.595937 | AS13: =IF(ISERROR(SQRT((qc!AS13+qr!AS13-qs!AS13)/(Resistance!AS13))*'Data Input'!$E$11),"0",SQRT((qc!AS13+qr!AS13-qs!AS13)/(Resistance!AS13))*'Data Input'!$E$11) -> 1298.207907 | AT13: =IF(ISERROR(SQRT((qc!AT13+qr!AT13-qs!AT13)/(Resistance!AT13))*'Data Input'!$E$11),"0",SQRT((qc!AT13+qr!AT13-qs!AT13)/(Resistance!AT13))*'Data Input'!$E$11) -> 1258.762056 | AU13: =IF(ISERROR(SQRT((qc!AU13+qr!AU13-qs!AU13)/(Resistance!AU13))*'Data Input'!$E$11),"0",SQRT((qc!AU13+qr!AU13-qs!AU13)/(Resistance!AU13))*'Data Input'!$E$11) -> 1218.156396 | AV13: =IF(ISERROR(SQRT((qc!AV13+qr!AV13-qs!AV13)/(Resistance!AV13))*'Data Input'!$E$11),"0",SQRT((qc!AV13+qr!AV13-qs!AV13)/(Resistance!AV13))*'Data Input'!$E$11) -> 1176.272396 | AW13: =IF(ISERROR(SQRT((qc!AW13+qr!AW13-qs!AW13)/(Resistance!AW13))*'Data Input'!$E$11),"0",SQRT((qc!AW13+qr!AW13-qs!AW13)/(Resistance!AW13))*'Data Input'!$E$11) -> 1132.970847 | AX13: =IF(ISERROR(SQRT((qc!AX13+qr!AX13-qs!AX13)/(Resistance!AX13))*'Data Input'!$E$11),"0",SQRT((qc!AX13+qr!AX13-qs!AX13)/(Resistance!AX13))*'Data Input'!$E$11) -> 1088.086284 | AY13: =IF(ISERROR(SQRT((qc!AY13+qr!AY13-qs!AY13)/(Resistance!AY13))*'Data Input'!$E$11),"0",SQRT((qc!AY13+qr!AY13-qs!AY13)/(Resistance!AY13))*'Data Input'!$E$11) -> 1041.419311 | AZ13: =IF(ISERROR(SQRT((qc!AZ13+qr!AZ13-qs!AZ13)/(Resistance!AZ13))*'Data Input'!$E$11),"0",SQRT((qc!AZ13+qr!AZ13-qs!AZ13)/(Resistance!AZ13))*'Data Input'!$E$11) -> 992.7257439 | BA13: =IF(ISERROR(SQRT((qc!BA13+qr!BA13-qs!BA13)/(Resistance!BA13))*'Data Input'!$E$11),"0",SQRT((qc!BA13+qr!BA13-qs!BA13)/(Resistance!BA13))*'Data Input'!$E$11) -> 941.7008202 | BB13: =IF(ISERROR(SQRT((qc!BB13+qr!BB13-qs!BB13)/(Resistance!BB13))*'Data Input'!$E$11),"0",SQRT((qc!BB13+qr!BB13-qs!BB13)/(Resistance!BB13))*'Data Input'!$E$11) -> 887.9554028 | BC13: =IF(ISERROR(SQRT((qc!BC13+qr!BC13-qs!BC13)/(Resistance!BC13))*'Data Input'!$E$11),"0",SQRT((qc!BC13+qr!BC13-qs!BC13)/(Resistance!BC13))*'Data Input'!$E$11) -> 830.9785911 | BD13: =IF(ISERROR(SQRT((qc!BD13+qr!BD13-qs!BD13)/(Resistance!BD13))*'Data Input'!$E$11),"0",SQRT((qc!BD13+qr!BD13-qs!BD13)/(Resistance!BD13))*'Data Input'!$E$11) -> 770.0758324 | BE13: =IF(ISERROR(SQRT((qc!BE13+qr!BE13-qs!BE13)/(Resistance!BE13))*'Data Input'!$E$11),"0",SQRT((qc!BE13+qr!BE13-qs!BE13)/(Resistance!BE13))*'Data Input'!$E$11) -> 704.2595094 | BF13: =IF(ISERROR(SQRT((qc!BF13+qr!BF13-qs!BF13)/(Resistance!BF13))*'Data Input'!$E$11),"0",SQRT((qc!BF13+qr!BF13-qs!BF13)/(Resistance!BF13))*'Data Input'!$E$11) -> 632.0380168 | BG13: =IF(ISERROR(SQRT((qc!BG13+qr!BG13-qs!BG13)/(Resistance!BG13))*'Data Input'!$E$11),"0",SQRT((qc!BG13+qr!BG13-qs!BG13)/(Resistance!BG13))*'Data Input'!$E$11) -> 550.9573814 | BH13: =IF(ISERROR(SQRT((qc!BH13+qr!BH13-qs!BH13)/(Resistance!BH13))*'Data Input'!$E$11),"0",SQRT((qc!BH13+qr!BH13-qs!BH13)/(Resistance!BH13))*'Data Input'!$E$11) -> 456.409415 | BI13: =IF(ISERROR(SQRT((qc!BI13+qr!BI13-qs!BI13)/(Resistance!BI13))*'Data Input'!$E$11),"0",SQRT((qc!BI13+qr!BI13-qs!BI13)/(Resistance!BI13))*'Data Input'!$E$11) -> 337.4064387 | BJ13: =IF(ISERROR(SQRT((qc!BJ13+qr!BJ13-qs!BJ13)/(Resistance!BJ13))*'Data Input'!$E$11),"0",SQRT((qc!BJ13+qr!BJ13-qs!BJ13)/(Resistance!BJ13))*'Data Input'!$E$11) -> 142.4433774 | BK13: =IF(ISERROR(SQRT((qc!BK13+qr!BK13-qs!BK13)/(Resistance!BK13))*'Data Input'!$E$11),"0",SQRT((qc!BK13+qr!BK13-qs!BK13)/(Resistance!BK13))*'Data Input'!$E$11) -> 0
A14: Emergency Day | B14: =wind_emer -> 2.533 | C14: 80 | D14: =IF(ISERROR(SQRT((qc!D14+qr!D14-qs!D14)/(Resistance!D14))*'Data Input'!$E$11),"0",SQRT((qc!D14+qr!D14-qs!D14)/(Resistance!D14))*'Data Input'!$E$11) -> 2089.485421 | E14: =IF(ISERROR(SQRT((qc!E14+qr!E14-qs!E14)/(Resistance!E14))*'Data Input'!$E$11),"0",SQRT((qc!E14+qr!E14-qs!E14)/(Resistance!E14))*'Data Input'!$E$11) -> 2032.438569 | F14: =IF(ISERROR(SQRT((qc!F14+qr!F14-qs!F14)/(Resistance!F14))*'Data Input'!$E$11),"0",SQRT((qc!F14+qr!F14-qs!F14)/(Resistance!F14))*'Data Input'!$E$11) -> 1973.451217 | G14: =IF(ISERROR(SQRT((qc!G14+qr!G14-qs!G14)/(Resistance!G14))*'Data Input'!$E$11),"0",SQRT((qc!G14+qr!G14-qs!G14)/(Resistance!G14))*'Data Input'!$E$11) -> 1912.114865 | H14: =IF(ISERROR(SQRT((qc!H14+qr!H14-qs!H14)/(Resistance!H14))*'Data Input'!$E$11),"0",SQRT((qc!H14+qr!H14-qs!H14)/(Resistance!H14))*'Data Input'!$E$11) -> 1848.169889 | I14: =IF(ISERROR(SQRT((qc!I14+qr!I14-qs!I14)/(Resistance!I14))*'Data Input'!$E$11),"0",SQRT((qc!I14+qr!I14-qs!I14)/(Resistance!I14))*'Data Input'!$E$11) -> 1781.308325 | J14: =IF(ISERROR(SQRT((qc!J14+qr!J14-qs!J14)/(Resistance!J14))*'Data Input'!$E$11),"0",SQRT((qc!J14+qr!J14-qs!J14)/(Resistance!J14))*'Data Input'!$E$11) -> 1711.159812 | K14: =IF(ISERROR(SQRT((qc!K14+qr!K14-qs!K14)/(Resistance!K14))*'Data Input'!$E$11),"0",SQRT((qc!K14+qr!K14-qs!K14)/(Resistance!K14))*'Data Input'!$E$11) -> 1637.271766 | L14: =IF(ISERROR(SQRT((qc!L14+qr!L14-qs!L14)/(Resistance!L14))*'Data Input'!$E$11),"0",SQRT((qc!L14+qr!L14-qs!L14)/(Resistance!L14))*'Data Input'!$E$11) -> 1559.080555 | M14: =IF(ISERROR(SQRT((qc!M14+qr!M14-qs!M14)/(Resistance!M14))*'Data Input'!$E$11),"0",SQRT((qc!M14+qr!M14-qs!M14)/(Resistance!M14))*'Data Input'!$E$11) -> 1475.868131 | N14: =IF(ISERROR(SQRT((qc!N14+qr!N14-qs!N14)/(Resistance!N14))*'Data Input'!$E$11),"0",SQRT((qc!N14+qr!N14-qs!N14)/(Resistance!N14))*'Data Input'!$E$11) -> 1386.693949 | O14: =IF(ISERROR(SQRT((qc!O14+qr!O14-qs!O14)/(Resistance!O14))*'Data Input'!$E$11),"0",SQRT((qc!O14+qr!O14-qs!O14)/(Resistance!O14))*'Data Input'!$E$11) -> 1290.282381 | Q14: Emergency Day | R14: =wind_emer -> 2.533 | S14: 80 | T14: =IF(ISERROR(SQRT((qc!T14+qr!T14-qs!T14)/(Resistance!T14))*'Data Input'!$E$11),"0",SQRT((qc!T14+qr!T14-qs!T14)/(Resistance!T14))*'Data Input'!$E$11) -> 2487.421699 | U14: =IF(ISERROR(SQRT((qc!U14+qr!U14-qs!U14)/(Resistance!U14))*'Data Input'!$E$11),"0",SQRT((qc!U14+qr!U14-qs!U14)/(Resistance!U14))*'Data Input'!$E$11) -> 2461.45752 | V14: =IF(ISERROR(SQRT((qc!V14+qr!V14-qs!V14)/(Resistance!V14))*'Data Input'!$E$11),"0",SQRT((qc!V14+qr!V14-qs!V14)/(Resistance!V14))*'Data Input'!$E$11) -> 2435.179713 | W14: =IF(ISERROR(SQRT((qc!W14+qr!W14-qs!W14)/(Resistance!W14))*'Data Input'!$E$11),"0",SQRT((qc!W14+qr!W14-qs!W14)/(Resistance!W14))*'Data Input'!$E$11) -> 2408.574573 | X14: =IF(ISERROR(SQRT((qc!X14+qr!X14-qs!X14)/(Resistance!X14))*'Data Input'!$E$11),"0",SQRT((qc!X14+qr!X14-qs!X14)/(Resistance!X14))*'Data Input'!$E$11) -> 2381.627641 | Y14: =IF(ISERROR(SQRT((qc!Y14+qr!Y14-qs!Y14)/(Resistance!Y14))*'Data Input'!$E$11),"0",SQRT((qc!Y14+qr!Y14-qs!Y14)/(Resistance!Y14))*'Data Input'!$E$11) -> 2354.323636 | Z14: =IF(ISERROR(SQRT((qc!Z14+qr!Z14-qs!Z14)/(Resistance!Z14))*'Data Input'!$E$11),"0",SQRT((qc!Z14+qr!Z14-qs!Z14)/(Resistance!Z14))*'Data Input'!$E$11) -> 2326.64639 | AA14: =IF(ISERROR(SQRT((qc!AA14+qr!AA14-qs!AA14)/(Resistance!AA14))*'Data Input'!$E$11),"0",SQRT((qc!AA14+qr!AA14-qs!AA14)/(Resistance!AA14))*'Data Input'!$E$11) -> 2298.578765 | AB14: =IF(ISERROR(SQRT((qc!AB14+qr!AB14-qs!AB14)/(Resistance!AB14))*'Data Input'!$E$11),"0",SQRT((qc!AB14+qr!AB14-qs!AB14)/(Resistance!AB14))*'Data Input'!$E$11) -> 2270.102567 | AC14: =IF(ISERROR(SQRT((qc!AC14+qr!AC14-qs!AC14)/(Resistance!AC14))*'Data Input'!$E$11),"0",SQRT((qc!AC14+qr!AC14-qs!AC14)/(Resistance!AC14))*'Data Input'!$E$11) -> 2241.198446 | AD14: =IF(ISERROR(SQRT((qc!AD14+qr!AD14-qs!AD14)/(Resistance!AD14))*'Data Input'!$E$11),"0",SQRT((qc!AD14+qr!AD14-qs!AD14)/(Resistance!AD14))*'Data Input'!$E$11) -> 2211.845781 | AE14: =IF(ISERROR(SQRT((qc!AE14+qr!AE14-qs!AE14)/(Resistance!AE14))*'Data Input'!$E$11),"0",SQRT((qc!AE14+qr!AE14-qs!AE14)/(Resistance!AE14))*'Data Input'!$E$11) -> 2182.022563 | AF14: =IF(ISERROR(SQRT((qc!AF14+qr!AF14-qs!AF14)/(Resistance!AF14))*'Data Input'!$E$11),"0",SQRT((qc!AF14+qr!AF14-qs!AF14)/(Resistance!AF14))*'Data Input'!$E$11) -> 2151.705241 | AG14: =IF(ISERROR(SQRT((qc!AG14+qr!AG14-qs!AG14)/(Resistance!AG14))*'Data Input'!$E$11),"0",SQRT((qc!AG14+qr!AG14-qs!AG14)/(Resistance!AG14))*'Data Input'!$E$11) -> 2120.86857 | AH14: =IF(ISERROR(SQRT((qc!AH14+qr!AH14-qs!AH14)/(Resistance!AH14))*'Data Input'!$E$11),"0",SQRT((qc!AH14+qr!AH14-qs!AH14)/(Resistance!AH14))*'Data Input'!$E$11) -> 2089.485421 | AI14: =IF(ISERROR(SQRT((qc!AI14+qr!AI14-qs!AI14)/(Resistance!AI14))*'Data Input'!$E$11),"0",SQRT((qc!AI14+qr!AI14-qs!AI14)/(Resistance!AI14))*'Data Input'!$E$11) -> 2057.960282 | AJ14: =IF(ISERROR(SQRT((qc!AJ14+qr!AJ14-qs!AJ14)/(Resistance!AJ14))*'Data Input'!$E$11),"0",SQRT((qc!AJ14+qr!AJ14-qs!AJ14)/(Resistance!AJ14))*'Data Input'!$E$11) -> 2025.993244 | AK14: =IF(ISERROR(SQRT((qc!AK14+qr!AK14-qs!AK14)/(Resistance!AK14))*'Data Input'!$E$11),"0",SQRT((qc!AK14+qr!AK14-qs!AK14)/(Resistance!AK14))*'Data Input'!$E$11) -> 1993.363027 | AL14: =IF(ISERROR(SQRT((qc!AL14+qr!AL14-qs!AL14)/(Resistance!AL14))*'Data Input'!$E$11),"0",SQRT((qc!AL14+qr!AL14-qs!AL14)/(Resistance!AL14))*'Data Input'!$E$11) -> 1960.032399 | AM14: =IF(ISERROR(SQRT((qc!AM14+qr!AM14-qs!AM14)/(Resistance!AM14))*'Data Input'!$E$11),"0",SQRT((qc!AM14+qr!AM14-qs!AM14)/(Resistance!AM14))*'Data Input'!$E$11) -> 1925.960786 | AN14: =IF(ISERROR(SQRT((qc!AN14+qr!AN14-qs!AN14)/(Resistance!AN14))*'Data Input'!$E$11),"0",SQRT((qc!AN14+qr!AN14-qs!AN14)/(Resistance!AN14))*'Data Input'!$E$11) -> 1891.103818 | AO14: =IF(ISERROR(SQRT((qc!AO14+qr!AO14-qs!AO14)/(Resistance!AO14))*'Data Input'!$E$11),"0",SQRT((qc!AO14+qr!AO14-qs!AO14)/(Resistance!AO14))*'Data Input'!$E$11) -> 1855.412804 | AP14: =IF(ISERROR(SQRT((qc!AP14+qr!AP14-qs!AP14)/(Resistance!AP14))*'Data Input'!$E$11),"0",SQRT((qc!AP14+qr!AP14-qs!AP14)/(Resistance!AP14))*'Data Input'!$E$11) -> 1818.834093 | AQ14: =IF(ISERROR(SQRT((qc!AQ14+qr!AQ14-qs!AQ14)/(Resistance!AQ14))*'Data Input'!$E$11),"0",SQRT((qc!AQ14+qr!AQ14-qs!AQ14)/(Resistance!AQ14))*'Data Input'!$E$11) -> 1781.308325 | AR14: =IF(ISERROR(SQRT((qc!AR14+qr!AR14-qs!AR14)/(Resistance!AR14))*'Data Input'!$E$11),"0",SQRT((qc!AR14+qr!AR14-qs!AR14)/(Resistance!AR14))*'Data Input'!$E$11) -> 1742.769509 | AS14: =IF(ISERROR(SQRT((qc!AS14+qr!AS14-qs!AS14)/(Resistance!AS14))*'Data Input'!$E$11),"0",SQRT((qc!AS14+qr!AS14-qs!AS14)/(Resistance!AS14))*'Data Input'!$E$11) -> 1703.14392 | AT14: =IF(ISERROR(SQRT((qc!AT14+qr!AT14-qs!AT14)/(Resistance!AT14))*'Data Input'!$E$11),"0",SQRT((qc!AT14+qr!AT14-qs!AT14)/(Resistance!AT14))*'Data Input'!$E$11) -> 1662.348728 | AU14: =IF(ISERROR(SQRT((qc!AU14+qr!AU14-qs!AU14)/(Resistance!AU14))*'Data Input'!$E$11),"0",SQRT((qc!AU14+qr!AU14-qs!AU14)/(Resistance!AU14))*'Data Input'!$E$11) -> 1620.29031 | AV14: =IF(ISERROR(SQRT((qc!AV14+qr!AV14-qs!AV14)/(Resistance!AV14))*'Data Input'!$E$11),"0",SQRT((qc!AV14+qr!AV14-qs!AV14)/(Resistance!AV14))*'Data Input'!$E$11) -> 1576.862126 | AW14: =IF(ISERROR(SQRT((qc!AW14+qr!AW14-qs!AW14)/(Resistance!AW14))*'Data Input'!$E$11),"0",SQRT((qc!AW14+qr!AW14-qs!AW14)/(Resistance!AW14))*'Data Input'!$E$11) -> 1531.942026 | AX14: =IF(ISERROR(SQRT((qc!AX14+qr!AX14-qs!AX14)/(Resistance!AX14))*'Data Input'!$E$11),"0",SQRT((qc!AX14+qr!AX14-qs!AX14)/(Resistance!AX14))*'Data Input'!$E$11) -> 1485.388784 | AY14: =IF(ISERROR(SQRT((qc!AY14+qr!AY14-qs!AY14)/(Resistance!AY14))*'Data Input'!$E$11),"0",SQRT((qc!AY14+qr!AY14-qs!AY14)/(Resistance!AY14))*'Data Input'!$E$11) -> 1437.037573 | AZ14: =IF(ISERROR(SQRT((qc!AZ14+qr!AZ14-qs!AZ14)/(Resistance!AZ14))*'Data Input'!$E$11),"0",SQRT((qc!AZ14+qr!AZ14-qs!AZ14)/(Resistance!AZ14))*'Data Input'!$E$11) -> 1386.693949 | BA14: =IF(ISERROR(SQRT((qc!BA14+qr!BA14-qs!BA14)/(Resistance!BA14))*'Data Input'!$E$11),"0",SQRT((qc!BA14+qr!BA14-qs!BA14)/(Resistance!BA14))*'Data Input'!$E$11) -> 1334.1257 | BB14: =IF(ISERROR(SQRT((qc!BB14+qr!BB14-qs!BB14)/(Resistance!BB14))*'Data Input'!$E$11),"0",SQRT((qc!BB14+qr!BB14-qs!BB14)/(Resistance!BB14))*'Data Input'!$E$11) -> 1279.051552 | BC14: =IF(ISERROR(SQRT((qc!BC14+qr!BC14-qs!BC14)/(Resistance!BC14))*'Data Input'!$E$11),"0",SQRT((qc!BC14+qr!BC14-qs!BC14)/(Resistance!BC14))*'Data Input'!$E$11) -> 1221.125101 | BD14: =IF(ISERROR(SQRT((qc!BD14+qr!BD14-qs!BD14)/(Resistance!BD14))*'Data Input'!$E$11),"0",SQRT((qc!BD14+qr!BD14-qs!BD14)/(Resistance!BD14))*'Data Input'!$E$11) -> 1159.911255 | BE14: =IF(ISERROR(SQRT((qc!BE14+qr!BE14-qs!BE14)/(Resistance!BE14))*'Data Input'!$E$11),"0",SQRT((qc!BE14+qr!BE14-qs!BE14)/(Resistance!BE14))*'Data Input'!$E$11) -> 1094.850397 | BF14: =IF(ISERROR(SQRT((qc!BF14+qr!BF14-qs!BF14)/(Resistance!BF14))*'Data Input'!$E$11),"0",SQRT((qc!BF14+qr!BF14-qs!BF14)/(Resistance!BF14))*'Data Input'!$E$11) -> 1025.201396 | BG14: =IF(ISERROR(SQRT((qc!BG14+qr!BG14-qs!BG14)/(Resistance!BG14))*'Data Input'!$E$11),"0",SQRT((qc!BG14+qr!BG14-qs!BG14)/(Resistance!BG14))*'Data Input'!$E$11) -> 949.9458421 | BH14: =IF(ISERROR(SQRT((qc!BH14+qr!BH14-qs!BH14)/(Resistance!BH14))*'Data Input'!$E$11),"0",SQRT((qc!BH14+qr!BH14-qs!BH14)/(Resistance!BH14))*'Data Input'!$E$11) -> 867.6153074 | BI14: =IF(ISERROR(SQRT((qc!BI14+qr!BI14-qs!BI14)/(Resistance!BI14))*'Data Input'!$E$11),"0",SQRT((qc!BI14+qr!BI14-qs!BI14)/(Resistance!BI14))*'Data Input'!$E$11) -> 775.9489436 | BJ14: =IF(ISERROR(SQRT((qc!BJ14+qr!BJ14-qs!BJ14)/(Resistance!BJ14))*'Data Input'!$E$11),"0",SQRT((qc!BJ14+qr!BJ14-qs!BJ14)/(Resistance!BJ14))*'Data Input'!$E$11) -> 671.1181029 | BK14: =IF(ISERROR(SQRT((qc!BK14+qr!BK14-qs!BK14)/(Resistance!BK14))*'Data Input'!$E$11),"0",SQRT((qc!BK14+qr!BK14-qs!BK14)/(Resistance!BK14))*'Data Input'!$E$11) -> 545.5689802
A15: Normal Day | B15: =wind_norm -> 0 | C15: 85 | D15: =IF(ISERROR(SQRT((qc!D15+qr!D15-qs!D15)/(Resistance!D15))*'Data Input'!$E$11),"0",SQRT((qc!D15+qr!D15-qs!D15)/(Resistance!D15))*'Data Input'!$E$11) -> 1731.421702 | E15: =IF(ISERROR(SQRT((qc!E15+qr!E15-qs!E15)/(Resistance!E15))*'Data Input'!$E$11),"0",SQRT((qc!E15+qr!E15-qs!E15)/(Resistance!E15))*'Data Input'!$E$11) -> 1676.770893 | F15: =IF(ISERROR(SQRT((qc!F15+qr!F15-qs!F15)/(Resistance!F15))*'Data Input'!$E$11),"0",SQRT((qc!F15+qr!F15-qs!F15)/(Resistance!F15))*'Data Input'!$E$11) -> 1620.571548 | G15: =IF(ISERROR(SQRT((qc!G15+qr!G15-qs!G15)/(Resistance!G15))*'Data Input'!$E$11),"0",SQRT((qc!G15+qr!G15-qs!G15)/(Resistance!G15))*'Data Input'!$E$11) -> 1562.640594 | H15: =IF(ISERROR(SQRT((qc!H15+qr!H15-qs!H15)/(Resistance!H15))*'Data Input'!$E$11),"0",SQRT((qc!H15+qr!H15-qs!H15)/(Resistance!H15))*'Data Input'!$E$11) -> 1502.763174 | I15: =IF(ISERROR(SQRT((qc!I15+qr!I15-qs!I15)/(Resistance!I15))*'Data Input'!$E$11),"0",SQRT((qc!I15+qr!I15-qs!I15)/(Resistance!I15))*'Data Input'!$E$11) -> 1440.683888 | J15: =IF(ISERROR(SQRT((qc!J15+qr!J15-qs!J15)/(Resistance!J15))*'Data Input'!$E$11),"0",SQRT((qc!J15+qr!J15-qs!J15)/(Resistance!J15))*'Data Input'!$E$11) -> 1376.094622 | K15: =IF(ISERROR(SQRT((qc!K15+qr!K15-qs!K15)/(Resistance!K15))*'Data Input'!$E$11),"0",SQRT((qc!K15+qr!K15-qs!K15)/(Resistance!K15))*'Data Input'!$E$11) -> 1308.617146 | L15: =IF(ISERROR(SQRT((qc!L15+qr!L15-qs!L15)/(Resistance!L15))*'Data Input'!$E$11),"0",SQRT((qc!L15+qr!L15-qs!L15)/(Resistance!L15))*'Data Input'!$E$11) -> 1237.777439 | M15: =IF(ISERROR(SQRT((qc!M15+qr!M15-qs!M15)/(Resistance!M15))*'Data Input'!$E$11),"0",SQRT((qc!M15+qr!M15-qs!M15)/(Resistance!M15))*'Data Input'!$E$11) -> 1162.966335 | N15: =IF(ISERROR(SQRT((qc!N15+qr!N15-qs!N15)/(Resistance!N15))*'Data Input'!$E$11),"0",SQRT((qc!N15+qr!N15-qs!N15)/(Resistance!N15))*'Data Input'!$E$11) -> 1083.37632 | O15: =IF(ISERROR(SQRT((qc!O15+qr!O15-qs!O15)/(Resistance!O15))*'Data Input'!$E$11),"0",SQRT((qc!O15+qr!O15-qs!O15)/(Resistance!O15))*'Data Input'!$E$11) -> 997.8939287 | Q15: Normal Day | R15: =wind_norm -> 0 | S15: 85 | T15: =IF(ISERROR(SQRT((qc!T15+qr!T15-qs!T15)/(Resistance!T15))*'Data Input'!$E$11),"0",SQRT((qc!T15+qr!T15-qs!T15)/(Resistance!T15))*'Data Input'!$E$11) -> 2117.986351 | U15: =IF(ISERROR(SQRT((qc!U15+qr!U15-qs!U15)/(Resistance!U15))*'Data Input'!$E$11),"0",SQRT((qc!U15+qr!U15-qs!U15)/(Resistance!U15))*'Data Input'!$E$11) -> 2092.100618 | V15: =IF(ISERROR(SQRT((qc!V15+qr!V15-qs!V15)/(Resistance!V15))*'Data Input'!$E$11),"0",SQRT((qc!V15+qr!V15-qs!V15)/(Resistance!V15))*'Data Input'!$E$11) -> 2066.003067 | W15: =IF(ISERROR(SQRT((qc!W15+qr!W15-qs!W15)/(Resistance!W15))*'Data Input'!$E$11),"0",SQRT((qc!W15+qr!W15-qs!W15)/(Resistance!W15))*'Data Input'!$E$11) -> 2039.682326 | X15: =IF(ISERROR(SQRT((qc!X15+qr!X15-qs!X15)/(Resistance!X15))*'Data Input'!$E$11),"0",SQRT((qc!X15+qr!X15-qs!X15)/(Resistance!X15))*'Data Input'!$E$11) -> 2013.126402 | Y15: =IF(ISERROR(SQRT((qc!Y15+qr!Y15-qs!Y15)/(Resistance!Y15))*'Data Input'!$E$11),"0",SQRT((qc!Y15+qr!Y15-qs!Y15)/(Resistance!Y15))*'Data Input'!$E$11) -> 1986.322625 | Z15: =IF(ISERROR(SQRT((qc!Z15+qr!Z15-qs!Z15)/(Resistance!Z15))*'Data Input'!$E$11),"0",SQRT((qc!Z15+qr!Z15-qs!Z15)/(Resistance!Z15))*'Data Input'!$E$11) -> 1959.257592 | AA15: =IF(ISERROR(SQRT((qc!AA15+qr!AA15-qs!AA15)/(Resistance!AA15))*'Data Input'!$E$11),"0",SQRT((qc!AA15+qr!AA15-qs!AA15)/(Resistance!AA15))*'Data Input'!$E$11) -> 1931.9171 | AB15: =IF(ISERROR(SQRT((qc!AB15+qr!AB15-qs!AB15)/(Resistance!AB15))*'Data Input'!$E$11),"0",SQRT((qc!AB15+qr!AB15-qs!AB15)/(Resistance!AB15))*'Data Input'!$E$11) -> 1904.286076 | AC15: =IF(ISERROR(SQRT((qc!AC15+qr!AC15-qs!AC15)/(Resistance!AC15))*'Data Input'!$E$11),"0",SQRT((qc!AC15+qr!AC15-qs!AC15)/(Resistance!AC15))*'Data Input'!$E$11) -> 1876.348492 | AD15: =IF(ISERROR(SQRT((qc!AD15+qr!AD15-qs!AD15)/(Resistance!AD15))*'Data Input'!$E$11),"0",SQRT((qc!AD15+qr!AD15-qs!AD15)/(Resistance!AD15))*'Data Input'!$E$11) -> 1848.087273 | AE15: =IF(ISERROR(SQRT((qc!AE15+qr!AE15-qs!AE15)/(Resistance!AE15))*'Data Input'!$E$11),"0",SQRT((qc!AE15+qr!AE15-qs!AE15)/(Resistance!AE15))*'Data Input'!$E$11) -> 1819.484196 | AF15: =IF(ISERROR(SQRT((qc!AF15+qr!AF15-qs!AF15)/(Resistance!AF15))*'Data Input'!$E$11),"0",SQRT((qc!AF15+qr!AF15-qs!AF15)/(Resistance!AF15))*'Data Input'!$E$11) -> 1790.519767 | AG15: =IF(ISERROR(SQRT((qc!AG15+qr!AG15-qs!AG15)/(Resistance!AG15))*'Data Input'!$E$11),"0",SQRT((qc!AG15+qr!AG15-qs!AG15)/(Resistance!AG15))*'Data Input'!$E$11) -> 1761.173088 | AH15: =IF(ISERROR(SQRT((qc!AH15+qr!AH15-qs!AH15)/(Resistance!AH15))*'Data Input'!$E$11),"0",SQRT((qc!AH15+qr!AH15-qs!AH15)/(Resistance!AH15))*'Data Input'!$E$11) -> 1731.421702 | AI15: =IF(ISERROR(SQRT((qc!AI15+qr!AI15-qs!AI15)/(Resistance!AI15))*'Data Input'!$E$11),"0",SQRT((qc!AI15+qr!AI15-qs!AI15)/(Resistance!AI15))*'Data Input'!$E$11) -> 1701.241418 | AJ15: =IF(ISERROR(SQRT((qc!AJ15+qr!AJ15-qs!AJ15)/(Resistance!AJ15))*'Data Input'!$E$11),"0",SQRT((qc!AJ15+qr!AJ15-qs!AJ15)/(Resistance!AJ15))*'Data Input'!$E$11) -> 1670.606101 | AK15: =IF(ISERROR(SQRT((qc!AK15+qr!AK15-qs!AK15)/(Resistance!AK15))*'Data Input'!$E$11),"0",SQRT((qc!AK15+qr!AK15-qs!AK15)/(Resistance!AK15))*'Data Input'!$E$11) -> 1639.487439 | AL15: =IF(ISERROR(SQRT((qc!AL15+qr!AL15-qs!AL15)/(Resistance!AL15))*'Data Input'!$E$11),"0",SQRT((qc!AL15+qr!AL15-qs!AL15)/(Resistance!AL15))*'Data Input'!$E$11) -> 1607.854663 | AM15: =IF(ISERROR(SQRT((qc!AM15+qr!AM15-qs!AM15)/(Resistance!AM15))*'Data Input'!$E$11),"0",SQRT((qc!AM15+qr!AM15-qs!AM15)/(Resistance!AM15))*'Data Input'!$E$11) -> 1575.674223 | AN15: =IF(ISERROR(SQRT((qc!AN15+qr!AN15-qs!AN15)/(Resistance!AN15))*'Data Input'!$E$11),"0",SQRT((qc!AN15+qr!AN15-qs!AN15)/(Resistance!AN15))*'Data Input'!$E$11) -> 1542.909407 | AO15: =IF(ISERROR(SQRT((qc!AO15+qr!AO15-qs!AO15)/(Resistance!AO15))*'Data Input'!$E$11),"0",SQRT((qc!AO15+qr!AO15-qs!AO15)/(Resistance!AO15))*'Data Input'!$E$11) -> 1509.51988 | AP15: =IF(ISERROR(SQRT((qc!AP15+qr!AP15-qs!AP15)/(Resistance!AP15))*'Data Input'!$E$11),"0",SQRT((qc!AP15+qr!AP15-qs!AP15)/(Resistance!AP15))*'Data Input'!$E$11) -> 1475.461146 | AQ15: =IF(ISERROR(SQRT((qc!AQ15+qr!AQ15-qs!AQ15)/(Resistance!AQ15))*'Data Input'!$E$11),"0",SQRT((qc!AQ15+qr!AQ15-qs!AQ15)/(Resistance!AQ15))*'Data Input'!$E$11) -> 1440.683888 | AR15: =IF(ISERROR(SQRT((qc!AR15+qr!AR15-qs!AR15)/(Resistance!AR15))*'Data Input'!$E$11),"0",SQRT((qc!AR15+qr!AR15-qs!AR15)/(Resistance!AR15))*'Data Input'!$E$11) -> 1405.133174 | AS15: =IF(ISERROR(SQRT((qc!AS15+qr!AS15-qs!AS15)/(Resistance!AS15))*'Data Input'!$E$11),"0",SQRT((qc!AS15+qr!AS15-qs!AS15)/(Resistance!AS15))*'Data Input'!$E$11) -> 1368.747481 | AT15: =IF(ISERROR(SQRT((qc!AT15+qr!AT15-qs!AT15)/(Resistance!AT15))*'Data Input'!$E$11),"0",SQRT((qc!AT15+qr!AT15-qs!AT15)/(Resistance!AT15))*'Data Input'!$E$11) -> 1331.457483 | AU15: =IF(ISERROR(SQRT((qc!AU15+qr!AU15-qs!AU15)/(Resistance!AU15))*'Data Input'!$E$11),"0",SQRT((qc!AU15+qr!AU15-qs!AU15)/(Resistance!AU15))*'Data Input'!$E$11) -> 1293.184542 | AV15: =IF(ISERROR(SQRT((qc!AV15+qr!AV15-qs!AV15)/(Resistance!AV15))*'Data Input'!$E$11),"0",SQRT((qc!AV15+qr!AV15-qs!AV15)/(Resistance!AV15))*'Data Input'!$E$11) -> 1253.838793 | AW15: =IF(ISERROR(SQRT((qc!AW15+qr!AW15-qs!AW15)/(Resistance!AW15))*'Data Input'!$E$11),"0",SQRT((qc!AW15+qr!AW15-qs!AW15)/(Resistance!AW15))*'Data Input'!$E$11) -> 1213.316682 | AX15: =IF(ISERROR(SQRT((qc!AX15+qr!AX15-qs!AX15)/(Resistance!AX15))*'Data Input'!$E$11),"0",SQRT((qc!AX15+qr!AX15-qs!AX15)/(Resistance!AX15))*'Data Input'!$E$11) -> 1171.497764 | AY15: =IF(ISERROR(SQRT((qc!AY15+qr!AY15-qs!AY15)/(Resistance!AY15))*'Data Input'!$E$11),"0",SQRT((qc!AY15+qr!AY15-qs!AY15)/(Resistance!AY15))*'Data Input'!$E$11) -> 1128.24046 | AZ15: =IF(ISERROR(SQRT((qc!AZ15+qr!AZ15-qs!AZ15)/(Resistance!AZ15))*'Data Input'!$E$11),"0",SQRT((qc!AZ15+qr!AZ15-qs!AZ15)/(Resistance!AZ15))*'Data Input'!$E$11) -> 1083.37632 | BA15: =IF(ISERROR(SQRT((qc!BA15+qr!BA15-qs!BA15)/(Resistance!BA15))*'Data Input'!$E$11),"0",SQRT((qc!BA15+qr!BA15-qs!BA15)/(Resistance!BA15))*'Data Input'!$E$11) -> 1036.702107 | BB15: =IF(ISERROR(SQRT((qc!BB15+qr!BB15-qs!BB15)/(Resistance!BB15))*'Data Input'!$E$11),"0",SQRT((qc!BB15+qr!BB15-qs!BB15)/(Resistance!BB15))*'Data Input'!$E$11) -> 987.9685903 | BC15: =IF(ISERROR(SQRT((qc!BC15+qr!BC15-qs!BC15)/(Resistance!BC15))*'Data Input'!$E$11),"0",SQRT((qc!BC15+qr!BC15-qs!BC15)/(Resistance!BC15))*'Data Input'!$E$11) -> 936.864184 | BD15: =IF(ISERROR(SQRT((qc!BD15+qr!BD15-qs!BD15)/(Resistance!BD15))*'Data Input'!$E$11),"0",SQRT((qc!BD15+qr!BD15-qs!BD15)/(Resistance!BD15))*'Data Input'!$E$11) -> 882.9902287 | BE15: =IF(ISERROR(SQRT((qc!BE15+qr!BE15-qs!BE15)/(Resistance!BE15))*'Data Input'!$E$11),"0",SQRT((qc!BE15+qr!BE15-qs!BE15)/(Resistance!BE15))*'Data Input'!$E$11) -> 825.8219884 | BF15: =IF(ISERROR(SQRT((qc!BF15+qr!BF15-qs!BF15)/(Resistance!BF15))*'Data Input'!$E$11),"0",SQRT((qc!BF15+qr!BF15-qs!BF15)/(Resistance!BF15))*'Data Input'!$E$11) -> 764.6437769 | BG15: =IF(ISERROR(SQRT((qc!BG15+qr!BG15-qs!BG15)/(Resistance!BG15))*'Data Input'!$E$11),"0",SQRT((qc!BG15+qr!BG15-qs!BG15)/(Resistance!BG15))*'Data Input'!$E$11) -> 698.4335326 | BH15: =IF(ISERROR(SQRT((qc!BH15+qr!BH15-qs!BH15)/(Resistance!BH15))*'Data Input'!$E$11),"0",SQRT((qc!BH15+qr!BH15-qs!BH15)/(Resistance!BH15))*'Data Input'!$E$11) -> 625.6383762 | BI15: =IF(ISERROR(SQRT((qc!BI15+qr!BI15-qs!BI15)/(Resistance!BI15))*'Data Input'!$E$11),"0",SQRT((qc!BI15+qr!BI15-qs!BI15)/(Resistance!BI15))*'Data Input'!$E$11) -> 543.6807764 | BJ15: =IF(ISERROR(SQRT((qc!BJ15+qr!BJ15-qs!BJ15)/(Resistance!BJ15))*'Data Input'!$E$11),"0",SQRT((qc!BJ15+qr!BJ15-qs!BJ15)/(Resistance!BJ15))*'Data Input'!$E$11) -> 447.6490293 | BK15: =IF(ISERROR(SQRT((qc!BK15+qr!BK15-qs!BK15)/(Resistance!BK15))*'Data Input'!$E$11),"0",SQRT((qc!BK15+qr!BK15-qs!BK15)/(Resistance!BK15))*'Data Input'!$E$11) -> 325.4739217
A16: Emergency Day | B16: =wind_emer -> 2.533 | C16: 85 | D16: =IF(ISERROR(SQRT((qc!D16+qr!D16-qs!D16)/(Resistance!D16))*'Data Input'!$E$11),"0",SQRT((qc!D16+qr!D16-qs!D16)/(Resistance!D16))*'Data Input'!$E$11) -> 2141.369954 | E16: =IF(ISERROR(SQRT((qc!E16+qr!E16-qs!E16)/(Resistance!E16))*'Data Input'!$E$11),"0",SQRT((qc!E16+qr!E16-qs!E16)/(Resistance!E16))*'Data Input'!$E$11) -> 2086.760366 | F16: =IF(ISERROR(SQRT((qc!F16+qr!F16-qs!F16)/(Resistance!F16))*'Data Input'!$E$11),"0",SQRT((qc!F16+qr!F16-qs!F16)/(Resistance!F16))*'Data Input'!$E$11) -> 2030.211821 | G16: =IF(ISERROR(SQRT((qc!G16+qr!G16-qs!G16)/(Resistance!G16))*'Data Input'!$E$11),"0",SQRT((qc!G16+qr!G16-qs!G16)/(Resistance!G16))*'Data Input'!$E$11) -> 1971.534023 | H16: =IF(ISERROR(SQRT((qc!H16+qr!H16-qs!H16)/(Resistance!H16))*'Data Input'!$E$11),"0",SQRT((qc!H16+qr!H16-qs!H16)/(Resistance!H16))*'Data Input'!$E$11) -> 1910.506289 | I16: =IF(ISERROR(SQRT((qc!I16+qr!I16-qs!I16)/(Resistance!I16))*'Data Input'!$E$11),"0",SQRT((qc!I16+qr!I16-qs!I16)/(Resistance!I16))*'Data Input'!$E$11) -> 1846.870019 | J16: =IF(ISERROR(SQRT((qc!J16+qr!J16-qs!J16)/(Resistance!J16))*'Data Input'!$E$11),"0",SQRT((qc!J16+qr!J16-qs!J16)/(Resistance!J16))*'Data Input'!$E$11) -> 1780.31857 | K16: =IF(ISERROR(SQRT((qc!K16+qr!K16-qs!K16)/(Resistance!K16))*'Data Input'!$E$11),"0",SQRT((qc!K16+qr!K16-qs!K16)/(Resistance!K16))*'Data Input'!$E$11) -> 1710.483314 | L16: =IF(ISERROR(SQRT((qc!L16+qr!L16-qs!L16)/(Resistance!L16))*'Data Input'!$E$11),"0",SQRT((qc!L16+qr!L16-qs!L16)/(Resistance!L16))*'Data Input'!$E$11) -> 1636.913989 | M16: =IF(ISERROR(SQRT((qc!M16+qr!M16-qs!M16)/(Resistance!M16))*'Data Input'!$E$11),"0",SQRT((qc!M16+qr!M16-qs!M16)/(Resistance!M16))*'Data Input'!$E$11) -> 1559.050154 | N16: =IF(ISERROR(SQRT((qc!N16+qr!N16-qs!N16)/(Resistance!N16))*'Data Input'!$E$11),"0",SQRT((qc!N16+qr!N16-qs!N16)/(Resistance!N16))*'Data Input'!$E$11) -> 1476.178287 | O16: =IF(ISERROR(SQRT((qc!O16+qr!O16-qs!O16)/(Resistance!O16))*'Data Input'!$E$11),"0",SQRT((qc!O16+qr!O16-qs!O16)/(Resistance!O16))*'Data Input'!$E$11) -> 1387.364504 | Q16: Emergency Day | R16: =wind_emer -> 2.533 | S16: 85 | T16: =IF(ISERROR(SQRT((qc!T16+qr!T16-qs!T16)/(Resistance!T16))*'Data Input'!$E$11),"0",SQRT((qc!T16+qr!T16-qs!T16)/(Resistance!T16))*'Data Input'!$E$11) -> 2524.890682 | U16: =IF(ISERROR(SQRT((qc!U16+qr!U16-qs!U16)/(Resistance!U16))*'Data Input'!$E$11),"0",SQRT((qc!U16+qr!U16-qs!U16)/(Resistance!U16))*'Data Input'!$E$11) -> 2499.710568 | V16: =IF(ISERROR(SQRT((qc!V16+qr!V16-qs!V16)/(Resistance!V16))*'Data Input'!$E$11),"0",SQRT((qc!V16+qr!V16-qs!V16)/(Resistance!V16))*'Data Input'!$E$11) -> 2474.237733 | W16: =IF(ISERROR(SQRT((qc!W16+qr!W16-qs!W16)/(Resistance!W16))*'Data Input'!$E$11),"0",SQRT((qc!W16+qr!W16-qs!W16)/(Resistance!W16))*'Data Input'!$E$11) -> 2448.459725 | X16: =IF(ISERROR(SQRT((qc!X16+qr!X16-qs!X16)/(Resistance!X16))*'Data Input'!$E$11),"0",SQRT((qc!X16+qr!X16-qs!X16)/(Resistance!X16))*'Data Input'!$E$11) -> 2422.36344 | Y16: =IF(ISERROR(SQRT((qc!Y16+qr!Y16-qs!Y16)/(Resistance!Y16))*'Data Input'!$E$11),"0",SQRT((qc!Y16+qr!Y16-qs!Y16)/(Resistance!Y16))*'Data Input'!$E$11) -> 2395.935066 | Z16: =IF(ISERROR(SQRT((qc!Z16+qr!Z16-qs!Z16)/(Resistance!Z16))*'Data Input'!$E$11),"0",SQRT((qc!Z16+qr!Z16-qs!Z16)/(Resistance!Z16))*'Data Input'!$E$11) -> 2369.160028 | AA16: =IF(ISERROR(SQRT((qc!AA16+qr!AA16-qs!AA16)/(Resistance!AA16))*'Data Input'!$E$11),"0",SQRT((qc!AA16+qr!AA16-qs!AA16)/(Resistance!AA16))*'Data Input'!$E$11) -> 2342.022919 | AB16: =IF(ISERROR(SQRT((qc!AB16+qr!AB16-qs!AB16)/(Resistance!AB16))*'Data Input'!$E$11),"0",SQRT((qc!AB16+qr!AB16-qs!AB16)/(Resistance!AB16))*'Data Input'!$E$11) -> 2314.507433 | AC16: =IF(ISERROR(SQRT((qc!AC16+qr!AC16-qs!AC16)/(Resistance!AC16))*'Data Input'!$E$11),"0",SQRT((qc!AC16+qr!AC16-qs!AC16)/(Resistance!AC16))*'Data Input'!$E$11) -> 2286.59628 | AD16: =IF(ISERROR(SQRT((qc!AD16+qr!AD16-qs!AD16)/(Resistance!AD16))*'Data Input'!$E$11),"0",SQRT((qc!AD16+qr!AD16-qs!AD16)/(Resistance!AD16))*'Data Input'!$E$11) -> 2258.271097 | AE16: =IF(ISERROR(SQRT((qc!AE16+qr!AE16-qs!AE16)/(Resistance!AE16))*'Data Input'!$E$11),"0",SQRT((qc!AE16+qr!AE16-qs!AE16)/(Resistance!AE16))*'Data Input'!$E$11) -> 2229.512352 | AF16: =IF(ISERROR(SQRT((qc!AF16+qr!AF16-qs!AF16)/(Resistance!AF16))*'Data Input'!$E$11),"0",SQRT((qc!AF16+qr!AF16-qs!AF16)/(Resistance!AF16))*'Data Input'!$E$11) -> 2200.299223 | AG16: =IF(ISERROR(SQRT((qc!AG16+qr!AG16-qs!AG16)/(Resistance!AG16))*'Data Input'!$E$11),"0",SQRT((qc!AG16+qr!AG16-qs!AG16)/(Resistance!AG16))*'Data Input'!$E$11) -> 2170.932624 | AH16: =IF(ISERROR(SQRT((qc!AH16+qr!AH16-qs!AH16)/(Resistance!AH16))*'Data Input'!$E$11),"0",SQRT((qc!AH16+qr!AH16-qs!AH16)/(Resistance!AH16))*'Data Input'!$E$11) -> 2141.369954 | AI16: =IF(ISERROR(SQRT((qc!AI16+qr!AI16-qs!AI16)/(Resistance!AI16))*'Data Input'!$E$11),"0",SQRT((qc!AI16+qr!AI16-qs!AI16)/(Resistance!AI16))*'Data Input'!$E$11) -> 2111.260312 | AJ16: =IF(ISERROR(SQRT((qc!AJ16+qr!AJ16-qs!AJ16)/(Resistance!AJ16))*'Data Input'!$E$11),"0",SQRT((qc!AJ16+qr!AJ16-qs!AJ16)/(Resistance!AJ16))*'Data Input'!$E$11) -> 2080.576194 | AK16: =IF(ISERROR(SQRT((qc!AK16+qr!AK16-qs!AK16)/(Resistance!AK16))*'Data Input'!$E$11),"0",SQRT((qc!AK16+qr!AK16-qs!AK16)/(Resistance!AK16))*'Data Input'!$E$11) -> 2049.287958 | AL16: =IF(ISERROR(SQRT((qc!AL16+qr!AL16-qs!AL16)/(Resistance!AL16))*'Data Input'!$E$11),"0",SQRT((qc!AL16+qr!AL16-qs!AL16)/(Resistance!AL16))*'Data Input'!$E$11) -> 2017.363568 | AM16: =IF(ISERROR(SQRT((qc!AM16+qr!AM16-qs!AM16)/(Resistance!AM16))*'Data Input'!$E$11),"0",SQRT((qc!AM16+qr!AM16-qs!AM16)/(Resistance!AM16))*'Data Input'!$E$11) -> 1984.768311 | AN16: =IF(ISERROR(SQRT((qc!AN16+qr!AN16-qs!AN16)/(Resistance!AN16))*'Data Input'!$E$11),"0",SQRT((qc!AN16+qr!AN16-qs!AN16)/(Resistance!AN16))*'Data Input'!$E$11) -> 1951.464455 | AO16: =IF(ISERROR(SQRT((qc!AO16+qr!AO16-qs!AO16)/(Resistance!AO16))*'Data Input'!$E$11),"0",SQRT((qc!AO16+qr!AO16-qs!AO16)/(Resistance!AO16))*'Data Input'!$E$11) -> 1917.410862 | AP16: =IF(ISERROR(SQRT((qc!AP16+qr!AP16-qs!AP16)/(Resistance!AP16))*'Data Input'!$E$11),"0",SQRT((qc!AP16+qr!AP16-qs!AP16)/(Resistance!AP16))*'Data Input'!$E$11) -> 1882.562525 | AQ16: =IF(ISERROR(SQRT((qc!AQ16+qr!AQ16-qs!AQ16)/(Resistance!AQ16))*'Data Input'!$E$11),"0",SQRT((qc!AQ16+qr!AQ16-qs!AQ16)/(Resistance!AQ16))*'Data Input'!$E$11) -> 1846.870019 | AR16: =IF(ISERROR(SQRT((qc!AR16+qr!AR16-qs!AR16)/(Resistance!AR16))*'Data Input'!$E$11),"0",SQRT((qc!AR16+qr!AR16-qs!AR16)/(Resistance!AR16))*'Data Input'!$E$11) -> 1810.278857 | AS16: =IF(ISERROR(SQRT((qc!AS16+qr!AS16-qs!AS16)/(Resistance!AS16))*'Data Input'!$E$11),"0",SQRT((qc!AS16+qr!AS16-qs!AS16)/(Resistance!AS16))*'Data Input'!$E$11) -> 1772.728706 | AT16: =IF(ISERROR(SQRT((qc!AT16+qr!AT16-qs!AT16)/(Resistance!AT16))*'Data Input'!$E$11),"0",SQRT((qc!AT16+qr!AT16-qs!AT16)/(Resistance!AT16))*'Data Input'!$E$11) -> 1734.152449 | AU16: =IF(ISERROR(SQRT((qc!AU16+qr!AU16-qs!AU16)/(Resistance!AU16))*'Data Input'!$E$11),"0",SQRT((qc!AU16+qr!AU16-qs!AU16)/(Resistance!AU16))*'Data Input'!$E$11) -> 1694.475039 | AV16: =IF(ISERROR(SQRT((qc!AV16+qr!AV16-qs!AV16)/(Resistance!AV16))*'Data Input'!$E$11),"0",SQRT((qc!AV16+qr!AV16-qs!AV16)/(Resistance!AV16))*'Data Input'!$E$11) -> 1653.612088 | AW16: =IF(ISERROR(SQRT((qc!AW16+qr!AW16-qs!AW16)/(Resistance!AW16))*'Data Input'!$E$11),"0",SQRT((qc!AW16+qr!AW16-qs!AW16)/(Resistance!AW16))*'Data Input'!$E$11) -> 1611.468116 | AX16: =IF(ISERROR(SQRT((qc!AX16+qr!AX16-qs!AX16)/(Resistance!AX16))*'Data Input'!$E$11),"0",SQRT((qc!AX16+qr!AX16-qs!AX16)/(Resistance!AX16))*'Data Input'!$E$11) -> 1567.93435 | AY16: =IF(ISERROR(SQRT((qc!AY16+qr!AY16-qs!AY16)/(Resistance!AY16))*'Data Input'!$E$11),"0",SQRT((qc!AY16+qr!AY16-qs!AY16)/(Resistance!AY16))*'Data Input'!$E$11) -> 1522.885927 | AZ16: =IF(ISERROR(SQRT((qc!AZ16+qr!AZ16-qs!AZ16)/(Resistance!AZ16))*'Data Input'!$E$11),"0",SQRT((qc!AZ16+qr!AZ16-qs!AZ16)/(Resistance!AZ16))*'Data Input'!$E$11) -> 1476.178287 | BA16: =IF(ISERROR(SQRT((qc!BA16+qr!BA16-qs!BA16)/(Resistance!BA16))*'Data Input'!$E$11),"0",SQRT((qc!BA16+qr!BA16-qs!BA16)/(Resistance!BA16))*'Data Input'!$E$11) -> 1427.642446 | BB16: =IF(ISERROR(SQRT((qc!BB16+qr!BB16-qs!BB16)/(Resistance!BB16))*'Data Input'!$E$11),"0",SQRT((qc!BB16+qr!BB16-qs!BB16)/(Resistance!BB16))*'Data Input'!$E$11) -> 1377.078701 | BC16: =IF(ISERROR(SQRT((qc!BC16+qr!BC16-qs!BC16)/(Resistance!BC16))*'Data Input'!$E$11),"0",SQRT((qc!BC16+qr!BC16-qs!BC16)/(Resistance!BC16))*'Data Input'!$E$11) -> 1324.248069 | BD16: =IF(ISERROR(SQRT((qc!BD16+qr!BD16-qs!BD16)/(Resistance!BD16))*'Data Input'!$E$11),"0",SQRT((qc!BD16+qr!BD16-qs!BD16)/(Resistance!BD16))*'Data Input'!$E$11) -> 1268.860377 | BE16: =IF(ISERROR(SQRT((qc!BE16+qr!BE16-qs!BE16)/(Resistance!BE16))*'Data Input'!$E$11),"0",SQRT((qc!BE16+qr!BE16-qs!BE16)/(Resistance!BE16))*'Data Input'!$E$11) -> 1210.557251 | BF16: =IF(ISERROR(SQRT((qc!BF16+qr!BF16-qs!BF16)/(Resistance!BF16))*'Data Input'!$E$11),"0",SQRT((qc!BF16+qr!BF16-qs!BF16)/(Resistance!BF16))*'Data Input'!$E$11) -> 1148.887037 | BG16: =IF(ISERROR(SQRT((qc!BG16+qr!BG16-qs!BG16)/(Resistance!BG16))*'Data Input'!$E$11),"0",SQRT((qc!BG16+qr!BG16-qs!BG16)/(Resistance!BG16))*'Data Input'!$E$11) -> 1083.2664 | BH16: =IF(ISERROR(SQRT((qc!BH16+qr!BH16-qs!BH16)/(Resistance!BH16))*'Data Input'!$E$11),"0",SQRT((qc!BH16+qr!BH16-qs!BH16)/(Resistance!BH16))*'Data Input'!$E$11) -> 1012.918798 | BI16: =IF(ISERROR(SQRT((qc!BI16+qr!BI16-qs!BI16)/(Resistance!BI16))*'Data Input'!$E$11),"0",SQRT((qc!BI16+qr!BI16-qs!BI16)/(Resistance!BI16))*'Data Input'!$E$11) -> 936.7700439 | BJ16: =IF(ISERROR(SQRT((qc!BJ16+qr!BJ16-qs!BJ16)/(Resistance!BJ16))*'Data Input'!$E$11),"0",SQRT((qc!BJ16+qr!BJ16-qs!BJ16)/(Resistance!BJ16))*'Data Input'!$E$11) -> 853.2574889 | BK16: =IF(ISERROR(SQRT((qc!BK16+qr!BK16-qs!BK16)/(Resistance!BK16))*'Data Input'!$E$11),"0",SQRT((qc!BK16+qr!BK16-qs!BK16)/(Resistance!BK16))*'Data Input'!$E$11) -> 759.9450153
A17: Normal Day | B17: =wind_norm -> 0 | C17: 90 | D17: =IF(ISERROR(SQRT((qc!D17+qr!D17-qs!D17)/(Resistance!D17))*'Data Input'!$E$11),"0",SQRT((qc!D17+qr!D17-qs!D17)/(Resistance!D17))*'Data Input'!$E$11) -> 1783.51925 | E17: =IF(ISERROR(SQRT((qc!E17+qr!E17-qs!E17)/(Resistance!E17))*'Data Input'!$E$11),"0",SQRT((qc!E17+qr!E17-qs!E17)/(Resistance!E17))*'Data Input'!$E$11) -> 1730.811288 | F17: =IF(ISERROR(SQRT((qc!F17+qr!F17-qs!F17)/(Resistance!F17))*'Data Input'!$E$11),"0",SQRT((qc!F17+qr!F17-qs!F17)/(Resistance!F17))*'Data Input'!$E$11) -> 1676.705932 | G17: =IF(ISERROR(SQRT((qc!G17+qr!G17-qs!G17)/(Resistance!G17))*'Data Input'!$E$11),"0",SQRT((qc!G17+qr!G17-qs!G17)/(Resistance!G17))*'Data Input'!$E$11) -> 1621.046296 | H17: =IF(ISERROR(SQRT((qc!H17+qr!H17-qs!H17)/(Resistance!H17))*'Data Input'!$E$11),"0",SQRT((qc!H17+qr!H17-qs!H17)/(Resistance!H17))*'Data Input'!$E$11) -> 1563.650421 | I17: =IF(ISERROR(SQRT((qc!I17+qr!I17-qs!I17)/(Resistance!I17))*'Data Input'!$E$11),"0",SQRT((qc!I17+qr!I17-qs!I17)/(Resistance!I17))*'Data Input'!$E$11) -> 1504.304935 | J17: =IF(ISERROR(SQRT((qc!J17+qr!J17-qs!J17)/(Resistance!J17))*'Data Input'!$E$11),"0",SQRT((qc!J17+qr!J17-qs!J17)/(Resistance!J17))*'Data Input'!$E$11) -> 1442.756453 | K17: =IF(ISERROR(SQRT((qc!K17+qr!K17-qs!K17)/(Resistance!K17))*'Data Input'!$E$11),"0",SQRT((qc!K17+qr!K17-qs!K17)/(Resistance!K17))*'Data Input'!$E$11) -> 1378.699625 | L17: =IF(ISERROR(SQRT((qc!L17+qr!L17-qs!L17)/(Resistance!L17))*'Data Input'!$E$11),"0",SQRT((qc!L17+qr!L17-qs!L17)/(Resistance!L17))*'Data Input'!$E$11) -> 1311.760109 | M17: =IF(ISERROR(SQRT((qc!M17+qr!M17-qs!M17)/(Resistance!M17))*'Data Input'!$E$11),"0",SQRT((qc!M17+qr!M17-qs!M17)/(Resistance!M17))*'Data Input'!$E$11) -> 1241.469481 | N17: =IF(ISERROR(SQRT((qc!N17+qr!N17-qs!N17)/(Resistance!N17))*'Data Input'!$E$11),"0",SQRT((qc!N17+qr!N17-qs!N17)/(Resistance!N17))*'Data Input'!$E$11) -> 1167.226904 | O17: =IF(ISERROR(SQRT((qc!O17+qr!O17-qs!O17)/(Resistance!O17))*'Data Input'!$E$11),"0",SQRT((qc!O17+qr!O17-qs!O17)/(Resistance!O17))*'Data Input'!$E$11) -> 1088.237761 | Q17: Normal Day | R17: =wind_norm -> 0 | S17: 90 | T17: =IF(ISERROR(SQRT((qc!T17+qr!T17-qs!T17)/(Resistance!T17))*'Data Input'!$E$11),"0",SQRT((qc!T17+qr!T17-qs!T17)/(Resistance!T17))*'Data Input'!$E$11) -> 2158.350056 | U17: =IF(ISERROR(SQRT((qc!U17+qr!U17-qs!U17)/(Resistance!U17))*'Data Input'!$E$11),"0",SQRT((qc!U17+qr!U17-qs!U17)/(Resistance!U17))*'Data Input'!$E$11) -> 2133.162608 | V17: =IF(ISERROR(SQRT((qc!V17+qr!V17-qs!V17)/(Resistance!V17))*'Data Input'!$E$11),"0",SQRT((qc!V17+qr!V17-qs!V17)/(Resistance!V17))*'Data Input'!$E$11) -> 2107.779587 | W17: =IF(ISERROR(SQRT((qc!W17+qr!W17-qs!W17)/(Resistance!W17))*'Data Input'!$E$11),"0",SQRT((qc!W17+qr!W17-qs!W17)/(Resistance!W17))*'Data Input'!$E$11) -> 2082.190645 | X17: =IF(ISERROR(SQRT((qc!X17+qr!X17-qs!X17)/(Resistance!X17))*'Data Input'!$E$11),"0",SQRT((qc!X17+qr!X17-qs!X17)/(Resistance!X17))*'Data Input'!$E$11) -> 2056.384893 | Y17: =IF(ISERROR(SQRT((qc!Y17+qr!Y17-qs!Y17)/(Resistance!Y17))*'Data Input'!$E$11),"0",SQRT((qc!Y17+qr!Y17-qs!Y17)/(Resistance!Y17))*'Data Input'!$E$11) -> 2030.350861 | Z17: =IF(ISERROR(SQRT((qc!Z17+qr!Z17-qs!Z17)/(Resistance!Z17))*'Data Input'!$E$11),"0",SQRT((qc!Z17+qr!Z17-qs!Z17)/(Resistance!Z17))*'Data Input'!$E$11) -> 2004.076447 | AA17: =IF(ISERROR(SQRT((qc!AA17+qr!AA17-qs!AA17)/(Resistance!AA17))*'Data Input'!$E$11),"0",SQRT((qc!AA17+qr!AA17-qs!AA17)/(Resistance!AA17))*'Data Input'!$E$11) -> 1977.54887 | AB17: =IF(ISERROR(SQRT((qc!AB17+qr!AB17-qs!AB17)/(Resistance!AB17))*'Data Input'!$E$11),"0",SQRT((qc!AB17+qr!AB17-qs!AB17)/(Resistance!AB17))*'Data Input'!$E$11) -> 1950.754604 | AC17: =IF(ISERROR(SQRT((qc!AC17+qr!AC17-qs!AC17)/(Resistance!AC17))*'Data Input'!$E$11),"0",SQRT((qc!AC17+qr!AC17-qs!AC17)/(Resistance!AC17))*'Data Input'!$E$11) -> 1923.679318 | AD17: =IF(ISERROR(SQRT((qc!AD17+qr!AD17-qs!AD17)/(Resistance!AD17))*'Data Input'!$E$11),"0",SQRT((qc!AD17+qr!AD17-qs!AD17)/(Resistance!AD17))*'Data Input'!$E$11) -> 1896.307795 | AE17: =IF(ISERROR(SQRT((qc!AE17+qr!AE17-qs!AE17)/(Resistance!AE17))*'Data Input'!$E$11),"0",SQRT((qc!AE17+qr!AE17-qs!AE17)/(Resistance!AE17))*'Data Input'!$E$11) -> 1868.623859 | AF17: =IF(ISERROR(SQRT((qc!AF17+qr!AF17-qs!AF17)/(Resistance!AF17))*'Data Input'!$E$11),"0",SQRT((qc!AF17+qr!AF17-qs!AF17)/(Resistance!AF17))*'Data Input'!$E$11) -> 1840.610271 | AG17: =IF(ISERROR(SQRT((qc!AG17+qr!AG17-qs!AG17)/(Resistance!AG17))*'Data Input'!$E$11),"0",SQRT((qc!AG17+qr!AG17-qs!AG17)/(Resistance!AG17))*'Data Input'!$E$11) -> 1812.24863 | AH17: =IF(ISERROR(SQRT((qc!AH17+qr!AH17-qs!AH17)/(Resistance!AH17))*'Data Input'!$E$11),"0",SQRT((qc!AH17+qr!AH17-qs!AH17)/(Resistance!AH17))*'Data Input'!$E$11) -> 1783.51925 | AI17: =IF(ISERROR(SQRT((qc!AI17+qr!AI17-qs!AI17)/(Resistance!AI17))*'Data Input'!$E$11),"0",SQRT((qc!AI17+qr!AI17-qs!AI17)/(Resistance!AI17))*'Data Input'!$E$11) -> 1754.401024 | AJ17: =IF(ISERROR(SQRT((qc!AJ17+qr!AJ17-qs!AJ17)/(Resistance!AJ17))*'Data Input'!$E$11),"0",SQRT((qc!AJ17+qr!AJ17-qs!AJ17)/(Resistance!AJ17))*'Data Input'!$E$11) -> 1724.871267 | AK17: =IF(ISERROR(SQRT((qc!AK17+qr!AK17-qs!AK17)/(Resistance!AK17))*'Data Input'!$E$11),"0",SQRT((qc!AK17+qr!AK17-qs!AK17)/(Resistance!AK17))*'Data Input'!$E$11) -> 1694.905536 | AL17: =IF(ISERROR(SQRT((qc!AL17+qr!AL17-qs!AL17)/(Resistance!AL17))*'Data Input'!$E$11),"0",SQRT((qc!AL17+qr!AL17-qs!AL17)/(Resistance!AL17))*'Data Input'!$E$11) -> 1664.47742 | AM17: =IF(ISERROR(SQRT((qc!AM17+qr!AM17-qs!AM17)/(Resistance!AM17))*'Data Input'!$E$11),"0",SQRT((qc!AM17+qr!AM17-qs!AM17)/(Resistance!AM17))*'Data Input'!$E$11) -> 1633.558301 | AN17: =IF(ISERROR(SQRT((qc!AN17+qr!AN17-qs!AN17)/(Resistance!AN17))*'Data Input'!$E$11),"0",SQRT((qc!AN17+qr!AN17-qs!AN17)/(Resistance!AN17))*'Data Input'!$E$11) -> 1602.117072 | AO17: =IF(ISERROR(SQRT((qc!AO17+qr!AO17-qs!AO17)/(Resistance!AO17))*'Data Input'!$E$11),"0",SQRT((qc!AO17+qr!AO17-qs!AO17)/(Resistance!AO17))*'Data Input'!$E$11) -> 1570.119805 | AP17: =IF(ISERROR(SQRT((qc!AP17+qr!AP17-qs!AP17)/(Resistance!AP17))*'Data Input'!$E$11),"0",SQRT((qc!AP17+qr!AP17-qs!AP17)/(Resistance!AP17))*'Data Input'!$E$11) -> 1537.529363 | AQ17: =IF(ISERROR(SQRT((qc!AQ17+qr!AQ17-qs!AQ17)/(Resistance!AQ17))*'Data Input'!$E$11),"0",SQRT((qc!AQ17+qr!AQ17-qs!AQ17)/(Resistance!AQ17))*'Data Input'!$E$11) -> 1504.304935 | AR17: =IF(ISERROR(SQRT((qc!AR17+qr!AR17-qs!AR17)/(Resistance!AR17))*'Data Input'!$E$11),"0",SQRT((qc!AR17+qr!AR17-qs!AR17)/(Resistance!AR17))*'Data Input'!$E$11) -> 1470.401483 | AS17: =IF(ISERROR(SQRT((qc!AS17+qr!AS17-qs!AS17)/(Resistance!AS17))*'Data Input'!$E$11),"0",SQRT((qc!AS17+qr!AS17-qs!AS17)/(Resistance!AS17))*'Data Input'!$E$11) -> 1435.769073 | AT17: =IF(ISERROR(SQRT((qc!AT17+qr!AT17-qs!AT17)/(Resistance!AT17))*'Data Input'!$E$11),"0",SQRT((qc!AT17+qr!AT17-qs!AT17)/(Resistance!AT17))*'Data Input'!$E$11) -> 1400.352062 | AU17: =IF(ISERROR(SQRT((qc!AU17+qr!AU17-qs!AU17)/(Resistance!AU17))*'Data Input'!$E$11),"0",SQRT((qc!AU17+qr!AU17-qs!AU17)/(Resistance!AU17))*'Data Input'!$E$11) -> 1364.088105 | AV17: =IF(ISERROR(SQRT((qc!AV17+qr!AV17-qs!AV17)/(Resistance!AV17))*'Data Input'!$E$11),"0",SQRT((qc!AV17+qr!AV17-qs!AV17)/(Resistance!AV17))*'Data Input'!$E$11) -> 1326.906916 | AW17: =IF(ISERROR(SQRT((qc!AW17+qr!AW17-qs!AW17)/(Resistance!AW17))*'Data Input'!$E$11),"0",SQRT((qc!AW17+qr!AW17-qs!AW17)/(Resistance!AW17))*'Data Input'!$E$11) -> 1288.728728 | AX17: =IF(ISERROR(SQRT((qc!AX17+qr!AX17-qs!AX17)/(Resistance!AX17))*'Data Input'!$E$11),"0",SQRT((qc!AX17+qr!AX17-qs!AX17)/(Resistance!AX17))*'Data Input'!$E$11) -> 1249.462323 | AY17: =IF(ISERROR(SQRT((qc!AY17+qr!AY17-qs!AY17)/(Resistance!AY17))*'Data Input'!$E$11),"0",SQRT((qc!AY17+qr!AY17-qs!AY17)/(Resistance!AY17))*'Data Input'!$E$11) -> 1209.002525 | AZ17: =IF(ISERROR(SQRT((qc!AZ17+qr!AZ17-qs!AZ17)/(Resistance!AZ17))*'Data Input'!$E$11),"0",SQRT((qc!AZ17+qr!AZ17-qs!AZ17)/(Resistance!AZ17))*'Data Input'!$E$11) -> 1167.226904 | BA17: =IF(ISERROR(SQRT((qc!BA17+qr!BA17-qs!BA17)/(Resistance!BA17))*'Data Input'!$E$11),"0",SQRT((qc!BA17+qr!BA17-qs!BA17)/(Resistance!BA17))*'Data Input'!$E$11) -> 1123.991418 | BB17: =IF(ISERROR(SQRT((qc!BB17+qr!BB17-qs!BB17)/(Resistance!BB17))*'Data Input'!$E$11),"0",SQRT((qc!BB17+qr!BB17-qs!BB17)/(Resistance!BB17))*'Data Input'!$E$11) -> 1079.124515 | BC17: =IF(ISERROR(SQRT((qc!BC17+qr!BC17-qs!BC17)/(Resistance!BC17))*'Data Input'!$E$11),"0",SQRT((qc!BC17+qr!BC17-qs!BC17)/(Resistance!BC17))*'Data Input'!$E$11) -> 1032.418966 | BD17: =IF(ISERROR(SQRT((qc!BD17+qr!BD17-qs!BD17)/(Resistance!BD17))*'Data Input'!$E$11),"0",SQRT((qc!BD17+qr!BD17-qs!BD17)/(Resistance!BD17))*'Data Input'!$E$11) -> 983.6202843 | BE17: =IF(ISERROR(SQRT((qc!BE17+qr!BE17-qs!BE17)/(Resistance!BE17))*'Data Input'!$E$11),"0",SQRT((qc!BE17+qr!BE17-qs!BE17)/(Resistance!BE17))*'Data Input'!$E$11) -> 932.4097722 | BF17: =IF(ISERROR(SQRT((qc!BF17+qr!BF17-qs!BF17)/(Resistance!BF17))*'Data Input'!$E$11),"0",SQRT((qc!BF17+qr!BF17-qs!BF17)/(Resistance!BF17))*'Data Input'!$E$11) -> 878.3788244 | BG17: =IF(ISERROR(SQRT((qc!BG17+qr!BG17-qs!BG17)/(Resistance!BG17))*'Data Input'!$E$11),"0",SQRT((qc!BG17+qr!BG17-qs!BG17)/(Resistance!BG17))*'Data Input'!$E$11) -> 820.9882184 | BH17: =IF(ISERROR(SQRT((qc!BH17+qr!BH17-qs!BH17)/(Resistance!BH17))*'Data Input'!$E$11),"0",SQRT((qc!BH17+qr!BH17-qs!BH17)/(Resistance!BH17))*'Data Input'!$E$11) -> 759.5000631 | BI17: =IF(ISERROR(SQRT((qc!BI17+qr!BI17-qs!BI17)/(Resistance!BI17))*'Data Input'!$E$11),"0",SQRT((qc!BI17+qr!BI17-qs!BI17)/(Resistance!BI17))*'Data Input'!$E$11) -> 692.8559266 | BJ17: =IF(ISERROR(SQRT((qc!BJ17+qr!BJ17-qs!BJ17)/(Resistance!BJ17))*'Data Input'!$E$11),"0",SQRT((qc!BJ17+qr!BJ17-qs!BJ17)/(Resistance!BJ17))*'Data Input'!$E$11) -> 619.4377528 | BK17: =IF(ISERROR(SQRT((qc!BK17+qr!BK17-qs!BK17)/(Resistance!BK17))*'Data Input'!$E$11),"0",SQRT((qc!BK17+qr!BK17-qs!BK17)/(Resistance!BK17))*'Data Input'!$E$11) -> 536.535043
A18: Emergency Day | B18: =wind_emer -> 2.533 | C18: 90 | D18: =IF(ISERROR(SQRT((qc!D18+qr!D18-qs!D18)/(Resistance!D18))*'Data Input'!$E$11),"0",SQRT((qc!D18+qr!D18-qs!D18)/(Resistance!D18))*'Data Input'!$E$11) -> 2191.630501 | E18: =IF(ISERROR(SQRT((qc!E18+qr!E18-qs!E18)/(Resistance!E18))*'Data Input'!$E$11),"0",SQRT((qc!E18+qr!E18-qs!E18)/(Resistance!E18))*'Data Input'!$E$11) -> 2139.092085 | F18: =IF(ISERROR(SQRT((qc!F18+qr!F18-qs!F18)/(Resistance!F18))*'Data Input'!$E$11),"0",SQRT((qc!F18+qr!F18-qs!F18)/(Resistance!F18))*'Data Input'!$E$11) -> 2084.777176 | G18: =IF(ISERROR(SQRT((qc!G18+qr!G18-qs!G18)/(Resistance!G18))*'Data Input'!$E$11),"0",SQRT((qc!G18+qr!G18-qs!G18)/(Resistance!G18))*'Data Input'!$E$11) -> 2028.52066 | H18: =IF(ISERROR(SQRT((qc!H18+qr!H18-qs!H18)/(Resistance!H18))*'Data Input'!$E$11),"0",SQRT((qc!H18+qr!H18-qs!H18)/(Resistance!H18))*'Data Input'!$E$11) -> 1970.132848 | I18: =IF(ISERROR(SQRT((qc!I18+qr!I18-qs!I18)/(Resistance!I18))*'Data Input'!$E$11),"0",SQRT((qc!I18+qr!I18-qs!I18)/(Resistance!I18))*'Data Input'!$E$11) -> 1909.393819 | J18: =IF(ISERROR(SQRT((qc!J18+qr!J18-qs!J18)/(Resistance!J18))*'Data Input'!$E$11),"0",SQRT((qc!J18+qr!J18-qs!J18)/(Resistance!J18))*'Data Input'!$E$11) -> 1846.045944 | K18: =IF(ISERROR(SQRT((qc!K18+qr!K18-qs!K18)/(Resistance!K18))*'Data Input'!$E$11),"0",SQRT((qc!K18+qr!K18-qs!K18)/(Resistance!K18))*'Data Input'!$E$11) -> 1779.783831 | L18: =IF(ISERROR(SQRT((qc!L18+qr!L18-qs!L18)/(Resistance!L18))*'Data Input'!$E$11),"0",SQRT((qc!L18+qr!L18-qs!L18)/(Resistance!L18))*'Data Input'!$E$11) -> 1710.240506 | M18: =IF(ISERROR(SQRT((qc!M18+qr!M18-qs!M18)/(Resistance!M18))*'Data Input'!$E$11),"0",SQRT((qc!M18+qr!M18-qs!M18)/(Resistance!M18))*'Data Input'!$E$11) -> 1636.967924 | N18: =IF(ISERROR(SQRT((qc!N18+qr!N18-qs!N18)/(Resistance!N18))*'Data Input'!$E$11),"0",SQRT((qc!N18+qr!N18-qs!N18)/(Resistance!N18))*'Data Input'!$E$11) -> 1559.408707 | O18: =IF(ISERROR(SQRT((qc!O18+qr!O18-qs!O18)/(Resistance!O18))*'Data Input'!$E$11),"0",SQRT((qc!O18+qr!O18-qs!O18)/(Resistance!O18))*'Data Input'!$E$11) -> 1476.853682 | Q18: Emergency Day | R18: =wind_emer -> 2.533 | S18: 90 | T18: =IF(ISERROR(SQRT((qc!T18+qr!T18-qs!T18)/(Resistance!T18))*'Data Input'!$E$11),"0",SQRT((qc!T18+qr!T18-qs!T18)/(Resistance!T18))*'Data Input'!$E$11) -> 2561.414517 | U18: =IF(ISERROR(SQRT((qc!U18+qr!U18-qs!U18)/(Resistance!U18))*'Data Input'!$E$11),"0",SQRT((qc!U18+qr!U18-qs!U18)/(Resistance!U18))*'Data Input'!$E$11) -> 2536.97503 | V18: =IF(ISERROR(SQRT((qc!V18+qr!V18-qs!V18)/(Resistance!V18))*'Data Input'!$E$11),"0",SQRT((qc!V18+qr!V18-qs!V18)/(Resistance!V18))*'Data Input'!$E$11) -> 2512.261652 | W18: =IF(ISERROR(SQRT((qc!W18+qr!W18-qs!W18)/(Resistance!W18))*'Data Input'!$E$11),"0",SQRT((qc!W18+qr!W18-qs!W18)/(Resistance!W18))*'Data Input'!$E$11) -> 2487.263019 | X18: =IF(ISERROR(SQRT((qc!X18+qr!X18-qs!X18)/(Resistance!X18))*'Data Input'!$E$11),"0",SQRT((qc!X18+qr!X18-qs!X18)/(Resistance!X18))*'Data Input'!$E$11) -> 2461.967201 | Y18: =IF(ISERROR(SQRT((qc!Y18+qr!Y18-qs!Y18)/(Resistance!Y18))*'Data Input'!$E$11),"0",SQRT((qc!Y18+qr!Y18-qs!Y18)/(Resistance!Y18))*'Data Input'!$E$11) -> 2436.361653 | Z18: =IF(ISERROR(SQRT((qc!Z18+qr!Z18-qs!Z18)/(Resistance!Z18))*'Data Input'!$E$11),"0",SQRT((qc!Z18+qr!Z18-qs!Z18)/(Resistance!Z18))*'Data Input'!$E$11) -> 2410.433168 | AA18: =IF(ISERROR(SQRT((qc!AA18+qr!AA18-qs!AA18)/(Resistance!AA18))*'Data Input'!$E$11),"0",SQRT((qc!AA18+qr!AA18-qs!AA18)/(Resistance!AA18))*'Data Input'!$E$11) -> 2384.167823 | AB18: =IF(ISERROR(SQRT((qc!AB18+qr!AB18-qs!AB18)/(Resistance!AB18))*'Data Input'!$E$11),"0",SQRT((qc!AB18+qr!AB18-qs!AB18)/(Resistance!AB18))*'Data Input'!$E$11) -> 2357.550921 | AC18: =IF(ISERROR(SQRT((qc!AC18+qr!AC18-qs!AC18)/(Resistance!AC18))*'Data Input'!$E$11),"0",SQRT((qc!AC18+qr!AC18-qs!AC18)/(Resistance!AC18))*'Data Input'!$E$11) -> 2330.566922 | AD18: =IF(ISERROR(SQRT((qc!AD18+qr!AD18-qs!AD18)/(Resistance!AD18))*'Data Input'!$E$11),"0",SQRT((qc!AD18+qr!AD18-qs!AD18)/(Resistance!AD18))*'Data Input'!$E$11) -> 2303.199375 | AE18: =IF(ISERROR(SQRT((qc!AE18+qr!AE18-qs!AE18)/(Resistance!AE18))*'Data Input'!$E$11),"0",SQRT((qc!AE18+qr!AE18-qs!AE18)/(Resistance!AE18))*'Data Input'!$E$11) -> 2275.63262 | AF18: =IF(ISERROR(SQRT((qc!AF18+qr!AF18-qs!AF18)/(Resistance!AF18))*'Data Input'!$E$11),"0",SQRT((qc!AF18+qr!AF18-qs!AF18)/(Resistance!AF18))*'Data Input'!$E$11) -> 2248.098629 | AG18: =IF(ISERROR(SQRT((qc!AG18+qr!AG18-qs!AG18)/(Resistance!AG18))*'Data Input'!$E$11),"0",SQRT((qc!AG18+qr!AG18-qs!AG18)/(Resistance!AG18))*'Data Input'!$E$11) -> 2220.104947 | AH18: =IF(ISERROR(SQRT((qc!AH18+qr!AH18-qs!AH18)/(Resistance!AH18))*'Data Input'!$E$11),"0",SQRT((qc!AH18+qr!AH18-qs!AH18)/(Resistance!AH18))*'Data Input'!$E$11) -> 2191.630501 | AI18: =IF(ISERROR(SQRT((qc!AI18+qr!AI18-qs!AI18)/(Resistance!AI18))*'Data Input'!$E$11),"0",SQRT((qc!AI18+qr!AI18-qs!AI18)/(Resistance!AI18))*'Data Input'!$E$11) -> 2162.652774 | AJ18: =IF(ISERROR(SQRT((qc!AJ18+qr!AJ18-qs!AJ18)/(Resistance!AJ18))*'Data Input'!$E$11),"0",SQRT((qc!AJ18+qr!AJ18-qs!AJ18)/(Resistance!AJ18))*'Data Input'!$E$11) -> 2133.147654 | AK18: =IF(ISERROR(SQRT((qc!AK18+qr!AK18-qs!AK18)/(Resistance!AK18))*'Data Input'!$E$11),"0",SQRT((qc!AK18+qr!AK18-qs!AK18)/(Resistance!AK18))*'Data Input'!$E$11) -> 2103.089267 | AL18: =IF(ISERROR(SQRT((qc!AL18+qr!AL18-qs!AL18)/(Resistance!AL18))*'Data Input'!$E$11),"0",SQRT((qc!AL18+qr!AL18-qs!AL18)/(Resistance!AL18))*'Data Input'!$E$11) -> 2072.44978 | AM18: =IF(ISERROR(SQRT((qc!AM18+qr!AM18-qs!AM18)/(Resistance!AM18))*'Data Input'!$E$11),"0",SQRT((qc!AM18+qr!AM18-qs!AM18)/(Resistance!AM18))*'Data Input'!$E$11) -> 2041.199186 | AN18: =IF(ISERROR(SQRT((qc!AN18+qr!AN18-qs!AN18)/(Resistance!AN18))*'Data Input'!$E$11),"0",SQRT((qc!AN18+qr!AN18-qs!AN18)/(Resistance!AN18))*'Data Input'!$E$11) -> 2009.305042 | AO18: =IF(ISERROR(SQRT((qc!AO18+qr!AO18-qs!AO18)/(Resistance!AO18))*'Data Input'!$E$11),"0",SQRT((qc!AO18+qr!AO18-qs!AO18)/(Resistance!AO18))*'Data Input'!$E$11) -> 1976.732175 | AP18: =IF(ISERROR(SQRT((qc!AP18+qr!AP18-qs!AP18)/(Resistance!AP18))*'Data Input'!$E$11),"0",SQRT((qc!AP18+qr!AP18-qs!AP18)/(Resistance!AP18))*'Data Input'!$E$11) -> 1943.442341 | AQ18: =IF(ISERROR(SQRT((qc!AQ18+qr!AQ18-qs!AQ18)/(Resistance!AQ18))*'Data Input'!$E$11),"0",SQRT((qc!AQ18+qr!AQ18-qs!AQ18)/(Resistance!AQ18))*'Data Input'!$E$11) -> 1909.393819 | AR18: =IF(ISERROR(SQRT((qc!AR18+qr!AR18-qs!AR18)/(Resistance!AR18))*'Data Input'!$E$11),"0",SQRT((qc!AR18+qr!AR18-qs!AR18)/(Resistance!AR18))*'Data Input'!$E$11) -> 1874.540938 | AS18: =IF(ISERROR(SQRT((qc!AS18+qr!AS18-qs!AS18)/(Resistance!AS18))*'Data Input'!$E$11),"0",SQRT((qc!AS18+qr!AS18-qs!AS18)/(Resistance!AS18))*'Data Input'!$E$11) -> 1838.83352 | AT18: =IF(ISERROR(SQRT((qc!AT18+qr!AT18-qs!AT18)/(Resistance!AT18))*'Data Input'!$E$11),"0",SQRT((qc!AT18+qr!AT18-qs!AT18)/(Resistance!AT18))*'Data Input'!$E$11) -> 1802.216208 | AU18: =IF(ISERROR(SQRT((qc!AU18+qr!AU18-qs!AU18)/(Resistance!AU18))*'Data Input'!$E$11),"0",SQRT((qc!AU18+qr!AU18-qs!AU18)/(Resistance!AU18))*'Data Input'!$E$11) -> 1764.627665 | AV18: =IF(ISERROR(SQRT((qc!AV18+qr!AV18-qs!AV18)/(Resistance!AV18))*'Data Input'!$E$11),"0",SQRT((qc!AV18+qr!AV18-qs!AV18)/(Resistance!AV18))*'Data Input'!$E$11) -> 1725.999606 | AW18: =IF(ISERROR(SQRT((qc!AW18+qr!AW18-qs!AW18)/(Resistance!AW18))*'Data Input'!$E$11),"0",SQRT((qc!AW18+qr!AW18-qs!AW18)/(Resistance!AW18))*'Data Input'!$E$11) -> 1686.255616 | AX18: =IF(ISERROR(SQRT((qc!AX18+qr!AX18-qs!AX18)/(Resistance!AX18))*'Data Input'!$E$11),"0",SQRT((qc!AX18+qr!AX18-qs!AX18)/(Resistance!AX18))*'Data Input'!$E$11) -> 1645.309689 | AY18: =IF(ISERROR(SQRT((qc!AY18+qr!AY18-qs!AY18)/(Resistance!AY18))*'Data Input'!$E$11),"0",SQRT((qc!AY18+qr!AY18-qs!AY18)/(Resistance!AY18))*'Data Input'!$E$11) -> 1603.064417 | AZ18: =IF(ISERROR(SQRT((qc!AZ18+qr!AZ18-qs!AZ18)/(Resistance!AZ18))*'Data Input'!$E$11),"0",SQRT((qc!AZ18+qr!AZ18-qs!AZ18)/(Resistance!AZ18))*'Data Input'!$E$11) -> 1559.408707 | BA18: =IF(ISERROR(SQRT((qc!BA18+qr!BA18-qs!BA18)/(Resistance!BA18))*'Data Input'!$E$11),"0",SQRT((qc!BA18+qr!BA18-qs!BA18)/(Resistance!BA18))*'Data Input'!$E$11) -> 1514.214874 | BB18: =IF(ISERROR(SQRT((qc!BB18+qr!BB18-qs!BB18)/(Resistance!BB18))*'Data Input'!$E$11),"0",SQRT((qc!BB18+qr!BB18-qs!BB18)/(Resistance!BB18))*'Data Input'!$E$11) -> 1467.334884 | BC18: =IF(ISERROR(SQRT((qc!BC18+qr!BC18-qs!BC18)/(Resistance!BC18))*'Data Input'!$E$11),"0",SQRT((qc!BC18+qr!BC18-qs!BC18)/(Resistance!BC18))*'Data Input'!$E$11) -> 1418.595413 | BD18: =IF(ISERROR(SQRT((qc!BD18+qr!BD18-qs!BD18)/(Resistance!BD18))*'Data Input'!$E$11),"0",SQRT((qc!BD18+qr!BD18-qs!BD18)/(Resistance!BD18))*'Data Input'!$E$11) -> 1367.791259 | BE18: =IF(ISERROR(SQRT((qc!BE18+qr!BE18-qs!BE18)/(Resistance!BE18))*'Data Input'!$E$11),"0",SQRT((qc!BE18+qr!BE18-qs!BE18)/(Resistance!BE18))*'Data Input'!$E$11) -> 1314.676338 | BF18: =IF(ISERROR(SQRT((qc!BF18+qr!BF18-qs!BF18)/(Resistance!BF18))*'Data Input'!$E$11),"0",SQRT((qc!BF18+qr!BF18-qs!BF18)/(Resistance!BF18))*'Data Input'!$E$11) -> 1258.951124 | BG18: =IF(ISERROR(SQRT((qc!BG18+qr!BG18-qs!BG18)/(Resistance!BG18))*'Data Input'!$E$11),"0",SQRT((qc!BG18+qr!BG18-qs!BG18)/(Resistance!BG18))*'Data Input'!$E$11) -> 1200.244613 | BH18: =IF(ISERROR(SQRT((qc!BH18+qr!BH18-qs!BH18)/(Resistance!BH18))*'Data Input'!$E$11),"0",SQRT((qc!BH18+qr!BH18-qs!BH18)/(Resistance!BH18))*'Data Input'!$E$11) -> 1138.087597 | BI18: =IF(ISERROR(SQRT((qc!BI18+qr!BI18-qs!BI18)/(Resistance!BI18))*'Data Input'!$E$11),"0",SQRT((qc!BI18+qr!BI18-qs!BI18)/(Resistance!BI18))*'Data Input'!$E$11) -> 1071.871474 | BJ18: =IF(ISERROR(SQRT((qc!BJ18+qr!BJ18-qs!BJ18)/(Resistance!BJ18))*'Data Input'!$E$11),"0",SQRT((qc!BJ18+qr!BJ18-qs!BJ18)/(Resistance!BJ18))*'Data Input'!$E$11) -> 1000.781711 | BK18: =IF(ISERROR(SQRT((qc!BK18+qr!BK18-qs!BK18)/(Resistance!BK18))*'Data Input'!$E$11),"0",SQRT((qc!BK18+qr!BK18-qs!BK18)/(Resistance!BK18))*'Data Input'!$E$11) -> 923.6837375
A19: Normal Day | B19: =wind_norm -> 0 | C19: 95 | D19: =IF(ISERROR(SQRT((qc!D19+qr!D19-qs!D19)/(Resistance!D19))*'Data Input'!$E$11),"0",SQRT((qc!D19+qr!D19-qs!D19)/(Resistance!D19))*'Data Input'!$E$11) -> 1833.977196 | E19: =IF(ISERROR(SQRT((qc!E19+qr!E19-qs!E19)/(Resistance!E19))*'Data Input'!$E$11),"0",SQRT((qc!E19+qr!E19-qs!E19)/(Resistance!E19))*'Data Input'!$E$11) -> 1783.062123 | F19: =IF(ISERROR(SQRT((qc!F19+qr!F19-qs!F19)/(Resistance!F19))*'Data Input'!$E$11),"0",SQRT((qc!F19+qr!F19-qs!F19)/(Resistance!F19))*'Data Input'!$E$11) -> 1730.878724 | G19: =IF(ISERROR(SQRT((qc!G19+qr!G19-qs!G19)/(Resistance!G19))*'Data Input'!$E$11),"0",SQRT((qc!G19+qr!G19-qs!G19)/(Resistance!G19))*'Data Input'!$E$11) -> 1677.291023 | H19: =IF(ISERROR(SQRT((qc!H19+qr!H19-qs!H19)/(Resistance!H19))*'Data Input'!$E$11),"0",SQRT((qc!H19+qr!H19-qs!H19)/(Resistance!H19))*'Data Input'!$E$11) -> 1622.142925 | I19: =IF(ISERROR(SQRT((qc!I19+qr!I19-qs!I19)/(Resistance!I19))*'Data Input'!$E$11),"0",SQRT((qc!I19+qr!I19-qs!I19)/(Resistance!I19))*'Data Input'!$E$11) -> 1565.253523 | J19: =IF(ISERROR(SQRT((qc!J19+qr!J19-qs!J19)/(Resistance!J19))*'Data Input'!$E$11),"0",SQRT((qc!J19+qr!J19-qs!J19)/(Resistance!J19))*'Data Input'!$E$11) -> 1506.410855 | K19: =IF(ISERROR(SQRT((qc!K19+qr!K19-qs!K19)/(Resistance!K19))*'Data Input'!$E$11),"0",SQRT((qc!K19+qr!K19-qs!K19)/(Resistance!K19))*'Data Input'!$E$11) -> 1445.363447 | L19: =IF(ISERROR(SQRT((qc!L19+qr!L19-qs!L19)/(Resistance!L19))*'Data Input'!$E$11),"0",SQRT((qc!L19+qr!L19-qs!L19)/(Resistance!L19))*'Data Input'!$E$11) -> 1381.808587 | M19: =IF(ISERROR(SQRT((qc!M19+qr!M19-qs!M19)/(Resistance!M19))*'Data Input'!$E$11),"0",SQRT((qc!M19+qr!M19-qs!M19)/(Resistance!M19))*'Data Input'!$E$11) -> 1315.375638 | N19: =IF(ISERROR(SQRT((qc!N19+qr!N19-qs!N19)/(Resistance!N19))*'Data Input'!$E$11),"0",SQRT((qc!N19+qr!N19-qs!N19)/(Resistance!N19))*'Data Input'!$E$11) -> 1245.601528 | O19: =IF(ISERROR(SQRT((qc!O19+qr!O19-qs!O19)/(Resistance!O19))*'Data Input'!$E$11),"0",SQRT((qc!O19+qr!O19-qs!O19)/(Resistance!O19))*'Data Input'!$E$11) -> 1171.893375 | Q19: Normal Day | R19: =wind_norm -> 0 | S19: 95 | T19: =IF(ISERROR(SQRT((qc!T19+qr!T19-qs!T19)/(Resistance!T19))*'Data Input'!$E$11),"0",SQRT((qc!T19+qr!T19-qs!T19)/(Resistance!T19))*'Data Input'!$E$11) -> 2197.806639 | U19: =IF(ISERROR(SQRT((qc!U19+qr!U19-qs!U19)/(Resistance!U19))*'Data Input'!$E$11),"0",SQRT((qc!U19+qr!U19-qs!U19)/(Resistance!U19))*'Data Input'!$E$11) -> 2173.281214 | V19: =IF(ISERROR(SQRT((qc!V19+qr!V19-qs!V19)/(Resistance!V19))*'Data Input'!$E$11),"0",SQRT((qc!V19+qr!V19-qs!V19)/(Resistance!V19))*'Data Input'!$E$11) -> 2148.574763 | W19: =IF(ISERROR(SQRT((qc!W19+qr!W19-qs!W19)/(Resistance!W19))*'Data Input'!$E$11),"0",SQRT((qc!W19+qr!W19-qs!W19)/(Resistance!W19))*'Data Input'!$E$11) -> 2123.677821 | X19: =IF(ISERROR(SQRT((qc!X19+qr!X19-qs!X19)/(Resistance!X19))*'Data Input'!$E$11),"0",SQRT((qc!X19+qr!X19-qs!X19)/(Resistance!X19))*'Data Input'!$E$11) -> 2098.580452 | Y19: =IF(ISERROR(SQRT((qc!Y19+qr!Y19-qs!Y19)/(Resistance!Y19))*'Data Input'!$E$11),"0",SQRT((qc!Y19+qr!Y19-qs!Y19)/(Resistance!Y19))*'Data Input'!$E$11) -> 2073.272215 | Z19: =IF(ISERROR(SQRT((qc!Z19+qr!Z19-qs!Z19)/(Resistance!Z19))*'Data Input'!$E$11),"0",SQRT((qc!Z19+qr!Z19-qs!Z19)/(Resistance!Z19))*'Data Input'!$E$11) -> 2047.742125 | AA19: =IF(ISERROR(SQRT((qc!AA19+qr!AA19-qs!AA19)/(Resistance!AA19))*'Data Input'!$E$11),"0",SQRT((qc!AA19+qr!AA19-qs!AA19)/(Resistance!AA19))*'Data Input'!$E$11) -> 2021.978609 | AB19: =IF(ISERROR(SQRT((qc!AB19+qr!AB19-qs!AB19)/(Resistance!AB19))*'Data Input'!$E$11),"0",SQRT((qc!AB19+qr!AB19-qs!AB19)/(Resistance!AB19))*'Data Input'!$E$11) -> 1995.969454 | AC19: =IF(ISERROR(SQRT((qc!AC19+qr!AC19-qs!AC19)/(Resistance!AC19))*'Data Input'!$E$11),"0",SQRT((qc!AC19+qr!AC19-qs!AC19)/(Resistance!AC19))*'Data Input'!$E$11) -> 1969.701761 | AD19: =IF(ISERROR(SQRT((qc!AD19+qr!AD19-qs!AD19)/(Resistance!AD19))*'Data Input'!$E$11),"0",SQRT((qc!AD19+qr!AD19-qs!AD19)/(Resistance!AD19))*'Data Input'!$E$11) -> 1943.161878 | AE19: =IF(ISERROR(SQRT((qc!AE19+qr!AE19-qs!AE19)/(Resistance!AE19))*'Data Input'!$E$11),"0",SQRT((qc!AE19+qr!AE19-qs!AE19)/(Resistance!AE19))*'Data Input'!$E$11) -> 1916.335337 | AF19: =IF(ISERROR(SQRT((qc!AF19+qr!AF19-qs!AF19)/(Resistance!AF19))*'Data Input'!$E$11),"0",SQRT((qc!AF19+qr!AF19-qs!AF19)/(Resistance!AF19))*'Data Input'!$E$11) -> 1889.206779 | AG19: =IF(ISERROR(SQRT((qc!AG19+qr!AG19-qs!AG19)/(Resistance!AG19))*'Data Input'!$E$11),"0",SQRT((qc!AG19+qr!AG19-qs!AG19)/(Resistance!AG19))*'Data Input'!$E$11) -> 1861.759867 | AH19: =IF(ISERROR(SQRT((qc!AH19+qr!AH19-qs!AH19)/(Resistance!AH19))*'Data Input'!$E$11),"0",SQRT((qc!AH19+qr!AH19-qs!AH19)/(Resistance!AH19))*'Data Input'!$E$11) -> 1833.977196 | AI19: =IF(ISERROR(SQRT((qc!AI19+qr!AI19-qs!AI19)/(Resistance!AI19))*'Data Input'!$E$11),"0",SQRT((qc!AI19+qr!AI19-qs!AI19)/(Resistance!AI19))*'Data Input'!$E$11) -> 1805.840179 | AJ19: =IF(ISERROR(SQRT((qc!AJ19+qr!AJ19-qs!AJ19)/(Resistance!AJ19))*'Data Input'!$E$11),"0",SQRT((qc!AJ19+qr!AJ19-qs!AJ19)/(Resistance!AJ19))*'Data Input'!$E$11) -> 1777.328933 | AK19: =IF(ISERROR(SQRT((qc!AK19+qr!AK19-qs!AK19)/(Resistance!AK19))*'Data Input'!$E$11),"0",SQRT((qc!AK19+qr!AK19-qs!AK19)/(Resistance!AK19))*'Data Input'!$E$11) -> 1748.422134 | AL19: =IF(ISERROR(SQRT((qc!AL19+qr!AL19-qs!AL19)/(Resistance!AL19))*'Data Input'!$E$11),"0",SQRT((qc!AL19+qr!AL19-qs!AL19)/(Resistance!AL19))*'Data Input'!$E$11) -> 1719.096858 | AM19: =IF(ISERROR(SQRT((qc!AM19+qr!AM19-qs!AM19)/(Resistance!AM19))*'Data Input'!$E$11),"0",SQRT((qc!AM19+qr!AM19-qs!AM19)/(Resistance!AM19))*'Data Input'!$E$11) -> 1689.328403 | AN19: =IF(ISERROR(SQRT((qc!AN19+qr!AN19-qs!AN19)/(Resistance!AN19))*'Data Input'!$E$11),"0",SQRT((qc!AN19+qr!AN19-qs!AN19)/(Resistance!AN19))*'Data Input'!$E$11) -> 1659.090071 | AO19: =IF(ISERROR(SQRT((qc!AO19+qr!AO19-qs!AO19)/(Resistance!AO19))*'Data Input'!$E$11),"0",SQRT((qc!AO19+qr!AO19-qs!AO19)/(Resistance!AO19))*'Data Input'!$E$11) -> 1628.35293 | AP19: =IF(ISERROR(SQRT((qc!AP19+qr!AP19-qs!AP19)/(Resistance!AP19))*'Data Input'!$E$11),"0",SQRT((qc!AP19+qr!AP19-qs!AP19)/(Resistance!AP19))*'Data Input'!$E$11) -> 1597.085521 | AQ19: =IF(ISERROR(SQRT((qc!AQ19+qr!AQ19-qs!AQ19)/(Resistance!AQ19))*'Data Input'!$E$11),"0",SQRT((qc!AQ19+qr!AQ19-qs!AQ19)/(Resistance!AQ19))*'Data Input'!$E$11) -> 1565.253523 | AR19: =IF(ISERROR(SQRT((qc!AR19+qr!AR19-qs!AR19)/(Resistance!AR19))*'Data Input'!$E$11),"0",SQRT((qc!AR19+qr!AR19-qs!AR19)/(Resistance!AR19))*'Data Input'!$E$11) -> 1532.819361 | AS19: =IF(ISERROR(SQRT((qc!AS19+qr!AS19-qs!AS19)/(Resistance!AS19))*'Data Input'!$E$11),"0",SQRT((qc!AS19+qr!AS19-qs!AS19)/(Resistance!AS19))*'Data Input'!$E$11) -> 1499.74173 | AT19: =IF(ISERROR(SQRT((qc!AT19+qr!AT19-qs!AT19)/(Resistance!AT19))*'Data Input'!$E$11),"0",SQRT((qc!AT19+qr!AT19-qs!AT19)/(Resistance!AT19))*'Data Input'!$E$11) -> 1465.975029 | AU19: =IF(ISERROR(SQRT((qc!AU19+qr!AU19-qs!AU19)/(Resistance!AU19))*'Data Input'!$E$11),"0",SQRT((qc!AU19+qr!AU19-qs!AU19)/(Resistance!AU19))*'Data Input'!$E$11) -> 1431.468685 | AV19: =IF(ISERROR(SQRT((qc!AV19+qr!AV19-qs!AV19)/(Resistance!AV19))*'Data Input'!$E$11),"0",SQRT((qc!AV19+qr!AV19-qs!AV19)/(Resistance!AV19))*'Data Input'!$E$11) -> 1396.166319 | AW19: =IF(ISERROR(SQRT((qc!AW19+qr!AW19-qs!AW19)/(Resistance!AW19))*'Data Input'!$E$11),"0",SQRT((qc!AW19+qr!AW19-qs!AW19)/(Resistance!AW19))*'Data Input'!$E$11) -> 1360.004734 | AX19: =IF(ISERROR(SQRT((qc!AX19+qr!AX19-qs!AX19)/(Resistance!AX19))*'Data Input'!$E$11),"0",SQRT((qc!AX19+qr!AX19-qs!AX19)/(Resistance!AX19))*'Data Input'!$E$11) -> 1322.912648 | AY19: =IF(ISERROR(SQRT((qc!AY19+qr!AY19-qs!AY19)/(Resistance!AY19))*'Data Input'!$E$11),"0",SQRT((qc!AY19+qr!AY19-qs!AY19)/(Resistance!AY19))*'Data Input'!$E$11) -> 1284.809117 | AZ19: =IF(ISERROR(SQRT((qc!AZ19+qr!AZ19-qs!AZ19)/(Resistance!AZ19))*'Data Input'!$E$11),"0",SQRT((qc!AZ19+qr!AZ19-qs!AZ19)/(Resistance!AZ19))*'Data Input'!$E$11) -> 1245.601528 | BA19: =IF(ISERROR(SQRT((qc!BA19+qr!BA19-qs!BA19)/(Resistance!BA19))*'Data Input'!$E$11),"0",SQRT((qc!BA19+qr!BA19-qs!BA19)/(Resistance!BA19))*'Data Input'!$E$11) -> 1205.183013 | BB19: =IF(ISERROR(SQRT((qc!BB19+qr!BB19-qs!BB19)/(Resistance!BB19))*'Data Input'!$E$11),"0",SQRT((qc!BB19+qr!BB19-qs!BB19)/(Resistance!BB19))*'Data Input'!$E$11) -> 1163.42908 | BC19: =IF(ISERROR(SQRT((qc!BC19+qr!BC19-qs!BC19)/(Resistance!BC19))*'Data Input'!$E$11),"0",SQRT((qc!BC19+qr!BC19-qs!BC19)/(Resistance!BC19))*'Data Input'!$E$11) -> 1120.193131 | BD19: =IF(ISERROR(SQRT((qc!BD19+qr!BD19-qs!BD19)/(Resistance!BD19))*'Data Input'!$E$11),"0",SQRT((qc!BD19+qr!BD19-qs!BD19)/(Resistance!BD19))*'Data Input'!$E$11) -> 1075.300382 | BE19: =IF(ISERROR(SQRT((qc!BE19+qr!BE19-qs!BE19)/(Resistance!BE19))*'Data Input'!$E$11),"0",SQRT((qc!BE19+qr!BE19-qs!BE19)/(Resistance!BE19))*'Data Input'!$E$11) -> 1028.539448 | BF19: =IF(ISERROR(SQRT((qc!BF19+qr!BF19-qs!BF19)/(Resistance!BF19))*'Data Input'!$E$11),"0",SQRT((qc!BF19+qr!BF19-qs!BF19)/(Resistance!BF19))*'Data Input'!$E$11) -> 979.6503583 | BG19: =IF(ISERROR(SQRT((qc!BG19+qr!BG19-qs!BG19)/(Resistance!BG19))*'Data Input'!$E$11),"0",SQRT((qc!BG19+qr!BG19-qs!BG19)/(Resistance!BG19))*'Data Input'!$E$11) -> 928.30699 | BH19: =IF(ISERROR(SQRT((qc!BH19+qr!BH19-qs!BH19)/(Resistance!BH19))*'Data Input'!$E$11),"0",SQRT((qc!BH19+qr!BH19-qs!BH19)/(Resistance!BH19))*'Data Input'!$E$11) -> 874.0903277 | BI19: =IF(ISERROR(SQRT((qc!BI19+qr!BI19-qs!BI19)/(Resistance!BI19))*'Data Input'!$E$11),"0",SQRT((qc!BI19+qr!BI19-qs!BI19)/(Resistance!BI19))*'Data Input'!$E$11) -> 816.4459473 | BJ19: =IF(ISERROR(SQRT((qc!BJ19+qr!BJ19-qs!BJ19)/(Resistance!BJ19))*'Data Input'!$E$11),"0",SQRT((qc!BJ19+qr!BJ19-qs!BJ19)/(Resistance!BJ19))*'Data Input'!$E$11) -> 754.6125695 | BK19: =IF(ISERROR(SQRT((qc!BK19+qr!BK19-qs!BK19)/(Resistance!BK19))*'Data Input'!$E$11),"0",SQRT((qc!BK19+qr!BK19-qs!BK19)/(Resistance!BK19))*'Data Input'!$E$11) -> 687.4932546
A20: Emergency Day | B20: =wind_emer -> 2.533 | C20: 95 | D20: =IF(ISERROR(SQRT((qc!D20+qr!D20-qs!D20)/(Resistance!D20))*'Data Input'!$E$11),"0",SQRT((qc!D20+qr!D20-qs!D20)/(Resistance!D20))*'Data Input'!$E$11) -> 2240.251422 | E20: =IF(ISERROR(SQRT((qc!E20+qr!E20-qs!E20)/(Resistance!E20))*'Data Input'!$E$11),"0",SQRT((qc!E20+qr!E20-qs!E20)/(Resistance!E20))*'Data Input'!$E$11) -> 2189.627953 | F20: =IF(ISERROR(SQRT((qc!F20+qr!F20-qs!F20)/(Resistance!F20))*'Data Input'!$E$11),"0",SQRT((qc!F20+qr!F20-qs!F20)/(Resistance!F20))*'Data Input'!$E$11) -> 2137.369161 | G20: =IF(ISERROR(SQRT((qc!G20+qr!G20-qs!G20)/(Resistance!G20))*'Data Input'!$E$11),"0",SQRT((qc!G20+qr!G20-qs!G20)/(Resistance!G20))*'Data Input'!$E$11) -> 2083.330516 | H20: =IF(ISERROR(SQRT((qc!H20+qr!H20-qs!H20)/(Resistance!H20))*'Data Input'!$E$11),"0",SQRT((qc!H20+qr!H20-qs!H20)/(Resistance!H20))*'Data Input'!$E$11) -> 2027.34736 | I20: =IF(ISERROR(SQRT((qc!I20+qr!I20-qs!I20)/(Resistance!I20))*'Data Input'!$E$11),"0",SQRT((qc!I20+qr!I20-qs!I20)/(Resistance!I20))*'Data Input'!$E$11) -> 1969.230573 | J20: =IF(ISERROR(SQRT((qc!J20+qr!J20-qs!J20)/(Resistance!J20))*'Data Input'!$E$11),"0",SQRT((qc!J20+qr!J20-qs!J20)/(Resistance!J20))*'Data Input'!$E$11) -> 1908.760949 | K20: =IF(ISERROR(SQRT((qc!K20+qr!K20-qs!K20)/(Resistance!K20))*'Data Input'!$E$11),"0",SQRT((qc!K20+qr!K20-qs!K20)/(Resistance!K20))*'Data Input'!$E$11) -> 1845.681775 | L20: =IF(ISERROR(SQRT((qc!L20+qr!L20-qs!L20)/(Resistance!L20))*'Data Input'!$E$11),"0",SQRT((qc!L20+qr!L20-qs!L20)/(Resistance!L20))*'Data Input'!$E$11) -> 1779.688849 | M20: =IF(ISERROR(SQRT((qc!M20+qr!M20-qs!M20)/(Resistance!M20))*'Data Input'!$E$11),"0",SQRT((qc!M20+qr!M20-qs!M20)/(Resistance!M20))*'Data Input'!$E$11) -> 1710.416767 | N20: =IF(ISERROR(SQRT((qc!N20+qr!N20-qs!N20)/(Resistance!N20))*'Data Input'!$E$11),"0",SQRT((qc!N20+qr!N20-qs!N20)/(Resistance!N20))*'Data Input'!$E$11) -> 1637.419604 | O20: =IF(ISERROR(SQRT((qc!O20+qr!O20-qs!O20)/(Resistance!O20))*'Data Input'!$E$11),"0",SQRT((qc!O20+qr!O20-qs!O20)/(Resistance!O20))*'Data Input'!$E$11) -> 1560.142915 | Q20: Emergency Day | R20: =wind_emer -> 2.533 | S20: 95 | T20: =IF(ISERROR(SQRT((qc!T20+qr!T20-qs!T20)/(Resistance!T20))*'Data Input'!$E$11),"0",SQRT((qc!T20+qr!T20-qs!T20)/(Resistance!T20))*'Data Input'!$E$11) -> 2597.07328 | U20: =IF(ISERROR(SQRT((qc!U20+qr!U20-qs!U20)/(Resistance!U20))*'Data Input'!$E$11),"0",SQRT((qc!U20+qr!U20-qs!U20)/(Resistance!U20))*'Data Input'!$E$11) -> 2573.334862 | V20: =IF(ISERROR(SQRT((qc!V20+qr!V20-qs!V20)/(Resistance!V20))*'Data Input'!$E$11),"0",SQRT((qc!V20+qr!V20-qs!V20)/(Resistance!V20))*'Data Input'!$E$11) -> 2549.339576 | W20: =IF(ISERROR(SQRT((qc!W20+qr!W20-qs!W20)/(Resistance!W20))*'Data Input'!$E$11),"0",SQRT((qc!W20+qr!W20-qs!W20)/(Resistance!W20))*'Data Input'!$E$11) -> 2525.077011 | X20: =IF(ISERROR(SQRT((qc!X20+qr!X20-qs!X20)/(Resistance!X20))*'Data Input'!$E$11),"0",SQRT((qc!X20+qr!X20-qs!X20)/(Resistance!X20))*'Data Input'!$E$11) -> 2500.53626 | Y20: =IF(ISERROR(SQRT((qc!Y20+qr!Y20-qs!Y20)/(Resistance!Y20))*'Data Input'!$E$11),"0",SQRT((qc!Y20+qr!Y20-qs!Y20)/(Resistance!Y20))*'Data Input'!$E$11) -> 2475.705875 | Z20: =IF(ISERROR(SQRT((qc!Z20+qr!Z20-qs!Z20)/(Resistance!Z20))*'Data Input'!$E$11),"0",SQRT((qc!Z20+qr!Z20-qs!Z20)/(Resistance!Z20))*'Data Input'!$E$11) -> 2450.573835 | AA20: =IF(ISERROR(SQRT((qc!AA20+qr!AA20-qs!AA20)/(Resistance!AA20))*'Data Input'!$E$11),"0",SQRT((qc!AA20+qr!AA20-qs!AA20)/(Resistance!AA20))*'Data Input'!$E$11) -> 2425.127496 | AB20: =IF(ISERROR(SQRT((qc!AB20+qr!AB20-qs!AB20)/(Resistance!AB20))*'Data Input'!$E$11),"0",SQRT((qc!AB20+qr!AB20-qs!AB20)/(Resistance!AB20))*'Data Input'!$E$11) -> 2399.353542 | AC20: =IF(ISERROR(SQRT((qc!AC20+qr!AC20-qs!AC20)/(Resistance!AC20))*'Data Input'!$E$11),"0",SQRT((qc!AC20+qr!AC20-qs!AC20)/(Resistance!AC20))*'Data Input'!$E$11) -> 2373.308567 | AD20: =IF(ISERROR(SQRT((qc!AD20+qr!AD20-qs!AD20)/(Resistance!AD20))*'Data Input'!$E$11),"0",SQRT((qc!AD20+qr!AD20-qs!AD20)/(Resistance!AD20))*'Data Input'!$E$11) -> 2347.515537 | AE20: =IF(ISERROR(SQRT((qc!AE20+qr!AE20-qs!AE20)/(Resistance!AE20))*'Data Input'!$E$11),"0",SQRT((qc!AE20+qr!AE20-qs!AE20)/(Resistance!AE20))*'Data Input'!$E$11) -> 2321.330449 | AF20: =IF(ISERROR(SQRT((qc!AF20+qr!AF20-qs!AF20)/(Resistance!AF20))*'Data Input'!$E$11),"0",SQRT((qc!AF20+qr!AF20-qs!AF20)/(Resistance!AF20))*'Data Input'!$E$11) -> 2294.736679 | AG20: =IF(ISERROR(SQRT((qc!AG20+qr!AG20-qs!AG20)/(Resistance!AG20))*'Data Input'!$E$11),"0",SQRT((qc!AG20+qr!AG20-qs!AG20)/(Resistance!AG20))*'Data Input'!$E$11) -> 2267.716587 | AH20: =IF(ISERROR(SQRT((qc!AH20+qr!AH20-qs!AH20)/(Resistance!AH20))*'Data Input'!$E$11),"0",SQRT((qc!AH20+qr!AH20-qs!AH20)/(Resistance!AH20))*'Data Input'!$E$11) -> 2240.251422 | AI20: =IF(ISERROR(SQRT((qc!AI20+qr!AI20-qs!AI20)/(Resistance!AI20))*'Data Input'!$E$11),"0",SQRT((qc!AI20+qr!AI20-qs!AI20)/(Resistance!AI20))*'Data Input'!$E$11) -> 2212.321215 | AJ20: =IF(ISERROR(SQRT((qc!AJ20+qr!AJ20-qs!AJ20)/(Resistance!AJ20))*'Data Input'!$E$11),"0",SQRT((qc!AJ20+qr!AJ20-qs!AJ20)/(Resistance!AJ20))*'Data Input'!$E$11) -> 2183.904665 | AK20: =IF(ISERROR(SQRT((qc!AK20+qr!AK20-qs!AK20)/(Resistance!AK20))*'Data Input'!$E$11),"0",SQRT((qc!AK20+qr!AK20-qs!AK20)/(Resistance!AK20))*'Data Input'!$E$11) -> 2154.979004 | AL20: =IF(ISERROR(SQRT((qc!AL20+qr!AL20-qs!AL20)/(Resistance!AL20))*'Data Input'!$E$11),"0",SQRT((qc!AL20+qr!AL20-qs!AL20)/(Resistance!AL20))*'Data Input'!$E$11) -> 2125.519843 | AM20: =IF(ISERROR(SQRT((qc!AM20+qr!AM20-qs!AM20)/(Resistance!AM20))*'Data Input'!$E$11),"0",SQRT((qc!AM20+qr!AM20-qs!AM20)/(Resistance!AM20))*'Data Input'!$E$11) -> 2095.501002 | AN20: =IF(ISERROR(SQRT((qc!AN20+qr!AN20-qs!AN20)/(Resistance!AN20))*'Data Input'!$E$11),"0",SQRT((qc!AN20+qr!AN20-qs!AN20)/(Resistance!AN20))*'Data Input'!$E$11) -> 2064.894309 | AO20: =IF(ISERROR(SQRT((qc!AO20+qr!AO20-qs!AO20)/(Resistance!AO20))*'Data Input'!$E$11),"0",SQRT((qc!AO20+qr!AO20-qs!AO20)/(Resistance!AO20))*'Data Input'!$E$11) -> 2033.66938 | AP20: =IF(ISERROR(SQRT((qc!AP20+qr!AP20-qs!AP20)/(Resistance!AP20))*'Data Input'!$E$11),"0",SQRT((qc!AP20+qr!AP20-qs!AP20)/(Resistance!AP20))*'Data Input'!$E$11) -> 2001.793349 | AQ20: =IF(ISERROR(SQRT((qc!AQ20+qr!AQ20-qs!AQ20)/(Resistance!AQ20))*'Data Input'!$E$11),"0",SQRT((qc!AQ20+qr!AQ20-qs!AQ20)/(Resistance!AQ20))*'Data Input'!$E$11) -> 1969.230573 | AR20: =IF(ISERROR(SQRT((qc!AR20+qr!AR20-qs!AR20)/(Resistance!AR20))*'Data Input'!$E$11),"0",SQRT((qc!AR20+qr!AR20-qs!AR20)/(Resistance!AR20))*'Data Input'!$E$11) -> 1935.942274 | AS20: =IF(ISERROR(SQRT((qc!AS20+qr!AS20-qs!AS20)/(Resistance!AS20))*'Data Input'!$E$11),"0",SQRT((qc!AS20+qr!AS20-qs!AS20)/(Resistance!AS20))*'Data Input'!$E$11) -> 1901.88613 | AT20: =IF(ISERROR(SQRT((qc!AT20+qr!AT20-qs!AT20)/(Resistance!AT20))*'Data Input'!$E$11),"0",SQRT((qc!AT20+qr!AT20-qs!AT20)/(Resistance!AT20))*'Data Input'!$E$11) -> 1867.015786 | AU20: =IF(ISERROR(SQRT((qc!AU20+qr!AU20-qs!AU20)/(Resistance!AU20))*'Data Input'!$E$11),"0",SQRT((qc!AU20+qr!AU20-qs!AU20)/(Resistance!AU20))*'Data Input'!$E$11) -> 1831.280281 | AV20: =IF(ISERROR(SQRT((qc!AV20+qr!AV20-qs!AV20)/(Resistance!AV20))*'Data Input'!$E$11),"0",SQRT((qc!AV20+qr!AV20-qs!AV20)/(Resistance!AV20))*'Data Input'!$E$11) -> 1794.623359 | AW20: =IF(ISERROR(SQRT((qc!AW20+qr!AW20-qs!AW20)/(Resistance!AW20))*'Data Input'!$E$11),"0",SQRT((qc!AW20+qr!AW20-qs!AW20)/(Resistance!AW20))*'Data Input'!$E$11) -> 1756.982646 | AX20: =IF(ISERROR(SQRT((qc!AX20+qr!AX20-qs!AX20)/(Resistance!AX20))*'Data Input'!$E$11),"0",SQRT((qc!AX20+qr!AX20-qs!AX20)/(Resistance!AX20))*'Data Input'!$E$11) -> 1718.288648 | AY20: =IF(ISERROR(SQRT((qc!AY20+qr!AY20-qs!AY20)/(Resistance!AY20))*'Data Input'!$E$11),"0",SQRT((qc!AY20+qr!AY20-qs!AY20)/(Resistance!AY20))*'Data Input'!$E$11) -> 1678.463528 | AZ20: =IF(ISERROR(SQRT((qc!AZ20+qr!AZ20-qs!AZ20)/(Resistance!AZ20))*'Data Input'!$E$11),"0",SQRT((qc!AZ20+qr!AZ20-qs!AZ20)/(Resistance!AZ20))*'Data Input'!$E$11) -> 1637.419604 | BA20: =IF(ISERROR(SQRT((qc!BA20+qr!BA20-qs!BA20)/(Resistance!BA20))*'Data Input'!$E$11),"0",SQRT((qc!BA20+qr!BA20-qs!BA20)/(Resistance!BA20))*'Data Input'!$E$11) -> 1595.057466 | BB20: =IF(ISERROR(SQRT((qc!BB20+qr!BB20-qs!BB20)/(Resistance!BB20))*'Data Input'!$E$11),"0",SQRT((qc!BB20+qr!BB20-qs!BB20)/(Resistance!BB20))*'Data Input'!$E$11) -> 1551.263611 | BC20: =IF(ISERROR(SQRT((qc!BC20+qr!BC20-qs!BC20)/(Resistance!BC20))*'Data Input'!$E$11),"0",SQRT((qc!BC20+qr!BC20-qs!BC20)/(Resistance!BC20))*'Data Input'!$E$11) -> 1505.907418 | BD20: =IF(ISERROR(SQRT((qc!BD20+qr!BD20-qs!BD20)/(Resistance!BD20))*'Data Input'!$E$11),"0",SQRT((qc!BD20+qr!BD20-qs!BD20)/(Resistance!BD20))*'Data Input'!$E$11) -> 1458.837227 | BE20: =IF(ISERROR(SQRT((qc!BE20+qr!BE20-qs!BE20)/(Resistance!BE20))*'Data Input'!$E$11),"0",SQRT((qc!BE20+qr!BE20-qs!BE20)/(Resistance!BE20))*'Data Input'!$E$11) -> 1409.875187 | BF20: =IF(ISERROR(SQRT((qc!BF20+qr!BF20-qs!BF20)/(Resistance!BF20))*'Data Input'!$E$11),"0",SQRT((qc!BF20+qr!BF20-qs!BF20)/(Resistance!BF20))*'Data Input'!$E$11) -> 1358.810341 | BG20: =IF(ISERROR(SQRT((qc!BG20+qr!BG20-qs!BG20)/(Resistance!BG20))*'Data Input'!$E$11),"0",SQRT((qc!BG20+qr!BG20-qs!BG20)/(Resistance!BG20))*'Data Input'!$E$11) -> 1305.389158 | BH20: =IF(ISERROR(SQRT((qc!BH20+qr!BH20-qs!BH20)/(Resistance!BH20))*'Data Input'!$E$11),"0",SQRT((qc!BH20+qr!BH20-qs!BH20)/(Resistance!BH20))*'Data Input'!$E$11) -> 1249.302268 | BI20: =IF(ISERROR(SQRT((qc!BI20+qr!BI20-qs!BI20)/(Resistance!BI20))*'Data Input'!$E$11),"0",SQRT((qc!BI20+qr!BI20-qs!BI20)/(Resistance!BI20))*'Data Input'!$E$11) -> 1190.165334 | BJ20: =IF(ISERROR(SQRT((qc!BJ20+qr!BJ20-qs!BJ20)/(Resistance!BJ20))*'Data Input'!$E$11),"0",SQRT((qc!BJ20+qr!BJ20-qs!BJ20)/(Resistance!BJ20))*'Data Input'!$E$11) -> 1127.490526 | BK20: =IF(ISERROR(SQRT((qc!BK20+qr!BK20-qs!BK20)/(Resistance!BK20))*'Data Input'!$E$11),"0",SQRT((qc!BK20+qr!BK20-qs!BK20)/(Resistance!BK20))*'Data Input'!$E$11) -> 1060.642293
A21: Normal Day | B21: =wind_norm -> 0 | C21: 100 | D21: =IF(ISERROR(SQRT((qc!D21+qr!D21-qs!D21)/(Resistance!D21))*'Data Input'!$E$11),"0",SQRT((qc!D21+qr!D21-qs!D21)/(Resistance!D21))*'Data Input'!$E$11) -> 1882.947077 | E21: =IF(ISERROR(SQRT((qc!E21+qr!E21-qs!E21)/(Resistance!E21))*'Data Input'!$E$11),"0",SQRT((qc!E21+qr!E21-qs!E21)/(Resistance!E21))*'Data Input'!$E$11) -> 1833.694622 | F21: =IF(ISERROR(SQRT((qc!F21+qr!F21-qs!F21)/(Resistance!F21))*'Data Input'!$E$11),"0",SQRT((qc!F21+qr!F21-qs!F21)/(Resistance!F21))*'Data Input'!$E$11) -> 1783.285096 | G21: =IF(ISERROR(SQRT((qc!G21+qr!G21-qs!G21)/(Resistance!G21))*'Data Input'!$E$11),"0",SQRT((qc!G21+qr!G21-qs!G21)/(Resistance!G21))*'Data Input'!$E$11) -> 1731.599459 | H21: =IF(ISERROR(SQRT((qc!H21+qr!H21-qs!H21)/(Resistance!H21))*'Data Input'!$E$11),"0",SQRT((qc!H21+qr!H21-qs!H21)/(Resistance!H21))*'Data Input'!$E$11) -> 1678.502295 | I21: =IF(ISERROR(SQRT((qc!I21+qr!I21-qs!I21)/(Resistance!I21))*'Data Input'!$E$11),"0",SQRT((qc!I21+qr!I21-qs!I21)/(Resistance!I21))*'Data Input'!$E$11) -> 1623.838253 | J21: =IF(ISERROR(SQRT((qc!J21+qr!J21-qs!J21)/(Resistance!J21))*'Data Input'!$E$11),"0",SQRT((qc!J21+qr!J21-qs!J21)/(Resistance!J21))*'Data Input'!$E$11) -> 1567.427417 | K21: =IF(ISERROR(SQRT((qc!K21+qr!K21-qs!K21)/(Resistance!K21))*'Data Input'!$E$11),"0",SQRT((qc!K21+qr!K21-qs!K21)/(Resistance!K21))*'Data Input'!$E$11) -> 1509.059156 | L21: =IF(ISERROR(SQRT((qc!L21+qr!L21-qs!L21)/(Resistance!L21))*'Data Input'!$E$11),"0",SQRT((qc!L21+qr!L21-qs!L21)/(Resistance!L21))*'Data Input'!$E$11) -> 1448.483812 | M21: =IF(ISERROR(SQRT((qc!M21+qr!M21-qs!M21)/(Resistance!M21))*'Data Input'!$E$11),"0",SQRT((qc!M21+qr!M21-qs!M21)/(Resistance!M21))*'Data Input'!$E$11) -> 1385.401178 | N21: =IF(ISERROR(SQRT((qc!N21+qr!N21-qs!N21)/(Resistance!N21))*'Data Input'!$E$11),"0",SQRT((qc!N21+qr!N21-qs!N21)/(Resistance!N21))*'Data Input'!$E$11) -> 1319.444153 | O21: =IF(ISERROR(SQRT((qc!O21+qr!O21-qs!O21)/(Resistance!O21))*'Data Input'!$E$11),"0",SQRT((qc!O21+qr!O21-qs!O21)/(Resistance!O21))*'Data Input'!$E$11) -> 1250.154762 | Q21: Normal Day | R21: =wind_norm -> 0 | S21: 100 | T21: =IF(ISERROR(SQRT((qc!T21+qr!T21-qs!T21)/(Resistance!T21))*'Data Input'!$E$11),"0",SQRT((qc!T21+qr!T21-qs!T21)/(Resistance!T21))*'Data Input'!$E$11) -> 2236.428353 | U21: =IF(ISERROR(SQRT((qc!U21+qr!U21-qs!U21)/(Resistance!U21))*'Data Input'!$E$11),"0",SQRT((qc!U21+qr!U21-qs!U21)/(Resistance!U21))*'Data Input'!$E$11) -> 2212.531925 | V21: =IF(ISERROR(SQRT((qc!V21+qr!V21-qs!V21)/(Resistance!V21))*'Data Input'!$E$11),"0",SQRT((qc!V21+qr!V21-qs!V21)/(Resistance!V21))*'Data Input'!$E$11) -> 2188.467549 | W21: =IF(ISERROR(SQRT((qc!W21+qr!W21-qs!W21)/(Resistance!W21))*'Data Input'!$E$11),"0",SQRT((qc!W21+qr!W21-qs!W21)/(Resistance!W21))*'Data Input'!$E$11) -> 2164.22653 | X21: =IF(ISERROR(SQRT((qc!X21+qr!X21-qs!X21)/(Resistance!X21))*'Data Input'!$E$11),"0",SQRT((qc!X21+qr!X21-qs!X21)/(Resistance!X21))*'Data Input'!$E$11) -> 2139.799757 | Y21: =IF(ISERROR(SQRT((qc!Y21+qr!Y21-qs!Y21)/(Resistance!Y21))*'Data Input'!$E$11),"0",SQRT((qc!Y21+qr!Y21-qs!Y21)/(Resistance!Y21))*'Data Input'!$E$11) -> 2115.177682 | Z21: =IF(ISERROR(SQRT((qc!Z21+qr!Z21-qs!Z21)/(Resistance!Z21))*'Data Input'!$E$11),"0",SQRT((qc!Z21+qr!Z21-qs!Z21)/(Resistance!Z21))*'Data Input'!$E$11) -> 2090.350278 | AA21: =IF(ISERROR(SQRT((qc!AA21+qr!AA21-qs!AA21)/(Resistance!AA21))*'Data Input'!$E$11),"0",SQRT((qc!AA21+qr!AA21-qs!AA21)/(Resistance!AA21))*'Data Input'!$E$11) -> 2065.30701 | AB21: =IF(ISERROR(SQRT((qc!AB21+qr!AB21-qs!AB21)/(Resistance!AB21))*'Data Input'!$E$11),"0",SQRT((qc!AB21+qr!AB21-qs!AB21)/(Resistance!AB21))*'Data Input'!$E$11) -> 2040.036792 | AC21: =IF(ISERROR(SQRT((qc!AC21+qr!AC21-qs!AC21)/(Resistance!AC21))*'Data Input'!$E$11),"0",SQRT((qc!AC21+qr!AC21-qs!AC21)/(Resistance!AC21))*'Data Input'!$E$11) -> 2014.527942 | AD21: =IF(ISERROR(SQRT((qc!AD21+qr!AD21-qs!AD21)/(Resistance!AD21))*'Data Input'!$E$11),"0",SQRT((qc!AD21+qr!AD21-qs!AD21)/(Resistance!AD21))*'Data Input'!$E$11) -> 1988.768135 | AE21: =IF(ISERROR(SQRT((qc!AE21+qr!AE21-qs!AE21)/(Resistance!AE21))*'Data Input'!$E$11),"0",SQRT((qc!AE21+qr!AE21-qs!AE21)/(Resistance!AE21))*'Data Input'!$E$11) -> 1962.744348 | AF21: =IF(ISERROR(SQRT((qc!AF21+qr!AF21-qs!AF21)/(Resistance!AF21))*'Data Input'!$E$11),"0",SQRT((qc!AF21+qr!AF21-qs!AF21)/(Resistance!AF21))*'Data Input'!$E$11) -> 1936.442799 | AG21: =IF(ISERROR(SQRT((qc!AG21+qr!AG21-qs!AG21)/(Resistance!AG21))*'Data Input'!$E$11),"0",SQRT((qc!AG21+qr!AG21-qs!AG21)/(Resistance!AG21))*'Data Input'!$E$11) -> 1909.848879 | AH21: =IF(ISERROR(SQRT((qc!AH21+qr!AH21-qs!AH21)/(Resistance!AH21))*'Data Input'!$E$11),"0",SQRT((qc!AH21+qr!AH21-qs!AH21)/(Resistance!AH21))*'Data Input'!$E$11) -> 1882.947077 | AI21: =IF(ISERROR(SQRT((qc!AI21+qr!AI21-qs!AI21)/(Resistance!AI21))*'Data Input'!$E$11),"0",SQRT((qc!AI21+qr!AI21-qs!AI21)/(Resistance!AI21))*'Data Input'!$E$11) -> 1855.720896 | AJ21: =IF(ISERROR(SQRT((qc!AJ21+qr!AJ21-qs!AJ21)/(Resistance!AJ21))*'Data Input'!$E$11),"0",SQRT((qc!AJ21+qr!AJ21-qs!AJ21)/(Resistance!AJ21))*'Data Input'!$E$11) -> 1828.152754 | AK21: =IF(ISERROR(SQRT((qc!AK21+qr!AK21-qs!AK21)/(Resistance!AK21))*'Data Input'!$E$11),"0",SQRT((qc!AK21+qr!AK21-qs!AK21)/(Resistance!AK21))*'Data Input'!$E$11) -> 1800.223875 | AL21: =IF(ISERROR(SQRT((qc!AL21+qr!AL21-qs!AL21)/(Resistance!AL21))*'Data Input'!$E$11),"0",SQRT((qc!AL21+qr!AL21-qs!AL21)/(Resistance!AL21))*'Data Input'!$E$11) -> 1771.91417 | AM21: =IF(ISERROR(SQRT((qc!AM21+qr!AM21-qs!AM21)/(Resistance!AM21))*'Data Input'!$E$11),"0",SQRT((qc!AM21+qr!AM21-qs!AM21)/(Resistance!AM21))*'Data Input'!$E$11) -> 1743.202088 | AN21: =IF(ISERROR(SQRT((qc!AN21+qr!AN21-qs!AN21)/(Resistance!AN21))*'Data Input'!$E$11),"0",SQRT((qc!AN21+qr!AN21-qs!AN21)/(Resistance!AN21))*'Data Input'!$E$11) -> 1714.064463 | AO21: =IF(ISERROR(SQRT((qc!AO21+qr!AO21-qs!AO21)/(Resistance!AO21))*'Data Input'!$E$11),"0",SQRT((qc!AO21+qr!AO21-qs!AO21)/(Resistance!AO21))*'Data Input'!$E$11) -> 1684.476322 | AP21: =IF(ISERROR(SQRT((qc!AP21+qr!AP21-qs!AP21)/(Resistance!AP21))*'Data Input'!$E$11),"0",SQRT((qc!AP21+qr!AP21-qs!AP21)/(Resistance!AP21))*'Data Input'!$E$11) -> 1654.410673 | AQ21: =IF(ISERROR(SQRT((qc!AQ21+qr!AQ21-qs!AQ21)/(Resistance!AQ21))*'Data Input'!$E$11),"0",SQRT((qc!AQ21+qr!AQ21-qs!AQ21)/(Resistance!AQ21))*'Data Input'!$E$11) -> 1623.838253 | AR21: =IF(ISERROR(SQRT((qc!AR21+qr!AR21-qs!AR21)/(Resistance!AR21))*'Data Input'!$E$11),"0",SQRT((qc!AR21+qr!AR21-qs!AR21)/(Resistance!AR21))*'Data Input'!$E$11) -> 1592.727241 | AS21: =IF(ISERROR(SQRT((qc!AS21+qr!AS21-qs!AS21)/(Resistance!AS21))*'Data Input'!$E$11),"0",SQRT((qc!AS21+qr!AS21-qs!AS21)/(Resistance!AS21))*'Data Input'!$E$11) -> 1561.042911 | AT21: =IF(ISERROR(SQRT((qc!AT21+qr!AT21-qs!AT21)/(Resistance!AT21))*'Data Input'!$E$11),"0",SQRT((qc!AT21+qr!AT21-qs!AT21)/(Resistance!AT21))*'Data Input'!$E$11) -> 1528.747233 | AU21: =IF(ISERROR(SQRT((qc!AU21+qr!AU21-qs!AU21)/(Resistance!AU21))*'Data Input'!$E$11),"0",SQRT((qc!AU21+qr!AU21-qs!AU21)/(Resistance!AU21))*'Data Input'!$E$11) -> 1495.798388 | AV21: =IF(ISERROR(SQRT((qc!AV21+qr!AV21-qs!AV21)/(Resistance!AV21))*'Data Input'!$E$11),"0",SQRT((qc!AV21+qr!AV21-qs!AV21)/(Resistance!AV21))*'Data Input'!$E$11) -> 1462.150195 | AW21: =IF(ISERROR(SQRT((qc!AW21+qr!AW21-qs!AW21)/(Resistance!AW21))*'Data Input'!$E$11),"0",SQRT((qc!AW21+qr!AW21-qs!AW21)/(Resistance!AW21))*'Data Input'!$E$11) -> 1427.751416 | AX21: =IF(ISERROR(SQRT((qc!AX21+qr!AX21-qs!AX21)/(Resistance!AX21))*'Data Input'!$E$11),"0",SQRT((qc!AX21+qr!AX21-qs!AX21)/(Resistance!AX21))*'Data Input'!$E$11) -> 1392.54491 | AY21: =IF(ISERROR(SQRT((qc!AY21+qr!AY21-qs!AY21)/(Resistance!AY21))*'Data Input'!$E$11),"0",SQRT((qc!AY21+qr!AY21-qs!AY21)/(Resistance!AY21))*'Data Input'!$E$11) -> 1356.466594 | AZ21: =IF(ISERROR(SQRT((qc!AZ21+qr!AZ21-qs!AZ21)/(Resistance!AZ21))*'Data Input'!$E$11),"0",SQRT((qc!AZ21+qr!AZ21-qs!AZ21)/(Resistance!AZ21))*'Data Input'!$E$11) -> 1319.444153 | BA21: =IF(ISERROR(SQRT((qc!BA21+qr!BA21-qs!BA21)/(Resistance!BA21))*'Data Input'!$E$11),"0",SQRT((qc!BA21+qr!BA21-qs!BA21)/(Resistance!BA21))*'Data Input'!$E$11) -> 1281.395423 | BB21: =IF(ISERROR(SQRT((qc!BB21+qr!BB21-qs!BB21)/(Resistance!BB21))*'Data Input'!$E$11),"0",SQRT((qc!BB21+qr!BB21-qs!BB21)/(Resistance!BB21))*'Data Input'!$E$11) -> 1242.226337 | BC21: =IF(ISERROR(SQRT((qc!BC21+qr!BC21-qs!BC21)/(Resistance!BC21))*'Data Input'!$E$11),"0",SQRT((qc!BC21+qr!BC21-qs!BC21)/(Resistance!BC21))*'Data Input'!$E$11) -> 1201.828272 | BD21: =IF(ISERROR(SQRT((qc!BD21+qr!BD21-qs!BD21)/(Resistance!BD21))*'Data Input'!$E$11),"0",SQRT((qc!BD21+qr!BD21-qs!BD21)/(Resistance!BD21))*'Data Input'!$E$11) -> 1160.074591 | BE21: =IF(ISERROR(SQRT((qc!BE21+qr!BE21-qs!BE21)/(Resistance!BE21))*'Data Input'!$E$11),"0",SQRT((qc!BE21+qr!BE21-qs!BE21)/(Resistance!BE21))*'Data Input'!$E$11) -> 1116.816031 | BF21: =IF(ISERROR(SQRT((qc!BF21+qr!BF21-qs!BF21)/(Resistance!BF21))*'Data Input'!$E$11),"0",SQRT((qc!BF21+qr!BF21-qs!BF21)/(Resistance!BF21))*'Data Input'!$E$11) -> 1071.874445 | BG21: =IF(ISERROR(SQRT((qc!BG21+qr!BG21-qs!BG21)/(Resistance!BG21))*'Data Input'!$E$11),"0",SQRT((qc!BG21+qr!BG21-qs!BG21)/(Resistance!BG21))*'Data Input'!$E$11) -> 1025.034108 | BH21: =IF(ISERROR(SQRT((qc!BH21+qr!BH21-qs!BH21)/(Resistance!BH21))*'Data Input'!$E$11),"0",SQRT((qc!BH21+qr!BH21-qs!BH21)/(Resistance!BH21))*'Data Input'!$E$11) -> 976.0293265 | BI21: =IF(ISERROR(SQRT((qc!BI21+qr!BI21-qs!BI21)/(Resistance!BI21))*'Data Input'!$E$11),"0",SQRT((qc!BI21+qr!BI21-qs!BI21)/(Resistance!BI21))*'Data Input'!$E$11) -> 924.5262048 | BJ21: =IF(ISERROR(SQRT((qc!BJ21+qr!BJ21-qs!BJ21)/(Resistance!BJ21))*'Data Input'!$E$11),"0",SQRT((qc!BJ21+qr!BJ21-qs!BJ21)/(Resistance!BJ21))*'Data Input'!$E$11) -> 870.0948124 | BK21: =IF(ISERROR(SQRT((qc!BK21+qr!BK21-qs!BK21)/(Resistance!BK21))*'Data Input'!$E$11),"0",SQRT((qc!BK21+qr!BK21-qs!BK21)/(Resistance!BK21))*'Data Input'!$E$11) -> 812.1647383
A22: Emergency Day | B22: =wind_emer -> 2.533 | C22: 100 | D22: =IF(ISERROR(SQRT((qc!D22+qr!D22-qs!D22)/(Resistance!D22))*'Data Input'!$E$11),"0",SQRT((qc!D22+qr!D22-qs!D22)/(Resistance!D22))*'Data Input'!$E$11) -> 2287.383291 | E22: =IF(ISERROR(SQRT((qc!E22+qr!E22-qs!E22)/(Resistance!E22))*'Data Input'!$E$11),"0",SQRT((qc!E22+qr!E22-qs!E22)/(Resistance!E22))*'Data Input'!$E$11) -> 2238.537471 | F22: =IF(ISERROR(SQRT((qc!F22+qr!F22-qs!F22)/(Resistance!F22))*'Data Input'!$E$11),"0",SQRT((qc!F22+qr!F22-qs!F22)/(Resistance!F22))*'Data Input'!$E$11) -> 2188.179915 | G22: =IF(ISERROR(SQRT((qc!G22+qr!G22-qs!G22)/(Resistance!G22))*'Data Input'!$E$11),"0",SQRT((qc!G22+qr!G22-qs!G22)/(Resistance!G22))*'Data Input'!$E$11) -> 2136.183117 | H22: =IF(ISERROR(SQRT((qc!H22+qr!H22-qs!H22)/(Resistance!H22))*'Data Input'!$E$11),"0",SQRT((qc!H22+qr!H22-qs!H22)/(Resistance!H22))*'Data Input'!$E$11) -> 2082.40289 | I22: =IF(ISERROR(SQRT((qc!I22+qr!I22-qs!I22)/(Resistance!I22))*'Data Input'!$E$11),"0",SQRT((qc!I22+qr!I22-qs!I22)/(Resistance!I22))*'Data Input'!$E$11) -> 2026.674997 | J22: =IF(ISERROR(SQRT((qc!J22+qr!J22-qs!J22)/(Resistance!J22))*'Data Input'!$E$11),"0",SQRT((qc!J22+qr!J22-qs!J22)/(Resistance!J22))*'Data Input'!$E$11) -> 1968.810847 | K22: =IF(ISERROR(SQRT((qc!K22+qr!K22-qs!K22)/(Resistance!K22))*'Data Input'!$E$11),"0",SQRT((qc!K22+qr!K22-qs!K22)/(Resistance!K22))*'Data Input'!$E$11) -> 1908.591908 | L22: =IF(ISERROR(SQRT((qc!L22+qr!L22-qs!L22)/(Resistance!L22))*'Data Input'!$E$11),"0",SQRT((qc!L22+qr!L22-qs!L22)/(Resistance!L22))*'Data Input'!$E$11) -> 1845.762331 | M22: =IF(ISERROR(SQRT((qc!M22+qr!M22-qs!M22)/(Resistance!M22))*'Data Input'!$E$11),"0",SQRT((qc!M22+qr!M22-qs!M22)/(Resistance!M22))*'Data Input'!$E$11) -> 1780.019039 | N22: =IF(ISERROR(SQRT((qc!N22+qr!N22-qs!N22)/(Resistance!N22))*'Data Input'!$E$11),"0",SQRT((qc!N22+qr!N22-qs!N22)/(Resistance!N22))*'Data Input'!$E$11) -> 1710.998121 | O22: =IF(ISERROR(SQRT((qc!O22+qr!O22-qs!O22)/(Resistance!O22))*'Data Input'!$E$11),"0",SQRT((qc!O22+qr!O22-qs!O22)/(Resistance!O22))*'Data Input'!$E$11) -> 1638.255675 | Q22: Emergency Day | R22: =wind_emer -> 2.533 | S22: 100 | T22: =IF(ISERROR(SQRT((qc!T22+qr!T22-qs!T22)/(Resistance!T22))*'Data Input'!$E$11),"0",SQRT((qc!T22+qr!T22-qs!T22)/(Resistance!T22))*'Data Input'!$E$11) -> 2631.939769 | U22: =IF(ISERROR(SQRT((qc!U22+qr!U22-qs!U22)/(Resistance!U22))*'Data Input'!$E$11),"0",SQRT((qc!U22+qr!U22-qs!U22)/(Resistance!U22))*'Data Input'!$E$11) -> 2608.866264 | V22: =IF(ISERROR(SQRT((qc!V22+qr!V22-qs!V22)/(Resistance!V22))*'Data Input'!$E$11),"0",SQRT((qc!V22+qr!V22-qs!V22)/(Resistance!V22))*'Data Input'!$E$11) -> 2585.551338 | W22: =IF(ISERROR(SQRT((qc!W22+qr!W22-qs!W22)/(Resistance!W22))*'Data Input'!$E$11),"0",SQRT((qc!W22+qr!W22-qs!W22)/(Resistance!W22))*'Data Input'!$E$11) -> 2561.985416 | X22: =IF(ISERROR(SQRT((qc!X22+qr!X22-qs!X22)/(Resistance!X22))*'Data Input'!$E$11),"0",SQRT((qc!X22+qr!X22-qs!X22)/(Resistance!X22))*'Data Input'!$E$11) -> 2538.158485 | Y22: =IF(ISERROR(SQRT((qc!Y22+qr!Y22-qs!Y22)/(Resistance!Y22))*'Data Input'!$E$11),"0",SQRT((qc!Y22+qr!Y22-qs!Y22)/(Resistance!Y22))*'Data Input'!$E$11) -> 2514.060059 | Z22: =IF(ISERROR(SQRT((qc!Z22+qr!Z22-qs!Z22)/(Resistance!Z22))*'Data Input'!$E$11),"0",SQRT((qc!Z22+qr!Z22-qs!Z22)/(Resistance!Z22))*'Data Input'!$E$11) -> 2489.679146 | AA22: =IF(ISERROR(SQRT((qc!AA22+qr!AA22-qs!AA22)/(Resistance!AA22))*'Data Input'!$E$11),"0",SQRT((qc!AA22+qr!AA22-qs!AA22)/(Resistance!AA22))*'Data Input'!$E$11) -> 2465.004213 | AB22: =IF(ISERROR(SQRT((qc!AB22+qr!AB22-qs!AB22)/(Resistance!AB22))*'Data Input'!$E$11),"0",SQRT((qc!AB22+qr!AB22-qs!AB22)/(Resistance!AB22))*'Data Input'!$E$11) -> 2440.656262 | AC22: =IF(ISERROR(SQRT((qc!AC22+qr!AC22-qs!AC22)/(Resistance!AC22))*'Data Input'!$E$11),"0",SQRT((qc!AC22+qr!AC22-qs!AC22)/(Resistance!AC22))*'Data Input'!$E$11) -> 2416.039446 | AD22: =IF(ISERROR(SQRT((qc!AD22+qr!AD22-qs!AD22)/(Resistance!AD22))*'Data Input'!$E$11),"0",SQRT((qc!AD22+qr!AD22-qs!AD22)/(Resistance!AD22))*'Data Input'!$E$11) -> 2391.070882 | AE22: =IF(ISERROR(SQRT((qc!AE22+qr!AE22-qs!AE22)/(Resistance!AE22))*'Data Input'!$E$11),"0",SQRT((qc!AE22+qr!AE22-qs!AE22)/(Resistance!AE22))*'Data Input'!$E$11) -> 2365.7364 | AF22: =IF(ISERROR(SQRT((qc!AF22+qr!AF22-qs!AF22)/(Resistance!AF22))*'Data Input'!$E$11),"0",SQRT((qc!AF22+qr!AF22-qs!AF22)/(Resistance!AF22))*'Data Input'!$E$11) -> 2340.021028 | AG22: =IF(ISERROR(SQRT((qc!AG22+qr!AG22-qs!AG22)/(Resistance!AG22))*'Data Input'!$E$11),"0",SQRT((qc!AG22+qr!AG22-qs!AG22)/(Resistance!AG22))*'Data Input'!$E$11) -> 2313.908922 | AH22: =IF(ISERROR(SQRT((qc!AH22+qr!AH22-qs!AH22)/(Resistance!AH22))*'Data Input'!$E$11),"0",SQRT((qc!AH22+qr!AH22-qs!AH22)/(Resistance!AH22))*'Data Input'!$E$11) -> 2287.383291 | AI22: =IF(ISERROR(SQRT((qc!AI22+qr!AI22-qs!AI22)/(Resistance!AI22))*'Data Input'!$E$11),"0",SQRT((qc!AI22+qr!AI22-qs!AI22)/(Resistance!AI22))*'Data Input'!$E$11) -> 2260.426314 | AJ22: =IF(ISERROR(SQRT((qc!AJ22+qr!AJ22-qs!AJ22)/(Resistance!AJ22))*'Data Input'!$E$11),"0",SQRT((qc!AJ22+qr!AJ22-qs!AJ22)/(Resistance!AJ22))*'Data Input'!$E$11) -> 2233.019043 | AK22: =IF(ISERROR(SQRT((qc!AK22+qr!AK22-qs!AK22)/(Resistance!AK22))*'Data Input'!$E$11),"0",SQRT((qc!AK22+qr!AK22-qs!AK22)/(Resistance!AK22))*'Data Input'!$E$11) -> 2205.141293 | AL22: =IF(ISERROR(SQRT((qc!AL22+qr!AL22-qs!AL22)/(Resistance!AL22))*'Data Input'!$E$11),"0",SQRT((qc!AL22+qr!AL22-qs!AL22)/(Resistance!AL22))*'Data Input'!$E$11) -> 2176.771529 | AM22: =IF(ISERROR(SQRT((qc!AM22+qr!AM22-qs!AM22)/(Resistance!AM22))*'Data Input'!$E$11),"0",SQRT((qc!AM22+qr!AM22-qs!AM22)/(Resistance!AM22))*'Data Input'!$E$11) -> 2147.886721 | AN22: =IF(ISERROR(SQRT((qc!AN22+qr!AN22-qs!AN22)/(Resistance!AN22))*'Data Input'!$E$11),"0",SQRT((qc!AN22+qr!AN22-qs!AN22)/(Resistance!AN22))*'Data Input'!$E$11) -> 2118.462195 | AO22: =IF(ISERROR(SQRT((qc!AO22+qr!AO22-qs!AO22)/(Resistance!AO22))*'Data Input'!$E$11),"0",SQRT((qc!AO22+qr!AO22-qs!AO22)/(Resistance!AO22))*'Data Input'!$E$11) -> 2088.471455 | AP22: =IF(ISERROR(SQRT((qc!AP22+qr!AP22-qs!AP22)/(Resistance!AP22))*'Data Input'!$E$11),"0",SQRT((qc!AP22+qr!AP22-qs!AP22)/(Resistance!AP22))*'Data Input'!$E$11) -> 2057.885981 | AQ22: =IF(ISERROR(SQRT((qc!AQ22+qr!AQ22-qs!AQ22)/(Resistance!AQ22))*'Data Input'!$E$11),"0",SQRT((qc!AQ22+qr!AQ22-qs!AQ22)/(Resistance!AQ22))*'Data Input'!$E$11) -> 2026.674997 | AR22: =IF(ISERROR(SQRT((qc!AR22+qr!AR22-qs!AR22)/(Resistance!AR22))*'Data Input'!$E$11),"0",SQRT((qc!AR22+qr!AR22-qs!AR22)/(Resistance!AR22))*'Data Input'!$E$11) -> 1994.805202 | AS22: =IF(ISERROR(SQRT((qc!AS22+qr!AS22-qs!AS22)/(Resistance!AS22))*'Data Input'!$E$11),"0",SQRT((qc!AS22+qr!AS22-qs!AS22)/(Resistance!AS22))*'Data Input'!$E$11) -> 1962.240466 | AT22: =IF(ISERROR(SQRT((qc!AT22+qr!AT22-qs!AT22)/(Resistance!AT22))*'Data Input'!$E$11),"0",SQRT((qc!AT22+qr!AT22-qs!AT22)/(Resistance!AT22))*'Data Input'!$E$11) -> 1928.941461 | AU22: =IF(ISERROR(SQRT((qc!AU22+qr!AU22-qs!AU22)/(Resistance!AU22))*'Data Input'!$E$11),"0",SQRT((qc!AU22+qr!AU22-qs!AU22)/(Resistance!AU22))*'Data Input'!$E$11) -> 1894.865242 | AV22: =IF(ISERROR(SQRT((qc!AV22+qr!AV22-qs!AV22)/(Resistance!AV22))*'Data Input'!$E$11),"0",SQRT((qc!AV22+qr!AV22-qs!AV22)/(Resistance!AV22))*'Data Input'!$E$11) -> 1859.964748 | AW22: =IF(ISERROR(SQRT((qc!AW22+qr!AW22-qs!AW22)/(Resistance!AW22))*'Data Input'!$E$11),"0",SQRT((qc!AW22+qr!AW22-qs!AW22)/(Resistance!AW22))*'Data Input'!$E$11) -> 1824.18821 | AX22: =IF(ISERROR(SQRT((qc!AX22+qr!AX22-qs!AX22)/(Resistance!AX22))*'Data Input'!$E$11),"0",SQRT((qc!AX22+qr!AX22-qs!AX22)/(Resistance!AX22))*'Data Input'!$E$11) -> 1787.478443 | AY22: =IF(ISERROR(SQRT((qc!AY22+qr!AY22-qs!AY22)/(Resistance!AY22))*'Data Input'!$E$11),"0",SQRT((qc!AY22+qr!AY22-qs!AY22)/(Resistance!AY22))*'Data Input'!$E$11) -> 1749.771995 | AZ22: =IF(ISERROR(SQRT((qc!AZ22+qr!AZ22-qs!AZ22)/(Resistance!AZ22))*'Data Input'!$E$11),"0",SQRT((qc!AZ22+qr!AZ22-qs!AZ22)/(Resistance!AZ22))*'Data Input'!$E$11) -> 1710.998121 | BA22: =IF(ISERROR(SQRT((qc!BA22+qr!BA22-qs!BA22)/(Resistance!BA22))*'Data Input'!$E$11),"0",SQRT((qc!BA22+qr!BA22-qs!BA22)/(Resistance!BA22))*'Data Input'!$E$11) -> 1671.077514 | BB22: =IF(ISERROR(SQRT((qc!BB22+qr!BB22-qs!BB22)/(Resistance!BB22))*'Data Input'!$E$11),"0",SQRT((qc!BB22+qr!BB22-qs!BB22)/(Resistance!BB22))*'Data Input'!$E$11) -> 1629.92075 | BC22: =IF(ISERROR(SQRT((qc!BC22+qr!BC22-qs!BC22)/(Resistance!BC22))*'Data Input'!$E$11),"0",SQRT((qc!BC22+qr!BC22-qs!BC22)/(Resistance!BC22))*'Data Input'!$E$11) -> 1587.426343 | BD22: =IF(ISERROR(SQRT((qc!BD22+qr!BD22-qs!BD22)/(Resistance!BD22))*'Data Input'!$E$11),"0",SQRT((qc!BD22+qr!BD22-qs!BD22)/(Resistance!BD22))*'Data Input'!$E$11) -> 1543.478282 | BE22: =IF(ISERROR(SQRT((qc!BE22+qr!BE22-qs!BE22)/(Resistance!BE22))*'Data Input'!$E$11),"0",SQRT((qc!BE22+qr!BE22-qs!BE22)/(Resistance!BE22))*'Data Input'!$E$11) -> 1497.942888 | BF22: =IF(ISERROR(SQRT((qc!BF22+qr!BF22-qs!BF22)/(Resistance!BF22))*'Data Input'!$E$11),"0",SQRT((qc!BF22+qr!BF22-qs!BF22)/(Resistance!BF22))*'Data Input'!$E$11) -> 1450.664727 | BG22: =IF(ISERROR(SQRT((qc!BG22+qr!BG22-qs!BG22)/(Resistance!BG22))*'Data Input'!$E$11),"0",SQRT((qc!BG22+qr!BG22-qs!BG22)/(Resistance!BG22))*'Data Input'!$E$11) -> 1401.461215 | BH22: =IF(ISERROR(SQRT((qc!BH22+qr!BH22-qs!BH22)/(Resistance!BH22))*'Data Input'!$E$11),"0",SQRT((qc!BH22+qr!BH22-qs!BH22)/(Resistance!BH22))*'Data Input'!$E$11) -> 1350.11537 | BI22: =IF(ISERROR(SQRT((qc!BI22+qr!BI22-qs!BI22)/(Resistance!BI22))*'Data Input'!$E$11),"0",SQRT((qc!BI22+qr!BI22-qs!BI22)/(Resistance!BI22))*'Data Input'!$E$11) -> 1296.365847 | BJ22: =IF(ISERROR(SQRT((qc!BJ22+qr!BJ22-qs!BJ22)/(Resistance!BJ22))*'Data Input'!$E$11),"0",SQRT((qc!BJ22+qr!BJ22-qs!BJ22)/(Resistance!BJ22))*'Data Input'!$E$11) -> 1239.892913 | BK22: =IF(ISERROR(SQRT((qc!BK22+qr!BK22-qs!BK22)/(Resistance!BK22))*'Data Input'!$E$11),"0",SQRT((qc!BK22+qr!BK22-qs!BK22)/(Resistance!BK22))*'Data Input'!$E$11) -> 1180.298137
A23: Normal Day | B23: =wind_norm -> 0 | C23: 105 | D23: =IF(ISERROR(SQRT((qc!D23+qr!D23-qs!D23)/(Resistance!D23))*'Data Input'!$E$11),"0",SQRT((qc!D23+qr!D23-qs!D23)/(Resistance!D23))*'Data Input'!$E$11) -> 1930.562001 | E23: =IF(ISERROR(SQRT((qc!E23+qr!E23-qs!E23)/(Resistance!E23))*'Data Input'!$E$11),"0",SQRT((qc!E23+qr!E23-qs!E23)/(Resistance!E23))*'Data Input'!$E$11) -> 1882.858037 | F23: =IF(ISERROR(SQRT((qc!F23+qr!F23-qs!F23)/(Resistance!F23))*'Data Input'!$E$11),"0",SQRT((qc!F23+qr!F23-qs!F23)/(Resistance!F23))*'Data Input'!$E$11) -> 1834.093694 | G23: =IF(ISERROR(SQRT((qc!G23+qr!G23-qs!G23)/(Resistance!G23))*'Data Input'!$E$11),"0",SQRT((qc!G23+qr!G23-qs!G23)/(Resistance!G23))*'Data Input'!$E$11) -> 1784.163835 | H23: =IF(ISERROR(SQRT((qc!H23+qr!H23-qs!H23)/(Resistance!H23))*'Data Input'!$E$11),"0",SQRT((qc!H23+qr!H23-qs!H23)/(Resistance!H23))*'Data Input'!$E$11) -> 1732.949814 | I23: =IF(ISERROR(SQRT((qc!I23+qr!I23-qs!I23)/(Resistance!I23))*'Data Input'!$E$11),"0",SQRT((qc!I23+qr!I23-qs!I23)/(Resistance!I23))*'Data Input'!$E$11) -> 1680.316732 | J23: =IF(ISERROR(SQRT((qc!J23+qr!J23-qs!J23)/(Resistance!J23))*'Data Input'!$E$11),"0",SQRT((qc!J23+qr!J23-qs!J23)/(Resistance!J23))*'Data Input'!$E$11) -> 1626.109934 | K23: =IF(ISERROR(SQRT((qc!K23+qr!K23-qs!K23)/(Resistance!K23))*'Data Input'!$E$11),"0",SQRT((qc!K23+qr!K23-qs!K23)/(Resistance!K23))*'Data Input'!$E$11) -> 1570.150435 | L23: =IF(ISERROR(SQRT((qc!L23+qr!L23-qs!L23)/(Resistance!L23))*'Data Input'!$E$11),"0",SQRT((qc!L23+qr!L23-qs!L23)/(Resistance!L23))*'Data Input'!$E$11) -> 1512.228864 | M23: =IF(ISERROR(SQRT((qc!M23+qr!M23-qs!M23)/(Resistance!M23))*'Data Input'!$E$11),"0",SQRT((qc!M23+qr!M23-qs!M23)/(Resistance!M23))*'Data Input'!$E$11) -> 1452.097276 | N23: =IF(ISERROR(SQRT((qc!N23+qr!N23-qs!N23)/(Resistance!N23))*'Data Input'!$E$11),"0",SQRT((qc!N23+qr!N23-qs!N23)/(Resistance!N23))*'Data Input'!$E$11) -> 1389.457849 | O23: =IF(ISERROR(SQRT((qc!O23+qr!O23-qs!O23)/(Resistance!O23))*'Data Input'!$E$11),"0",SQRT((qc!O23+qr!O23-qs!O23)/(Resistance!O23))*'Data Input'!$E$11) -> 1323.946839 | Q23: Normal Day | R23: =wind_norm -> 0 | S23: 105 | T23: =IF(ISERROR(SQRT((qc!T23+qr!T23-qs!T23)/(Resistance!T23))*'Data Input'!$E$11),"0",SQRT((qc!T23+qr!T23-qs!T23)/(Resistance!T23))*'Data Input'!$E$11) -> 2274.28108 | U23: =IF(ISERROR(SQRT((qc!U23+qr!U23-qs!U23)/(Resistance!U23))*'Data Input'!$E$11),"0",SQRT((qc!U23+qr!U23-qs!U23)/(Resistance!U23))*'Data Input'!$E$11) -> 2250.983452 | V23: =IF(ISERROR(SQRT((qc!V23+qr!V23-qs!V23)/(Resistance!V23))*'Data Input'!$E$11),"0",SQRT((qc!V23+qr!V23-qs!V23)/(Resistance!V23))*'Data Input'!$E$11) -> 2227.529678 | W23: =IF(ISERROR(SQRT((qc!W23+qr!W23-qs!W23)/(Resistance!W23))*'Data Input'!$E$11),"0",SQRT((qc!W23+qr!W23-qs!W23)/(Resistance!W23))*'Data Input'!$E$11) -> 2203.911736 | X23: =IF(ISERROR(SQRT((qc!X23+qr!X23-qs!X23)/(Resistance!X23))*'Data Input'!$E$11),"0",SQRT((qc!X23+qr!X23-qs!X23)/(Resistance!X23))*'Data Input'!$E$11) -> 2180.121237 | Y23: =IF(ISERROR(SQRT((qc!Y23+qr!Y23-qs!Y23)/(Resistance!Y23))*'Data Input'!$E$11),"0",SQRT((qc!Y23+qr!Y23-qs!Y23)/(Resistance!Y23))*'Data Input'!$E$11) -> 2156.149407 | Z23: =IF(ISERROR(SQRT((qc!Z23+qr!Z23-qs!Z23)/(Resistance!Z23))*'Data Input'!$E$11),"0",SQRT((qc!Z23+qr!Z23-qs!Z23)/(Resistance!Z23))*'Data Input'!$E$11) -> 2131.987055 | AA23: =IF(ISERROR(SQRT((qc!AA23+qr!AA23-qs!AA23)/(Resistance!AA23))*'Data Input'!$E$11),"0",SQRT((qc!AA23+qr!AA23-qs!AA23)/(Resistance!AA23))*'Data Input'!$E$11) -> 2107.624541 | AB23: =IF(ISERROR(SQRT((qc!AB23+qr!AB23-qs!AB23)/(Resistance!AB23))*'Data Input'!$E$11),"0",SQRT((qc!AB23+qr!AB23-qs!AB23)/(Resistance!AB23))*'Data Input'!$E$11) -> 2083.05175 | AC23: =IF(ISERROR(SQRT((qc!AC23+qr!AC23-qs!AC23)/(Resistance!AC23))*'Data Input'!$E$11),"0",SQRT((qc!AC23+qr!AC23-qs!AC23)/(Resistance!AC23))*'Data Input'!$E$11) -> 2058.258045 | AD23: =IF(ISERROR(SQRT((qc!AD23+qr!AD23-qs!AD23)/(Resistance!AD23))*'Data Input'!$E$11),"0",SQRT((qc!AD23+qr!AD23-qs!AD23)/(Resistance!AD23))*'Data Input'!$E$11) -> 2033.232236 | AE23: =IF(ISERROR(SQRT((qc!AE23+qr!AE23-qs!AE23)/(Resistance!AE23))*'Data Input'!$E$11),"0",SQRT((qc!AE23+qr!AE23-qs!AE23)/(Resistance!AE23))*'Data Input'!$E$11) -> 2007.96253 | AF23: =IF(ISERROR(SQRT((qc!AF23+qr!AF23-qs!AF23)/(Resistance!AF23))*'Data Input'!$E$11),"0",SQRT((qc!AF23+qr!AF23-qs!AF23)/(Resistance!AF23))*'Data Input'!$E$11) -> 1982.436483 | AG23: =IF(ISERROR(SQRT((qc!AG23+qr!AG23-qs!AG23)/(Resistance!AG23))*'Data Input'!$E$11),"0",SQRT((qc!AG23+qr!AG23-qs!AG23)/(Resistance!AG23))*'Data Input'!$E$11) -> 1956.640946 | AH23: =IF(ISERROR(SQRT((qc!AH23+qr!AH23-qs!AH23)/(Resistance!AH23))*'Data Input'!$E$11),"0",SQRT((qc!AH23+qr!AH23-qs!AH23)/(Resistance!AH23))*'Data Input'!$E$11) -> 1930.562001 | AI23: =IF(ISERROR(SQRT((qc!AI23+qr!AI23-qs!AI23)/(Resistance!AI23))*'Data Input'!$E$11),"0",SQRT((qc!AI23+qr!AI23-qs!AI23)/(Resistance!AI23))*'Data Input'!$E$11) -> 1904.184894 | AJ23: =IF(ISERROR(SQRT((qc!AJ23+qr!AJ23-qs!AJ23)/(Resistance!AJ23))*'Data Input'!$E$11),"0",SQRT((qc!AJ23+qr!AJ23-qs!AJ23)/(Resistance!AJ23))*'Data Input'!$E$11) -> 1877.493959 | AK23: =IF(ISERROR(SQRT((qc!AK23+qr!AK23-qs!AK23)/(Resistance!AK23))*'Data Input'!$E$11),"0",SQRT((qc!AK23+qr!AK23-qs!AK23)/(Resistance!AK23))*'Data Input'!$E$11) -> 1850.472529 | AL23: =IF(ISERROR(SQRT((qc!AL23+qr!AL23-qs!AL23)/(Resistance!AL23))*'Data Input'!$E$11),"0",SQRT((qc!AL23+qr!AL23-qs!AL23)/(Resistance!AL23))*'Data Input'!$E$11) -> 1823.102842 | AM23: =IF(ISERROR(SQRT((qc!AM23+qr!AM23-qs!AM23)/(Resistance!AM23))*'Data Input'!$E$11),"0",SQRT((qc!AM23+qr!AM23-qs!AM23)/(Resistance!AM23))*'Data Input'!$E$11) -> 1795.365926 | AN23: =IF(ISERROR(SQRT((qc!AN23+qr!AN23-qs!AN23)/(Resistance!AN23))*'Data Input'!$E$11),"0",SQRT((qc!AN23+qr!AN23-qs!AN23)/(Resistance!AN23))*'Data Input'!$E$11) -> 1767.241477 | AO23: =IF(ISERROR(SQRT((qc!AO23+qr!AO23-qs!AO23)/(Resistance!AO23))*'Data Input'!$E$11),"0",SQRT((qc!AO23+qr!AO23-qs!AO23)/(Resistance!AO23))*'Data Input'!$E$11) -> 1738.707714 | AP23: =IF(ISERROR(SQRT((qc!AP23+qr!AP23-qs!AP23)/(Resistance!AP23))*'Data Input'!$E$11),"0",SQRT((qc!AP23+qr!AP23-qs!AP23)/(Resistance!AP23))*'Data Input'!$E$11) -> 1709.741216 | AQ23: =IF(ISERROR(SQRT((qc!AQ23+qr!AQ23-qs!AQ23)/(Resistance!AQ23))*'Data Input'!$E$11),"0",SQRT((qc!AQ23+qr!AQ23-qs!AQ23)/(Resistance!AQ23))*'Data Input'!$E$11) -> 1680.316732 | AR23: =IF(ISERROR(SQRT((qc!AR23+qr!AR23-qs!AR23)/(Resistance!AR23))*'Data Input'!$E$11),"0",SQRT((qc!AR23+qr!AR23-qs!AR23)/(Resistance!AR23))*'Data Input'!$E$11) -> 1650.406962 | AS23: =IF(ISERROR(SQRT((qc!AS23+qr!AS23-qs!AS23)/(Resistance!AS23))*'Data Input'!$E$11),"0",SQRT((qc!AS23+qr!AS23-qs!AS23)/(Resistance!AS23))*'Data Input'!$E$11) -> 1619.982307 | AT23: =IF(ISERROR(SQRT((qc!AT23+qr!AT23-qs!AT23)/(Resistance!AT23))*'Data Input'!$E$11),"0",SQRT((qc!AT23+qr!AT23-qs!AT23)/(Resistance!AT23))*'Data Input'!$E$11) -> 1589.010566 | AU23: =IF(ISERROR(SQRT((qc!AU23+qr!AU23-qs!AU23)/(Resistance!AU23))*'Data Input'!$E$11),"0",SQRT((qc!AU23+qr!AU23-qs!AU23)/(Resistance!AU23))*'Data Input'!$E$11) -> 1557.456596 | AV23: =IF(ISERROR(SQRT((qc!AV23+qr!AV23-qs!AV23)/(Resistance!AV23))*'Data Input'!$E$11),"0",SQRT((qc!AV23+qr!AV23-qs!AV23)/(Resistance!AV23))*'Data Input'!$E$11) -> 1525.281894 | AW23: =IF(ISERROR(SQRT((qc!AW23+qr!AW23-qs!AW23)/(Resistance!AW23))*'Data Input'!$E$11),"0",SQRT((qc!AW23+qr!AW23-qs!AW23)/(Resistance!AW23))*'Data Input'!$E$11) -> 1492.44411 | AX23: =IF(ISERROR(SQRT((qc!AX23+qr!AX23-qs!AX23)/(Resistance!AX23))*'Data Input'!$E$11),"0",SQRT((qc!AX23+qr!AX23-qs!AX23)/(Resistance!AX23))*'Data Input'!$E$11) -> 1458.89646 | AY23: =IF(ISERROR(SQRT((qc!AY23+qr!AY23-qs!AY23)/(Resistance!AY23))*'Data Input'!$E$11),"0",SQRT((qc!AY23+qr!AY23-qs!AY23)/(Resistance!AY23))*'Data Input'!$E$11) -> 1424.587018 | AZ23: =IF(ISERROR(SQRT((qc!AZ23+qr!AZ23-qs!AZ23)/(Resistance!AZ23))*'Data Input'!$E$11),"0",SQRT((qc!AZ23+qr!AZ23-qs!AZ23)/(Resistance!AZ23))*'Data Input'!$E$11) -> 1389.457849 | BA23: =IF(ISERROR(SQRT((qc!BA23+qr!BA23-qs!BA23)/(Resistance!BA23))*'Data Input'!$E$11),"0",SQRT((qc!BA23+qr!BA23-qs!BA23)/(Resistance!BA23))*'Data Input'!$E$11) -> 1353.443954 | BB23: =IF(ISERROR(SQRT((qc!BB23+qr!BB23-qs!BB23)/(Resistance!BB23))*'Data Input'!$E$11),"0",SQRT((qc!BB23+qr!BB23-qs!BB23)/(Resistance!BB23))*'Data Input'!$E$11) -> 1316.471943 | BC23: =IF(ISERROR(SQRT((qc!BC23+qr!BC23-qs!BC23)/(Resistance!BC23))*'Data Input'!$E$11),"0",SQRT((qc!BC23+qr!BC23-qs!BC23)/(Resistance!BC23))*'Data Input'!$E$11) -> 1278.458385 | BD23: =IF(ISERROR(SQRT((qc!BD23+qr!BD23-qs!BD23)/(Resistance!BD23))*'Data Input'!$E$11),"0",SQRT((qc!BD23+qr!BD23-qs!BD23)/(Resistance!BD23))*'Data Input'!$E$11) -> 1239.307701 | BE23: =IF(ISERROR(SQRT((qc!BE23+qr!BE23-qs!BE23)/(Resistance!BE23))*'Data Input'!$E$11),"0",SQRT((qc!BE23+qr!BE23-qs!BE23)/(Resistance!BE23))*'Data Input'!$E$11) -> 1198.909441 | BF23: =IF(ISERROR(SQRT((qc!BF23+qr!BF23-qs!BF23)/(Resistance!BF23))*'Data Input'!$E$11),"0",SQRT((qc!BF23+qr!BF23-qs!BF23)/(Resistance!BF23))*'Data Input'!$E$11) -> 1157.134736 | BG23: =IF(ISERROR(SQRT((qc!BG23+qr!BG23-qs!BG23)/(Resistance!BG23))*'Data Input'!$E$11),"0",SQRT((qc!BG23+qr!BG23-qs!BG23)/(Resistance!BG23))*'Data Input'!$E$11) -> 1113.831545 | BH23: =IF(ISERROR(SQRT((qc!BH23+qr!BH23-qs!BH23)/(Resistance!BH23))*'Data Input'!$E$11),"0",SQRT((qc!BH23+qr!BH23-qs!BH23)/(Resistance!BH23))*'Data Input'!$E$11) -> 1068.818209 | BI23: =IF(ISERROR(SQRT((qc!BI23+qr!BI23-qs!BI23)/(Resistance!BI23))*'Data Input'!$E$11),"0",SQRT((qc!BI23+qr!BI23-qs!BI23)/(Resistance!BI23))*'Data Input'!$E$11) -> 1021.874475 | BJ23: =IF(ISERROR(SQRT((qc!BJ23+qr!BJ23-qs!BJ23)/(Resistance!BJ23))*'Data Input'!$E$11),"0",SQRT((qc!BJ23+qr!BJ23-qs!BJ23)/(Resistance!BJ23))*'Data Input'!$E$11) -> 972.7286602 | BK23: =IF(ISERROR(SQRT((qc!BK23+qr!BK23-qs!BK23)/(Resistance!BK23))*'Data Input'!$E$11),"0",SQRT((qc!BK23+qr!BK23-qs!BK23)/(Resistance!BK23))*'Data Input'!$E$11) -> 921.0387221
A24: Emergency Day | B24: =wind_emer -> 2.533 | C24: 105 | D24: =IF(ISERROR(SQRT((qc!D24+qr!D24-qs!D24)/(Resistance!D24))*'Data Input'!$E$11),"0",SQRT((qc!D24+qr!D24-qs!D24)/(Resistance!D24))*'Data Input'!$E$11) -> 2333.159242 | E24: =IF(ISERROR(SQRT((qc!E24+qr!E24-qs!E24)/(Resistance!E24))*'Data Input'!$E$11),"0",SQRT((qc!E24+qr!E24-qs!E24)/(Resistance!E24))*'Data Input'!$E$11) -> 2285.969594 | F24: =IF(ISERROR(SQRT((qc!F24+qr!F24-qs!F24)/(Resistance!F24))*'Data Input'!$E$11),"0",SQRT((qc!F24+qr!F24-qs!F24)/(Resistance!F24))*'Data Input'!$E$11) -> 2237.377139 | G24: =IF(ISERROR(SQRT((qc!G24+qr!G24-qs!G24)/(Resistance!G24))*'Data Input'!$E$11),"0",SQRT((qc!G24+qr!G24-qs!G24)/(Resistance!G24))*'Data Input'!$E$11) -> 2187.26859 | H24: =IF(ISERROR(SQRT((qc!H24+qr!H24-qs!H24)/(Resistance!H24))*'Data Input'!$E$11),"0",SQRT((qc!H24+qr!H24-qs!H24)/(Resistance!H24))*'Data Input'!$E$11) -> 2135.516693 | I24: =IF(ISERROR(SQRT((qc!I24+qr!I24-qs!I24)/(Resistance!I24))*'Data Input'!$E$11),"0",SQRT((qc!I24+qr!I24-qs!I24)/(Resistance!I24))*'Data Input'!$E$11) -> 2081.977573 | J24: =IF(ISERROR(SQRT((qc!J24+qr!J24-qs!J24)/(Resistance!J24))*'Data Input'!$E$11),"0",SQRT((qc!J24+qr!J24-qs!J24)/(Resistance!J24))*'Data Input'!$E$11) -> 2026.487385 | K24: =IF(ISERROR(SQRT((qc!K24+qr!K24-qs!K24)/(Resistance!K24))*'Data Input'!$E$11),"0",SQRT((qc!K24+qr!K24-qs!K24)/(Resistance!K24))*'Data Input'!$E$11) -> 1968.858032 | L24: =IF(ISERROR(SQRT((qc!L24+qr!L24-qs!L24)/(Resistance!L24))*'Data Input'!$E$11),"0",SQRT((qc!L24+qr!L24-qs!L24)/(Resistance!L24))*'Data Input'!$E$11) -> 1908.871612 | M24: =IF(ISERROR(SQRT((qc!M24+qr!M24-qs!M24)/(Resistance!M24))*'Data Input'!$E$11),"0",SQRT((qc!M24+qr!M24-qs!M24)/(Resistance!M24))*'Data Input'!$E$11) -> 1846.273087 | N24: =IF(ISERROR(SQRT((qc!N24+qr!N24-qs!N24)/(Resistance!N24))*'Data Input'!$E$11),"0",SQRT((qc!N24+qr!N24-qs!N24)/(Resistance!N24))*'Data Input'!$E$11) -> 1780.760445 | O24: =IF(ISERROR(SQRT((qc!O24+qr!O24-qs!O24)/(Resistance!O24))*'Data Input'!$E$11),"0",SQRT((qc!O24+qr!O24-qs!O24)/(Resistance!O24))*'Data Input'!$E$11) -> 1711.971193 | Q24: Emergency Day | R24: =wind_emer -> 2.533 | S24: 105 | T24: =IF(ISERROR(SQRT((qc!T24+qr!T24-qs!T24)/(Resistance!T24))*'Data Input'!$E$11),"0",SQRT((qc!T24+qr!T24-qs!T24)/(Resistance!T24))*'Data Input'!$E$11) -> 2666.080358 | U24: =IF(ISERROR(SQRT((qc!U24+qr!U24-qs!U24)/(Resistance!U24))*'Data Input'!$E$11),"0",SQRT((qc!U24+qr!U24-qs!U24)/(Resistance!U24))*'Data Input'!$E$11) -> 2643.638611 | V24: =IF(ISERROR(SQRT((qc!V24+qr!V24-qs!V24)/(Resistance!V24))*'Data Input'!$E$11),"0",SQRT((qc!V24+qr!V24-qs!V24)/(Resistance!V24))*'Data Input'!$E$11) -> 2620.969505 | W24: =IF(ISERROR(SQRT((qc!W24+qr!W24-qs!W24)/(Resistance!W24))*'Data Input'!$E$11),"0",SQRT((qc!W24+qr!W24-qs!W24)/(Resistance!W24))*'Data Input'!$E$11) -> 2598.064205 | X24: =IF(ISERROR(SQRT((qc!X24+qr!X24-qs!X24)/(Resistance!X24))*'Data Input'!$E$11),"0",SQRT((qc!X24+qr!X24-qs!X24)/(Resistance!X24))*'Data Input'!$E$11) -> 2574.913483 | Y24: =IF(ISERROR(SQRT((qc!Y24+qr!Y24-qs!Y24)/(Resistance!Y24))*'Data Input'!$E$11),"0",SQRT((qc!Y24+qr!Y24-qs!Y24)/(Resistance!Y24))*'Data Input'!$E$11) -> 2551.507697 | Z24: =IF(ISERROR(SQRT((qc!Z24+qr!Z24-qs!Z24)/(Resistance!Z24))*'Data Input'!$E$11),"0",SQRT((qc!Z24+qr!Z24-qs!Z24)/(Resistance!Z24))*'Data Input'!$E$11) -> 2528.34383 | AA24: =IF(ISERROR(SQRT((qc!AA24+qr!AA24-qs!AA24)/(Resistance!AA24))*'Data Input'!$E$11),"0",SQRT((qc!AA24+qr!AA24-qs!AA24)/(Resistance!AA24))*'Data Input'!$E$11) -> 2505.102943 | AB24: =IF(ISERROR(SQRT((qc!AB24+qr!AB24-qs!AB24)/(Resistance!AB24))*'Data Input'!$E$11),"0",SQRT((qc!AB24+qr!AB24-qs!AB24)/(Resistance!AB24))*'Data Input'!$E$11) -> 2481.556263 | AC24: =IF(ISERROR(SQRT((qc!AC24+qr!AC24-qs!AC24)/(Resistance!AC24))*'Data Input'!$E$11),"0",SQRT((qc!AC24+qr!AC24-qs!AC24)/(Resistance!AC24))*'Data Input'!$E$11) -> 2457.692168 | AD24: =IF(ISERROR(SQRT((qc!AD24+qr!AD24-qs!AD24)/(Resistance!AD24))*'Data Input'!$E$11),"0",SQRT((qc!AD24+qr!AD24-qs!AD24)/(Resistance!AD24))*'Data Input'!$E$11) -> 2433.498442 | AE24: =IF(ISERROR(SQRT((qc!AE24+qr!AE24-qs!AE24)/(Resistance!AE24))*'Data Input'!$E$11),"0",SQRT((qc!AE24+qr!AE24-qs!AE24)/(Resistance!AE24))*'Data Input'!$E$11) -> 2408.962223 | AF24: =IF(ISERROR(SQRT((qc!AF24+qr!AF24-qs!AF24)/(Resistance!AF24))*'Data Input'!$E$11),"0",SQRT((qc!AF24+qr!AF24-qs!AF24)/(Resistance!AF24))*'Data Input'!$E$11) -> 2384.069956 | AG24: =IF(ISERROR(SQRT((qc!AG24+qr!AG24-qs!AG24)/(Resistance!AG24))*'Data Input'!$E$11),"0",SQRT((qc!AG24+qr!AG24-qs!AG24)/(Resistance!AG24))*'Data Input'!$E$11) -> 2358.807335 | AH24: =IF(ISERROR(SQRT((qc!AH24+qr!AH24-qs!AH24)/(Resistance!AH24))*'Data Input'!$E$11),"0",SQRT((qc!AH24+qr!AH24-qs!AH24)/(Resistance!AH24))*'Data Input'!$E$11) -> 2333.159242 | AI24: =IF(ISERROR(SQRT((qc!AI24+qr!AI24-qs!AI24)/(Resistance!AI24))*'Data Input'!$E$11),"0",SQRT((qc!AI24+qr!AI24-qs!AI24)/(Resistance!AI24))*'Data Input'!$E$11) -> 2307.109674 | AJ24: =IF(ISERROR(SQRT((qc!AJ24+qr!AJ24-qs!AJ24)/(Resistance!AJ24))*'Data Input'!$E$11),"0",SQRT((qc!AJ24+qr!AJ24-qs!AJ24)/(Resistance!AJ24))*'Data Input'!$E$11) -> 2280.64167 | AK24: =IF(ISERROR(SQRT((qc!AK24+qr!AK24-qs!AK24)/(Resistance!AK24))*'Data Input'!$E$11),"0",SQRT((qc!AK24+qr!AK24-qs!AK24)/(Resistance!AK24))*'Data Input'!$E$11) -> 2253.73722 | AL24: =IF(ISERROR(SQRT((qc!AL24+qr!AL24-qs!AL24)/(Resistance!AL24))*'Data Input'!$E$11),"0",SQRT((qc!AL24+qr!AL24-qs!AL24)/(Resistance!AL24))*'Data Input'!$E$11) -> 2226.377172 | AM24: =IF(ISERROR(SQRT((qc!AM24+qr!AM24-qs!AM24)/(Resistance!AM24))*'Data Input'!$E$11),"0",SQRT((qc!AM24+qr!AM24-qs!AM24)/(Resistance!AM24))*'Data Input'!$E$11) -> 2198.541121 | AN24: =IF(ISERROR(SQRT((qc!AN24+qr!AN24-qs!AN24)/(Resistance!AN24))*'Data Input'!$E$11),"0",SQRT((qc!AN24+qr!AN24-qs!AN24)/(Resistance!AN24))*'Data Input'!$E$11) -> 2170.207286 | AO24: =IF(ISERROR(SQRT((qc!AO24+qr!AO24-qs!AO24)/(Resistance!AO24))*'Data Input'!$E$11),"0",SQRT((qc!AO24+qr!AO24-qs!AO24)/(Resistance!AO24))*'Data Input'!$E$11) -> 2141.352372 | AP24: =IF(ISERROR(SQRT((qc!AP24+qr!AP24-qs!AP24)/(Resistance!AP24))*'Data Input'!$E$11),"0",SQRT((qc!AP24+qr!AP24-qs!AP24)/(Resistance!AP24))*'Data Input'!$E$11) -> 2111.951408 | AQ24: =IF(ISERROR(SQRT((qc!AQ24+qr!AQ24-qs!AQ24)/(Resistance!AQ24))*'Data Input'!$E$11),"0",SQRT((qc!AQ24+qr!AQ24-qs!AQ24)/(Resistance!AQ24))*'Data Input'!$E$11) -> 2081.977573 | AR24: =IF(ISERROR(SQRT((qc!AR24+qr!AR24-qs!AR24)/(Resistance!AR24))*'Data Input'!$E$11),"0",SQRT((qc!AR24+qr!AR24-qs!AR24)/(Resistance!AR24))*'Data Input'!$E$11) -> 2051.401985 | AS24: =IF(ISERROR(SQRT((qc!AS24+qr!AS24-qs!AS24)/(Resistance!AS24))*'Data Input'!$E$11),"0",SQRT((qc!AS24+qr!AS24-qs!AS24)/(Resistance!AS24))*'Data Input'!$E$11) -> 2020.193466 | AT24: =IF(ISERROR(SQRT((qc!AT24+qr!AT24-qs!AT24)/(Resistance!AT24))*'Data Input'!$E$11),"0",SQRT((qc!AT24+qr!AT24-qs!AT24)/(Resistance!AT24))*'Data Input'!$E$11) -> 1988.318268 | AU24: =IF(ISERROR(SQRT((qc!AU24+qr!AU24-qs!AU24)/(Resistance!AU24))*'Data Input'!$E$11),"0",SQRT((qc!AU24+qr!AU24-qs!AU24)/(Resistance!AU24))*'Data Input'!$E$11) -> 1955.739753 | AV24: =IF(ISERROR(SQRT((qc!AV24+qr!AV24-qs!AV24)/(Resistance!AV24))*'Data Input'!$E$11),"0",SQRT((qc!AV24+qr!AV24-qs!AV24)/(Resistance!AV24))*'Data Input'!$E$11) -> 1922.418029 | AW24: =IF(ISERROR(SQRT((qc!AW24+qr!AW24-qs!AW24)/(Resistance!AW24))*'Data Input'!$E$11),"0",SQRT((qc!AW24+qr!AW24-qs!AW24)/(Resistance!AW24))*'Data Input'!$E$11) -> 1888.309507 | AX24: =IF(ISERROR(SQRT((qc!AX24+qr!AX24-qs!AX24)/(Resistance!AX24))*'Data Input'!$E$11),"0",SQRT((qc!AX24+qr!AX24-qs!AX24)/(Resistance!AX24))*'Data Input'!$E$11) -> 1853.366397 | AY24: =IF(ISERROR(SQRT((qc!AY24+qr!AY24-qs!AY24)/(Resistance!AY24))*'Data Input'!$E$11),"0",SQRT((qc!AY24+qr!AY24-qs!AY24)/(Resistance!AY24))*'Data Input'!$E$11) -> 1817.536091 | AZ24: =IF(ISERROR(SQRT((qc!AZ24+qr!AZ24-qs!AZ24)/(Resistance!AZ24))*'Data Input'!$E$11),"0",SQRT((qc!AZ24+qr!AZ24-qs!AZ24)/(Resistance!AZ24))*'Data Input'!$E$11) -> 1780.760445 | BA24: =IF(ISERROR(SQRT((qc!BA24+qr!BA24-qs!BA24)/(Resistance!BA24))*'Data Input'!$E$11),"0",SQRT((qc!BA24+qr!BA24-qs!BA24)/(Resistance!BA24))*'Data Input'!$E$11) -> 1742.974895 | BB24: =IF(ISERROR(SQRT((qc!BB24+qr!BB24-qs!BB24)/(Resistance!BB24))*'Data Input'!$E$11),"0",SQRT((qc!BB24+qr!BB24-qs!BB24)/(Resistance!BB24))*'Data Input'!$E$11) -> 1704.107396 | BC24: =IF(ISERROR(SQRT((qc!BC24+qr!BC24-qs!BC24)/(Resistance!BC24))*'Data Input'!$E$11),"0",SQRT((qc!BC24+qr!BC24-qs!BC24)/(Resistance!BC24))*'Data Input'!$E$11) -> 1664.077119 | BD24: =IF(ISERROR(SQRT((qc!BD24+qr!BD24-qs!BD24)/(Resistance!BD24))*'Data Input'!$E$11),"0",SQRT((qc!BD24+qr!BD24-qs!BD24)/(Resistance!BD24))*'Data Input'!$E$11) -> 1622.792833 | BE24: =IF(ISERROR(SQRT((qc!BE24+qr!BE24-qs!BE24)/(Resistance!BE24))*'Data Input'!$E$11),"0",SQRT((qc!BE24+qr!BE24-qs!BE24)/(Resistance!BE24))*'Data Input'!$E$11) -> 1580.150895 | BF24: =IF(ISERROR(SQRT((qc!BF24+qr!BF24-qs!BF24)/(Resistance!BF24))*'Data Input'!$E$11),"0",SQRT((qc!BF24+qr!BF24-qs!BF24)/(Resistance!BF24))*'Data Input'!$E$11) -> 1536.032687 | BG24: =IF(ISERROR(SQRT((qc!BG24+qr!BG24-qs!BG24)/(Resistance!BG24))*'Data Input'!$E$11),"0",SQRT((qc!BG24+qr!BG24-qs!BG24)/(Resistance!BG24))*'Data Input'!$E$11) -> 1490.301348 | BH24: =IF(ISERROR(SQRT((qc!BH24+qr!BH24-qs!BH24)/(Resistance!BH24))*'Data Input'!$E$11),"0",SQRT((qc!BH24+qr!BH24-qs!BH24)/(Resistance!BH24))*'Data Input'!$E$11) -> 1442.797503 | BI24: =IF(ISERROR(SQRT((qc!BI24+qr!BI24-qs!BI24)/(Resistance!BI24))*'Data Input'!$E$11),"0",SQRT((qc!BI24+qr!BI24-qs!BI24)/(Resistance!BI24))*'Data Input'!$E$11) -> 1393.333626 | BJ24: =IF(ISERROR(SQRT((qc!BJ24+qr!BJ24-qs!BJ24)/(Resistance!BJ24))*'Data Input'!$E$11),"0",SQRT((qc!BJ24+qr!BJ24-qs!BJ24)/(Resistance!BJ24))*'Data Input'!$E$11) -> 1341.686425 | BK24: =IF(ISERROR(SQRT((qc!BK24+qr!BK24-qs!BK24)/(Resistance!BK24))*'Data Input'!$E$11),"0",SQRT((qc!BK24+qr!BK24-qs!BK24)/(Resistance!BK24))*'Data Input'!$E$11) -> 1287.586345
A25: Normal Day | B25: =wind_norm -> 0 | C25: 110 | D25: =IF(ISERROR(SQRT((qc!D25+qr!D25-qs!D25)/(Resistance!D25))*'Data Input'!$E$11),"0",SQRT((qc!D25+qr!D25-qs!D25)/(Resistance!D25))*'Data Input'!$E$11) -> 1976.9397 | E25: =IF(ISERROR(SQRT((qc!E25+qr!E25-qs!E25)/(Resistance!E25))*'Data Input'!$E$11),"0",SQRT((qc!E25+qr!E25-qs!E25)/(Resistance!E25))*'Data Input'!$E$11) -> 1930.683487 | F25: =IF(ISERROR(SQRT((qc!F25+qr!F25-qs!F25)/(Resistance!F25))*'Data Input'!$E$11),"0",SQRT((qc!F25+qr!F25-qs!F25)/(Resistance!F25))*'Data Input'!$E$11) -> 1883.45155 | G25: =IF(ISERROR(SQRT((qc!G25+qr!G25-qs!G25)/(Resistance!G25))*'Data Input'!$E$11),"0",SQRT((qc!G25+qr!G25-qs!G25)/(Resistance!G25))*'Data Input'!$E$11) -> 1835.150297 | H25: =IF(ISERROR(SQRT((qc!H25+qr!H25-qs!H25)/(Resistance!H25))*'Data Input'!$E$11),"0",SQRT((qc!H25+qr!H25-qs!H25)/(Resistance!H25))*'Data Input'!$E$11) -> 1785.674858 | I25: =IF(ISERROR(SQRT((qc!I25+qr!I25-qs!I25)/(Resistance!I25))*'Data Input'!$E$11),"0",SQRT((qc!I25+qr!I25-qs!I25)/(Resistance!I25))*'Data Input'!$E$11) -> 1734.906942 | J25: =IF(ISERROR(SQRT((qc!J25+qr!J25-qs!J25)/(Resistance!J25))*'Data Input'!$E$11),"0",SQRT((qc!J25+qr!J25-qs!J25)/(Resistance!J25))*'Data Input'!$E$11) -> 1682.712133 | K25: =IF(ISERROR(SQRT((qc!K25+qr!K25-qs!K25)/(Resistance!K25))*'Data Input'!$E$11),"0",SQRT((qc!K25+qr!K25-qs!K25)/(Resistance!K25))*'Data Input'!$E$11) -> 1628.936422 | L25: =IF(ISERROR(SQRT((qc!L25+qr!L25-qs!L25)/(Resistance!L25))*'Data Input'!$E$11),"0",SQRT((qc!L25+qr!L25-qs!L25)/(Resistance!L25))*'Data Input'!$E$11) -> 1573.401698 | M25: =IF(ISERROR(SQRT((qc!M25+qr!M25-qs!M25)/(Resistance!M25))*'Data Input'!$E$11),"0",SQRT((qc!M25+qr!M25-qs!M25)/(Resistance!M25))*'Data Input'!$E$11) -> 1515.899775 | N25: =IF(ISERROR(SQRT((qc!N25+qr!N25-qs!N25)/(Resistance!N25))*'Data Input'!$E$11),"0",SQRT((qc!N25+qr!N25-qs!N25)/(Resistance!N25))*'Data Input'!$E$11) -> 1456.184332 | O25: =IF(ISERROR(SQRT((qc!O25+qr!O25-qs!O25)/(Resistance!O25))*'Data Input'!$E$11),"0",SQRT((qc!O25+qr!O25-qs!O25)/(Resistance!O25))*'Data Input'!$E$11) -> 1393.9598 | Q25: Normal Day | R25: =wind_norm -> 0 | S25: 110 | T25: =IF(ISERROR(SQRT((qc!T25+qr!T25-qs!T25)/(Resistance!T25))*'Data Input'!$E$11),"0",SQRT((qc!T25+qr!T25-qs!T25)/(Resistance!T25))*'Data Input'!$E$11) -> 2311.42508 | U25: =IF(ISERROR(SQRT((qc!U25+qr!U25-qs!U25)/(Resistance!U25))*'Data Input'!$E$11),"0",SQRT((qc!U25+qr!U25-qs!U25)/(Resistance!U25))*'Data Input'!$E$11) -> 2288.698541 | V25: =IF(ISERROR(SQRT((qc!V25+qr!V25-qs!V25)/(Resistance!V25))*'Data Input'!$E$11),"0",SQRT((qc!V25+qr!V25-qs!V25)/(Resistance!V25))*'Data Input'!$E$11) -> 2265.826543 | W25: =IF(ISERROR(SQRT((qc!W25+qr!W25-qs!W25)/(Resistance!W25))*'Data Input'!$E$11),"0",SQRT((qc!W25+qr!W25-qs!W25)/(Resistance!W25))*'Data Input'!$E$11) -> 2242.801655 | X25: =IF(ISERROR(SQRT((qc!X25+qr!X25-qs!X25)/(Resistance!X25))*'Data Input'!$E$11),"0",SQRT((qc!X25+qr!X25-qs!X25)/(Resistance!X25))*'Data Input'!$E$11) -> 2219.616123 | Y25: =IF(ISERROR(SQRT((qc!Y25+qr!Y25-qs!Y25)/(Resistance!Y25))*'Data Input'!$E$11),"0",SQRT((qc!Y25+qr!Y25-qs!Y25)/(Resistance!Y25))*'Data Input'!$E$11) -> 2196.261853 | Z25: =IF(ISERROR(SQRT((qc!Z25+qr!Z25-qs!Z25)/(Resistance!Z25))*'Data Input'!$E$11),"0",SQRT((qc!Z25+qr!Z25-qs!Z25)/(Resistance!Z25))*'Data Input'!$E$11) -> 2172.730379 | AA25: =IF(ISERROR(SQRT((qc!AA25+qr!AA25-qs!AA25)/(Resistance!AA25))*'Data Input'!$E$11),"0",SQRT((qc!AA25+qr!AA25-qs!AA25)/(Resistance!AA25))*'Data Input'!$E$11) -> 2149.012846 | AB25: =IF(ISERROR(SQRT((qc!AB25+qr!AB25-qs!AB25)/(Resistance!AB25))*'Data Input'!$E$11),"0",SQRT((qc!AB25+qr!AB25-qs!AB25)/(Resistance!AB25))*'Data Input'!$E$11) -> 2125.099976 | AC25: =IF(ISERROR(SQRT((qc!AC25+qr!AC25-qs!AC25)/(Resistance!AC25))*'Data Input'!$E$11),"0",SQRT((qc!AC25+qr!AC25-qs!AC25)/(Resistance!AC25))*'Data Input'!$E$11) -> 2100.982039 | AD25: =IF(ISERROR(SQRT((qc!AD25+qr!AD25-qs!AD25)/(Resistance!AD25))*'Data Input'!$E$11),"0",SQRT((qc!AD25+qr!AD25-qs!AD25)/(Resistance!AD25))*'Data Input'!$E$11) -> 2076.648822 | AE25: =IF(ISERROR(SQRT((qc!AE25+qr!AE25-qs!AE25)/(Resistance!AE25))*'Data Input'!$E$11),"0",SQRT((qc!AE25+qr!AE25-qs!AE25)/(Resistance!AE25))*'Data Input'!$E$11) -> 2052.089588 | AF25: =IF(ISERROR(SQRT((qc!AF25+qr!AF25-qs!AF25)/(Resistance!AF25))*'Data Input'!$E$11),"0",SQRT((qc!AF25+qr!AF25-qs!AF25)/(Resistance!AF25))*'Data Input'!$E$11) -> 2027.293038 | AG25: =IF(ISERROR(SQRT((qc!AG25+qr!AG25-qs!AG25)/(Resistance!AG25))*'Data Input'!$E$11),"0",SQRT((qc!AG25+qr!AG25-qs!AG25)/(Resistance!AG25))*'Data Input'!$E$11) -> 2002.247264 | AH25: =IF(ISERROR(SQRT((qc!AH25+qr!AH25-qs!AH25)/(Resistance!AH25))*'Data Input'!$E$11),"0",SQRT((qc!AH25+qr!AH25-qs!AH25)/(Resistance!AH25))*'Data Input'!$E$11) -> 1976.9397 | AI25: =IF(ISERROR(SQRT((qc!AI25+qr!AI25-qs!AI25)/(Resistance!AI25))*'Data Input'!$E$11),"0",SQRT((qc!AI25+qr!AI25-qs!AI25)/(Resistance!AI25))*'Data Input'!$E$11) -> 1951.357065 | AJ25: =IF(ISERROR(SQRT((qc!AJ25+qr!AJ25-qs!AJ25)/(Resistance!AJ25))*'Data Input'!$E$11),"0",SQRT((qc!AJ25+qr!AJ25-qs!AJ25)/(Resistance!AJ25))*'Data Input'!$E$11) -> 1925.485301 | AK25: =IF(ISERROR(SQRT((qc!AK25+qr!AK25-qs!AK25)/(Resistance!AK25))*'Data Input'!$E$11),"0",SQRT((qc!AK25+qr!AK25-qs!AK25)/(Resistance!AK25))*'Data Input'!$E$11) -> 1899.309506 | AL25: =IF(ISERROR(SQRT((qc!AL25+qr!AL25-qs!AL25)/(Resistance!AL25))*'Data Input'!$E$11),"0",SQRT((qc!AL25+qr!AL25-qs!AL25)/(Resistance!AL25))*'Data Input'!$E$11) -> 1872.813851 | AM25: =IF(ISERROR(SQRT((qc!AM25+qr!AM25-qs!AM25)/(Resistance!AM25))*'Data Input'!$E$11),"0",SQRT((qc!AM25+qr!AM25-qs!AM25)/(Resistance!AM25))*'Data Input'!$E$11) -> 1845.981496 | AN25: =IF(ISERROR(SQRT((qc!AN25+qr!AN25-qs!AN25)/(Resistance!AN25))*'Data Input'!$E$11),"0",SQRT((qc!AN25+qr!AN25-qs!AN25)/(Resistance!AN25))*'Data Input'!$E$11) -> 1818.794492 | AO25: =IF(ISERROR(SQRT((qc!AO25+qr!AO25-qs!AO25)/(Resistance!AO25))*'Data Input'!$E$11),"0",SQRT((qc!AO25+qr!AO25-qs!AO25)/(Resistance!AO25))*'Data Input'!$E$11) -> 1791.233664 | AP25: =IF(ISERROR(SQRT((qc!AP25+qr!AP25-qs!AP25)/(Resistance!AP25))*'Data Input'!$E$11),"0",SQRT((qc!AP25+qr!AP25-qs!AP25)/(Resistance!AP25))*'Data Input'!$E$11) -> 1763.278487 | AQ25: =IF(ISERROR(SQRT((qc!AQ25+qr!AQ25-qs!AQ25)/(Resistance!AQ25))*'Data Input'!$E$11),"0",SQRT((qc!AQ25+qr!AQ25-qs!AQ25)/(Resistance!AQ25))*'Data Input'!$E$11) -> 1734.906942 | AR25: =IF(ISERROR(SQRT((qc!AR25+qr!AR25-qs!AR25)/(Resistance!AR25))*'Data Input'!$E$11),"0",SQRT((qc!AR25+qr!AR25-qs!AR25)/(Resistance!AR25))*'Data Input'!$E$11) -> 1706.095344 | AS25: =IF(ISERROR(SQRT((qc!AS25+qr!AS25-qs!AS25)/(Resistance!AS25))*'Data Input'!$E$11),"0",SQRT((qc!AS25+qr!AS25-qs!AS25)/(Resistance!AS25))*'Data Input'!$E$11) -> 1676.818153 | AT25: =IF(ISERROR(SQRT((qc!AT25+qr!AT25-qs!AT25)/(Resistance!AT25))*'Data Input'!$E$11),"0",SQRT((qc!AT25+qr!AT25-qs!AT25)/(Resistance!AT25))*'Data Input'!$E$11) -> 1647.047755 | AU25: =IF(ISERROR(SQRT((qc!AU25+qr!AU25-qs!AU25)/(Resistance!AU25))*'Data Input'!$E$11),"0",SQRT((qc!AU25+qr!AU25-qs!AU25)/(Resistance!AU25))*'Data Input'!$E$11) -> 1616.754197 | AV25: =IF(ISERROR(SQRT((qc!AV25+qr!AV25-qs!AV25)/(Resistance!AV25))*'Data Input'!$E$11),"0",SQRT((qc!AV25+qr!AV25-qs!AV25)/(Resistance!AV25))*'Data Input'!$E$11) -> 1585.904891 | AW25: =IF(ISERROR(SQRT((qc!AW25+qr!AW25-qs!AW25)/(Resistance!AW25))*'Data Input'!$E$11),"0",SQRT((qc!AW25+qr!AW25-qs!AW25)/(Resistance!AW25))*'Data Input'!$E$11) -> 1554.464256 | AX25: =IF(ISERROR(SQRT((qc!AX25+qr!AX25-qs!AX25)/(Resistance!AX25))*'Data Input'!$E$11),"0",SQRT((qc!AX25+qr!AX25-qs!AX25)/(Resistance!AX25))*'Data Input'!$E$11) -> 1522.393304 | AY25: =IF(ISERROR(SQRT((qc!AY25+qr!AY25-qs!AY25)/(Resistance!AY25))*'Data Input'!$E$11),"0",SQRT((qc!AY25+qr!AY25-qs!AY25)/(Resistance!AY25))*'Data Input'!$E$11) -> 1489.649132 | AZ25: =IF(ISERROR(SQRT((qc!AZ25+qr!AZ25-qs!AZ25)/(Resistance!AZ25))*'Data Input'!$E$11),"0",SQRT((qc!AZ25+qr!AZ25-qs!AZ25)/(Resistance!AZ25))*'Data Input'!$E$11) -> 1456.184332 | BA25: =IF(ISERROR(SQRT((qc!BA25+qr!BA25-qs!BA25)/(Resistance!BA25))*'Data Input'!$E$11),"0",SQRT((qc!BA25+qr!BA25-qs!BA25)/(Resistance!BA25))*'Data Input'!$E$11) -> 1421.946262 | BB25: =IF(ISERROR(SQRT((qc!BB25+qr!BB25-qs!BB25)/(Resistance!BB25))*'Data Input'!$E$11),"0",SQRT((qc!BB25+qr!BB25-qs!BB25)/(Resistance!BB25))*'Data Input'!$E$11) -> 1386.876167 | BC25: =IF(ISERROR(SQRT((qc!BC25+qr!BC25-qs!BC25)/(Resistance!BC25))*'Data Input'!$E$11),"0",SQRT((qc!BC25+qr!BC25-qs!BC25)/(Resistance!BC25))*'Data Input'!$E$11) -> 1350.908092 | BD25: =IF(ISERROR(SQRT((qc!BD25+qr!BD25-qs!BD25)/(Resistance!BD25))*'Data Input'!$E$11),"0",SQRT((qc!BD25+qr!BD25-qs!BD25)/(Resistance!BD25))*'Data Input'!$E$11) -> 1313.967532 | BE25: =IF(ISERROR(SQRT((qc!BE25+qr!BE25-qs!BE25)/(Resistance!BE25))*'Data Input'!$E$11),"0",SQRT((qc!BE25+qr!BE25-qs!BE25)/(Resistance!BE25))*'Data Input'!$E$11) -> 1275.969739 | BF25: =IF(ISERROR(SQRT((qc!BF25+qr!BF25-qs!BF25)/(Resistance!BF25))*'Data Input'!$E$11),"0",SQRT((qc!BF25+qr!BF25-qs!BF25)/(Resistance!BF25))*'Data Input'!$E$11) -> 1236.817559 | BG25: =IF(ISERROR(SQRT((qc!BG25+qr!BG25-qs!BG25)/(Resistance!BG25))*'Data Input'!$E$11),"0",SQRT((qc!BG25+qr!BG25-qs!BG25)/(Resistance!BG25))*'Data Input'!$E$11) -> 1196.398642 | BH25: =IF(ISERROR(SQRT((qc!BH25+qr!BH25-qs!BH25)/(Resistance!BH25))*'Data Input'!$E$11),"0",SQRT((qc!BH25+qr!BH25-qs!BH25)/(Resistance!BH25))*'Data Input'!$E$11) -> 1154.581789 | BI25: =IF(ISERROR(SQRT((qc!BI25+qr!BI25-qs!BI25)/(Resistance!BI25))*'Data Input'!$E$11),"0",SQRT((qc!BI25+qr!BI25-qs!BI25)/(Resistance!BI25))*'Data Input'!$E$11) -> 1111.212064 | BJ25: =IF(ISERROR(SQRT((qc!BJ25+qr!BJ25-qs!BJ25)/(Resistance!BJ25))*'Data Input'!$E$11),"0",SQRT((qc!BJ25+qr!BJ25-qs!BJ25)/(Resistance!BJ25))*'Data Input'!$E$11) -> 1066.10414 | BK25: =IF(ISERROR(SQRT((qc!BK25+qr!BK25-qs!BK25)/(Resistance!BK25))*'Data Input'!$E$11),"0",SQRT((qc!BK25+qr!BK25-qs!BK25)/(Resistance!BK25))*'Data Input'!$E$11) -> 1019.033026
A26: Emergency Day | B26: =wind_emer -> 2.533 | C26: 110 | D26: =IF(ISERROR(SQRT((qc!D26+qr!D26-qs!D26)/(Resistance!D26))*'Data Input'!$E$11),"0",SQRT((qc!D26+qr!D26-qs!D26)/(Resistance!D26))*'Data Input'!$E$11) -> 2377.697645 | E26: =IF(ISERROR(SQRT((qc!E26+qr!E26-qs!E26)/(Resistance!E26))*'Data Input'!$E$11),"0",SQRT((qc!E26+qr!E26-qs!E26)/(Resistance!E26))*'Data Input'!$E$11) -> 2332.056043 | F26: =IF(ISERROR(SQRT((qc!F26+qr!F26-qs!F26)/(Resistance!F26))*'Data Input'!$E$11),"0",SQRT((qc!F26+qr!F26-qs!F26)/(Resistance!F26))*'Data Input'!$E$11) -> 2285.108228 | G26: =IF(ISERROR(SQRT((qc!G26+qr!G26-qs!G26)/(Resistance!G26))*'Data Input'!$E$11),"0",SQRT((qc!G26+qr!G26-qs!G26)/(Resistance!G26))*'Data Input'!$E$11) -> 2236.7529 | H26: =IF(ISERROR(SQRT((qc!H26+qr!H26-qs!H26)/(Resistance!H26))*'Data Input'!$E$11),"0",SQRT((qc!H26+qr!H26-qs!H26)/(Resistance!H26))*'Data Input'!$E$11) -> 2186.876958 | I26: =IF(ISERROR(SQRT((qc!I26+qr!I26-qs!I26)/(Resistance!I26))*'Data Input'!$E$11),"0",SQRT((qc!I26+qr!I26-qs!I26)/(Resistance!I26))*'Data Input'!$E$11) -> 2135.353374 | J26: =IF(ISERROR(SQRT((qc!J26+qr!J26-qs!J26)/(Resistance!J26))*'Data Input'!$E$11),"0",SQRT((qc!J26+qr!J26-qs!J26)/(Resistance!J26))*'Data Input'!$E$11) -> 2082.038562 | K26: =IF(ISERROR(SQRT((qc!K26+qr!K26-qs!K26)/(Resistance!K26))*'Data Input'!$E$11),"0",SQRT((qc!K26+qr!K26-qs!K26)/(Resistance!K26))*'Data Input'!$E$11) -> 2026.769036 | L26: =IF(ISERROR(SQRT((qc!L26+qr!L26-qs!L26)/(Resistance!L26))*'Data Input'!$E$11),"0",SQRT((qc!L26+qr!L26-qs!L26)/(Resistance!L26))*'Data Input'!$E$11) -> 1969.35716 | M26: =IF(ISERROR(SQRT((qc!M26+qr!M26-qs!M26)/(Resistance!M26))*'Data Input'!$E$11),"0",SQRT((qc!M26+qr!M26-qs!M26)/(Resistance!M26))*'Data Input'!$E$11) -> 1909.585616 | N26: =IF(ISERROR(SQRT((qc!N26+qr!N26-qs!N26)/(Resistance!N26))*'Data Input'!$E$11),"0",SQRT((qc!N26+qr!N26-qs!N26)/(Resistance!N26))*'Data Input'!$E$11) -> 1847.200133 | O26: =IF(ISERROR(SQRT((qc!O26+qr!O26-qs!O26)/(Resistance!O26))*'Data Input'!$E$11),"0",SQRT((qc!O26+qr!O26-qs!O26)/(Resistance!O26))*'Data Input'!$E$11) -> 1781.899703 | Q26: Emergency Day | R26: =wind_emer -> 2.533 | S26: 110 | T26: =IF(ISERROR(SQRT((qc!T26+qr!T26-qs!T26)/(Resistance!T26))*'Data Input'!$E$11),"0",SQRT((qc!T26+qr!T26-qs!T26)/(Resistance!T26))*'Data Input'!$E$11) -> 2699.55573 | U26: =IF(ISERROR(SQRT((qc!U26+qr!U26-qs!U26)/(Resistance!U26))*'Data Input'!$E$11),"0",SQRT((qc!U26+qr!U26-qs!U26)/(Resistance!U26))*'Data Input'!$E$11) -> 2677.715243 | V26: =IF(ISERROR(SQRT((qc!V26+qr!V26-qs!V26)/(Resistance!V26))*'Data Input'!$E$11),"0",SQRT((qc!V26+qr!V26-qs!V26)/(Resistance!V26))*'Data Input'!$E$11) -> 2655.66024 | W26: =IF(ISERROR(SQRT((qc!W26+qr!W26-qs!W26)/(Resistance!W26))*'Data Input'!$E$11),"0",SQRT((qc!W26+qr!W26-qs!W26)/(Resistance!W26))*'Data Input'!$E$11) -> 2633.382538 | X26: =IF(ISERROR(SQRT((qc!X26+qr!X26-qs!X26)/(Resistance!X26))*'Data Input'!$E$11),"0",SQRT((qc!X26+qr!X26-qs!X26)/(Resistance!X26))*'Data Input'!$E$11) -> 2611.245938 | Y26: =IF(ISERROR(SQRT((qc!Y26+qr!Y26-qs!Y26)/(Resistance!Y26))*'Data Input'!$E$11),"0",SQRT((qc!Y26+qr!Y26-qs!Y26)/(Resistance!Y26))*'Data Input'!$E$11) -> 2589.224044 | Z26: =IF(ISERROR(SQRT((qc!Z26+qr!Z26-qs!Z26)/(Resistance!Z26))*'Data Input'!$E$11),"0",SQRT((qc!Z26+qr!Z26-qs!Z26)/(Resistance!Z26))*'Data Input'!$E$11) -> 2566.934121 | AA26: =IF(ISERROR(SQRT((qc!AA26+qr!AA26-qs!AA26)/(Resistance!AA26))*'Data Input'!$E$11),"0",SQRT((qc!AA26+qr!AA26-qs!AA26)/(Resistance!AA26))*'Data Input'!$E$11) -> 2544.366472 | AB26: =IF(ISERROR(SQRT((qc!AB26+qr!AB26-qs!AB26)/(Resistance!AB26))*'Data Input'!$E$11),"0",SQRT((qc!AB26+qr!AB26-qs!AB26)/(Resistance!AB26))*'Data Input'!$E$11) -> 2521.510946 | AC26: =IF(ISERROR(SQRT((qc!AC26+qr!AC26-qs!AC26)/(Resistance!AC26))*'Data Input'!$E$11),"0",SQRT((qc!AC26+qr!AC26-qs!AC26)/(Resistance!AC26))*'Data Input'!$E$11) -> 2498.356904 | AD26: =IF(ISERROR(SQRT((qc!AD26+qr!AD26-qs!AD26)/(Resistance!AD26))*'Data Input'!$E$11),"0",SQRT((qc!AD26+qr!AD26-qs!AD26)/(Resistance!AD26))*'Data Input'!$E$11) -> 2474.893183 | AE26: =IF(ISERROR(SQRT((qc!AE26+qr!AE26-qs!AE26)/(Resistance!AE26))*'Data Input'!$E$11),"0",SQRT((qc!AE26+qr!AE26-qs!AE26)/(Resistance!AE26))*'Data Input'!$E$11) -> 2451.108057 | AF26: =IF(ISERROR(SQRT((qc!AF26+qr!AF26-qs!AF26)/(Resistance!AF26))*'Data Input'!$E$11),"0",SQRT((qc!AF26+qr!AF26-qs!AF26)/(Resistance!AF26))*'Data Input'!$E$11) -> 2426.989197 | AG26: =IF(ISERROR(SQRT((qc!AG26+qr!AG26-qs!AG26)/(Resistance!AG26))*'Data Input'!$E$11),"0",SQRT((qc!AG26+qr!AG26-qs!AG26)/(Resistance!AG26))*'Data Input'!$E$11) -> 2402.523621 | AH26: =IF(ISERROR(SQRT((qc!AH26+qr!AH26-qs!AH26)/(Resistance!AH26))*'Data Input'!$E$11),"0",SQRT((qc!AH26+qr!AH26-qs!AH26)/(Resistance!AH26))*'Data Input'!$E$11) -> 2377.697645 | AI26: =IF(ISERROR(SQRT((qc!AI26+qr!AI26-qs!AI26)/(Resistance!AI26))*'Data Input'!$E$11),"0",SQRT((qc!AI26+qr!AI26-qs!AI26)/(Resistance!AI26))*'Data Input'!$E$11) -> 2352.496822 | AJ26: =IF(ISERROR(SQRT((qc!AJ26+qr!AJ26-qs!AJ26)/(Resistance!AJ26))*'Data Input'!$E$11),"0",SQRT((qc!AJ26+qr!AJ26-qs!AJ26)/(Resistance!AJ26))*'Data Input'!$E$11) -> 2326.905883 | AK26: =IF(ISERROR(SQRT((qc!AK26+qr!AK26-qs!AK26)/(Resistance!AK26))*'Data Input'!$E$11),"0",SQRT((qc!AK26+qr!AK26-qs!AK26)/(Resistance!AK26))*'Data Input'!$E$11) -> 2300.908662 | AL26: =IF(ISERROR(SQRT((qc!AL26+qr!AL26-qs!AL26)/(Resistance!AL26))*'Data Input'!$E$11),"0",SQRT((qc!AL26+qr!AL26-qs!AL26)/(Resistance!AL26))*'Data Input'!$E$11) -> 2274.48802 | AM26: =IF(ISERROR(SQRT((qc!AM26+qr!AM26-qs!AM26)/(Resistance!AM26))*'Data Input'!$E$11),"0",SQRT((qc!AM26+qr!AM26-qs!AM26)/(Resistance!AM26))*'Data Input'!$E$11) -> 2247.625756 | AN26: =IF(ISERROR(SQRT((qc!AN26+qr!AN26-qs!AN26)/(Resistance!AN26))*'Data Input'!$E$11),"0",SQRT((qc!AN26+qr!AN26-qs!AN26)/(Resistance!AN26))*'Data Input'!$E$11) -> 2220.302507 | AO26: =IF(ISERROR(SQRT((qc!AO26+qr!AO26-qs!AO26)/(Resistance!AO26))*'Data Input'!$E$11),"0",SQRT((qc!AO26+qr!AO26-qs!AO26)/(Resistance!AO26))*'Data Input'!$E$11) -> 2192.497638 | AP26: =IF(ISERROR(SQRT((qc!AP26+qr!AP26-qs!AP26)/(Resistance!AP26))*'Data Input'!$E$11),"0",SQRT((qc!AP26+qr!AP26-qs!AP26)/(Resistance!AP26))*'Data Input'!$E$11) -> 2164.189118 | AQ26: =IF(ISERROR(SQRT((qc!AQ26+qr!AQ26-qs!AQ26)/(Resistance!AQ26))*'Data Input'!$E$11),"0",SQRT((qc!AQ26+qr!AQ26-qs!AQ26)/(Resistance!AQ26))*'Data Input'!$E$11) -> 2135.353374 | AR26: =IF(ISERROR(SQRT((qc!AR26+qr!AR26-qs!AR26)/(Resistance!AR26))*'Data Input'!$E$11),"0",SQRT((qc!AR26+qr!AR26-qs!AR26)/(Resistance!AR26))*'Data Input'!$E$11) -> 2105.965134 | AS26: =IF(ISERROR(SQRT((qc!AS26+qr!AS26-qs!AS26)/(Resistance!AS26))*'Data Input'!$E$11),"0",SQRT((qc!AS26+qr!AS26-qs!AS26)/(Resistance!AS26))*'Data Input'!$E$11) -> 2075.997238 | AT26: =IF(ISERROR(SQRT((qc!AT26+qr!AT26-qs!AT26)/(Resistance!AT26))*'Data Input'!$E$11),"0",SQRT((qc!AT26+qr!AT26-qs!AT26)/(Resistance!AT26))*'Data Input'!$E$11) -> 2045.420433 | AU26: =IF(ISERROR(SQRT((qc!AU26+qr!AU26-qs!AU26)/(Resistance!AU26))*'Data Input'!$E$11),"0",SQRT((qc!AU26+qr!AU26-qs!AU26)/(Resistance!AU26))*'Data Input'!$E$11) -> 2014.203126 | AV26: =IF(ISERROR(SQRT((qc!AV26+qr!AV26-qs!AV26)/(Resistance!AV26))*'Data Input'!$E$11),"0",SQRT((qc!AV26+qr!AV26-qs!AV26)/(Resistance!AV26))*'Data Input'!$E$11) -> 1982.311104 | AW26: =IF(ISERROR(SQRT((qc!AW26+qr!AW26-qs!AW26)/(Resistance!AW26))*'Data Input'!$E$11),"0",SQRT((qc!AW26+qr!AW26-qs!AW26)/(Resistance!AW26))*'Data Input'!$E$11) -> 1949.707212 | AX26: =IF(ISERROR(SQRT((qc!AX26+qr!AX26-qs!AX26)/(Resistance!AX26))*'Data Input'!$E$11),"0",SQRT((qc!AX26+qr!AX26-qs!AX26)/(Resistance!AX26))*'Data Input'!$E$11) -> 1916.350969 | AY26: =IF(ISERROR(SQRT((qc!AY26+qr!AY26-qs!AY26)/(Resistance!AY26))*'Data Input'!$E$11),"0",SQRT((qc!AY26+qr!AY26-qs!AY26)/(Resistance!AY26))*'Data Input'!$E$11) -> 1882.198125 | AZ26: =IF(ISERROR(SQRT((qc!AZ26+qr!AZ26-qs!AZ26)/(Resistance!AZ26))*'Data Input'!$E$11),"0",SQRT((qc!AZ26+qr!AZ26-qs!AZ26)/(Resistance!AZ26))*'Data Input'!$E$11) -> 1847.200133 | BA26: =IF(ISERROR(SQRT((qc!BA26+qr!BA26-qs!BA26)/(Resistance!BA26))*'Data Input'!$E$11),"0",SQRT((qc!BA26+qr!BA26-qs!BA26)/(Resistance!BA26))*'Data Input'!$E$11) -> 1811.303524 | BB26: =IF(ISERROR(SQRT((qc!BB26+qr!BB26-qs!BB26)/(Resistance!BB26))*'Data Input'!$E$11),"0",SQRT((qc!BB26+qr!BB26-qs!BB26)/(Resistance!BB26))*'Data Input'!$E$11) -> 1774.449157 | BC26: =IF(ISERROR(SQRT((qc!BC26+qr!BC26-qs!BC26)/(Resistance!BC26))*'Data Input'!$E$11),"0",SQRT((qc!BC26+qr!BC26-qs!BC26)/(Resistance!BC26))*'Data Input'!$E$11) -> 1736.571317 | BD26: =IF(ISERROR(SQRT((qc!BD26+qr!BD26-qs!BD26)/(Resistance!BD26))*'Data Input'!$E$11),"0",SQRT((qc!BD26+qr!BD26-qs!BD26)/(Resistance!BD26))*'Data Input'!$E$11) -> 1697.596616 | BE26: =IF(ISERROR(SQRT((qc!BE26+qr!BE26-qs!BE26)/(Resistance!BE26))*'Data Input'!$E$11),"0",SQRT((qc!BE26+qr!BE26-qs!BE26)/(Resistance!BE26))*'Data Input'!$E$11) -> 1657.442643 | BF26: =IF(ISERROR(SQRT((qc!BF26+qr!BF26-qs!BF26)/(Resistance!BF26))*'Data Input'!$E$11),"0",SQRT((qc!BF26+qr!BF26-qs!BF26)/(Resistance!BF26))*'Data Input'!$E$11) -> 1616.016297 | BG26: =IF(ISERROR(SQRT((qc!BG26+qr!BG26-qs!BG26)/(Resistance!BG26))*'Data Input'!$E$11),"0",SQRT((qc!BG26+qr!BG26-qs!BG26)/(Resistance!BG26))*'Data Input'!$E$11) -> 1573.211691 | BH26: =IF(ISERROR(SQRT((qc!BH26+qr!BH26-qs!BH26)/(Resistance!BH26))*'Data Input'!$E$11),"0",SQRT((qc!BH26+qr!BH26-qs!BH26)/(Resistance!BH26))*'Data Input'!$E$11) -> 1528.907498 | BI26: =IF(ISERROR(SQRT((qc!BI26+qr!BI26-qs!BI26)/(Resistance!BI26))*'Data Input'!$E$11),"0",SQRT((qc!BI26+qr!BI26-qs!BI26)/(Resistance!BI26))*'Data Input'!$E$11) -> 1482.96354 | BJ26: =IF(ISERROR(SQRT((qc!BJ26+qr!BJ26-qs!BJ26)/(Resistance!BJ26))*'Data Input'!$E$11),"0",SQRT((qc!BJ26+qr!BJ26-qs!BJ26)/(Resistance!BJ26))*'Data Input'!$E$11) -> 1435.216335 | BK26: =IF(ISERROR(SQRT((qc!BK26+qr!BK26-qs!BK26)/(Resistance!BK26))*'Data Input'!$E$11),"0",SQRT((qc!BK26+qr!BK26-qs!BK26)/(Resistance!BK26))*'Data Input'!$E$11) -> 1385.473186
A27: Normal Day | B27: =wind_norm -> 0 | C27: 115 | D27: =IF(ISERROR(SQRT((qc!D27+qr!D27-qs!D27)/(Resistance!D27))*'Data Input'!$E$11),"0",SQRT((qc!D27+qr!D27-qs!D27)/(Resistance!D27))*'Data Input'!$E$11) -> 2022.184955 | E27: =IF(ISERROR(SQRT((qc!E27+qr!E27-qs!E27)/(Resistance!E27))*'Data Input'!$E$11),"0",SQRT((qc!E27+qr!E27-qs!E27)/(Resistance!E27))*'Data Input'!$E$11) -> 1977.286967 | F27: =IF(ISERROR(SQRT((qc!F27+qr!F27-qs!F27)/(Resistance!F27))*'Data Input'!$E$11),"0",SQRT((qc!F27+qr!F27-qs!F27)/(Resistance!F27))*'Data Input'!$E$11) -> 1931.487861 | G27: =IF(ISERROR(SQRT((qc!G27+qr!G27-qs!G27)/(Resistance!G27))*'Data Input'!$E$11),"0",SQRT((qc!G27+qr!G27-qs!G27)/(Resistance!G27))*'Data Input'!$E$11) -> 1884.703731 | H27: =IF(ISERROR(SQRT((qc!H27+qr!H27-qs!H27)/(Resistance!H27))*'Data Input'!$E$11),"0",SQRT((qc!H27+qr!H27-qs!H27)/(Resistance!H27))*'Data Input'!$E$11) -> 1836.841155 | I27: =IF(ISERROR(SQRT((qc!I27+qr!I27-qs!I27)/(Resistance!I27))*'Data Input'!$E$11),"0",SQRT((qc!I27+qr!I27-qs!I27)/(Resistance!I27))*'Data Input'!$E$11) -> 1787.795499 | J27: =IF(ISERROR(SQRT((qc!J27+qr!J27-qs!J27)/(Resistance!J27))*'Data Input'!$E$11),"0",SQRT((qc!J27+qr!J27-qs!J27)/(Resistance!J27))*'Data Input'!$E$11) -> 1737.448798 | K27: =IF(ISERROR(SQRT((qc!K27+qr!K27-qs!K27)/(Resistance!K27))*'Data Input'!$E$11),"0",SQRT((qc!K27+qr!K27-qs!K27)/(Resistance!K27))*'Data Input'!$E$11) -> 1685.66708 | L27: =IF(ISERROR(SQRT((qc!L27+qr!L27-qs!L27)/(Resistance!L27))*'Data Input'!$E$11),"0",SQRT((qc!L27+qr!L27-qs!L27)/(Resistance!L27))*'Data Input'!$E$11) -> 1632.296941 | M27: =IF(ISERROR(SQRT((qc!M27+qr!M27-qs!M27)/(Resistance!M27))*'Data Input'!$E$11),"0",SQRT((qc!M27+qr!M27-qs!M27)/(Resistance!M27))*'Data Input'!$E$11) -> 1577.161083 | N27: =IF(ISERROR(SQRT((qc!N27+qr!N27-qs!N27)/(Resistance!N27))*'Data Input'!$E$11),"0",SQRT((qc!N27+qr!N27-qs!N27)/(Resistance!N27))*'Data Input'!$E$11) -> 1520.052434 | O27: =IF(ISERROR(SQRT((qc!O27+qr!O27-qs!O27)/(Resistance!O27))*'Data Input'!$E$11),"0",SQRT((qc!O27+qr!O27-qs!O27)/(Resistance!O27))*'Data Input'!$E$11) -> 1460.726203 | Q27: Normal Day | R27: =wind_norm -> 0 | S27: 115 | T27: =IF(ISERROR(SQRT((qc!T27+qr!T27-qs!T27)/(Resistance!T27))*'Data Input'!$E$11),"0",SQRT((qc!T27+qr!T27-qs!T27)/(Resistance!T27))*'Data Input'!$E$11) -> 2347.915626 | U27: =IF(ISERROR(SQRT((qc!U27+qr!U27-qs!U27)/(Resistance!U27))*'Data Input'!$E$11),"0",SQRT((qc!U27+qr!U27-qs!U27)/(Resistance!U27))*'Data Input'!$E$11) -> 2325.734662 | V27: =IF(ISERROR(SQRT((qc!V27+qr!V27-qs!V27)/(Resistance!V27))*'Data Input'!$E$11),"0",SQRT((qc!V27+qr!V27-qs!V27)/(Resistance!V27))*'Data Input'!$E$11) -> 2303.417945 | W27: =IF(ISERROR(SQRT((qc!W27+qr!W27-qs!W27)/(Resistance!W27))*'Data Input'!$E$11),"0",SQRT((qc!W27+qr!W27-qs!W27)/(Resistance!W27))*'Data Input'!$E$11) -> 2280.958569 | X27: =IF(ISERROR(SQRT((qc!X27+qr!X27-qs!X27)/(Resistance!X27))*'Data Input'!$E$11),"0",SQRT((qc!X27+qr!X27-qs!X27)/(Resistance!X27))*'Data Input'!$E$11) -> 2258.349341 | Y27: =IF(ISERROR(SQRT((qc!Y27+qr!Y27-qs!Y27)/(Resistance!Y27))*'Data Input'!$E$11),"0",SQRT((qc!Y27+qr!Y27-qs!Y27)/(Resistance!Y27))*'Data Input'!$E$11) -> 2235.582763 | Z27: =IF(ISERROR(SQRT((qc!Z27+qr!Z27-qs!Z27)/(Resistance!Z27))*'Data Input'!$E$11),"0",SQRT((qc!Z27+qr!Z27-qs!Z27)/(Resistance!Z27))*'Data Input'!$E$11) -> 2212.65101 | AA27: =IF(ISERROR(SQRT((qc!AA27+qr!AA27-qs!AA27)/(Resistance!AA27))*'Data Input'!$E$11),"0",SQRT((qc!AA27+qr!AA27-qs!AA27)/(Resistance!AA27))*'Data Input'!$E$11) -> 2189.545909 | AB27: =IF(ISERROR(SQRT((qc!AB27+qr!AB27-qs!AB27)/(Resistance!AB27))*'Data Input'!$E$11),"0",SQRT((qc!AB27+qr!AB27-qs!AB27)/(Resistance!AB27))*'Data Input'!$E$11) -> 2166.258918 | AC27: =IF(ISERROR(SQRT((qc!AC27+qr!AC27-qs!AC27)/(Resistance!AC27))*'Data Input'!$E$11),"0",SQRT((qc!AC27+qr!AC27-qs!AC27)/(Resistance!AC27))*'Data Input'!$E$11) -> 2142.781094 | AD27: =IF(ISERROR(SQRT((qc!AD27+qr!AD27-qs!AD27)/(Resistance!AD27))*'Data Input'!$E$11),"0",SQRT((qc!AD27+qr!AD27-qs!AD27)/(Resistance!AD27))*'Data Input'!$E$11) -> 2119.103072 | AE27: =IF(ISERROR(SQRT((qc!AE27+qr!AE27-qs!AE27)/(Resistance!AE27))*'Data Input'!$E$11),"0",SQRT((qc!AE27+qr!AE27-qs!AE27)/(Resistance!AE27))*'Data Input'!$E$11) -> 2095.215029 | AF27: =IF(ISERROR(SQRT((qc!AF27+qr!AF27-qs!AF27)/(Resistance!AF27))*'Data Input'!$E$11),"0",SQRT((qc!AF27+qr!AF27-qs!AF27)/(Resistance!AF27))*'Data Input'!$E$11) -> 2071.106651 | AG27: =IF(ISERROR(SQRT((qc!AG27+qr!AG27-qs!AG27)/(Resistance!AG27))*'Data Input'!$E$11),"0",SQRT((qc!AG27+qr!AG27-qs!AG27)/(Resistance!AG27))*'Data Input'!$E$11) -> 2046.767096 | AH27: =IF(ISERROR(SQRT((qc!AH27+qr!AH27-qs!AH27)/(Resistance!AH27))*'Data Input'!$E$11),"0",SQRT((qc!AH27+qr!AH27-qs!AH27)/(Resistance!AH27))*'Data Input'!$E$11) -> 2022.184955 | AI27: =IF(ISERROR(SQRT((qc!AI27+qr!AI27-qs!AI27)/(Resistance!AI27))*'Data Input'!$E$11),"0",SQRT((qc!AI27+qr!AI27-qs!AI27)/(Resistance!AI27))*'Data Input'!$E$11) -> 1997.348199 | AJ27: =IF(ISERROR(SQRT((qc!AJ27+qr!AJ27-qs!AJ27)/(Resistance!AJ27))*'Data Input'!$E$11),"0",SQRT((qc!AJ27+qr!AJ27-qs!AJ27)/(Resistance!AJ27))*'Data Input'!$E$11) -> 1972.244137 | AK27: =IF(ISERROR(SQRT((qc!AK27+qr!AK27-qs!AK27)/(Resistance!AK27))*'Data Input'!$E$11),"0",SQRT((qc!AK27+qr!AK27-qs!AK27)/(Resistance!AK27))*'Data Input'!$E$11) -> 1946.859352 | AL27: =IF(ISERROR(SQRT((qc!AL27+qr!AL27-qs!AL27)/(Resistance!AL27))*'Data Input'!$E$11),"0",SQRT((qc!AL27+qr!AL27-qs!AL27)/(Resistance!AL27))*'Data Input'!$E$11) -> 1921.179643 | AM27: =IF(ISERROR(SQRT((qc!AM27+qr!AM27-qs!AM27)/(Resistance!AM27))*'Data Input'!$E$11),"0",SQRT((qc!AM27+qr!AM27-qs!AM27)/(Resistance!AM27))*'Data Input'!$E$11) -> 1895.189952 | AN27: =IF(ISERROR(SQRT((qc!AN27+qr!AN27-qs!AN27)/(Resistance!AN27))*'Data Input'!$E$11),"0",SQRT((qc!AN27+qr!AN27-qs!AN27)/(Resistance!AN27))*'Data Input'!$E$11) -> 1868.874285 | AO27: =IF(ISERROR(SQRT((qc!AO27+qr!AO27-qs!AO27)/(Resistance!AO27))*'Data Input'!$E$11),"0",SQRT((qc!AO27+qr!AO27-qs!AO27)/(Resistance!AO27))*'Data Input'!$E$11) -> 1842.215622 | AP27: =IF(ISERROR(SQRT((qc!AP27+qr!AP27-qs!AP27)/(Resistance!AP27))*'Data Input'!$E$11),"0",SQRT((qc!AP27+qr!AP27-qs!AP27)/(Resistance!AP27))*'Data Input'!$E$11) -> 1815.195822 | AQ27: =IF(ISERROR(SQRT((qc!AQ27+qr!AQ27-qs!AQ27)/(Resistance!AQ27))*'Data Input'!$E$11),"0",SQRT((qc!AQ27+qr!AQ27-qs!AQ27)/(Resistance!AQ27))*'Data Input'!$E$11) -> 1787.795499 | AR27: =IF(ISERROR(SQRT((qc!AR27+qr!AR27-qs!AR27)/(Resistance!AR27))*'Data Input'!$E$11),"0",SQRT((qc!AR27+qr!AR27-qs!AR27)/(Resistance!AR27))*'Data Input'!$E$11) -> 1759.993902 | AS27: =IF(ISERROR(SQRT((qc!AS27+qr!AS27-qs!AS27)/(Resistance!AS27))*'Data Input'!$E$11),"0",SQRT((qc!AS27+qr!AS27-qs!AS27)/(Resistance!AS27))*'Data Input'!$E$11) -> 1731.768762 | AT27: =IF(ISERROR(SQRT((qc!AT27+qr!AT27-qs!AT27)/(Resistance!AT27))*'Data Input'!$E$11),"0",SQRT((qc!AT27+qr!AT27-qs!AT27)/(Resistance!AT27))*'Data Input'!$E$11) -> 1703.096125 | AU27: =IF(ISERROR(SQRT((qc!AU27+qr!AU27-qs!AU27)/(Resistance!AU27))*'Data Input'!$E$11),"0",SQRT((qc!AU27+qr!AU27-qs!AU27)/(Resistance!AU27))*'Data Input'!$E$11) -> 1673.950153 | AV27: =IF(ISERROR(SQRT((qc!AV27+qr!AV27-qs!AV27)/(Resistance!AV27))*'Data Input'!$E$11),"0",SQRT((qc!AV27+qr!AV27-qs!AV27)/(Resistance!AV27))*'Data Input'!$E$11) -> 1644.302903 | AW27: =IF(ISERROR(SQRT((qc!AW27+qr!AW27-qs!AW27)/(Resistance!AW27))*'Data Input'!$E$11),"0",SQRT((qc!AW27+qr!AW27-qs!AW27)/(Resistance!AW27))*'Data Input'!$E$11) -> 1614.12406 | AX27: =IF(ISERROR(SQRT((qc!AX27+qr!AX27-qs!AX27)/(Resistance!AX27))*'Data Input'!$E$11),"0",SQRT((qc!AX27+qr!AX27-qs!AX27)/(Resistance!AX27))*'Data Input'!$E$11) -> 1583.380632 | AY27: =IF(ISERROR(SQRT((qc!AY27+qr!AY27-qs!AY27)/(Resistance!AY27))*'Data Input'!$E$11),"0",SQRT((qc!AY27+qr!AY27-qs!AY27)/(Resistance!AY27))*'Data Input'!$E$11) -> 1552.036589 | AZ27: =IF(ISERROR(SQRT((qc!AZ27+qr!AZ27-qs!AZ27)/(Resistance!AZ27))*'Data Input'!$E$11),"0",SQRT((qc!AZ27+qr!AZ27-qs!AZ27)/(Resistance!AZ27))*'Data Input'!$E$11) -> 1520.052434 | BA27: =IF(ISERROR(SQRT((qc!BA27+qr!BA27-qs!BA27)/(Resistance!BA27))*'Data Input'!$E$11),"0",SQRT((qc!BA27+qr!BA27-qs!BA27)/(Resistance!BA27))*'Data Input'!$E$11) -> 1487.384696 | BB27: =IF(ISERROR(SQRT((qc!BB27+qr!BB27-qs!BB27)/(Resistance!BB27))*'Data Input'!$E$11),"0",SQRT((qc!BB27+qr!BB27-qs!BB27)/(Resistance!BB27))*'Data Input'!$E$11) -> 1453.985317 | BC27: =IF(ISERROR(SQRT((qc!BC27+qr!BC27-qs!BC27)/(Resistance!BC27))*'Data Input'!$E$11),"0",SQRT((qc!BC27+qr!BC27-qs!BC27)/(Resistance!BC27))*'Data Input'!$E$11) -> 1419.800915 | BD27: =IF(ISERROR(SQRT((qc!BD27+qr!BD27-qs!BD27)/(Resistance!BD27))*'Data Input'!$E$11),"0",SQRT((qc!BD27+qr!BD27-qs!BD27)/(Resistance!BD27))*'Data Input'!$E$11) -> 1384.77188 | BE27: =IF(ISERROR(SQRT((qc!BE27+qr!BE27-qs!BE27)/(Resistance!BE27))*'Data Input'!$E$11),"0",SQRT((qc!BE27+qr!BE27-qs!BE27)/(Resistance!BE27))*'Data Input'!$E$11) -> 1348.831267 | BF27: =IF(ISERROR(SQRT((qc!BF27+qr!BF27-qs!BF27)/(Resistance!BF27))*'Data Input'!$E$11),"0",SQRT((qc!BF27+qr!BF27-qs!BF27)/(Resistance!BF27))*'Data Input'!$E$11) -> 1311.90341 | BG27: =IF(ISERROR(SQRT((qc!BG27+qr!BG27-qs!BG27)/(Resistance!BG27))*'Data Input'!$E$11),"0",SQRT((qc!BG27+qr!BG27-qs!BG27)/(Resistance!BG27))*'Data Input'!$E$11) -> 1273.902191 | BH27: =IF(ISERROR(SQRT((qc!BH27+qr!BH27-qs!BH27)/(Resistance!BH27))*'Data Input'!$E$11),"0",SQRT((qc!BH27+qr!BH27-qs!BH27)/(Resistance!BH27))*'Data Input'!$E$11) -> 1234.728815 | BI27: =IF(ISERROR(SQRT((qc!BI27+qr!BI27-qs!BI27)/(Resistance!BI27))*'Data Input'!$E$11),"0",SQRT((qc!BI27+qr!BI27-qs!BI27)/(Resistance!BI27))*'Data Input'!$E$11) -> 1194.268954 | BJ27: =IF(ISERROR(SQRT((qc!BJ27+qr!BJ27-qs!BJ27)/(Resistance!BJ27))*'Data Input'!$E$11),"0",SQRT((qc!BJ27+qr!BJ27-qs!BJ27)/(Resistance!BJ27))*'Data Input'!$E$11) -> 1152.388977 | BK27: =IF(ISERROR(SQRT((qc!BK27+qr!BK27-qs!BK27)/(Resistance!BK27))*'Data Input'!$E$11),"0",SQRT((qc!BK27+qr!BK27-qs!BK27)/(Resistance!BK27))*'Data Input'!$E$11) -> 1108.930923
A28: Emergency Day | B28: =wind_emer -> 2.533 | C28: 115 | D28: =IF(ISERROR(SQRT((qc!D28+qr!D28-qs!D28)/(Resistance!D28))*'Data Input'!$E$11),"0",SQRT((qc!D28+qr!D28-qs!D28)/(Resistance!D28))*'Data Input'!$E$11) -> 2421.104275 | E28: =IF(ISERROR(SQRT((qc!E28+qr!E28-qs!E28)/(Resistance!E28))*'Data Input'!$E$11),"0",SQRT((qc!E28+qr!E28-qs!E28)/(Resistance!E28))*'Data Input'!$E$11) -> 2376.913947 | F28: =IF(ISERROR(SQRT((qc!F28+qr!F28-qs!F28)/(Resistance!F28))*'Data Input'!$E$11),"0",SQRT((qc!F28+qr!F28-qs!F28)/(Resistance!F28))*'Data Input'!$E$11) -> 2331.503537 | G28: =IF(ISERROR(SQRT((qc!G28+qr!G28-qs!G28)/(Resistance!G28))*'Data Input'!$E$11),"0",SQRT((qc!G28+qr!G28-qs!G28)/(Resistance!G28))*'Data Input'!$E$11) -> 2284.781936 | H28: =IF(ISERROR(SQRT((qc!H28+qr!H28-qs!H28)/(Resistance!H28))*'Data Input'!$E$11),"0",SQRT((qc!H28+qr!H28-qs!H28)/(Resistance!H28))*'Data Input'!$E$11) -> 2236.647977 | I28: =IF(ISERROR(SQRT((qc!I28+qr!I28-qs!I28)/(Resistance!I28))*'Data Input'!$E$11),"0",SQRT((qc!I28+qr!I28-qs!I28)/(Resistance!I28))*'Data Input'!$E$11) -> 2186.988719 | J28: =IF(ISERROR(SQRT((qc!J28+qr!J28-qs!J28)/(Resistance!J28))*'Data Input'!$E$11),"0",SQRT((qc!J28+qr!J28-qs!J28)/(Resistance!J28))*'Data Input'!$E$11) -> 2135.677344 | K28: =IF(ISERROR(SQRT((qc!K28+qr!K28-qs!K28)/(Resistance!K28))*'Data Input'!$E$11),"0",SQRT((qc!K28+qr!K28-qs!K28)/(Resistance!K28))*'Data Input'!$E$11) -> 2082.570525 | L28: =IF(ISERROR(SQRT((qc!L28+qr!L28-qs!L28)/(Resistance!L28))*'Data Input'!$E$11),"0",SQRT((qc!L28+qr!L28-qs!L28)/(Resistance!L28))*'Data Input'!$E$11) -> 2027.50511 | M28: =IF(ISERROR(SQRT((qc!M28+qr!M28-qs!M28)/(Resistance!M28))*'Data Input'!$E$11),"0",SQRT((qc!M28+qr!M28-qs!M28)/(Resistance!M28))*'Data Input'!$E$11) -> 1970.293884 | N28: =IF(ISERROR(SQRT((qc!N28+qr!N28-qs!N28)/(Resistance!N28))*'Data Input'!$E$11),"0",SQRT((qc!N28+qr!N28-qs!N28)/(Resistance!N28))*'Data Input'!$E$11) -> 1910.720079 | O28: =IF(ISERROR(SQRT((qc!O28+qr!O28-qs!O28)/(Resistance!O28))*'Data Input'!$E$11),"0",SQRT((qc!O28+qr!O28-qs!O28)/(Resistance!O28))*'Data Input'!$E$11) -> 1848.530138 | Q28: Emergency Day | R28: =wind_emer -> 2.533 | S28: 115 | T28: =IF(ISERROR(SQRT((qc!T28+qr!T28-qs!T28)/(Resistance!T28))*'Data Input'!$E$11),"0",SQRT((qc!T28+qr!T28-qs!T28)/(Resistance!T28))*'Data Input'!$E$11) -> 2732.421501 | U28: =IF(ISERROR(SQRT((qc!U28+qr!U28-qs!U28)/(Resistance!U28))*'Data Input'!$E$11),"0",SQRT((qc!U28+qr!U28-qs!U28)/(Resistance!U28))*'Data Input'!$E$11) -> 2711.154141 | V28: =IF(ISERROR(SQRT((qc!V28+qr!V28-qs!V28)/(Resistance!V28))*'Data Input'!$E$11),"0",SQRT((qc!V28+qr!V28-qs!V28)/(Resistance!V28))*'Data Input'!$E$11) -> 2689.913623 | W28: =IF(ISERROR(SQRT((qc!W28+qr!W28-qs!W28)/(Resistance!W28))*'Data Input'!$E$11),"0",SQRT((qc!W28+qr!W28-qs!W28)/(Resistance!W28))*'Data Input'!$E$11) -> 2668.980587 | X28: =IF(ISERROR(SQRT((qc!X28+qr!X28-qs!X28)/(Resistance!X28))*'Data Input'!$E$11),"0",SQRT((qc!X28+qr!X28-qs!X28)/(Resistance!X28))*'Data Input'!$E$11) -> 2647.81103 | Y28: =IF(ISERROR(SQRT((qc!Y28+qr!Y28-qs!Y28)/(Resistance!Y28))*'Data Input'!$E$11),"0",SQRT((qc!Y28+qr!Y28-qs!Y28)/(Resistance!Y28))*'Data Input'!$E$11) -> 2626.396742 | Z28: =IF(ISERROR(SQRT((qc!Z28+qr!Z28-qs!Z28)/(Resistance!Z28))*'Data Input'!$E$11),"0",SQRT((qc!Z28+qr!Z28-qs!Z28)/(Resistance!Z28))*'Data Input'!$E$11) -> 2604.729157 | AA28: =IF(ISERROR(SQRT((qc!AA28+qr!AA28-qs!AA28)/(Resistance!AA28))*'Data Input'!$E$11),"0",SQRT((qc!AA28+qr!AA28-qs!AA28)/(Resistance!AA28))*'Data Input'!$E$11) -> 2582.799332 | AB28: =IF(ISERROR(SQRT((qc!AB28+qr!AB28-qs!AB28)/(Resistance!AB28))*'Data Input'!$E$11),"0",SQRT((qc!AB28+qr!AB28-qs!AB28)/(Resistance!AB28))*'Data Input'!$E$11) -> 2560.59792 | AC28: =IF(ISERROR(SQRT((qc!AC28+qr!AC28-qs!AC28)/(Resistance!AC28))*'Data Input'!$E$11),"0",SQRT((qc!AC28+qr!AC28-qs!AC28)/(Resistance!AC28))*'Data Input'!$E$11) -> 2538.11514 | AD28: =IF(ISERROR(SQRT((qc!AD28+qr!AD28-qs!AD28)/(Resistance!AD28))*'Data Input'!$E$11),"0",SQRT((qc!AD28+qr!AD28-qs!AD28)/(Resistance!AD28))*'Data Input'!$E$11) -> 2515.340754 | AE28: =IF(ISERROR(SQRT((qc!AE28+qr!AE28-qs!AE28)/(Resistance!AE28))*'Data Input'!$E$11),"0",SQRT((qc!AE28+qr!AE28-qs!AE28)/(Resistance!AE28))*'Data Input'!$E$11) -> 2492.264028 | AF28: =IF(ISERROR(SQRT((qc!AF28+qr!AF28-qs!AF28)/(Resistance!AF28))*'Data Input'!$E$11),"0",SQRT((qc!AF28+qr!AF28-qs!AF28)/(Resistance!AF28))*'Data Input'!$E$11) -> 2468.873696 | AG28: =IF(ISERROR(SQRT((qc!AG28+qr!AG28-qs!AG28)/(Resistance!AG28))*'Data Input'!$E$11),"0",SQRT((qc!AG28+qr!AG28-qs!AG28)/(Resistance!AG28))*'Data Input'!$E$11) -> 2445.157927 | AH28: =IF(ISERROR(SQRT((qc!AH28+qr!AH28-qs!AH28)/(Resistance!AH28))*'Data Input'!$E$11),"0",SQRT((qc!AH28+qr!AH28-qs!AH28)/(Resistance!AH28))*'Data Input'!$E$11) -> 2421.104275 | AI28: =IF(ISERROR(SQRT((qc!AI28+qr!AI28-qs!AI28)/(Resistance!AI28))*'Data Input'!$E$11),"0",SQRT((qc!AI28+qr!AI28-qs!AI28)/(Resistance!AI28))*'Data Input'!$E$11) -> 2396.699633 | AJ28: =IF(ISERROR(SQRT((qc!AJ28+qr!AJ28-qs!AJ28)/(Resistance!AJ28))*'Data Input'!$E$11),"0",SQRT((qc!AJ28+qr!AJ28-qs!AJ28)/(Resistance!AJ28))*'Data Input'!$E$11) -> 2371.930184 | AK28: =IF(ISERROR(SQRT((qc!AK28+qr!AK28-qs!AK28)/(Resistance!AK28))*'Data Input'!$E$11),"0",SQRT((qc!AK28+qr!AK28-qs!AK28)/(Resistance!AK28))*'Data Input'!$E$11) -> 2346.781337 | AL28: =IF(ISERROR(SQRT((qc!AL28+qr!AL28-qs!AL28)/(Resistance!AL28))*'Data Input'!$E$11),"0",SQRT((qc!AL28+qr!AL28-qs!AL28)/(Resistance!AL28))*'Data Input'!$E$11) -> 2321.237665 | AM28: =IF(ISERROR(SQRT((qc!AM28+qr!AM28-qs!AM28)/(Resistance!AM28))*'Data Input'!$E$11),"0",SQRT((qc!AM28+qr!AM28-qs!AM28)/(Resistance!AM28))*'Data Input'!$E$11) -> 2295.282837 | AN28: =IF(ISERROR(SQRT((qc!AN28+qr!AN28-qs!AN28)/(Resistance!AN28))*'Data Input'!$E$11),"0",SQRT((qc!AN28+qr!AN28-qs!AN28)/(Resistance!AN28))*'Data Input'!$E$11) -> 2268.899529 | AO28: =IF(ISERROR(SQRT((qc!AO28+qr!AO28-qs!AO28)/(Resistance!AO28))*'Data Input'!$E$11),"0",SQRT((qc!AO28+qr!AO28-qs!AO28)/(Resistance!AO28))*'Data Input'!$E$11) -> 2242.069341 | AP28: =IF(ISERROR(SQRT((qc!AP28+qr!AP28-qs!AP28)/(Resistance!AP28))*'Data Input'!$E$11),"0",SQRT((qc!AP28+qr!AP28-qs!AP28)/(Resistance!AP28))*'Data Input'!$E$11) -> 2214.772695 | AQ28: =IF(ISERROR(SQRT((qc!AQ28+qr!AQ28-qs!AQ28)/(Resistance!AQ28))*'Data Input'!$E$11),"0",SQRT((qc!AQ28+qr!AQ28-qs!AQ28)/(Resistance!AQ28))*'Data Input'!$E$11) -> 2186.988719 | AR28: =IF(ISERROR(SQRT((qc!AR28+qr!AR28-qs!AR28)/(Resistance!AR28))*'Data Input'!$E$11),"0",SQRT((qc!AR28+qr!AR28-qs!AR28)/(Resistance!AR28))*'Data Input'!$E$11) -> 2158.695123 | AS28: =IF(ISERROR(SQRT((qc!AS28+qr!AS28-qs!AS28)/(Resistance!AS28))*'Data Input'!$E$11),"0",SQRT((qc!AS28+qr!AS28-qs!AS28)/(Resistance!AS28))*'Data Input'!$E$11) -> 2129.86805 | AT28: =IF(ISERROR(SQRT((qc!AT28+qr!AT28-qs!AT28)/(Resistance!AT28))*'Data Input'!$E$11),"0",SQRT((qc!AT28+qr!AT28-qs!AT28)/(Resistance!AT28))*'Data Input'!$E$11) -> 2100.481914 | AU28: =IF(ISERROR(SQRT((qc!AU28+qr!AU28-qs!AU28)/(Resistance!AU28))*'Data Input'!$E$11),"0",SQRT((qc!AU28+qr!AU28-qs!AU28)/(Resistance!AU28))*'Data Input'!$E$11) -> 2070.509209 | AV28: =IF(ISERROR(SQRT((qc!AV28+qr!AV28-qs!AV28)/(Resistance!AV28))*'Data Input'!$E$11),"0",SQRT((qc!AV28+qr!AV28-qs!AV28)/(Resistance!AV28))*'Data Input'!$E$11) -> 2039.920298 | AW28: =IF(ISERROR(SQRT((qc!AW28+qr!AW28-qs!AW28)/(Resistance!AW28))*'Data Input'!$E$11),"0",SQRT((qc!AW28+qr!AW28-qs!AW28)/(Resistance!AW28))*'Data Input'!$E$11) -> 2008.68316 | AX28: =IF(ISERROR(SQRT((qc!AX28+qr!AX28-qs!AX28)/(Resistance!AX28))*'Data Input'!$E$11),"0",SQRT((qc!AX28+qr!AX28-qs!AX28)/(Resistance!AX28))*'Data Input'!$E$11) -> 1976.763105 | AY28: =IF(ISERROR(SQRT((qc!AY28+qr!AY28-qs!AY28)/(Resistance!AY28))*'Data Input'!$E$11),"0",SQRT((qc!AY28+qr!AY28-qs!AY28)/(Resistance!AY28))*'Data Input'!$E$11) -> 1944.12244 | AZ28: =IF(ISERROR(SQRT((qc!AZ28+qr!AZ28-qs!AZ28)/(Resistance!AZ28))*'Data Input'!$E$11),"0",SQRT((qc!AZ28+qr!AZ28-qs!AZ28)/(Resistance!AZ28))*'Data Input'!$E$11) -> 1910.720079 | BA28: =IF(ISERROR(SQRT((qc!BA28+qr!BA28-qs!BA28)/(Resistance!BA28))*'Data Input'!$E$11),"0",SQRT((qc!BA28+qr!BA28-qs!BA28)/(Resistance!BA28))*'Data Input'!$E$11) -> 1876.511089 | BB28: =IF(ISERROR(SQRT((qc!BB28+qr!BB28-qs!BB28)/(Resistance!BB28))*'Data Input'!$E$11),"0",SQRT((qc!BB28+qr!BB28-qs!BB28)/(Resistance!BB28))*'Data Input'!$E$11) -> 1841.446141 | BC28: =IF(ISERROR(SQRT((qc!BC28+qr!BC28-qs!BC28)/(Resistance!BC28))*'Data Input'!$E$11),"0",SQRT((qc!BC28+qr!BC28-qs!BC28)/(Resistance!BC28))*'Data Input'!$E$11) -> 1805.470874 | BD28: =IF(ISERROR(SQRT((qc!BD28+qr!BD28-qs!BD28)/(Resistance!BD28))*'Data Input'!$E$11),"0",SQRT((qc!BD28+qr!BD28-qs!BD28)/(Resistance!BD28))*'Data Input'!$E$11) -> 1768.525119 | BE28: =IF(ISERROR(SQRT((qc!BE28+qr!BE28-qs!BE28)/(Resistance!BE28))*'Data Input'!$E$11),"0",SQRT((qc!BE28+qr!BE28-qs!BE28)/(Resistance!BE28))*'Data Input'!$E$11) -> 1730.541969 | BF28: =IF(ISERROR(SQRT((qc!BF28+qr!BF28-qs!BF28)/(Resistance!BF28))*'Data Input'!$E$11),"0",SQRT((qc!BF28+qr!BF28-qs!BF28)/(Resistance!BF28))*'Data Input'!$E$11) -> 1691.446644 | BG28: =IF(ISERROR(SQRT((qc!BG28+qr!BG28-qs!BG28)/(Resistance!BG28))*'Data Input'!$E$11),"0",SQRT((qc!BG28+qr!BG28-qs!BG28)/(Resistance!BG28))*'Data Input'!$E$11) -> 1651.155095 | BH28: =IF(ISERROR(SQRT((qc!BH28+qr!BH28-qs!BH28)/(Resistance!BH28))*'Data Input'!$E$11),"0",SQRT((qc!BH28+qr!BH28-qs!BH28)/(Resistance!BH28))*'Data Input'!$E$11) -> 1609.572278 | BI28: =IF(ISERROR(SQRT((qc!BI28+qr!BI28-qs!BI28)/(Resistance!BI28))*'Data Input'!$E$11),"0",SQRT((qc!BI28+qr!BI28-qs!BI28)/(Resistance!BI28))*'Data Input'!$E$11) -> 1566.589977 | BJ28: =IF(ISERROR(SQRT((qc!BJ28+qr!BJ28-qs!BJ28)/(Resistance!BJ28))*'Data Input'!$E$11),"0",SQRT((qc!BJ28+qr!BJ28-qs!BJ28)/(Resistance!BJ28))*'Data Input'!$E$11) -> 1522.084045 | BK28: =IF(ISERROR(SQRT((qc!BK28+qr!BK28-qs!BK28)/(Resistance!BK28))*'Data Input'!$E$11),"0",SQRT((qc!BK28+qr!BK28-qs!BK28)/(Resistance!BK28))*'Data Input'!$E$11) -> 1475.91085
A29: Normal Day | B29: =wind_norm -> 0 | C29: 120 | D29: =IF(ISERROR(SQRT((qc!D29+qr!D29-qs!D29)/(Resistance!D29))*'Data Input'!$E$11),"0",SQRT((qc!D29+qr!D29-qs!D29)/(Resistance!D29))*'Data Input'!$E$11) -> 2066.391533 | E29: =IF(ISERROR(SQRT((qc!E29+qr!E29-qs!E29)/(Resistance!E29))*'Data Input'!$E$11),"0",SQRT((qc!E29+qr!E29-qs!E29)/(Resistance!E29))*'Data Input'!$E$11) -> 2022.771725 | F29: =IF(ISERROR(SQRT((qc!F29+qr!F29-qs!F29)/(Resistance!F29))*'Data Input'!$E$11),"0",SQRT((qc!F29+qr!F29-qs!F29)/(Resistance!F29))*'Data Input'!$E$11) -> 1978.31694 | G29: =IF(ISERROR(SQRT((qc!G29+qr!G29-qs!G29)/(Resistance!G29))*'Data Input'!$E$11),"0",SQRT((qc!G29+qr!G29-qs!G29)/(Resistance!G29))*'Data Input'!$E$11) -> 1932.951471 | H29: =IF(ISERROR(SQRT((qc!H29+qr!H29-qs!H29)/(Resistance!H29))*'Data Input'!$E$11),"0",SQRT((qc!H29+qr!H29-qs!H29)/(Resistance!H29))*'Data Input'!$E$11) -> 1886.591511 | I29: =IF(ISERROR(SQRT((qc!I29+qr!I29-qs!I29)/(Resistance!I29))*'Data Input'!$E$11),"0",SQRT((qc!I29+qr!I29-qs!I29)/(Resistance!I29))*'Data Input'!$E$11) -> 1839.143785 | J29: =IF(ISERROR(SQRT((qc!J29+qr!J29-qs!J29)/(Resistance!J29))*'Data Input'!$E$11),"0",SQRT((qc!J29+qr!J29-qs!J29)/(Resistance!J29))*'Data Input'!$E$11) -> 1790.503872 | K29: =IF(ISERROR(SQRT((qc!K29+qr!K29-qs!K29)/(Resistance!K29))*'Data Input'!$E$11),"0",SQRT((qc!K29+qr!K29-qs!K29)/(Resistance!K29))*'Data Input'!$E$11) -> 1740.554103 | L29: =IF(ISERROR(SQRT((qc!L29+qr!L29-qs!L29)/(Resistance!L29))*'Data Input'!$E$11),"0",SQRT((qc!L29+qr!L29-qs!L29)/(Resistance!L29))*'Data Input'!$E$11) -> 1689.160914 | M29: =IF(ISERROR(SQRT((qc!M29+qr!M29-qs!M29)/(Resistance!M29))*'Data Input'!$E$11),"0",SQRT((qc!M29+qr!M29-qs!M29)/(Resistance!M29))*'Data Input'!$E$11) -> 1636.171457 | N29: =IF(ISERROR(SQRT((qc!N29+qr!N29-qs!N29)/(Resistance!N29))*'Data Input'!$E$11),"0",SQRT((qc!N29+qr!N29-qs!N29)/(Resistance!N29))*'Data Input'!$E$11) -> 1581.409197 | O29: =IF(ISERROR(SQRT((qc!O29+qr!O29-qs!O29)/(Resistance!O29))*'Data Input'!$E$11),"0",SQRT((qc!O29+qr!O29-qs!O29)/(Resistance!O29))*'Data Input'!$E$11) -> 1524.668103 | Q29: Normal Day | R29: =wind_norm -> 0 | S29: 120 | T29: =IF(ISERROR(SQRT((qc!T29+qr!T29-qs!T29)/(Resistance!T29))*'Data Input'!$E$11),"0",SQRT((qc!T29+qr!T29-qs!T29)/(Resistance!T29))*'Data Input'!$E$11) -> 2383.803553 | U29: =IF(ISERROR(SQRT((qc!U29+qr!U29-qs!U29)/(Resistance!U29))*'Data Input'!$E$11),"0",SQRT((qc!U29+qr!U29-qs!U29)/(Resistance!U29))*'Data Input'!$E$11) -> 2362.144597 | V29: =IF(ISERROR(SQRT((qc!V29+qr!V29-qs!V29)/(Resistance!V29))*'Data Input'!$E$11),"0",SQRT((qc!V29+qr!V29-qs!V29)/(Resistance!V29))*'Data Input'!$E$11) -> 2340.35873 | W29: =IF(ISERROR(SQRT((qc!W29+qr!W29-qs!W29)/(Resistance!W29))*'Data Input'!$E$11),"0",SQRT((qc!W29+qr!W29-qs!W29)/(Resistance!W29))*'Data Input'!$E$11) -> 2318.439513 | X29: =IF(ISERROR(SQRT((qc!X29+qr!X29-qs!X29)/(Resistance!X29))*'Data Input'!$E$11),"0",SQRT((qc!X29+qr!X29-qs!X29)/(Resistance!X29))*'Data Input'!$E$11) -> 2296.380251 | Y29: =IF(ISERROR(SQRT((qc!Y29+qr!Y29-qs!Y29)/(Resistance!Y29))*'Data Input'!$E$11),"0",SQRT((qc!Y29+qr!Y29-qs!Y29)/(Resistance!Y29))*'Data Input'!$E$11) -> 2274.173974 | Z29: =IF(ISERROR(SQRT((qc!Z29+qr!Z29-qs!Z29)/(Resistance!Z29))*'Data Input'!$E$11),"0",SQRT((qc!Z29+qr!Z29-qs!Z29)/(Resistance!Z29))*'Data Input'!$E$11) -> 2251.813421 | AA29: =IF(ISERROR(SQRT((qc!AA29+qr!AA29-qs!AA29)/(Resistance!AA29))*'Data Input'!$E$11),"0",SQRT((qc!AA29+qr!AA29-qs!AA29)/(Resistance!AA29))*'Data Input'!$E$11) -> 2229.291024 | AB29: =IF(ISERROR(SQRT((qc!AB29+qr!AB29-qs!AB29)/(Resistance!AB29))*'Data Input'!$E$11),"0",SQRT((qc!AB29+qr!AB29-qs!AB29)/(Resistance!AB29))*'Data Input'!$E$11) -> 2206.598881 | AC29: =IF(ISERROR(SQRT((qc!AC29+qr!AC29-qs!AC29)/(Resistance!AC29))*'Data Input'!$E$11),"0",SQRT((qc!AC29+qr!AC29-qs!AC29)/(Resistance!AC29))*'Data Input'!$E$11) -> 2183.728744 | AD29: =IF(ISERROR(SQRT((qc!AD29+qr!AD29-qs!AD29)/(Resistance!AD29))*'Data Input'!$E$11),"0",SQRT((qc!AD29+qr!AD29-qs!AD29)/(Resistance!AD29))*'Data Input'!$E$11) -> 2160.671984 | AE29: =IF(ISERROR(SQRT((qc!AE29+qr!AE29-qs!AE29)/(Resistance!AE29))*'Data Input'!$E$11),"0",SQRT((qc!AE29+qr!AE29-qs!AE29)/(Resistance!AE29))*'Data Input'!$E$11) -> 2137.419576 | AF29: =IF(ISERROR(SQRT((qc!AF29+qr!AF29-qs!AF29)/(Resistance!AF29))*'Data Input'!$E$11),"0",SQRT((qc!AF29+qr!AF29-qs!AF29)/(Resistance!AF29))*'Data Input'!$E$11) -> 2113.96206 | AG29: =IF(ISERROR(SQRT((qc!AG29+qr!AG29-qs!AG29)/(Resistance!AG29))*'Data Input'!$E$11),"0",SQRT((qc!AG29+qr!AG29-qs!AG29)/(Resistance!AG29))*'Data Input'!$E$11) -> 2090.289518 | AH29: =IF(ISERROR(SQRT((qc!AH29+qr!AH29-qs!AH29)/(Resistance!AH29))*'Data Input'!$E$11),"0",SQRT((qc!AH29+qr!AH29-qs!AH29)/(Resistance!AH29))*'Data Input'!$E$11) -> 2066.391533 | AI29: =IF(ISERROR(SQRT((qc!AI29+qr!AI29-qs!AI29)/(Resistance!AI29))*'Data Input'!$E$11),"0",SQRT((qc!AI29+qr!AI29-qs!AI29)/(Resistance!AI29))*'Data Input'!$E$11) -> 2042.257155 | AJ29: =IF(ISERROR(SQRT((qc!AJ29+qr!AJ29-qs!AJ29)/(Resistance!AJ29))*'Data Input'!$E$11),"0",SQRT((qc!AJ29+qr!AJ29-qs!AJ29)/(Resistance!AJ29))*'Data Input'!$E$11) -> 2017.874859 | AK29: =IF(ISERROR(SQRT((qc!AK29+qr!AK29-qs!AK29)/(Resistance!AK29))*'Data Input'!$E$11),"0",SQRT((qc!AK29+qr!AK29-qs!AK29)/(Resistance!AK29))*'Data Input'!$E$11) -> 1993.232495 | AL29: =IF(ISERROR(SQRT((qc!AL29+qr!AL29-qs!AL29)/(Resistance!AL29))*'Data Input'!$E$11),"0",SQRT((qc!AL29+qr!AL29-qs!AL29)/(Resistance!AL29))*'Data Input'!$E$11) -> 1968.317241 | AM29: =IF(ISERROR(SQRT((qc!AM29+qr!AM29-qs!AM29)/(Resistance!AM29))*'Data Input'!$E$11),"0",SQRT((qc!AM29+qr!AM29-qs!AM29)/(Resistance!AM29))*'Data Input'!$E$11) -> 1943.115542 | AN29: =IF(ISERROR(SQRT((qc!AN29+qr!AN29-qs!AN29)/(Resistance!AN29))*'Data Input'!$E$11),"0",SQRT((qc!AN29+qr!AN29-qs!AN29)/(Resistance!AN29))*'Data Input'!$E$11) -> 1917.613047 | AO29: =IF(ISERROR(SQRT((qc!AO29+qr!AO29-qs!AO29)/(Resistance!AO29))*'Data Input'!$E$11),"0",SQRT((qc!AO29+qr!AO29-qs!AO29)/(Resistance!AO29))*'Data Input'!$E$11) -> 1891.794539 | AP29: =IF(ISERROR(SQRT((qc!AP29+qr!AP29-qs!AP29)/(Resistance!AP29))*'Data Input'!$E$11),"0",SQRT((qc!AP29+qr!AP29-qs!AP29)/(Resistance!AP29))*'Data Input'!$E$11) -> 1865.643853 | AQ29: =IF(ISERROR(SQRT((qc!AQ29+qr!AQ29-qs!AQ29)/(Resistance!AQ29))*'Data Input'!$E$11),"0",SQRT((qc!AQ29+qr!AQ29-qs!AQ29)/(Resistance!AQ29))*'Data Input'!$E$11) -> 1839.143785 | AR29: =IF(ISERROR(SQRT((qc!AR29+qr!AR29-qs!AR29)/(Resistance!AR29))*'Data Input'!$E$11),"0",SQRT((qc!AR29+qr!AR29-qs!AR29)/(Resistance!AR29))*'Data Input'!$E$11) -> 1812.275993 | AS29: =IF(ISERROR(SQRT((qc!AS29+qr!AS29-qs!AS29)/(Resistance!AS29))*'Data Input'!$E$11),"0",SQRT((qc!AS29+qr!AS29-qs!AS29)/(Resistance!AS29))*'Data Input'!$E$11) -> 1785.020877 | AT29: =IF(ISERROR(SQRT((qc!AT29+qr!AT29-qs!AT29)/(Resistance!AT29))*'Data Input'!$E$11),"0",SQRT((qc!AT29+qr!AT29-qs!AT29)/(Resistance!AT29))*'Data Input'!$E$11) -> 1757.35745 | AU29: =IF(ISERROR(SQRT((qc!AU29+qr!AU29-qs!AU29)/(Resistance!AU29))*'Data Input'!$E$11),"0",SQRT((qc!AU29+qr!AU29-qs!AU29)/(Resistance!AU29))*'Data Input'!$E$11) -> 1729.263187 | AV29: =IF(ISERROR(SQRT((qc!AV29+qr!AV29-qs!AV29)/(Resistance!AV29))*'Data Input'!$E$11),"0",SQRT((qc!AV29+qr!AV29-qs!AV29)/(Resistance!AV29))*'Data Input'!$E$11) -> 1700.713854 | AW29: =IF(ISERROR(SQRT((qc!AW29+qr!AW29-qs!AW29)/(Resistance!AW29))*'Data Input'!$E$11),"0",SQRT((qc!AW29+qr!AW29-qs!AW29)/(Resistance!AW29))*'Data Input'!$E$11) -> 1671.683307 | AX29: =IF(ISERROR(SQRT((qc!AX29+qr!AX29-qs!AX29)/(Resistance!AX29))*'Data Input'!$E$11),"0",SQRT((qc!AX29+qr!AX29-qs!AX29)/(Resistance!AX29))*'Data Input'!$E$11) -> 1642.143261 | AY29: =IF(ISERROR(SQRT((qc!AY29+qr!AY29-qs!AY29)/(Resistance!AY29))*'Data Input'!$E$11),"0",SQRT((qc!AY29+qr!AY29-qs!AY29)/(Resistance!AY29))*'Data Input'!$E$11) -> 1612.063028 | AZ29: =IF(ISERROR(SQRT((qc!AZ29+qr!AZ29-qs!AZ29)/(Resistance!AZ29))*'Data Input'!$E$11),"0",SQRT((qc!AZ29+qr!AZ29-qs!AZ29)/(Resistance!AZ29))*'Data Input'!$E$11) -> 1581.409197 | BA29: =IF(ISERROR(SQRT((qc!BA29+qr!BA29-qs!BA29)/(Resistance!BA29))*'Data Input'!$E$11),"0",SQRT((qc!BA29+qr!BA29-qs!BA29)/(Resistance!BA29))*'Data Input'!$E$11) -> 1550.145273 | BB29: =IF(ISERROR(SQRT((qc!BB29+qr!BB29-qs!BB29)/(Resistance!BB29))*'Data Input'!$E$11),"0",SQRT((qc!BB29+qr!BB29-qs!BB29)/(Resistance!BB29))*'Data Input'!$E$11) -> 1518.231234 | BC29: =IF(ISERROR(SQRT((qc!BC29+qr!BC29-qs!BC29)/(Resistance!BC29))*'Data Input'!$E$11),"0",SQRT((qc!BC29+qr!BC29-qs!BC29)/(Resistance!BC29))*'Data Input'!$E$11) -> 1485.623018 | BD29: =IF(ISERROR(SQRT((qc!BD29+qr!BD29-qs!BD29)/(Resistance!BD29))*'Data Input'!$E$11),"0",SQRT((qc!BD29+qr!BD29-qs!BD29)/(Resistance!BD29))*'Data Input'!$E$11) -> 1452.271893 | BE29: =IF(ISERROR(SQRT((qc!BE29+qr!BE29-qs!BE29)/(Resistance!BE29))*'Data Input'!$E$11),"0",SQRT((qc!BE29+qr!BE29-qs!BE29)/(Resistance!BE29))*'Data Input'!$E$11) -> 1418.123708 | BF29: =IF(ISERROR(SQRT((qc!BF29+qr!BF29-qs!BF29)/(Resistance!BF29))*'Data Input'!$E$11),"0",SQRT((qc!BF29+qr!BF29-qs!BF29)/(Resistance!BF29))*'Data Input'!$E$11) -> 1383.117966 | BG29: =IF(ISERROR(SQRT((qc!BG29+qr!BG29-qs!BG29)/(Resistance!BG29))*'Data Input'!$E$11),"0",SQRT((qc!BG29+qr!BG29-qs!BG29)/(Resistance!BG29))*'Data Input'!$E$11) -> 1347.186692 | BH29: =IF(ISERROR(SQRT((qc!BH29+qr!BH29-qs!BH29)/(Resistance!BH29))*'Data Input'!$E$11),"0",SQRT((qc!BH29+qr!BH29-qs!BH29)/(Resistance!BH29))*'Data Input'!$E$11) -> 1310.253015 | BI29: =IF(ISERROR(SQRT((qc!BI29+qr!BI29-qs!BI29)/(Resistance!BI29))*'Data Input'!$E$11),"0",SQRT((qc!BI29+qr!BI29-qs!BI29)/(Resistance!BI29))*'Data Input'!$E$11) -> 1272.229388 | BJ29: =IF(ISERROR(SQRT((qc!BJ29+qr!BJ29-qs!BJ29)/(Resistance!BJ29))*'Data Input'!$E$11),"0",SQRT((qc!BJ29+qr!BJ29-qs!BJ29)/(Resistance!BJ29))*'Data Input'!$E$11) -> 1233.01531 | BK29: =IF(ISERROR(SQRT((qc!BK29+qr!BK29-qs!BK29)/(Resistance!BK29))*'Data Input'!$E$11),"0",SQRT((qc!BK29+qr!BK29-qs!BK29)/(Resistance!BK29))*'Data Input'!$E$11) -> 1192.494385
A30: Emergency Day | B30: =wind_emer -> 2.533 | C30: 120 | D30: =IF(ISERROR(SQRT((qc!D30+qr!D30-qs!D30)/(Resistance!D30))*'Data Input'!$E$11),"0",SQRT((qc!D30+qr!D30-qs!D30)/(Resistance!D30))*'Data Input'!$E$11) -> 2463.474087 | E30: =IF(ISERROR(SQRT((qc!E30+qr!E30-qs!E30)/(Resistance!E30))*'Data Input'!$E$11),"0",SQRT((qc!E30+qr!E30-qs!E30)/(Resistance!E30))*'Data Input'!$E$11) -> 2420.647992 | F30: =IF(ISERROR(SQRT((qc!F30+qr!F30-qs!F30)/(Resistance!F30))*'Data Input'!$E$11),"0",SQRT((qc!F30+qr!F30-qs!F30)/(Resistance!F30))*'Data Input'!$E$11) -> 2376.679002 | G30: =IF(ISERROR(SQRT((qc!G30+qr!G30-qs!G30)/(Resistance!G30))*'Data Input'!$E$11),"0",SQRT((qc!G30+qr!G30-qs!G30)/(Resistance!G30))*'Data Input'!$E$11) -> 2331.48474 | H30: =IF(ISERROR(SQRT((qc!H30+qr!H30-qs!H30)/(Resistance!H30))*'Data Input'!$E$11),"0",SQRT((qc!H30+qr!H30-qs!H30)/(Resistance!H30))*'Data Input'!$E$11) -> 2284.974188 | I30: =IF(ISERROR(SQRT((qc!I30+qr!I30-qs!I30)/(Resistance!I30))*'Data Input'!$E$11),"0",SQRT((qc!I30+qr!I30-qs!I30)/(Resistance!I30))*'Data Input'!$E$11) -> 2237.04629 | J30: =IF(ISERROR(SQRT((qc!J30+qr!J30-qs!J30)/(Resistance!J30))*'Data Input'!$E$11),"0",SQRT((qc!J30+qr!J30-qs!J30)/(Resistance!J30))*'Data Input'!$E$11) -> 2187.588253 | K30: =IF(ISERROR(SQRT((qc!K30+qr!K30-qs!K30)/(Resistance!K30))*'Data Input'!$E$11),"0",SQRT((qc!K30+qr!K30-qs!K30)/(Resistance!K30))*'Data Input'!$E$11) -> 2136.473441 | L30: =IF(ISERROR(SQRT((qc!L30+qr!L30-qs!L30)/(Resistance!L30))*'Data Input'!$E$11),"0",SQRT((qc!L30+qr!L30-qs!L30)/(Resistance!L30))*'Data Input'!$E$11) -> 2083.558765 | M30: =IF(ISERROR(SQRT((qc!M30+qr!M30-qs!M30)/(Resistance!M30))*'Data Input'!$E$11),"0",SQRT((qc!M30+qr!M30-qs!M30)/(Resistance!M30))*'Data Input'!$E$11) -> 2028.681374 | N30: =IF(ISERROR(SQRT((qc!N30+qr!N30-qs!N30)/(Resistance!N30))*'Data Input'!$E$11),"0",SQRT((qc!N30+qr!N30-qs!N30)/(Resistance!N30))*'Data Input'!$E$11) -> 1971.654446 | O30: =IF(ISERROR(SQRT((qc!O30+qr!O30-qs!O30)/(Resistance!O30))*'Data Input'!$E$11),"0",SQRT((qc!O30+qr!O30-qs!O30)/(Resistance!O30))*'Data Input'!$E$11) -> 1912.261722 | Q30: Emergency Day | R30: =wind_emer -> 2.533 | S30: 120 | T30: =IF(ISERROR(SQRT((qc!T30+qr!T30-qs!T30)/(Resistance!T30))*'Data Input'!$E$11),"0",SQRT((qc!T30+qr!T30-qs!T30)/(Resistance!T30))*'Data Input'!$E$11) -> 2764.808257 | U30: =IF(ISERROR(SQRT((qc!U30+qr!U30-qs!U30)/(Resistance!U30))*'Data Input'!$E$11),"0",SQRT((qc!U30+qr!U30-qs!U30)/(Resistance!U30))*'Data Input'!$E$11) -> 2744.85468 | V30: =IF(ISERROR(SQRT((qc!V30+qr!V30-qs!V30)/(Resistance!V30))*'Data Input'!$E$11),"0",SQRT((qc!V30+qr!V30-qs!V30)/(Resistance!V30))*'Data Input'!$E$11) -> 2724.691211 | W30: =IF(ISERROR(SQRT((qc!W30+qr!W30-qs!W30)/(Resistance!W30))*'Data Input'!$E$11),"0",SQRT((qc!W30+qr!W30-qs!W30)/(Resistance!W30))*'Data Input'!$E$11) -> 2704.31081 | X30: =IF(ISERROR(SQRT((qc!X30+qr!X30-qs!X30)/(Resistance!X30))*'Data Input'!$E$11),"0",SQRT((qc!X30+qr!X30-qs!X30)/(Resistance!X30))*'Data Input'!$E$11) -> 2683.706156 | Y30: =IF(ISERROR(SQRT((qc!Y30+qr!Y30-qs!Y30)/(Resistance!Y30))*'Data Input'!$E$11),"0",SQRT((qc!Y30+qr!Y30-qs!Y30)/(Resistance!Y30))*'Data Input'!$E$11) -> 2662.869627 | Z30: =IF(ISERROR(SQRT((qc!Z30+qr!Z30-qs!Z30)/(Resistance!Z30))*'Data Input'!$E$11),"0",SQRT((qc!Z30+qr!Z30-qs!Z30)/(Resistance!Z30))*'Data Input'!$E$11) -> 2641.793284 | AA30: =IF(ISERROR(SQRT((qc!AA30+qr!AA30-qs!AA30)/(Resistance!AA30))*'Data Input'!$E$11),"0",SQRT((qc!AA30+qr!AA30-qs!AA30)/(Resistance!AA30))*'Data Input'!$E$11) -> 2620.468849 | AB30: =IF(ISERROR(SQRT((qc!AB30+qr!AB30-qs!AB30)/(Resistance!AB30))*'Data Input'!$E$11),"0",SQRT((qc!AB30+qr!AB30-qs!AB30)/(Resistance!AB30))*'Data Input'!$E$11) -> 2598.887686 | AC30: =IF(ISERROR(SQRT((qc!AC30+qr!AC30-qs!AC30)/(Resistance!AC30))*'Data Input'!$E$11),"0",SQRT((qc!AC30+qr!AC30-qs!AC30)/(Resistance!AC30))*'Data Input'!$E$11) -> 2577.040776 | AD30: =IF(ISERROR(SQRT((qc!AD30+qr!AD30-qs!AD30)/(Resistance!AD30))*'Data Input'!$E$11),"0",SQRT((qc!AD30+qr!AD30-qs!AD30)/(Resistance!AD30))*'Data Input'!$E$11) -> 2554.918689 | AE30: =IF(ISERROR(SQRT((qc!AE30+qr!AE30-qs!AE30)/(Resistance!AE30))*'Data Input'!$E$11),"0",SQRT((qc!AE30+qr!AE30-qs!AE30)/(Resistance!AE30))*'Data Input'!$E$11) -> 2532.511563 | AF30: =IF(ISERROR(SQRT((qc!AF30+qr!AF30-qs!AF30)/(Resistance!AF30))*'Data Input'!$E$11),"0",SQRT((qc!AF30+qr!AF30-qs!AF30)/(Resistance!AF30))*'Data Input'!$E$11) -> 2509.809064 | AG30: =IF(ISERROR(SQRT((qc!AG30+qr!AG30-qs!AG30)/(Resistance!AG30))*'Data Input'!$E$11),"0",SQRT((qc!AG30+qr!AG30-qs!AG30)/(Resistance!AG30))*'Data Input'!$E$11) -> 2486.800361 | AH30: =IF(ISERROR(SQRT((qc!AH30+qr!AH30-qs!AH30)/(Resistance!AH30))*'Data Input'!$E$11),"0",SQRT((qc!AH30+qr!AH30-qs!AH30)/(Resistance!AH30))*'Data Input'!$E$11) -> 2463.474087 | AI30: =IF(ISERROR(SQRT((qc!AI30+qr!AI30-qs!AI30)/(Resistance!AI30))*'Data Input'!$E$11),"0",SQRT((qc!AI30+qr!AI30-qs!AI30)/(Resistance!AI30))*'Data Input'!$E$11) -> 2439.818297 | AJ30: =IF(ISERROR(SQRT((qc!AJ30+qr!AJ30-qs!AJ30)/(Resistance!AJ30))*'Data Input'!$E$11),"0",SQRT((qc!AJ30+qr!AJ30-qs!AJ30)/(Resistance!AJ30))*'Data Input'!$E$11) -> 2415.820426 | AK30: =IF(ISERROR(SQRT((qc!AK30+qr!AK30-qs!AK30)/(Resistance!AK30))*'Data Input'!$E$11),"0",SQRT((qc!AK30+qr!AK30-qs!AK30)/(Resistance!AK30))*'Data Input'!$E$11) -> 2391.467239 | AL30: =IF(ISERROR(SQRT((qc!AL30+qr!AL30-qs!AL30)/(Resistance!AL30))*'Data Input'!$E$11),"0",SQRT((qc!AL30+qr!AL30-qs!AL30)/(Resistance!AL30))*'Data Input'!$E$11) -> 2366.744781 | AM30: =IF(ISERROR(SQRT((qc!AM30+qr!AM30-qs!AM30)/(Resistance!AM30))*'Data Input'!$E$11),"0",SQRT((qc!AM30+qr!AM30-qs!AM30)/(Resistance!AM30))*'Data Input'!$E$11) -> 2341.638312 | AN30: =IF(ISERROR(SQRT((qc!AN30+qr!AN30-qs!AN30)/(Resistance!AN30))*'Data Input'!$E$11),"0",SQRT((qc!AN30+qr!AN30-qs!AN30)/(Resistance!AN30))*'Data Input'!$E$11) -> 2316.132247 | AO30: =IF(ISERROR(SQRT((qc!AO30+qr!AO30-qs!AO30)/(Resistance!AO30))*'Data Input'!$E$11),"0",SQRT((qc!AO30+qr!AO30-qs!AO30)/(Resistance!AO30))*'Data Input'!$E$11) -> 2290.210077 | AP30: =IF(ISERROR(SQRT((qc!AP30+qr!AP30-qs!AP30)/(Resistance!AP30))*'Data Input'!$E$11),"0",SQRT((qc!AP30+qr!AP30-qs!AP30)/(Resistance!AP30))*'Data Input'!$E$11) -> 2263.854293 | AQ30: =IF(ISERROR(SQRT((qc!AQ30+qr!AQ30-qs!AQ30)/(Resistance!AQ30))*'Data Input'!$E$11),"0",SQRT((qc!AQ30+qr!AQ30-qs!AQ30)/(Resistance!AQ30))*'Data Input'!$E$11) -> 2237.04629 | AR30: =IF(ISERROR(SQRT((qc!AR30+qr!AR30-qs!AR30)/(Resistance!AR30))*'Data Input'!$E$11),"0",SQRT((qc!AR30+qr!AR30-qs!AR30)/(Resistance!AR30))*'Data Input'!$E$11) -> 2209.766267 | AS30: =IF(ISERROR(SQRT((qc!AS30+qr!AS30-qs!AS30)/(Resistance!AS30))*'Data Input'!$E$11),"0",SQRT((qc!AS30+qr!AS30-qs!AS30)/(Resistance!AS30))*'Data Input'!$E$11) -> 2181.99311 | AT30: =IF(ISERROR(SQRT((qc!AT30+qr!AT30-qs!AT30)/(Resistance!AT30))*'Data Input'!$E$11),"0",SQRT((qc!AT30+qr!AT30-qs!AT30)/(Resistance!AT30))*'Data Input'!$E$11) -> 2153.704259 | AU30: =IF(ISERROR(SQRT((qc!AU30+qr!AU30-qs!AU30)/(Resistance!AU30))*'Data Input'!$E$11),"0",SQRT((qc!AU30+qr!AU30-qs!AU30)/(Resistance!AU30))*'Data Input'!$E$11) -> 2124.875567 | AV30: =IF(ISERROR(SQRT((qc!AV30+qr!AV30-qs!AV30)/(Resistance!AV30))*'Data Input'!$E$11),"0",SQRT((qc!AV30+qr!AV30-qs!AV30)/(Resistance!AV30))*'Data Input'!$E$11) -> 2095.481123 | AW30: =IF(ISERROR(SQRT((qc!AW30+qr!AW30-qs!AW30)/(Resistance!AW30))*'Data Input'!$E$11),"0",SQRT((qc!AW30+qr!AW30-qs!AW30)/(Resistance!AW30))*'Data Input'!$E$11) -> 2065.493067 | AX30: =IF(ISERROR(SQRT((qc!AX30+qr!AX30-qs!AX30)/(Resistance!AX30))*'Data Input'!$E$11),"0",SQRT((qc!AX30+qr!AX30-qs!AX30)/(Resistance!AX30))*'Data Input'!$E$11) -> 2034.881363 | AY30: =IF(ISERROR(SQRT((qc!AY30+qr!AY30-qs!AY30)/(Resistance!AY30))*'Data Input'!$E$11),"0",SQRT((qc!AY30+qr!AY30-qs!AY30)/(Resistance!AY30))*'Data Input'!$E$11) -> 2003.61355 | AZ30: =IF(ISERROR(SQRT((qc!AZ30+qr!AZ30-qs!AZ30)/(Resistance!AZ30))*'Data Input'!$E$11),"0",SQRT((qc!AZ30+qr!AZ30-qs!AZ30)/(Resistance!AZ30))*'Data Input'!$E$11) -> 1971.654446 | BA30: =IF(ISERROR(SQRT((qc!BA30+qr!BA30-qs!BA30)/(Resistance!BA30))*'Data Input'!$E$11),"0",SQRT((qc!BA30+qr!BA30-qs!BA30)/(Resistance!BA30))*'Data Input'!$E$11) -> 1938.965803 | BB30: =IF(ISERROR(SQRT((qc!BB30+qr!BB30-qs!BB30)/(Resistance!BB30))*'Data Input'!$E$11),"0",SQRT((qc!BB30+qr!BB30-qs!BB30)/(Resistance!BB30))*'Data Input'!$E$11) -> 1905.505914 | BC30: =IF(ISERROR(SQRT((qc!BC30+qr!BC30-qs!BC30)/(Resistance!BC30))*'Data Input'!$E$11),"0",SQRT((qc!BC30+qr!BC30-qs!BC30)/(Resistance!BC30))*'Data Input'!$E$11) -> 1871.229135 | BD30: =IF(ISERROR(SQRT((qc!BD30+qr!BD30-qs!BD30)/(Resistance!BD30))*'Data Input'!$E$11),"0",SQRT((qc!BD30+qr!BD30-qs!BD30)/(Resistance!BD30))*'Data Input'!$E$11) -> 1836.085334 | BE30: =IF(ISERROR(SQRT((qc!BE30+qr!BE30-qs!BE30)/(Resistance!BE30))*'Data Input'!$E$11),"0",SQRT((qc!BE30+qr!BE30-qs!BE30)/(Resistance!BE30))*'Data Input'!$E$11) -> 1800.019226 | BF30: =IF(ISERROR(SQRT((qc!BF30+qr!BF30-qs!BF30)/(Resistance!BF30))*'Data Input'!$E$11),"0",SQRT((qc!BF30+qr!BF30-qs!BF30)/(Resistance!BF30))*'Data Input'!$E$11) -> 1762.969579 | BG30: =IF(ISERROR(SQRT((qc!BG30+qr!BG30-qs!BG30)/(Resistance!BG30))*'Data Input'!$E$11),"0",SQRT((qc!BG30+qr!BG30-qs!BG30)/(Resistance!BG30))*'Data Input'!$E$11) -> 1724.868253 | BH30: =IF(ISERROR(SQRT((qc!BH30+qr!BH30-qs!BH30)/(Resistance!BH30))*'Data Input'!$E$11),"0",SQRT((qc!BH30+qr!BH30-qs!BH30)/(Resistance!BH30))*'Data Input'!$E$11) -> 1685.639024 | BI30: =IF(ISERROR(SQRT((qc!BI30+qr!BI30-qs!BI30)/(Resistance!BI30))*'Data Input'!$E$11),"0",SQRT((qc!BI30+qr!BI30-qs!BI30)/(Resistance!BI30))*'Data Input'!$E$11) -> 1645.196149 | BJ30: =IF(ISERROR(SQRT((qc!BJ30+qr!BJ30-qs!BJ30)/(Resistance!BJ30))*'Data Input'!$E$11),"0",SQRT((qc!BJ30+qr!BJ30-qs!BJ30)/(Resistance!BJ30))*'Data Input'!$E$11) -> 1603.442563 | BK30: =IF(ISERROR(SQRT((qc!BK30+qr!BK30-qs!BK30)/(Resistance!BK30))*'Data Input'!$E$11),"0",SQRT((qc!BK30+qr!BK30-qs!BK30)/(Resistance!BK30))*'Data Input'!$E$11) -> 1560.267632
A31: Normal Day | B31: =wind_norm -> 0 | C31: 125 | D31: =IF(ISERROR(SQRT((qc!D31+qr!D31-qs!D31)/(Resistance!D31))*'Data Input'!$E$11),"0",SQRT((qc!D31+qr!D31-qs!D31)/(Resistance!D31))*'Data Input'!$E$11) -> 2109.643763 | E31: =IF(ISERROR(SQRT((qc!E31+qr!E31-qs!E31)/(Resistance!E31))*'Data Input'!$E$11),"0",SQRT((qc!E31+qr!E31-qs!E31)/(Resistance!E31))*'Data Input'!$E$11) -> 2067.230173 | F31: =IF(ISERROR(SQRT((qc!F31+qr!F31-qs!F31)/(Resistance!F31))*'Data Input'!$E$11),"0",SQRT((qc!F31+qr!F31-qs!F31)/(Resistance!F31))*'Data Input'!$E$11) -> 2024.040553 | G31: =IF(ISERROR(SQRT((qc!G31+qr!G31-qs!G31)/(Resistance!G31))*'Data Input'!$E$11),"0",SQRT((qc!G31+qr!G31-qs!G31)/(Resistance!G31))*'Data Input'!$E$11) -> 1980.006202 | H31: =IF(ISERROR(SQRT((qc!H31+qr!H31-qs!H31)/(Resistance!H31))*'Data Input'!$E$11),"0",SQRT((qc!H31+qr!H31-qs!H31)/(Resistance!H31))*'Data Input'!$E$11) -> 1935.05146 | I31: =IF(ISERROR(SQRT((qc!I31+qr!I31-qs!I31)/(Resistance!I31))*'Data Input'!$E$11),"0",SQRT((qc!I31+qr!I31-qs!I31)/(Resistance!I31))*'Data Input'!$E$11) -> 1889.0926 | J31: =IF(ISERROR(SQRT((qc!J31+qr!J31-qs!J31)/(Resistance!J31))*'Data Input'!$E$11),"0",SQRT((qc!J31+qr!J31-qs!J31)/(Resistance!J31))*'Data Input'!$E$11) -> 1842.036474 | K31: =IF(ISERROR(SQRT((qc!K31+qr!K31-qs!K31)/(Resistance!K31))*'Data Input'!$E$11),"0",SQRT((qc!K31+qr!K31-qs!K31)/(Resistance!K31))*'Data Input'!$E$11) -> 1793.778848 | L31: =IF(ISERROR(SQRT((qc!L31+qr!L31-qs!L31)/(Resistance!L31))*'Data Input'!$E$11),"0",SQRT((qc!L31+qr!L31-qs!L31)/(Resistance!L31))*'Data Input'!$E$11) -> 1744.202321 | M31: =IF(ISERROR(SQRT((qc!M31+qr!M31-qs!M31)/(Resistance!M31))*'Data Input'!$E$11),"0",SQRT((qc!M31+qr!M31-qs!M31)/(Resistance!M31))*'Data Input'!$E$11) -> 1693.173701 | N31: =IF(ISERROR(SQRT((qc!N31+qr!N31-qs!N31)/(Resistance!N31))*'Data Input'!$E$11),"0",SQRT((qc!N31+qr!N31-qs!N31)/(Resistance!N31))*'Data Input'!$E$11) -> 1640.540655 | O31: =IF(ISERROR(SQRT((qc!O31+qr!O31-qs!O31)/(Resistance!O31))*'Data Input'!$E$11),"0",SQRT((qc!O31+qr!O31-qs!O31)/(Resistance!O31))*'Data Input'!$E$11) -> 1586.127353 | Q31: Normal Day | R31: =wind_norm -> 0 | S31: 125 | T31: =IF(ISERROR(SQRT((qc!T31+qr!T31-qs!T31)/(Resistance!T31))*'Data Input'!$E$11),"0",SQRT((qc!T31+qr!T31-qs!T31)/(Resistance!T31))*'Data Input'!$E$11) -> 2419.135725 | U31: =IF(ISERROR(SQRT((qc!U31+qr!U31-qs!U31)/(Resistance!U31))*'Data Input'!$E$11),"0",SQRT((qc!U31+qr!U31-qs!U31)/(Resistance!U31))*'Data Input'!$E$11) -> 2397.976946 | V31: =IF(ISERROR(SQRT((qc!V31+qr!V31-qs!V31)/(Resistance!V31))*'Data Input'!$E$11),"0",SQRT((qc!V31+qr!V31-qs!V31)/(Resistance!V31))*'Data Input'!$E$11) -> 2376.699333 | W31: =IF(ISERROR(SQRT((qc!W31+qr!W31-qs!W31)/(Resistance!W31))*'Data Input'!$E$11),"0",SQRT((qc!W31+qr!W31-qs!W31)/(Resistance!W31))*'Data Input'!$E$11) -> 2355.296865 | X31: =IF(ISERROR(SQRT((qc!X31+qr!X31-qs!X31)/(Resistance!X31))*'Data Input'!$E$11),"0",SQRT((qc!X31+qr!X31-qs!X31)/(Resistance!X31))*'Data Input'!$E$11) -> 2333.763288 | Y31: =IF(ISERROR(SQRT((qc!Y31+qr!Y31-qs!Y31)/(Resistance!Y31))*'Data Input'!$E$11),"0",SQRT((qc!Y31+qr!Y31-qs!Y31)/(Resistance!Y31))*'Data Input'!$E$11) -> 2312.092105 | Z31: =IF(ISERROR(SQRT((qc!Z31+qr!Z31-qs!Z31)/(Resistance!Z31))*'Data Input'!$E$11),"0",SQRT((qc!Z31+qr!Z31-qs!Z31)/(Resistance!Z31))*'Data Input'!$E$11) -> 2290.276554 | AA31: =IF(ISERROR(SQRT((qc!AA31+qr!AA31-qs!AA31)/(Resistance!AA31))*'Data Input'!$E$11),"0",SQRT((qc!AA31+qr!AA31-qs!AA31)/(Resistance!AA31))*'Data Input'!$E$11) -> 2268.309601 | AB31: =IF(ISERROR(SQRT((qc!AB31+qr!AB31-qs!AB31)/(Resistance!AB31))*'Data Input'!$E$11),"0",SQRT((qc!AB31+qr!AB31-qs!AB31)/(Resistance!AB31))*'Data Input'!$E$11) -> 2246.183914 | AC31: =IF(ISERROR(SQRT((qc!AC31+qr!AC31-qs!AC31)/(Resistance!AC31))*'Data Input'!$E$11),"0",SQRT((qc!AC31+qr!AC31-qs!AC31)/(Resistance!AC31))*'Data Input'!$E$11) -> 2223.891851 | AD31: =IF(ISERROR(SQRT((qc!AD31+qr!AD31-qs!AD31)/(Resistance!AD31))*'Data Input'!$E$11),"0",SQRT((qc!AD31+qr!AD31-qs!AD31)/(Resistance!AD31))*'Data Input'!$E$11) -> 2201.425435 | AE31: =IF(ISERROR(SQRT((qc!AE31+qr!AE31-qs!AE31)/(Resistance!AE31))*'Data Input'!$E$11),"0",SQRT((qc!AE31+qr!AE31-qs!AE31)/(Resistance!AE31))*'Data Input'!$E$11) -> 2178.776335 | AF31: =IF(ISERROR(SQRT((qc!AF31+qr!AF31-qs!AF31)/(Resistance!AF31))*'Data Input'!$E$11),"0",SQRT((qc!AF31+qr!AF31-qs!AF31)/(Resistance!AF31))*'Data Input'!$E$11) -> 2155.935841 | AG31: =IF(ISERROR(SQRT((qc!AG31+qr!AG31-qs!AG31)/(Resistance!AG31))*'Data Input'!$E$11),"0",SQRT((qc!AG31+qr!AG31-qs!AG31)/(Resistance!AG31))*'Data Input'!$E$11) -> 2132.894834 | AH31: =IF(ISERROR(SQRT((qc!AH31+qr!AH31-qs!AH31)/(Resistance!AH31))*'Data Input'!$E$11),"0",SQRT((qc!AH31+qr!AH31-qs!AH31)/(Resistance!AH31))*'Data Input'!$E$11) -> 2109.643763 | AI31: =IF(ISERROR(SQRT((qc!AI31+qr!AI31-qs!AI31)/(Resistance!AI31))*'Data Input'!$E$11),"0",SQRT((qc!AI31+qr!AI31-qs!AI31)/(Resistance!AI31))*'Data Input'!$E$11) -> 2086.172609 | AJ31: =IF(ISERROR(SQRT((qc!AJ31+qr!AJ31-qs!AJ31)/(Resistance!AJ31))*'Data Input'!$E$11),"0",SQRT((qc!AJ31+qr!AJ31-qs!AJ31)/(Resistance!AJ31))*'Data Input'!$E$11) -> 2062.47085 | AK31: =IF(ISERROR(SQRT((qc!AK31+qr!AK31-qs!AK31)/(Resistance!AK31))*'Data Input'!$E$11),"0",SQRT((qc!AK31+qr!AK31-qs!AK31)/(Resistance!AK31))*'Data Input'!$E$11) -> 2038.527426 | AL31: =IF(ISERROR(SQRT((qc!AL31+qr!AL31-qs!AL31)/(Resistance!AL31))*'Data Input'!$E$11),"0",SQRT((qc!AL31+qr!AL31-qs!AL31)/(Resistance!AL31))*'Data Input'!$E$11) -> 2014.330691 | AM31: =IF(ISERROR(SQRT((qc!AM31+qr!AM31-qs!AM31)/(Resistance!AM31))*'Data Input'!$E$11),"0",SQRT((qc!AM31+qr!AM31-qs!AM31)/(Resistance!AM31))*'Data Input'!$E$11) -> 1989.868372 | AN31: =IF(ISERROR(SQRT((qc!AN31+qr!AN31-qs!AN31)/(Resistance!AN31))*'Data Input'!$E$11),"0",SQRT((qc!AN31+qr!AN31-qs!AN31)/(Resistance!AN31))*'Data Input'!$E$11) -> 1965.127511 | AO31: =IF(ISERROR(SQRT((qc!AO31+qr!AO31-qs!AO31)/(Resistance!AO31))*'Data Input'!$E$11),"0",SQRT((qc!AO31+qr!AO31-qs!AO31)/(Resistance!AO31))*'Data Input'!$E$11) -> 1940.09441 | AP31: =IF(ISERROR(SQRT((qc!AP31+qr!AP31-qs!AP31)/(Resistance!AP31))*'Data Input'!$E$11),"0",SQRT((qc!AP31+qr!AP31-qs!AP31)/(Resistance!AP31))*'Data Input'!$E$11) -> 1914.754567 | AQ31: =IF(ISERROR(SQRT((qc!AQ31+qr!AQ31-qs!AQ31)/(Resistance!AQ31))*'Data Input'!$E$11),"0",SQRT((qc!AQ31+qr!AQ31-qs!AQ31)/(Resistance!AQ31))*'Data Input'!$E$11) -> 1889.0926 | AR31: =IF(ISERROR(SQRT((qc!AR31+qr!AR31-qs!AR31)/(Resistance!AR31))*'Data Input'!$E$11),"0",SQRT((qc!AR31+qr!AR31-qs!AR31)/(Resistance!AR31))*'Data Input'!$E$11) -> 1863.092166 | AS31: =IF(ISERROR(SQRT((qc!AS31+qr!AS31-qs!AS31)/(Resistance!AS31))*'Data Input'!$E$11),"0",SQRT((qc!AS31+qr!AS31-qs!AS31)/(Resistance!AS31))*'Data Input'!$E$11) -> 1836.735874 | AT31: =IF(ISERROR(SQRT((qc!AT31+qr!AT31-qs!AT31)/(Resistance!AT31))*'Data Input'!$E$11),"0",SQRT((qc!AT31+qr!AT31-qs!AT31)/(Resistance!AT31))*'Data Input'!$E$11) -> 1810.005173 | AU31: =IF(ISERROR(SQRT((qc!AU31+qr!AU31-qs!AU31)/(Resistance!AU31))*'Data Input'!$E$11),"0",SQRT((qc!AU31+qr!AU31-qs!AU31)/(Resistance!AU31))*'Data Input'!$E$11) -> 1782.880243 | AV31: =IF(ISERROR(SQRT((qc!AV31+qr!AV31-qs!AV31)/(Resistance!AV31))*'Data Input'!$E$11),"0",SQRT((qc!AV31+qr!AV31-qs!AV31)/(Resistance!AV31))*'Data Input'!$E$11) -> 1755.339854 | AW31: =IF(ISERROR(SQRT((qc!AW31+qr!AW31-qs!AW31)/(Resistance!AW31))*'Data Input'!$E$11),"0",SQRT((qc!AW31+qr!AW31-qs!AW31)/(Resistance!AW31))*'Data Input'!$E$11) -> 1727.361217 | AX31: =IF(ISERROR(SQRT((qc!AX31+qr!AX31-qs!AX31)/(Resistance!AX31))*'Data Input'!$E$11),"0",SQRT((qc!AX31+qr!AX31-qs!AX31)/(Resistance!AX31))*'Data Input'!$E$11) -> 1698.919808 | AY31: =IF(ISERROR(SQRT((qc!AY31+qr!AY31-qs!AY31)/(Resistance!AY31))*'Data Input'!$E$11),"0",SQRT((qc!AY31+qr!AY31-qs!AY31)/(Resistance!AY31))*'Data Input'!$E$11) -> 1669.989165 | AZ31: =IF(ISERROR(SQRT((qc!AZ31+qr!AZ31-qs!AZ31)/(Resistance!AZ31))*'Data Input'!$E$11),"0",SQRT((qc!AZ31+qr!AZ31-qs!AZ31)/(Resistance!AZ31))*'Data Input'!$E$11) -> 1640.540655 | BA31: =IF(ISERROR(SQRT((qc!BA31+qr!BA31-qs!BA31)/(Resistance!BA31))*'Data Input'!$E$11),"0",SQRT((qc!BA31+qr!BA31-qs!BA31)/(Resistance!BA31))*'Data Input'!$E$11) -> 1610.543198 | BB31: =IF(ISERROR(SQRT((qc!BB31+qr!BB31-qs!BB31)/(Resistance!BB31))*'Data Input'!$E$11),"0",SQRT((qc!BB31+qr!BB31-qs!BB31)/(Resistance!BB31))*'Data Input'!$E$11) -> 1579.962955 | BC31: =IF(ISERROR(SQRT((qc!BC31+qr!BC31-qs!BC31)/(Resistance!BC31))*'Data Input'!$E$11),"0",SQRT((qc!BC31+qr!BC31-qs!BC31)/(Resistance!BC31))*'Data Input'!$E$11) -> 1548.762945 | BD31: =IF(ISERROR(SQRT((qc!BD31+qr!BD31-qs!BD31)/(Resistance!BD31))*'Data Input'!$E$11),"0",SQRT((qc!BD31+qr!BD31-qs!BD31)/(Resistance!BD31))*'Data Input'!$E$11) -> 1516.902605 | BE31: =IF(ISERROR(SQRT((qc!BE31+qr!BE31-qs!BE31)/(Resistance!BE31))*'Data Input'!$E$11),"0",SQRT((qc!BE31+qr!BE31-qs!BE31)/(Resistance!BE31))*'Data Input'!$E$11) -> 1484.337258 | BF31: =IF(ISERROR(SQRT((qc!BF31+qr!BF31-qs!BF31)/(Resistance!BF31))*'Data Input'!$E$11),"0",SQRT((qc!BF31+qr!BF31-qs!BF31)/(Resistance!BF31))*'Data Input'!$E$11) -> 1451.017475 | BG31: =IF(ISERROR(SQRT((qc!BG31+qr!BG31-qs!BG31)/(Resistance!BG31))*'Data Input'!$E$11),"0",SQRT((qc!BG31+qr!BG31-qs!BG31)/(Resistance!BG31))*'Data Input'!$E$11) -> 1416.888305 | BH31: =IF(ISERROR(SQRT((qc!BH31+qr!BH31-qs!BH31)/(Resistance!BH31))*'Data Input'!$E$11),"0",SQRT((qc!BH31+qr!BH31-qs!BH31)/(Resistance!BH31))*'Data Input'!$E$11) -> 1381.888331 | BI31: =IF(ISERROR(SQRT((qc!BI31+qr!BI31-qs!BI31)/(Resistance!BI31))*'Data Input'!$E$11),"0",SQRT((qc!BI31+qr!BI31-qs!BI31)/(Resistance!BI31))*'Data Input'!$E$11) -> 1345.948507 | BJ31: =IF(ISERROR(SQRT((qc!BJ31+qr!BJ31-qs!BJ31)/(Resistance!BJ31))*'Data Input'!$E$11),"0",SQRT((qc!BJ31+qr!BJ31-qs!BJ31)/(Resistance!BJ31))*'Data Input'!$E$11) -> 1308.990707 | BK31: =IF(ISERROR(SQRT((qc!BK31+qr!BK31-qs!BK31)/(Resistance!BK31))*'Data Input'!$E$11),"0",SQRT((qc!BK31+qr!BK31-qs!BK31)/(Resistance!BK31))*'Data Input'!$E$11) -> 1270.925896
A32: Emergency Day | B32: =wind_emer -> 2.533 | C32: 125 | D32: =IF(ISERROR(SQRT((qc!D32+qr!D32-qs!D32)/(Resistance!D32))*'Data Input'!$E$11),"0",SQRT((qc!D32+qr!D32-qs!D32)/(Resistance!D32))*'Data Input'!$E$11) -> 2504.892676 | E32: =IF(ISERROR(SQRT((qc!E32+qr!E32-qs!E32)/(Resistance!E32))*'Data Input'!$E$11),"0",SQRT((qc!E32+qr!E32-qs!E32)/(Resistance!E32))*'Data Input'!$E$11) -> 2463.352165 | F32: =IF(ISERROR(SQRT((qc!F32+qr!F32-qs!F32)/(Resistance!F32))*'Data Input'!$E$11),"0",SQRT((qc!F32+qr!F32-qs!F32)/(Resistance!F32))*'Data Input'!$E$11) -> 2420.738252 | G32: =IF(ISERROR(SQRT((qc!G32+qr!G32-qs!G32)/(Resistance!G32))*'Data Input'!$E$11),"0",SQRT((qc!G32+qr!G32-qs!G32)/(Resistance!G32))*'Data Input'!$E$11) -> 2376.976094 | H32: =IF(ISERROR(SQRT((qc!H32+qr!H32-qs!H32)/(Resistance!H32))*'Data Input'!$E$11),"0",SQRT((qc!H32+qr!H32-qs!H32)/(Resistance!H32))*'Data Input'!$E$11) -> 2331.983367 | I32: =IF(ISERROR(SQRT((qc!I32+qr!I32-qs!I32)/(Resistance!I32))*'Data Input'!$E$11),"0",SQRT((qc!I32+qr!I32-qs!I32)/(Resistance!I32))*'Data Input'!$E$11) -> 2285.669128 | J32: =IF(ISERROR(SQRT((qc!J32+qr!J32-qs!J32)/(Resistance!J32))*'Data Input'!$E$11),"0",SQRT((qc!J32+qr!J32-qs!J32)/(Resistance!J32))*'Data Input'!$E$11) -> 2237.932419 | K32: =IF(ISERROR(SQRT((qc!K32+qr!K32-qs!K32)/(Resistance!K32))*'Data Input'!$E$11),"0",SQRT((qc!K32+qr!K32-qs!K32)/(Resistance!K32))*'Data Input'!$E$11) -> 2188.660571 | L32: =IF(ISERROR(SQRT((qc!L32+qr!L32-qs!L32)/(Resistance!L32))*'Data Input'!$E$11),"0",SQRT((qc!L32+qr!L32-qs!L32)/(Resistance!L32))*'Data Input'!$E$11) -> 2137.727114 | M32: =IF(ISERROR(SQRT((qc!M32+qr!M32-qs!M32)/(Resistance!M32))*'Data Input'!$E$11),"0",SQRT((qc!M32+qr!M32-qs!M32)/(Resistance!M32))*'Data Input'!$E$11) -> 2084.989171 | N32: =IF(ISERROR(SQRT((qc!N32+qr!N32-qs!N32)/(Resistance!N32))*'Data Input'!$E$11),"0",SQRT((qc!N32+qr!N32-qs!N32)/(Resistance!N32))*'Data Input'!$E$11) -> 2030.284166 | O32: =IF(ISERROR(SQRT((qc!O32+qr!O32-qs!O32)/(Resistance!O32))*'Data Input'!$E$11),"0",SQRT((qc!O32+qr!O32-qs!O32)/(Resistance!O32))*'Data Input'!$E$11) -> 1973.425637 | Q32: Emergency Day | R32: =wind_emer -> 2.533 | S32: 125 | T32: =IF(ISERROR(SQRT((qc!T32+qr!T32-qs!T32)/(Resistance!T32))*'Data Input'!$E$11),"0",SQRT((qc!T32+qr!T32-qs!T32)/(Resistance!T32))*'Data Input'!$E$11) -> 2797.999441 | U32: =IF(ISERROR(SQRT((qc!U32+qr!U32-qs!U32)/(Resistance!U32))*'Data Input'!$E$11),"0",SQRT((qc!U32+qr!U32-qs!U32)/(Resistance!U32))*'Data Input'!$E$11) -> 2778.551893 | V32: =IF(ISERROR(SQRT((qc!V32+qr!V32-qs!V32)/(Resistance!V32))*'Data Input'!$E$11),"0",SQRT((qc!V32+qr!V32-qs!V32)/(Resistance!V32))*'Data Input'!$E$11) -> 2758.904777 | W32: =IF(ISERROR(SQRT((qc!W32+qr!W32-qs!W32)/(Resistance!W32))*'Data Input'!$E$11),"0",SQRT((qc!W32+qr!W32-qs!W32)/(Resistance!W32))*'Data Input'!$E$11) -> 2739.051523 | X32: =IF(ISERROR(SQRT((qc!X32+qr!X32-qs!X32)/(Resistance!X32))*'Data Input'!$E$11),"0",SQRT((qc!X32+qr!X32-qs!X32)/(Resistance!X32))*'Data Input'!$E$11) -> 2718.985305 | Y32: =IF(ISERROR(SQRT((qc!Y32+qr!Y32-qs!Y32)/(Resistance!Y32))*'Data Input'!$E$11),"0",SQRT((qc!Y32+qr!Y32-qs!Y32)/(Resistance!Y32))*'Data Input'!$E$11) -> 2698.699028 | Z32: =IF(ISERROR(SQRT((qc!Z32+qr!Z32-qs!Z32)/(Resistance!Z32))*'Data Input'!$E$11),"0",SQRT((qc!Z32+qr!Z32-qs!Z32)/(Resistance!Z32))*'Data Input'!$E$11) -> 2678.185309 | AA32: =IF(ISERROR(SQRT((qc!AA32+qr!AA32-qs!AA32)/(Resistance!AA32))*'Data Input'!$E$11),"0",SQRT((qc!AA32+qr!AA32-qs!AA32)/(Resistance!AA32))*'Data Input'!$E$11) -> 2657.436467 | AB32: =IF(ISERROR(SQRT((qc!AB32+qr!AB32-qs!AB32)/(Resistance!AB32))*'Data Input'!$E$11),"0",SQRT((qc!AB32+qr!AB32-qs!AB32)/(Resistance!AB32))*'Data Input'!$E$11) -> 2636.444495 | AC32: =IF(ISERROR(SQRT((qc!AC32+qr!AC32-qs!AC32)/(Resistance!AC32))*'Data Input'!$E$11),"0",SQRT((qc!AC32+qr!AC32-qs!AC32)/(Resistance!AC32))*'Data Input'!$E$11) -> 2615.201047 | AD32: =IF(ISERROR(SQRT((qc!AD32+qr!AD32-qs!AD32)/(Resistance!AD32))*'Data Input'!$E$11),"0",SQRT((qc!AD32+qr!AD32-qs!AD32)/(Resistance!AD32))*'Data Input'!$E$11) -> 2593.697413 | AE32: =IF(ISERROR(SQRT((qc!AE32+qr!AE32-qs!AE32)/(Resistance!AE32))*'Data Input'!$E$11),"0",SQRT((qc!AE32+qr!AE32-qs!AE32)/(Resistance!AE32))*'Data Input'!$E$11) -> 2571.924494 | AF32: =IF(ISERROR(SQRT((qc!AF32+qr!AF32-qs!AF32)/(Resistance!AF32))*'Data Input'!$E$11),"0",SQRT((qc!AF32+qr!AF32-qs!AF32)/(Resistance!AF32))*'Data Input'!$E$11) -> 2549.872779 | AG32: =IF(ISERROR(SQRT((qc!AG32+qr!AG32-qs!AG32)/(Resistance!AG32))*'Data Input'!$E$11),"0",SQRT((qc!AG32+qr!AG32-qs!AG32)/(Resistance!AG32))*'Data Input'!$E$11) -> 2527.532315 | AH32: =IF(ISERROR(SQRT((qc!AH32+qr!AH32-qs!AH32)/(Resistance!AH32))*'Data Input'!$E$11),"0",SQRT((qc!AH32+qr!AH32-qs!AH32)/(Resistance!AH32))*'Data Input'!$E$11) -> 2504.892676 | AI32: =IF(ISERROR(SQRT((qc!AI32+qr!AI32-qs!AI32)/(Resistance!AI32))*'Data Input'!$E$11),"0",SQRT((qc!AI32+qr!AI32-qs!AI32)/(Resistance!AI32))*'Data Input'!$E$11) -> 2481.94293 | AJ32: =IF(ISERROR(SQRT((qc!AJ32+qr!AJ32-qs!AJ32)/(Resistance!AJ32))*'Data Input'!$E$11),"0",SQRT((qc!AJ32+qr!AJ32-qs!AJ32)/(Resistance!AJ32))*'Data Input'!$E$11) -> 2458.671602 | AK32: =IF(ISERROR(SQRT((qc!AK32+qr!AK32-qs!AK32)/(Resistance!AK32))*'Data Input'!$E$11),"0",SQRT((qc!AK32+qr!AK32-qs!AK32)/(Resistance!AK32))*'Data Input'!$E$11) -> 2435.066633 | AL32: =IF(ISERROR(SQRT((qc!AL32+qr!AL32-qs!AL32)/(Resistance!AL32))*'Data Input'!$E$11),"0",SQRT((qc!AL32+qr!AL32-qs!AL32)/(Resistance!AL32))*'Data Input'!$E$11) -> 2411.115333 | AM32: =IF(ISERROR(SQRT((qc!AM32+qr!AM32-qs!AM32)/(Resistance!AM32))*'Data Input'!$E$11),"0",SQRT((qc!AM32+qr!AM32-qs!AM32)/(Resistance!AM32))*'Data Input'!$E$11) -> 2386.804339 | AN32: =IF(ISERROR(SQRT((qc!AN32+qr!AN32-qs!AN32)/(Resistance!AN32))*'Data Input'!$E$11),"0",SQRT((qc!AN32+qr!AN32-qs!AN32)/(Resistance!AN32))*'Data Input'!$E$11) -> 2362.119549 | AO32: =IF(ISERROR(SQRT((qc!AO32+qr!AO32-qs!AO32)/(Resistance!AO32))*'Data Input'!$E$11),"0",SQRT((qc!AO32+qr!AO32-qs!AO32)/(Resistance!AO32))*'Data Input'!$E$11) -> 2337.046075 | AP32: =IF(ISERROR(SQRT((qc!AP32+qr!AP32-qs!AP32)/(Resistance!AP32))*'Data Input'!$E$11),"0",SQRT((qc!AP32+qr!AP32-qs!AP32)/(Resistance!AP32))*'Data Input'!$E$11) -> 2311.568163 | AQ32: =IF(ISERROR(SQRT((qc!AQ32+qr!AQ32-qs!AQ32)/(Resistance!AQ32))*'Data Input'!$E$11),"0",SQRT((qc!AQ32+qr!AQ32-qs!AQ32)/(Resistance!AQ32))*'Data Input'!$E$11) -> 2285.669128 | AR32: =IF(ISERROR(SQRT((qc!AR32+qr!AR32-qs!AR32)/(Resistance!AR32))*'Data Input'!$E$11),"0",SQRT((qc!AR32+qr!AR32-qs!AR32)/(Resistance!AR32))*'Data Input'!$E$11) -> 2259.331267 | AS32: =IF(ISERROR(SQRT((qc!AS32+qr!AS32-qs!AS32)/(Resistance!AS32))*'Data Input'!$E$11),"0",SQRT((qc!AS32+qr!AS32-qs!AS32)/(Resistance!AS32))*'Data Input'!$E$11) -> 2232.535763 | AT32: =IF(ISERROR(SQRT((qc!AT32+qr!AT32-qs!AT32)/(Resistance!AT32))*'Data Input'!$E$11),"0",SQRT((qc!AT32+qr!AT32-qs!AT32)/(Resistance!AT32))*'Data Input'!$E$11) -> 2205.262587 | AU32: =IF(ISERROR(SQRT((qc!AU32+qr!AU32-qs!AU32)/(Resistance!AU32))*'Data Input'!$E$11),"0",SQRT((qc!AU32+qr!AU32-qs!AU32)/(Resistance!AU32))*'Data Input'!$E$11) -> 2177.490374 | AV32: =IF(ISERROR(SQRT((qc!AV32+qr!AV32-qs!AV32)/(Resistance!AV32))*'Data Input'!$E$11),"0",SQRT((qc!AV32+qr!AV32-qs!AV32)/(Resistance!AV32))*'Data Input'!$E$11) -> 2149.19629 | AW32: =IF(ISERROR(SQRT((qc!AW32+qr!AW32-qs!AW32)/(Resistance!AW32))*'Data Input'!$E$11),"0",SQRT((qc!AW32+qr!AW32-qs!AW32)/(Resistance!AW32))*'Data Input'!$E$11) -> 2120.355886 | AX32: =IF(ISERROR(SQRT((qc!AX32+qr!AX32-qs!AX32)/(Resistance!AX32))*'Data Input'!$E$11),"0",SQRT((qc!AX32+qr!AX32-qs!AX32)/(Resistance!AX32))*'Data Input'!$E$11) -> 2090.942918 | AY32: =IF(ISERROR(SQRT((qc!AY32+qr!AY32-qs!AY32)/(Resistance!AY32))*'Data Input'!$E$11),"0",SQRT((qc!AY32+qr!AY32-qs!AY32)/(Resistance!AY32))*'Data Input'!$E$11) -> 2060.92916 | AZ32: =IF(ISERROR(SQRT((qc!AZ32+qr!AZ32-qs!AZ32)/(Resistance!AZ32))*'Data Input'!$E$11),"0",SQRT((qc!AZ32+qr!AZ32-qs!AZ32)/(Resistance!AZ32))*'Data Input'!$E$11) -> 2030.284166 | BA32: =IF(ISERROR(SQRT((qc!BA32+qr!BA32-qs!BA32)/(Resistance!BA32))*'Data Input'!$E$11),"0",SQRT((qc!BA32+qr!BA32-qs!BA32)/(Resistance!BA32))*'Data Input'!$E$11) -> 1998.975023 | BB32: =IF(ISERROR(SQRT((qc!BB32+qr!BB32-qs!BB32)/(Resistance!BB32))*'Data Input'!$E$11),"0",SQRT((qc!BB32+qr!BB32-qs!BB32)/(Resistance!BB32))*'Data Input'!$E$11) -> 1966.966038 | BC32: =IF(ISERROR(SQRT((qc!BC32+qr!BC32-qs!BC32)/(Resistance!BC32))*'Data Input'!$E$11),"0",SQRT((qc!BC32+qr!BC32-qs!BC32)/(Resistance!BC32))*'Data Input'!$E$11) -> 1934.218395 | BD32: =IF(ISERROR(SQRT((qc!BD32+qr!BD32-qs!BD32)/(Resistance!BD32))*'Data Input'!$E$11),"0",SQRT((qc!BD32+qr!BD32-qs!BD32)/(Resistance!BD32))*'Data Input'!$E$11) -> 1900.68974 | BE32: =IF(ISERROR(SQRT((qc!BE32+qr!BE32-qs!BE32)/(Resistance!BE32))*'Data Input'!$E$11),"0",SQRT((qc!BE32+qr!BE32-qs!BE32)/(Resistance!BE32))*'Data Input'!$E$11) -> 1866.333702 | BF32: =IF(ISERROR(SQRT((qc!BF32+qr!BF32-qs!BF32)/(Resistance!BF32))*'Data Input'!$E$11),"0",SQRT((qc!BF32+qr!BF32-qs!BF32)/(Resistance!BF32))*'Data Input'!$E$11) -> 1831.099315 | BG32: =IF(ISERROR(SQRT((qc!BG32+qr!BG32-qs!BG32)/(Resistance!BG32))*'Data Input'!$E$11),"0",SQRT((qc!BG32+qr!BG32-qs!BG32)/(Resistance!BG32))*'Data Input'!$E$11) -> 1794.930342 | BH32: =IF(ISERROR(SQRT((qc!BH32+qr!BH32-qs!BH32)/(Resistance!BH32))*'Data Input'!$E$11),"0",SQRT((qc!BH32+qr!BH32-qs!BH32)/(Resistance!BH32))*'Data Input'!$E$11) -> 1757.76445 | BI32: =IF(ISERROR(SQRT((qc!BI32+qr!BI32-qs!BI32)/(Resistance!BI32))*'Data Input'!$E$11),"0",SQRT((qc!BI32+qr!BI32-qs!BI32)/(Resistance!BI32))*'Data Input'!$E$11) -> 1719.532221 | BJ32: =IF(ISERROR(SQRT((qc!BJ32+qr!BJ32-qs!BJ32)/(Resistance!BJ32))*'Data Input'!$E$11),"0",SQRT((qc!BJ32+qr!BJ32-qs!BJ32)/(Resistance!BJ32))*'Data Input'!$E$11) -> 1680.155941 | BK32: =IF(ISERROR(SQRT((qc!BK32+qr!BK32-qs!BK32)/(Resistance!BK32))*'Data Input'!$E$11),"0",SQRT((qc!BK32+qr!BK32-qs!BK32)/(Resistance!BK32))*'Data Input'!$E$11) -> 1639.548103
A33: Normal Day | B33: =wind_norm -> 0 | C33: 130 | D33: =IF(ISERROR(SQRT((qc!D33+qr!D33-qs!D33)/(Resistance!D33))*'Data Input'!$E$11),"0",SQRT((qc!D33+qr!D33-qs!D33)/(Resistance!D33))*'Data Input'!$E$11) -> 2152.017824 | E33: =IF(ISERROR(SQRT((qc!E33+qr!E33-qs!E33)/(Resistance!E33))*'Data Input'!$E$11),"0",SQRT((qc!E33+qr!E33-qs!E33)/(Resistance!E33))*'Data Input'!$E$11) -> 2110.745427 | F33: =IF(ISERROR(SQRT((qc!F33+qr!F33-qs!F33)/(Resistance!F33))*'Data Input'!$E$11),"0",SQRT((qc!F33+qr!F33-qs!F33)/(Resistance!F33))*'Data Input'!$E$11) -> 2068.749795 | G33: =IF(ISERROR(SQRT((qc!G33+qr!G33-qs!G33)/(Resistance!G33))*'Data Input'!$E$11),"0",SQRT((qc!G33+qr!G33-qs!G33)/(Resistance!G33))*'Data Input'!$E$11) -> 2025.968256 | H33: =IF(ISERROR(SQRT((qc!H33+qr!H33-qs!H33)/(Resistance!H33))*'Data Input'!$E$11),"0",SQRT((qc!H33+qr!H33-qs!H33)/(Resistance!H33))*'Data Input'!$E$11) -> 1982.332112 | I33: =IF(ISERROR(SQRT((qc!I33+qr!I33-qs!I33)/(Resistance!I33))*'Data Input'!$E$11),"0",SQRT((qc!I33+qr!I33-qs!I33)/(Resistance!I33))*'Data Input'!$E$11) -> 1937.765734 | J33: =IF(ISERROR(SQRT((qc!J33+qr!J33-qs!J33)/(Resistance!J33))*'Data Input'!$E$11),"0",SQRT((qc!J33+qr!J33-qs!J33)/(Resistance!J33))*'Data Input'!$E$11) -> 1892.185458 | K33: =IF(ISERROR(SQRT((qc!K33+qr!K33-qs!K33)/(Resistance!K33))*'Data Input'!$E$11),"0",SQRT((qc!K33+qr!K33-qs!K33)/(Resistance!K33))*'Data Input'!$E$11) -> 1845.498243 | L33: =IF(ISERROR(SQRT((qc!L33+qr!L33-qs!L33)/(Resistance!L33))*'Data Input'!$E$11),"0",SQRT((qc!L33+qr!L33-qs!L33)/(Resistance!L33))*'Data Input'!$E$11) -> 1797.600021 | M33: =IF(ISERROR(SQRT((qc!M33+qr!M33-qs!M33)/(Resistance!M33))*'Data Input'!$E$11),"0",SQRT((qc!M33+qr!M33-qs!M33)/(Resistance!M33))*'Data Input'!$E$11) -> 1748.373627 | N33: =IF(ISERROR(SQRT((qc!N33+qr!N33-qs!N33)/(Resistance!N33))*'Data Input'!$E$11),"0",SQRT((qc!N33+qr!N33-qs!N33)/(Resistance!N33))*'Data Input'!$E$11) -> 1697.68621 | O33: =IF(ISERROR(SQRT((qc!O33+qr!O33-qs!O33)/(Resistance!O33))*'Data Input'!$E$11),"0",SQRT((qc!O33+qr!O33-qs!O33)/(Resistance!O33))*'Data Input'!$E$11) -> 1645.385907 | Q33: Normal Day | R33: =wind_norm -> 0 | S33: 130 | T33: =IF(ISERROR(SQRT((qc!T33+qr!T33-qs!T33)/(Resistance!T33))*'Data Input'!$E$11),"0",SQRT((qc!T33+qr!T33-qs!T33)/(Resistance!T33))*'Data Input'!$E$11) -> 2453.955439 | U33: =IF(ISERROR(SQRT((qc!U33+qr!U33-qs!U33)/(Resistance!U33))*'Data Input'!$E$11),"0",SQRT((qc!U33+qr!U33-qs!U33)/(Resistance!U33))*'Data Input'!$E$11) -> 2433.27656 | V33: =IF(ISERROR(SQRT((qc!V33+qr!V33-qs!V33)/(Resistance!V33))*'Data Input'!$E$11),"0",SQRT((qc!V33+qr!V33-qs!V33)/(Resistance!V33))*'Data Input'!$E$11) -> 2412.486244 | W33: =IF(ISERROR(SQRT((qc!W33+qr!W33-qs!W33)/(Resistance!W33))*'Data Input'!$E$11),"0",SQRT((qc!W33+qr!W33-qs!W33)/(Resistance!W33))*'Data Input'!$E$11) -> 2391.578843 | X33: =IF(ISERROR(SQRT((qc!X33+qr!X33-qs!X33)/(Resistance!X33))*'Data Input'!$E$11),"0",SQRT((qc!X33+qr!X33-qs!X33)/(Resistance!X33))*'Data Input'!$E$11) -> 2370.548501 | Y33: =IF(ISERROR(SQRT((qc!Y33+qr!Y33-qs!Y33)/(Resistance!Y33))*'Data Input'!$E$11),"0",SQRT((qc!Y33+qr!Y33-qs!Y33)/(Resistance!Y33))*'Data Input'!$E$11) -> 2349.38914 | Z33: =IF(ISERROR(SQRT((qc!Z33+qr!Z33-qs!Z33)/(Resistance!Z33))*'Data Input'!$E$11),"0",SQRT((qc!Z33+qr!Z33-qs!Z33)/(Resistance!Z33))*'Data Input'!$E$11) -> 2328.094447 | AA33: =IF(ISERROR(SQRT((qc!AA33+qr!AA33-qs!AA33)/(Resistance!AA33))*'Data Input'!$E$11),"0",SQRT((qc!AA33+qr!AA33-qs!AA33)/(Resistance!AA33))*'Data Input'!$E$11) -> 2306.65786 | AB33: =IF(ISERROR(SQRT((qc!AB33+qr!AB33-qs!AB33)/(Resistance!AB33))*'Data Input'!$E$11),"0",SQRT((qc!AB33+qr!AB33-qs!AB33)/(Resistance!AB33))*'Data Input'!$E$11) -> 2285.072553 | AC33: =IF(ISERROR(SQRT((qc!AC33+qr!AC33-qs!AC33)/(Resistance!AC33))*'Data Input'!$E$11),"0",SQRT((qc!AC33+qr!AC33-qs!AC33)/(Resistance!AC33))*'Data Input'!$E$11) -> 2263.331423 | AD33: =IF(ISERROR(SQRT((qc!AD33+qr!AD33-qs!AD33)/(Resistance!AD33))*'Data Input'!$E$11),"0",SQRT((qc!AD33+qr!AD33-qs!AD33)/(Resistance!AD33))*'Data Input'!$E$11) -> 2241.427066 | AE33: =IF(ISERROR(SQRT((qc!AE33+qr!AE33-qs!AE33)/(Resistance!AE33))*'Data Input'!$E$11),"0",SQRT((qc!AE33+qr!AE33-qs!AE33)/(Resistance!AE33))*'Data Input'!$E$11) -> 2219.351765 | AF33: =IF(ISERROR(SQRT((qc!AF33+qr!AF33-qs!AF33)/(Resistance!AF33))*'Data Input'!$E$11),"0",SQRT((qc!AF33+qr!AF33-qs!AF33)/(Resistance!AF33))*'Data Input'!$E$11) -> 2197.097464 | AG33: =IF(ISERROR(SQRT((qc!AG33+qr!AG33-qs!AG33)/(Resistance!AG33))*'Data Input'!$E$11),"0",SQRT((qc!AG33+qr!AG33-qs!AG33)/(Resistance!AG33))*'Data Input'!$E$11) -> 2174.65575 | AH33: =IF(ISERROR(SQRT((qc!AH33+qr!AH33-qs!AH33)/(Resistance!AH33))*'Data Input'!$E$11),"0",SQRT((qc!AH33+qr!AH33-qs!AH33)/(Resistance!AH33))*'Data Input'!$E$11) -> 2152.017824 | AI33: =IF(ISERROR(SQRT((qc!AI33+qr!AI33-qs!AI33)/(Resistance!AI33))*'Data Input'!$E$11),"0",SQRT((qc!AI33+qr!AI33-qs!AI33)/(Resistance!AI33))*'Data Input'!$E$11) -> 2129.174476 | AJ33: =IF(ISERROR(SQRT((qc!AJ33+qr!AJ33-qs!AJ33)/(Resistance!AJ33))*'Data Input'!$E$11),"0",SQRT((qc!AJ33+qr!AJ33-qs!AJ33)/(Resistance!AJ33))*'Data Input'!$E$11) -> 2106.116059 | AK33: =IF(ISERROR(SQRT((qc!AK33+qr!AK33-qs!AK33)/(Resistance!AK33))*'Data Input'!$E$11),"0",SQRT((qc!AK33+qr!AK33-qs!AK33)/(Resistance!AK33))*'Data Input'!$E$11) -> 2082.832451 | AL33: =IF(ISERROR(SQRT((qc!AL33+qr!AL33-qs!AL33)/(Resistance!AL33))*'Data Input'!$E$11),"0",SQRT((qc!AL33+qr!AL33-qs!AL33)/(Resistance!AL33))*'Data Input'!$E$11) -> 2059.313023 | AM33: =IF(ISERROR(SQRT((qc!AM33+qr!AM33-qs!AM33)/(Resistance!AM33))*'Data Input'!$E$11),"0",SQRT((qc!AM33+qr!AM33-qs!AM33)/(Resistance!AM33))*'Data Input'!$E$11) -> 2035.546599 | AN33: =IF(ISERROR(SQRT((qc!AN33+qr!AN33-qs!AN33)/(Resistance!AN33))*'Data Input'!$E$11),"0",SQRT((qc!AN33+qr!AN33-qs!AN33)/(Resistance!AN33))*'Data Input'!$E$11) -> 2011.521413 | AO33: =IF(ISERROR(SQRT((qc!AO33+qr!AO33-qs!AO33)/(Resistance!AO33))*'Data Input'!$E$11),"0",SQRT((qc!AO33+qr!AO33-qs!AO33)/(Resistance!AO33))*'Data Input'!$E$11) -> 1987.225062 | AP33: =IF(ISERROR(SQRT((qc!AP33+qr!AP33-qs!AP33)/(Resistance!AP33))*'Data Input'!$E$11),"0",SQRT((qc!AP33+qr!AP33-qs!AP33)/(Resistance!AP33))*'Data Input'!$E$11) -> 1962.64445 | AQ33: =IF(ISERROR(SQRT((qc!AQ33+qr!AQ33-qs!AQ33)/(Resistance!AQ33))*'Data Input'!$E$11),"0",SQRT((qc!AQ33+qr!AQ33-qs!AQ33)/(Resistance!AQ33))*'Data Input'!$E$11) -> 1937.765734 | AR33: =IF(ISERROR(SQRT((qc!AR33+qr!AR33-qs!AR33)/(Resistance!AR33))*'Data Input'!$E$11),"0",SQRT((qc!AR33+qr!AR33-qs!AR33)/(Resistance!AR33))*'Data Input'!$E$11) -> 1912.574252 | AS33: =IF(ISERROR(SQRT((qc!AS33+qr!AS33-qs!AS33)/(Resistance!AS33))*'Data Input'!$E$11),"0",SQRT((qc!AS33+qr!AS33-qs!AS33)/(Resistance!AS33))*'Data Input'!$E$11) -> 1887.054454 | AT33: =IF(ISERROR(SQRT((qc!AT33+qr!AT33-qs!AT33)/(Resistance!AT33))*'Data Input'!$E$11),"0",SQRT((qc!AT33+qr!AT33-qs!AT33)/(Resistance!AT33))*'Data Input'!$E$11) -> 1861.189818 | AU33: =IF(ISERROR(SQRT((qc!AU33+qr!AU33-qs!AU33)/(Resistance!AU33))*'Data Input'!$E$11),"0",SQRT((qc!AU33+qr!AU33-qs!AU33)/(Resistance!AU33))*'Data Input'!$E$11) -> 1834.962753 | AV33: =IF(ISERROR(SQRT((qc!AV33+qr!AV33-qs!AV33)/(Resistance!AV33))*'Data Input'!$E$11),"0",SQRT((qc!AV33+qr!AV33-qs!AV33)/(Resistance!AV33))*'Data Input'!$E$11) -> 1808.3545 | AW33: =IF(ISERROR(SQRT((qc!AW33+qr!AW33-qs!AW33)/(Resistance!AW33))*'Data Input'!$E$11),"0",SQRT((qc!AW33+qr!AW33-qs!AW33)/(Resistance!AW33))*'Data Input'!$E$11) -> 1781.345007 | AX33: =IF(ISERROR(SQRT((qc!AX33+qr!AX33-qs!AX33)/(Resistance!AX33))*'Data Input'!$E$11),"0",SQRT((qc!AX33+qr!AX33-qs!AX33)/(Resistance!AX33))*'Data Input'!$E$11) -> 1753.912795 | AY33: =IF(ISERROR(SQRT((qc!AY33+qr!AY33-qs!AY33)/(Resistance!AY33))*'Data Input'!$E$11),"0",SQRT((qc!AY33+qr!AY33-qs!AY33)/(Resistance!AY33))*'Data Input'!$E$11) -> 1726.034804 | AZ33: =IF(ISERROR(SQRT((qc!AZ33+qr!AZ33-qs!AZ33)/(Resistance!AZ33))*'Data Input'!$E$11),"0",SQRT((qc!AZ33+qr!AZ33-qs!AZ33)/(Resistance!AZ33))*'Data Input'!$E$11) -> 1697.68621 | BA33: =IF(ISERROR(SQRT((qc!BA33+qr!BA33-qs!BA33)/(Resistance!BA33))*'Data Input'!$E$11),"0",SQRT((qc!BA33+qr!BA33-qs!BA33)/(Resistance!BA33))*'Data Input'!$E$11) -> 1668.840224 | BB33: =IF(ISERROR(SQRT((qc!BB33+qr!BB33-qs!BB33)/(Resistance!BB33))*'Data Input'!$E$11),"0",SQRT((qc!BB33+qr!BB33-qs!BB33)/(Resistance!BB33))*'Data Input'!$E$11) -> 1639.467849 | BC33: =IF(ISERROR(SQRT((qc!BC33+qr!BC33-qs!BC33)/(Resistance!BC33))*'Data Input'!$E$11),"0",SQRT((qc!BC33+qr!BC33-qs!BC33)/(Resistance!BC33))*'Data Input'!$E$11) -> 1609.537605 | BD33: =IF(ISERROR(SQRT((qc!BD33+qr!BD33-qs!BD33)/(Resistance!BD33))*'Data Input'!$E$11),"0",SQRT((qc!BD33+qr!BD33-qs!BD33)/(Resistance!BD33))*'Data Input'!$E$11) -> 1579.015206 | BE33: =IF(ISERROR(SQRT((qc!BE33+qr!BE33-qs!BE33)/(Resistance!BE33))*'Data Input'!$E$11),"0",SQRT((qc!BE33+qr!BE33-qs!BE33)/(Resistance!BE33))*'Data Input'!$E$11) -> 1547.863169 | BF33: =IF(ISERROR(SQRT((qc!BF33+qr!BF33-qs!BF33)/(Resistance!BF33))*'Data Input'!$E$11),"0",SQRT((qc!BF33+qr!BF33-qs!BF33)/(Resistance!BF33))*'Data Input'!$E$11) -> 1516.040371 | BG33: =IF(ISERROR(SQRT((qc!BG33+qr!BG33-qs!BG33)/(Resistance!BG33))*'Data Input'!$E$11),"0",SQRT((qc!BG33+qr!BG33-qs!BG33)/(Resistance!BG33))*'Data Input'!$E$11) -> 1483.501497 | BH33: =IF(ISERROR(SQRT((qc!BH33+qr!BH33-qs!BH33)/(Resistance!BH33))*'Data Input'!$E$11),"0",SQRT((qc!BH33+qr!BH33-qs!BH33)/(Resistance!BH33))*'Data Input'!$E$11) -> 1450.196395 | BI33: =IF(ISERROR(SQRT((qc!BI33+qr!BI33-qs!BI33)/(Resistance!BI33))*'Data Input'!$E$11),"0",SQRT((qc!BI33+qr!BI33-qs!BI33)/(Resistance!BI33))*'Data Input'!$E$11) -> 1416.069284 | BJ33: =IF(ISERROR(SQRT((qc!BJ33+qr!BJ33-qs!BJ33)/(Resistance!BJ33))*'Data Input'!$E$11),"0",SQRT((qc!BJ33+qr!BJ33-qs!BJ33)/(Resistance!BJ33))*'Data Input'!$E$11) -> 1381.05779 | BK33: =IF(ISERROR(SQRT((qc!BK33+qr!BK33-qs!BK33)/(Resistance!BK33))*'Data Input'!$E$11),"0",SQRT((qc!BK33+qr!BK33-qs!BK33)/(Resistance!BK33))*'Data Input'!$E$11) -> 1345.091754
A34: Emergency Day | B34: =wind_emer -> 2.533 | C34: 130 | D34: =IF(ISERROR(SQRT((qc!D34+qr!D34-qs!D34)/(Resistance!D34))*'Data Input'!$E$11),"0",SQRT((qc!D34+qr!D34-qs!D34)/(Resistance!D34))*'Data Input'!$E$11) -> 2545.43749 | E34: =IF(ISERROR(SQRT((qc!E34+qr!E34-qs!E34)/(Resistance!E34))*'Data Input'!$E$11),"0",SQRT((qc!E34+qr!E34-qs!E34)/(Resistance!E34))*'Data Input'!$E$11) -> 2505.1112 | F34: =IF(ISERROR(SQRT((qc!F34+qr!F34-qs!F34)/(Resistance!F34))*'Data Input'!$E$11),"0",SQRT((qc!F34+qr!F34-qs!F34)/(Resistance!F34))*'Data Input'!$E$11) -> 2463.774341 | G34: =IF(ISERROR(SQRT((qc!G34+qr!G34-qs!G34)/(Resistance!G34))*'Data Input'!$E$11),"0",SQRT((qc!G34+qr!G34-qs!G34)/(Resistance!G34))*'Data Input'!$E$11) -> 2421.358607 | H34: =IF(ISERROR(SQRT((qc!H34+qr!H34-qs!H34)/(Resistance!H34))*'Data Input'!$E$11),"0",SQRT((qc!H34+qr!H34-qs!H34)/(Resistance!H34))*'Data Input'!$E$11) -> 2377.789182 | I34: =IF(ISERROR(SQRT((qc!I34+qr!I34-qs!I34)/(Resistance!I34))*'Data Input'!$E$11),"0",SQRT((qc!I34+qr!I34-qs!I34)/(Resistance!I34))*'Data Input'!$E$11) -> 2332.983786 | J34: =IF(ISERROR(SQRT((qc!J34+qr!J34-qs!J34)/(Resistance!J34))*'Data Input'!$E$11),"0",SQRT((qc!J34+qr!J34-qs!J34)/(Resistance!J34))*'Data Input'!$E$11) -> 2286.851534 | K34: =IF(ISERROR(SQRT((qc!K34+qr!K34-qs!K34)/(Resistance!K34))*'Data Input'!$E$11),"0",SQRT((qc!K34+qr!K34-qs!K34)/(Resistance!K34))*'Data Input'!$E$11) -> 2239.291552 | L34: =IF(ISERROR(SQRT((qc!L34+qr!L34-qs!L34)/(Resistance!L34))*'Data Input'!$E$11),"0",SQRT((qc!L34+qr!L34-qs!L34)/(Resistance!L34))*'Data Input'!$E$11) -> 2190.191278 | M34: =IF(ISERROR(SQRT((qc!M34+qr!M34-qs!M34)/(Resistance!M34))*'Data Input'!$E$11),"0",SQRT((qc!M34+qr!M34-qs!M34)/(Resistance!M34))*'Data Input'!$E$11) -> 2139.424388 | N34: =IF(ISERROR(SQRT((qc!N34+qr!N34-qs!N34)/(Resistance!N34))*'Data Input'!$E$11),"0",SQRT((qc!N34+qr!N34-qs!N34)/(Resistance!N34))*'Data Input'!$E$11) -> 2086.848191 | O34: =IF(ISERROR(SQRT((qc!O34+qr!O34-qs!O34)/(Resistance!O34))*'Data Input'!$E$11),"0",SQRT((qc!O34+qr!O34-qs!O34)/(Resistance!O34))*'Data Input'!$E$11) -> 2032.300363 | Q34: Emergency Day | R34: =wind_emer -> 2.533 | S34: 130 | T34: =IF(ISERROR(SQRT((qc!T34+qr!T34-qs!T34)/(Resistance!T34))*'Data Input'!$E$11),"0",SQRT((qc!T34+qr!T34-qs!T34)/(Resistance!T34))*'Data Input'!$E$11) -> 2830.717174 | U34: =IF(ISERROR(SQRT((qc!U34+qr!U34-qs!U34)/(Resistance!U34))*'Data Input'!$E$11),"0",SQRT((qc!U34+qr!U34-qs!U34)/(Resistance!U34))*'Data Input'!$E$11) -> 2811.753636 | V34: =IF(ISERROR(SQRT((qc!V34+qr!V34-qs!V34)/(Resistance!V34))*'Data Input'!$E$11),"0",SQRT((qc!V34+qr!V34-qs!V34)/(Resistance!V34))*'Data Input'!$E$11) -> 2792.600078 | W34: =IF(ISERROR(SQRT((qc!W34+qr!W34-qs!W34)/(Resistance!W34))*'Data Input'!$E$11),"0",SQRT((qc!W34+qr!W34-qs!W34)/(Resistance!W34))*'Data Input'!$E$11) -> 2773.25035 | X34: =IF(ISERROR(SQRT((qc!X34+qr!X34-qs!X34)/(Resistance!X34))*'Data Input'!$E$11),"0",SQRT((qc!X34+qr!X34-qs!X34)/(Resistance!X34))*'Data Input'!$E$11) -> 2753.698074 | Y34: =IF(ISERROR(SQRT((qc!Y34+qr!Y34-qs!Y34)/(Resistance!Y34))*'Data Input'!$E$11),"0",SQRT((qc!Y34+qr!Y34-qs!Y34)/(Resistance!Y34))*'Data Input'!$E$11) -> 2733.936626 | Z34: =IF(ISERROR(SQRT((qc!Z34+qr!Z34-qs!Z34)/(Resistance!Z34))*'Data Input'!$E$11),"0",SQRT((qc!Z34+qr!Z34-qs!Z34)/(Resistance!Z34))*'Data Input'!$E$11) -> 2713.959125 | AA34: =IF(ISERROR(SQRT((qc!AA34+qr!AA34-qs!AA34)/(Resistance!AA34))*'Data Input'!$E$11),"0",SQRT((qc!AA34+qr!AA34-qs!AA34)/(Resistance!AA34))*'Data Input'!$E$11) -> 2693.758418 | AB34: =IF(ISERROR(SQRT((qc!AB34+qr!AB34-qs!AB34)/(Resistance!AB34))*'Data Input'!$E$11),"0",SQRT((qc!AB34+qr!AB34-qs!AB34)/(Resistance!AB34))*'Data Input'!$E$11) -> 2673.327063 | AC34: =IF(ISERROR(SQRT((qc!AC34+qr!AC34-qs!AC34)/(Resistance!AC34))*'Data Input'!$E$11),"0",SQRT((qc!AC34+qr!AC34-qs!AC34)/(Resistance!AC34))*'Data Input'!$E$11) -> 2652.657313 | AD34: =IF(ISERROR(SQRT((qc!AD34+qr!AD34-qs!AD34)/(Resistance!AD34))*'Data Input'!$E$11),"0",SQRT((qc!AD34+qr!AD34-qs!AD34)/(Resistance!AD34))*'Data Input'!$E$11) -> 2631.741094 | AE34: =IF(ISERROR(SQRT((qc!AE34+qr!AE34-qs!AE34)/(Resistance!AE34))*'Data Input'!$E$11),"0",SQRT((qc!AE34+qr!AE34-qs!AE34)/(Resistance!AE34))*'Data Input'!$E$11) -> 2610.569988 | AF34: =IF(ISERROR(SQRT((qc!AF34+qr!AF34-qs!AF34)/(Resistance!AF34))*'Data Input'!$E$11),"0",SQRT((qc!AF34+qr!AF34-qs!AF34)/(Resistance!AF34))*'Data Input'!$E$11) -> 2589.135207 | AG34: =IF(ISERROR(SQRT((qc!AG34+qr!AG34-qs!AG34)/(Resistance!AG34))*'Data Input'!$E$11),"0",SQRT((qc!AG34+qr!AG34-qs!AG34)/(Resistance!AG34))*'Data Input'!$E$11) -> 2567.427574 | AH34: =IF(ISERROR(SQRT((qc!AH34+qr!AH34-qs!AH34)/(Resistance!AH34))*'Data Input'!$E$11),"0",SQRT((qc!AH34+qr!AH34-qs!AH34)/(Resistance!AH34))*'Data Input'!$E$11) -> 2545.43749 | AI34: =IF(ISERROR(SQRT((qc!AI34+qr!AI34-qs!AI34)/(Resistance!AI34))*'Data Input'!$E$11),"0",SQRT((qc!AI34+qr!AI34-qs!AI34)/(Resistance!AI34))*'Data Input'!$E$11) -> 2523.154912 | AJ34: =IF(ISERROR(SQRT((qc!AJ34+qr!AJ34-qs!AJ34)/(Resistance!AJ34))*'Data Input'!$E$11),"0",SQRT((qc!AJ34+qr!AJ34-qs!AJ34)/(Resistance!AJ34))*'Data Input'!$E$11) -> 2500.569318 | AK34: =IF(ISERROR(SQRT((qc!AK34+qr!AK34-qs!AK34)/(Resistance!AK34))*'Data Input'!$E$11),"0",SQRT((qc!AK34+qr!AK34-qs!AK34)/(Resistance!AK34))*'Data Input'!$E$11) -> 2477.669671 | AL34: =IF(ISERROR(SQRT((qc!AL34+qr!AL34-qs!AL34)/(Resistance!AL34))*'Data Input'!$E$11),"0",SQRT((qc!AL34+qr!AL34-qs!AL34)/(Resistance!AL34))*'Data Input'!$E$11) -> 2454.444385 | AM34: =IF(ISERROR(SQRT((qc!AM34+qr!AM34-qs!AM34)/(Resistance!AM34))*'Data Input'!$E$11),"0",SQRT((qc!AM34+qr!AM34-qs!AM34)/(Resistance!AM34))*'Data Input'!$E$11) -> 2430.881284 | AN34: =IF(ISERROR(SQRT((qc!AN34+qr!AN34-qs!AN34)/(Resistance!AN34))*'Data Input'!$E$11),"0",SQRT((qc!AN34+qr!AN34-qs!AN34)/(Resistance!AN34))*'Data Input'!$E$11) -> 2406.967553 | AO34: =IF(ISERROR(SQRT((qc!AO34+qr!AO34-qs!AO34)/(Resistance!AO34))*'Data Input'!$E$11),"0",SQRT((qc!AO34+qr!AO34-qs!AO34)/(Resistance!AO34))*'Data Input'!$E$11) -> 2382.68969 | AP34: =IF(ISERROR(SQRT((qc!AP34+qr!AP34-qs!AP34)/(Resistance!AP34))*'Data Input'!$E$11),"0",SQRT((qc!AP34+qr!AP34-qs!AP34)/(Resistance!AP34))*'Data Input'!$E$11) -> 2358.03345 | AQ34: =IF(ISERROR(SQRT((qc!AQ34+qr!AQ34-qs!AQ34)/(Resistance!AQ34))*'Data Input'!$E$11),"0",SQRT((qc!AQ34+qr!AQ34-qs!AQ34)/(Resistance!AQ34))*'Data Input'!$E$11) -> 2332.983786 | AR34: =IF(ISERROR(SQRT((qc!AR34+qr!AR34-qs!AR34)/(Resistance!AR34))*'Data Input'!$E$11),"0",SQRT((qc!AR34+qr!AR34-qs!AR34)/(Resistance!AR34))*'Data Input'!$E$11) -> 2307.524775 | AS34: =IF(ISERROR(SQRT((qc!AS34+qr!AS34-qs!AS34)/(Resistance!AS34))*'Data Input'!$E$11),"0",SQRT((qc!AS34+qr!AS34-qs!AS34)/(Resistance!AS34))*'Data Input'!$E$11) -> 2281.639548 | AT34: =IF(ISERROR(SQRT((qc!AT34+qr!AT34-qs!AT34)/(Resistance!AT34))*'Data Input'!$E$11),"0",SQRT((qc!AT34+qr!AT34-qs!AT34)/(Resistance!AT34))*'Data Input'!$E$11) -> 2255.310203 | AU34: =IF(ISERROR(SQRT((qc!AU34+qr!AU34-qs!AU34)/(Resistance!AU34))*'Data Input'!$E$11),"0",SQRT((qc!AU34+qr!AU34-qs!AU34)/(Resistance!AU34))*'Data Input'!$E$11) -> 2228.517707 | AV34: =IF(ISERROR(SQRT((qc!AV34+qr!AV34-qs!AV34)/(Resistance!AV34))*'Data Input'!$E$11),"0",SQRT((qc!AV34+qr!AV34-qs!AV34)/(Resistance!AV34))*'Data Input'!$E$11) -> 2201.241795 | AW34: =IF(ISERROR(SQRT((qc!AW34+qr!AW34-qs!AW34)/(Resistance!AW34))*'Data Input'!$E$11),"0",SQRT((qc!AW34+qr!AW34-qs!AW34)/(Resistance!AW34))*'Data Input'!$E$11) -> 2173.460842 | AX34: =IF(ISERROR(SQRT((qc!AX34+qr!AX34-qs!AX34)/(Resistance!AX34))*'Data Input'!$E$11),"0",SQRT((qc!AX34+qr!AX34-qs!AX34)/(Resistance!AX34))*'Data Input'!$E$11) -> 2145.151736 | AY34: =IF(ISERROR(SQRT((qc!AY34+qr!AY34-qs!AY34)/(Resistance!AY34))*'Data Input'!$E$11),"0",SQRT((qc!AY34+qr!AY34-qs!AY34)/(Resistance!AY34))*'Data Input'!$E$11) -> 2116.289713 | AZ34: =IF(ISERROR(SQRT((qc!AZ34+qr!AZ34-qs!AZ34)/(Resistance!AZ34))*'Data Input'!$E$11),"0",SQRT((qc!AZ34+qr!AZ34-qs!AZ34)/(Resistance!AZ34))*'Data Input'!$E$11) -> 2086.848191 | BA34: =IF(ISERROR(SQRT((qc!BA34+qr!BA34-qs!BA34)/(Resistance!BA34))*'Data Input'!$E$11),"0",SQRT((qc!BA34+qr!BA34-qs!BA34)/(Resistance!BA34))*'Data Input'!$E$11) -> 2056.798561 | BB34: =IF(ISERROR(SQRT((qc!BB34+qr!BB34-qs!BB34)/(Resistance!BB34))*'Data Input'!$E$11),"0",SQRT((qc!BB34+qr!BB34-qs!BB34)/(Resistance!BB34))*'Data Input'!$E$11) -> 2026.109961 | BC34: =IF(ISERROR(SQRT((qc!BC34+qr!BC34-qs!BC34)/(Resistance!BC34))*'Data Input'!$E$11),"0",SQRT((qc!BC34+qr!BC34-qs!BC34)/(Resistance!BC34))*'Data Input'!$E$11) -> 1994.749007 | BD34: =IF(ISERROR(SQRT((qc!BD34+qr!BD34-qs!BD34)/(Resistance!BD34))*'Data Input'!$E$11),"0",SQRT((qc!BD34+qr!BD34-qs!BD34)/(Resistance!BD34))*'Data Input'!$E$11) -> 1962.679484 | BE34: =IF(ISERROR(SQRT((qc!BE34+qr!BE34-qs!BE34)/(Resistance!BE34))*'Data Input'!$E$11),"0",SQRT((qc!BE34+qr!BE34-qs!BE34)/(Resistance!BE34))*'Data Input'!$E$11) -> 1929.861986 | BF34: =IF(ISERROR(SQRT((qc!BF34+qr!BF34-qs!BF34)/(Resistance!BF34))*'Data Input'!$E$11),"0",SQRT((qc!BF34+qr!BF34-qs!BF34)/(Resistance!BF34))*'Data Input'!$E$11) -> 1896.253495 | BG34: =IF(ISERROR(SQRT((qc!BG34+qr!BG34-qs!BG34)/(Resistance!BG34))*'Data Input'!$E$11),"0",SQRT((qc!BG34+qr!BG34-qs!BG34)/(Resistance!BG34))*'Data Input'!$E$11) -> 1861.806887 | BH34: =IF(ISERROR(SQRT((qc!BH34+qr!BH34-qs!BH34)/(Resistance!BH34))*'Data Input'!$E$11),"0",SQRT((qc!BH34+qr!BH34-qs!BH34)/(Resistance!BH34))*'Data Input'!$E$11) -> 1826.470337 | BI34: =IF(ISERROR(SQRT((qc!BI34+qr!BI34-qs!BI34)/(Resistance!BI34))*'Data Input'!$E$11),"0",SQRT((qc!BI34+qr!BI34-qs!BI34)/(Resistance!BI34))*'Data Input'!$E$11) -> 1790.186621 | BJ34: =IF(ISERROR(SQRT((qc!BJ34+qr!BJ34-qs!BJ34)/(Resistance!BJ34))*'Data Input'!$E$11),"0",SQRT((qc!BJ34+qr!BJ34-qs!BJ34)/(Resistance!BJ34))*'Data Input'!$E$11) -> 1752.892269 | BK34: =IF(ISERROR(SQRT((qc!BK34+qr!BK34-qs!BK34)/(Resistance!BK34))*'Data Input'!$E$11),"0",SQRT((qc!BK34+qr!BK34-qs!BK34)/(Resistance!BK34))*'Data Input'!$E$11) -> 1714.516543
A35: Normal Day | B35: =wind_norm -> 0 | C35: 135 | D35: =IF(ISERROR(SQRT((qc!D35+qr!D35-qs!D35)/(Resistance!D35))*'Data Input'!$E$11),"0",SQRT((qc!D35+qr!D35-qs!D35)/(Resistance!D35))*'Data Input'!$E$11) -> 2193.582808 | E35: =IF(ISERROR(SQRT((qc!E35+qr!E35-qs!E35)/(Resistance!E35))*'Data Input'!$E$11),"0",SQRT((qc!E35+qr!E35-qs!E35)/(Resistance!E35))*'Data Input'!$E$11) -> 2153.392582 | F35: =IF(ISERROR(SQRT((qc!F35+qr!F35-qs!F35)/(Resistance!F35))*'Data Input'!$E$11),"0",SQRT((qc!F35+qr!F35-qs!F35)/(Resistance!F35))*'Data Input'!$E$11) -> 2112.526614 | G35: =IF(ISERROR(SQRT((qc!G35+qr!G35-qs!G35)/(Resistance!G35))*'Data Input'!$E$11),"0",SQRT((qc!G35+qr!G35-qs!G35)/(Resistance!G35))*'Data Input'!$E$11) -> 2070.927458 | H35: =IF(ISERROR(SQRT((qc!H35+qr!H35-qs!H35)/(Resistance!H35))*'Data Input'!$E$11),"0",SQRT((qc!H35+qr!H35-qs!H35)/(Resistance!H35))*'Data Input'!$E$11) -> 2028.532413 | I35: =IF(ISERROR(SQRT((qc!I35+qr!I35-qs!I35)/(Resistance!I35))*'Data Input'!$E$11),"0",SQRT((qc!I35+qr!I35-qs!I35)/(Resistance!I35))*'Data Input'!$E$11) -> 1985.272777 | J35: =IF(ISERROR(SQRT((qc!J35+qr!J35-qs!J35)/(Resistance!J35))*'Data Input'!$E$11),"0",SQRT((qc!J35+qr!J35-qs!J35)/(Resistance!J35))*'Data Input'!$E$11) -> 1941.072933 | K35: =IF(ISERROR(SQRT((qc!K35+qr!K35-qs!K35)/(Resistance!K35))*'Data Input'!$E$11),"0",SQRT((qc!K35+qr!K35-qs!K35)/(Resistance!K35))*'Data Input'!$E$11) -> 1895.849267 | L35: =IF(ISERROR(SQRT((qc!L35+qr!L35-qs!L35)/(Resistance!L35))*'Data Input'!$E$11),"0",SQRT((qc!L35+qr!L35-qs!L35)/(Resistance!L35))*'Data Input'!$E$11) -> 1849.508827 | M35: =IF(ISERROR(SQRT((qc!M35+qr!M35-qs!M35)/(Resistance!M35))*'Data Input'!$E$11),"0",SQRT((qc!M35+qr!M35-qs!M35)/(Resistance!M35))*'Data Input'!$E$11) -> 1801.947684 | N35: =IF(ISERROR(SQRT((qc!N35+qr!N35-qs!N35)/(Resistance!N35))*'Data Input'!$E$11),"0",SQRT((qc!N35+qr!N35-qs!N35)/(Resistance!N35))*'Data Input'!$E$11) -> 1753.048887 | O35: =IF(ISERROR(SQRT((qc!O35+qr!O35-qs!O35)/(Resistance!O35))*'Data Input'!$E$11),"0",SQRT((qc!O35+qr!O35-qs!O35)/(Resistance!O35))*'Data Input'!$E$11) -> 1702.679889 | Q35: Normal Day | R35: =wind_norm -> 0 | S35: 135 | T35: =IF(ISERROR(SQRT((qc!T35+qr!T35-qs!T35)/(Resistance!T35))*'Data Input'!$E$11),"0",SQRT((qc!T35+qr!T35-qs!T35)/(Resistance!T35))*'Data Input'!$E$11) -> 2488.302785 | U35: =IF(ISERROR(SQRT((qc!U35+qr!U35-qs!U35)/(Resistance!U35))*'Data Input'!$E$11),"0",SQRT((qc!U35+qr!U35-qs!U35)/(Resistance!U35))*'Data Input'!$E$11) -> 2468.084923 | V35: =IF(ISERROR(SQRT((qc!V35+qr!V35-qs!V35)/(Resistance!V35))*'Data Input'!$E$11),"0",SQRT((qc!V35+qr!V35-qs!V35)/(Resistance!V35))*'Data Input'!$E$11) -> 2447.762412 | W35: =IF(ISERROR(SQRT((qc!W35+qr!W35-qs!W35)/(Resistance!W35))*'Data Input'!$E$11),"0",SQRT((qc!W35+qr!W35-qs!W35)/(Resistance!W35))*'Data Input'!$E$11) -> 2427.329944 | X35: =IF(ISERROR(SQRT((qc!X35+qr!X35-qs!X35)/(Resistance!X35))*'Data Input'!$E$11),"0",SQRT((qc!X35+qr!X35-qs!X35)/(Resistance!X35))*'Data Input'!$E$11) -> 2406.782018 | Y35: =IF(ISERROR(SQRT((qc!Y35+qr!Y35-qs!Y35)/(Resistance!Y35))*'Data Input'!$E$11),"0",SQRT((qc!Y35+qr!Y35-qs!Y35)/(Resistance!Y35))*'Data Input'!$E$11) -> 2386.112933 | Z35: =IF(ISERROR(SQRT((qc!Z35+qr!Z35-qs!Z35)/(Resistance!Z35))*'Data Input'!$E$11),"0",SQRT((qc!Z35+qr!Z35-qs!Z35)/(Resistance!Z35))*'Data Input'!$E$11) -> 2365.316777 | AA35: =IF(ISERROR(SQRT((qc!AA35+qr!AA35-qs!AA35)/(Resistance!AA35))*'Data Input'!$E$11),"0",SQRT((qc!AA35+qr!AA35-qs!AA35)/(Resistance!AA35))*'Data Input'!$E$11) -> 2344.38741 | AB35: =IF(ISERROR(SQRT((qc!AB35+qr!AB35-qs!AB35)/(Resistance!AB35))*'Data Input'!$E$11),"0",SQRT((qc!AB35+qr!AB35-qs!AB35)/(Resistance!AB35))*'Data Input'!$E$11) -> 2323.318459 | AC35: =IF(ISERROR(SQRT((qc!AC35+qr!AC35-qs!AC35)/(Resistance!AC35))*'Data Input'!$E$11),"0",SQRT((qc!AC35+qr!AC35-qs!AC35)/(Resistance!AC35))*'Data Input'!$E$11) -> 2302.103298 | AD35: =IF(ISERROR(SQRT((qc!AD35+qr!AD35-qs!AD35)/(Resistance!AD35))*'Data Input'!$E$11),"0",SQRT((qc!AD35+qr!AD35-qs!AD35)/(Resistance!AD35))*'Data Input'!$E$11) -> 2280.735033 | AE35: =IF(ISERROR(SQRT((qc!AE35+qr!AE35-qs!AE35)/(Resistance!AE35))*'Data Input'!$E$11),"0",SQRT((qc!AE35+qr!AE35-qs!AE35)/(Resistance!AE35))*'Data Input'!$E$11) -> 2259.206489 | AF35: =IF(ISERROR(SQRT((qc!AF35+qr!AF35-qs!AF35)/(Resistance!AF35))*'Data Input'!$E$11),"0",SQRT((qc!AF35+qr!AF35-qs!AF35)/(Resistance!AF35))*'Data Input'!$E$11) -> 2237.51019 | AG35: =IF(ISERROR(SQRT((qc!AG35+qr!AG35-qs!AG35)/(Resistance!AG35))*'Data Input'!$E$11),"0",SQRT((qc!AG35+qr!AG35-qs!AG35)/(Resistance!AG35))*'Data Input'!$E$11) -> 2215.638342 | AH35: =IF(ISERROR(SQRT((qc!AH35+qr!AH35-qs!AH35)/(Resistance!AH35))*'Data Input'!$E$11),"0",SQRT((qc!AH35+qr!AH35-qs!AH35)/(Resistance!AH35))*'Data Input'!$E$11) -> 2193.582808 | AI35: =IF(ISERROR(SQRT((qc!AI35+qr!AI35-qs!AI35)/(Resistance!AI35))*'Data Input'!$E$11),"0",SQRT((qc!AI35+qr!AI35-qs!AI35)/(Resistance!AI35))*'Data Input'!$E$11) -> 2171.335089 | AJ35: =IF(ISERROR(SQRT((qc!AJ35+qr!AJ35-qs!AJ35)/(Resistance!AJ35))*'Data Input'!$E$11),"0",SQRT((qc!AJ35+qr!AJ35-qs!AJ35)/(Resistance!AJ35))*'Data Input'!$E$11) -> 2148.886298 | AK35: =IF(ISERROR(SQRT((qc!AK35+qr!AK35-qs!AK35)/(Resistance!AK35))*'Data Input'!$E$11),"0",SQRT((qc!AK35+qr!AK35-qs!AK35)/(Resistance!AK35))*'Data Input'!$E$11) -> 2126.227131 | AL35: =IF(ISERROR(SQRT((qc!AL35+qr!AL35-qs!AL35)/(Resistance!AL35))*'Data Input'!$E$11),"0",SQRT((qc!AL35+qr!AL35-qs!AL35)/(Resistance!AL35))*'Data Input'!$E$11) -> 2103.34784 | AM35: =IF(ISERROR(SQRT((qc!AM35+qr!AM35-qs!AM35)/(Resistance!AM35))*'Data Input'!$E$11),"0",SQRT((qc!AM35+qr!AM35-qs!AM35)/(Resistance!AM35))*'Data Input'!$E$11) -> 2080.238199 | AN35: =IF(ISERROR(SQRT((qc!AN35+qr!AN35-qs!AN35)/(Resistance!AN35))*'Data Input'!$E$11),"0",SQRT((qc!AN35+qr!AN35-qs!AN35)/(Resistance!AN35))*'Data Input'!$E$11) -> 2056.887469 | AO35: =IF(ISERROR(SQRT((qc!AO35+qr!AO35-qs!AO35)/(Resistance!AO35))*'Data Input'!$E$11),"0",SQRT((qc!AO35+qr!AO35-qs!AO35)/(Resistance!AO35))*'Data Input'!$E$11) -> 2033.284357 | AP35: =IF(ISERROR(SQRT((qc!AP35+qr!AP35-qs!AP35)/(Resistance!AP35))*'Data Input'!$E$11),"0",SQRT((qc!AP35+qr!AP35-qs!AP35)/(Resistance!AP35))*'Data Input'!$E$11) -> 2009.416972 | AQ35: =IF(ISERROR(SQRT((qc!AQ35+qr!AQ35-qs!AQ35)/(Resistance!AQ35))*'Data Input'!$E$11),"0",SQRT((qc!AQ35+qr!AQ35-qs!AQ35)/(Resistance!AQ35))*'Data Input'!$E$11) -> 1985.272777 | AR35: =IF(ISERROR(SQRT((qc!AR35+qr!AR35-qs!AR35)/(Resistance!AR35))*'Data Input'!$E$11),"0",SQRT((qc!AR35+qr!AR35-qs!AR35)/(Resistance!AR35))*'Data Input'!$E$11) -> 1960.838536 | AS35: =IF(ISERROR(SQRT((qc!AS35+qr!AS35-qs!AS35)/(Resistance!AS35))*'Data Input'!$E$11),"0",SQRT((qc!AS35+qr!AS35-qs!AS35)/(Resistance!AS35))*'Data Input'!$E$11) -> 1936.100255 | AT35: =IF(ISERROR(SQRT((qc!AT35+qr!AT35-qs!AT35)/(Resistance!AT35))*'Data Input'!$E$11),"0",SQRT((qc!AT35+qr!AT35-qs!AT35)/(Resistance!AT35))*'Data Input'!$E$11) -> 1911.04311 | AU35: =IF(ISERROR(SQRT((qc!AU35+qr!AU35-qs!AU35)/(Resistance!AU35))*'Data Input'!$E$11),"0",SQRT((qc!AU35+qr!AU35-qs!AU35)/(Resistance!AU35))*'Data Input'!$E$11) -> 1885.651377 | AV35: =IF(ISERROR(SQRT((qc!AV35+qr!AV35-qs!AV35)/(Resistance!AV35))*'Data Input'!$E$11),"0",SQRT((qc!AV35+qr!AV35-qs!AV35)/(Resistance!AV35))*'Data Input'!$E$11) -> 1859.908348 | AW35: =IF(ISERROR(SQRT((qc!AW35+qr!AW35-qs!AW35)/(Resistance!AW35))*'Data Input'!$E$11),"0",SQRT((qc!AW35+qr!AW35-qs!AW35)/(Resistance!AW35))*'Data Input'!$E$11) -> 1833.796231 | AX35: =IF(ISERROR(SQRT((qc!AX35+qr!AX35-qs!AX35)/(Resistance!AX35))*'Data Input'!$E$11),"0",SQRT((qc!AX35+qr!AX35-qs!AX35)/(Resistance!AX35))*'Data Input'!$E$11) -> 1807.296049 | AY35: =IF(ISERROR(SQRT((qc!AY35+qr!AY35-qs!AY35)/(Resistance!AY35))*'Data Input'!$E$11),"0",SQRT((qc!AY35+qr!AY35-qs!AY35)/(Resistance!AY35))*'Data Input'!$E$11) -> 1780.387513 | AZ35: =IF(ISERROR(SQRT((qc!AZ35+qr!AZ35-qs!AZ35)/(Resistance!AZ35))*'Data Input'!$E$11),"0",SQRT((qc!AZ35+qr!AZ35-qs!AZ35)/(Resistance!AZ35))*'Data Input'!$E$11) -> 1753.048887 | BA35: =IF(ISERROR(SQRT((qc!BA35+qr!BA35-qs!BA35)/(Resistance!BA35))*'Data Input'!$E$11),"0",SQRT((qc!BA35+qr!BA35-qs!BA35)/(Resistance!BA35))*'Data Input'!$E$11) -> 1725.256829 | BB35: =IF(ISERROR(SQRT((qc!BB35+qr!BB35-qs!BB35)/(Resistance!BB35))*'Data Input'!$E$11),"0",SQRT((qc!BB35+qr!BB35-qs!BB35)/(Resistance!BB35))*'Data Input'!$E$11) -> 1696.986209 | BC35: =IF(ISERROR(SQRT((qc!BC35+qr!BC35-qs!BC35)/(Resistance!BC35))*'Data Input'!$E$11),"0",SQRT((qc!BC35+qr!BC35-qs!BC35)/(Resistance!BC35))*'Data Input'!$E$11) -> 1668.209896 | BD35: =IF(ISERROR(SQRT((qc!BD35+qr!BD35-qs!BD35)/(Resistance!BD35))*'Data Input'!$E$11),"0",SQRT((qc!BD35+qr!BD35-qs!BD35)/(Resistance!BD35))*'Data Input'!$E$11) -> 1638.898522 | BE35: =IF(ISERROR(SQRT((qc!BE35+qr!BE35-qs!BE35)/(Resistance!BE35))*'Data Input'!$E$11),"0",SQRT((qc!BE35+qr!BE35-qs!BE35)/(Resistance!BE35))*'Data Input'!$E$11) -> 1609.020191 | BF35: =IF(ISERROR(SQRT((qc!BF35+qr!BF35-qs!BF35)/(Resistance!BF35))*'Data Input'!$E$11),"0",SQRT((qc!BF35+qr!BF35-qs!BF35)/(Resistance!BF35))*'Data Input'!$E$11) -> 1578.540153 | BG35: =IF(ISERROR(SQRT((qc!BG35+qr!BG35-qs!BG35)/(Resistance!BG35))*'Data Input'!$E$11),"0",SQRT((qc!BG35+qr!BG35-qs!BG35)/(Resistance!BG35))*'Data Input'!$E$11) -> 1547.420409 | BH35: =IF(ISERROR(SQRT((qc!BH35+qr!BH35-qs!BH35)/(Resistance!BH35))*'Data Input'!$E$11),"0",SQRT((qc!BH35+qr!BH35-qs!BH35)/(Resistance!BH35))*'Data Input'!$E$11) -> 1515.619252 | BI35: =IF(ISERROR(SQRT((qc!BI35+qr!BI35-qs!BI35)/(Resistance!BI35))*'Data Input'!$E$11),"0",SQRT((qc!BI35+qr!BI35-qs!BI35)/(Resistance!BI35))*'Data Input'!$E$11) -> 1483.090707 | BJ35: =IF(ISERROR(SQRT((qc!BJ35+qr!BJ35-qs!BJ35)/(Resistance!BJ35))*'Data Input'!$E$11),"0",SQRT((qc!BJ35+qr!BJ35-qs!BJ35)/(Resistance!BJ35))*'Data Input'!$E$11) -> 1449.783873 | BK35: =IF(ISERROR(SQRT((qc!BK35+qr!BK35-qs!BK35)/(Resistance!BK35))*'Data Input'!$E$11),"0",SQRT((qc!BK35+qr!BK35-qs!BK35)/(Resistance!BK35))*'Data Input'!$E$11) -> 1415.642106
